Workbook

Sheet Sample Report (hidden)
A2: Date
A3: Hen
A4: Program
A5: Start at 999999
A6: Sequence component 1 | B6: Time 1 | C6: Seqeunce Component 2 | D6: Time 2 | E6: Seqeunce Component 3 | F6: Time 3 | G6: Correct 0 = No 1=Yes | J6: Seqeunce | K6: Time
A7: 12 | B7: 7 | C7: 12 | D7: 42 | E7: 13 | F7: 18 | G7: if 77 new line, if 31 or 41 = yes new line on 77, | J7: =string of Seqeunce compponent 1, 2 & 3 | K7: =time 3
A8: This continues until ther is a 1 on its own to indicate start of summary data
J9: 10-19 =1
A10: Summary Data | J10: 20-29 =2
A11: Correct | B11: Incorrect | C11: Rft | D11: total | E11: Av Correct | F11: Av Incorrect | G11: Percent correct | H11: Time | J11: in this example the seqeunce would be 111
A12: 40 | B12: 33 | C12: 40 | D12: 73 | E12: 23.95 | F12: 15 | G12: 54 | H12: 806

Sheet Summary
A2: Day | B2: Date | C2: Average Response Rate | D2: Target % | E2: RF for non correct sequence | F2: U Value | K2: Block 1 | L2: Block 2 | M2: Block 3 | N2: Block 4 | O2: Block 5 | P2: Block 6
A3: 1 | B3: ='!2011-05-05_09h39m.Subject 52 p'!B2:C2 -> 2011-05-05 | C3: =('!2011-05-05_09h39m.Subject 52 p'!F196/60)/'!2011-05-05_09h39m.Subject 52 p'!Q3 -> 2.081588133 | D3: ='!2011-05-05_09h39m.Subject 52 p'!N20/'!2011-05-05_09h39m.Subject 52 p'!Q3 -> 0.01047120419 | E3: =SUM('!2011-05-05_09h39m.Subject 52 p'!L20:Q20)/'!2011-05-05_09h39m.Subject 52 p'!Q3 -> 0.9267015707 | F3: ='!2011-05-05_09h39m.Subject 52 p'!Q16 -> 0.2583470187 | J3: Average Response Rate | K3: =AVERAGE(C3:C7) -> 2.70596383 | L3: =AVERAGE(C8:C12) -> 3.172574765 | M3: =AVERAGE(C13:C17) -> 2.043958317 | N3: =AVERAGE(C18:C22) -> 2.097559224 | O3: =AVERAGE(C23:C27) -> 1.966133158 | P3: =AVERAGE(C28:C32) -> 1.843201281
A4: 2 | B4: ='!2011-05-06_08h52m.Subject 52 p'!B2:C2 -> 2011-05-06 | C4: =('!2011-05-06_08h52m.Subject 52 p'!F132/60)/'!2011-05-06_08h52m.Subject 52 p'!Q3 -> 3.169179894 | D4: ='!2011-05-06_08h52m.Subject 52 p'!N20/'!2011-05-06_08h52m.Subject 52 p'!Q3 -> 0.007936507937 | E4: =SUM('!2011-05-06_08h52m.Subject 52 p'!L20:Q20)/'!2011-05-06_08h52m.Subject 52 p'!Q3 -> 2.015873016 | F4: ='!2011-05-06_08h52m.Subject 52 p'!Q16 -> 0.3557807589 | J4: Target % | K4: =AVERAGE(D3:D7) -> 0.05532551127 | L4: =AVERAGE(D8:D12) -> 0.1419433194 | M4: =AVERAGE(D13:D17) -> 0.1350019477 | N4: =AVERAGE(D18:D22) -> 0.1455141364 | O4: =AVERAGE(D23:D27) -> 0.08472199027 | P4: =AVERAGE(D28:D32) -> 0.07777798057
A5: 3 | B5: ='!2011-05-07_09h34m.Subject 52 p'!B2:C2 -> 2011-05-07 | C5: =('!2011-05-07_09h34m.Subject 52 p'!F153/60)/'!2011-05-07_09h34m.Subject 52 p'!Q3 -> 2.705442177 | D5: ='!2011-05-07_09h34m.Subject 52 p'!N20/'!2011-05-07_09h34m.Subject 52 p'!Q3 -> 0.02721088435 | E5: =SUM('!2011-05-07_09h34m.Subject 52 p'!L20:Q20)/'!2011-05-07_09h34m.Subject 52 p'!Q3 -> 1.870748299 | F5: ='!2011-05-07_09h34m.Subject 52 p'!Q16 -> 0.3240888188 | J5: CCRF | K5: =AVERAGE(E3:E7) -> 1.761778329 | L5: =AVERAGE(E8:E12) -> 3.434360835 | M5: =AVERAGE(E13:E17) -> 1.762328177 | N5: =AVERAGE(E18:E22) -> 2.113354576 | O5: =AVERAGE(E23:E27) -> 2.06185739 | P5: =AVERAGE(E28:E32) -> 2.436026934
A6: 4 | B6: ='!2011-05-08_09h18m.Subject 52 p'!B2:C2 -> 2011-05-08 | C6: =('!2011-05-08_09h18m.Subject 52 p'!F142/60)/'!2011-05-08_09h18m.Subject 52 p'!Q3 -> 2.932107843 | D6: ='!2011-05-08_09h18m.Subject 52 p'!N20/'!2011-05-08_09h18m.Subject 52 p'!Q3 -> 0.05882352941 | E6: =SUM('!2011-05-08_09h18m.Subject 52 p'!L20:Q20)/'!2011-05-08_09h18m.Subject 52 p'!Q3 -> 2.022058824 | F6: ='!2011-05-08_09h18m.Subject 52 p'!Q16 -> 0.3180090706 | J6: U Value | K6: =AVERAGE(F3:F7) -> 0.3132369341 | L6: =AVERAGE(F8:F12) -> 0.35952966 | M6: =AVERAGE(F13:F17) -> 0.3081837386 | N6: =AVERAGE(F18:F22) -> 0.2776617184 | O6: =AVERAGE(F23:F27) -> 0.2924602248 | P6: =AVERAGE(F28:F32) -> 0.2460883885
A7: 5 | B7: ='!2011-05-09_08h56m.Subject 52 p'!B2:C2 -> 2011-05-09 | C7: =('!2011-05-09_08h56m.Subject 52 p'!F157/60)/'!2011-05-09_08h56m.Subject 52 p'!Q3 -> 2.641501104 | D7: ='!2011-05-09_08h56m.Subject 52 p'!N20/'!2011-05-09_08h56m.Subject 52 p'!Q3 -> 0.1721854305 | E7: =SUM('!2011-05-09_08h56m.Subject 52 p'!L20:Q20)/'!2011-05-09_08h56m.Subject 52 p'!Q3 -> 1.973509934 | F7: ='!2011-05-09_08h56m.Subject 52 p'!Q16 -> 0.3099590032
A8: 6 | B8: ='!2011-05-10_08h14m.Subject 52 p'!B2:C2 -> 2011-05-10 | C8: =('!2011-05-10_08h14m.Subject 52 p'!F121/60)/'!2011-05-10_08h14m.Subject 52 p'!Q3 -> 3.452608696 | D8: ='!2011-05-10_08h14m.Subject 52 p'!N20/'!2011-05-10_08h14m.Subject 52 p'!Q3 -> 0.1739130435 | E8: =SUM('!2011-05-10_08h14m.Subject 52 p'!L20:Q20)/'!2011-05-10_08h14m.Subject 52 p'!Q3 -> 1.565217391 | F8: ='!2011-05-10_08h14m.Subject 52 p'!Q16 -> 0.3476477479
A9: 7 | B9: ='!2011-05-11_08h02m.Subject 52 p'!B2:C2 -> 2011-05-11 | C9: =('!2011-05-11_08h02m.Subject 52 p'!F28/60)/'!2011-05-11_08h02m.Subject 52 p'!Q3 -> 5.646969697 | D9: ='!2011-05-11_08h02m.Subject 52 p'!N20/'!2011-05-11_08h02m.Subject 52 p'!Q3 -> 0.09090909091 | E9: =SUM('!2011-05-11_08h02m.Subject 52 p'!L20:Q20)/'!2011-05-11_08h02m.Subject 52 p'!Q3 -> 10.5 | F9: ='!2011-05-11_08h02m.Subject 52 p'!Q16 -> 0.5080430684 | H9: 2.70596383 | I9: 3.172574765 | J9: 2.043958317 | K9: 2.097559224 | L9: 1.966133158 | M9: 1.843201281 | N9: 0.05532551127 | O9: 0.1419433194 | P9: 0.1350019477 | Q9: 0.1455141364 | R9: 0.08472199027 | S9: 0.07777798057 | T9: 0.3132369341 | U9: 0.35952966 | V9: 0.3081837386 | W9: 0.2776617184 | X9: 0.2924602248 | Y9: 0.2460883885
A10: 8 | B10: ='!2011-05-12_08h35m.Subject 52 p'!B2:C2 -> 2011-05-12 | C10: =('!2011-05-12_08h35m.Subject 52 p'!F179/60)/'!2011-05-12_08h35m.Subject 52 p'!Q3 -> 2.288505747 | D10: ='!2011-05-12_08h35m.Subject 52 p'!N20/'!2011-05-12_08h35m.Subject 52 p'!Q3 -> 0.1206896552 | E10: =SUM('!2011-05-12_08h35m.Subject 52 p'!L20:Q20)/'!2011-05-12_08h35m.Subject 52 p'!Q3 -> 1.729885057 | F10: ='!2011-05-12_08h35m.Subject 52 p'!Q16 -> 0.3405335448
A11: 9 | B11: ='!2011-05-13_09h26m.Subject 52 p'!B2:C2 -> 2011-05-13 | C11: =('!2011-05-13_09h26m.Subject 52 p'!F179/60)/'!2011-05-13_09h26m.Subject 52 p'!Q3 -> 2.298651252 | D11: ='!2011-05-13_09h26m.Subject 52 p'!N20/'!2011-05-13_09h26m.Subject 52 p'!Q3 -> 0.1329479769 | E11: =SUM('!2011-05-13_09h26m.Subject 52 p'!L20:Q20)/'!2011-05-13_09h26m.Subject 52 p'!Q3 -> 1.693641618 | F11: ='!2011-05-13_09h26m.Subject 52 p'!Q16 -> 0.2831686382
A12: 10 | B12: ='!2011-05-14_10h27m.Subject 52 p'!B2:C2 -> 2011-05-14 | C12: =('!2011-05-14_10h27m.Subject 52 p'!F188/60)/'!2011-05-14_10h27m.Subject 52 p'!Q3 -> 2.176138434 | D12: ='!2011-05-14_10h27m.Subject 52 p'!N20/'!2011-05-14_10h27m.Subject 52 p'!Q3 -> 0.1912568306 | E12: =SUM('!2011-05-14_10h27m.Subject 52 p'!L20:Q20)/'!2011-05-14_10h27m.Subject 52 p'!Q3 -> 1.683060109 | F12: ='!2011-05-14_10h27m.Subject 52 p'!Q16 -> 0.3182553009
A13: 11 | B13: ='!2011-05-15_08h55m.Subject 52 p'!B2:C2 -> 2011-05-15 | C13: =('!2011-05-15_08h55m.Subject 52 p'!F184/60)/'!2011-05-15_08h55m.Subject 52 p'!Q3 -> 2.241011236 | D13: ='!2011-05-15_08h55m.Subject 52 p'!N20/'!2011-05-15_08h55m.Subject 52 p'!Q3 -> 0.191011236 | E13: =SUM('!2011-05-15_08h55m.Subject 52 p'!L20:Q20)/'!2011-05-15_08h55m.Subject 52 p'!Q3 -> 1.202247191 | F13: ='!2011-05-15_08h55m.Subject 52 p'!Q16 -> 0.3449961684
A14: 12 | B14: ='!2011-05-16_08h38m.Subject 52 p'!B2:C2 -> 2011-05-16 | C14: =('!2011-05-16_08h38m.Subject 52 p'!F125/60)/'!2011-05-16_08h38m.Subject 52 p'!Q3 -> 2.025630252 | D14: ='!2011-05-16_08h38m.Subject 52 p'!N20/'!2011-05-16_08h38m.Subject 52 p'!Q3 -> 0.08403361345 | E14: =SUM('!2011-05-16_08h38m.Subject 52 p'!L20:Q20)/'!2011-05-16_08h38m.Subject 52 p'!Q3 -> 1.361344538 | F14: ='!2011-05-16_08h38m.Subject 52 p'!Q16 -> 0.3406053103
A15: 13 | B15: ='!2011-05-17_09h27m.Subject 52 p'!B2:C2 -> 2011-05-17 | C15: =('!2011-05-17_09h27m.Subject 52 p'!F104/60)/'!2011-05-17_09h27m.Subject 52 p'!Q3 -> 2.003741497 | D15: ='!2011-05-17_09h27m.Subject 52 p'!N20/'!2011-05-17_09h27m.Subject 52 p'!Q3 -> 0.1326530612 | E15: =SUM('!2011-05-17_09h27m.Subject 52 p'!L20:Q20)/'!2011-05-17_09h27m.Subject 52 p'!Q3 -> 1.714285714 | F15: ='!2011-05-17_09h27m.Subject 52 p'!Q16 -> 0.3198530778
A16: 14 | B16: ='!2011-05-18_08h52m.Subject 52 p'!B2:C2 -> 2011-05-18 | C16: =('!2011-05-18_08h52m.Subject 52 p'!F68/60)/'!2011-05-18_08h52m.Subject 52 p'!Q3 -> 1.959408602 | D16: ='!2011-05-18_08h52m.Subject 52 p'!N20/'!2011-05-18_08h52m.Subject 52 p'!Q3 -> 0.08064516129 | E16: =SUM('!2011-05-18_08h52m.Subject 52 p'!L20:Q20)/'!2011-05-18_08h52m.Subject 52 p'!Q3 -> 2.387096774 | F16: ='!2011-05-18_08h52m.Subject 52 p'!Q16 -> 0.2487072287
A17: 15 | B17: ='!2011-05-19_09h16m.Subject 52'!B2:C2 -> 2011-05-19 | C17: =('!2011-05-19_09h16m.Subject 52'!F81/60)/'!2011-05-19_09h16m.Subject 52'!Q3 -> 1.99 | D17: ='!2011-05-19_09h16m.Subject 52'!N20/'!2011-05-19_09h16m.Subject 52'!Q3 -> 0.1866666667 | E17: =SUM('!2011-05-19_09h16m.Subject 52'!L20:Q20)/'!2011-05-19_09h16m.Subject 52'!Q3 -> 2.146666667 | F17: ='!2011-05-19_09h16m.Subject 52'!Q16 -> 0.2867569079
A18: 16 | B18: ='!2011-05-20_09h21m.Subject 52'!B2:C2 -> 2011-05-20 | C18: =('!2011-05-20_09h21m.Subject 52'!F68/60)/'!2011-05-20_09h21m.Subject 52'!Q3 -> 1.987634409 | D18: ='!2011-05-20_09h21m.Subject 52'!N20/'!2011-05-20_09h21m.Subject 52'!Q3 -> 0.2419354839 | E18: =SUM('!2011-05-20_09h21m.Subject 52'!L20:Q20)/'!2011-05-20_09h21m.Subject 52'!Q3 -> 2.548387097 | F18: ='!2011-05-20_09h21m.Subject 52'!Q16 -> 0.2300486554
A19: 17 | B19: ='!2011-05-21_08h39m.Subject 52'!B2:C2 -> 2011-05-21 | C19: =('!2011-05-21_08h39m.Subject 52'!F94/60)/'!2011-05-21_08h39m.Subject 52'!Q3 -> 2.130492424 | D19: ='!2011-05-21_08h39m.Subject 52'!N20/'!2011-05-21_08h39m.Subject 52'!Q3 -> 0.125 | E19: =SUM('!2011-05-21_08h39m.Subject 52'!L20:Q20)/'!2011-05-21_08h39m.Subject 52'!Q3 -> 1.840909091 | F19: ='!2011-05-21_08h39m.Subject 52'!Q16 -> 0.3004565089
A20: 18 | B20: ='!2011-05-22_08h49m.Subject 52'!B2:C2 -> 2011-05-22 | C20: =('!2011-05-22_08h49m.Subject 52'!F86/60)/'!2011-05-22_08h49m.Subject 52'!Q3 -> 2.133958333 | D20: ='!2011-05-22_08h49m.Subject 52'!N20/'!2011-05-22_08h49m.Subject 52'!Q3 -> 0.1625 | E20: =SUM('!2011-05-22_08h49m.Subject 52'!L20:Q20)/'!2011-05-22_08h49m.Subject 52'!Q3 -> 1.8875 | F20: ='!2011-05-22_08h49m.Subject 52'!Q16 -> 0.3182160393
A21: 19 | B21: ='!2011-05-23_08h30m.Subject 52'!B2:C2 -> 2011-05-23 | C21: =('!2011-05-23_08h30m.Subject 52'!F72/60)/'!2011-05-23_08h30m.Subject 52'!Q3 -> 2.112121212 | D21: ='!2011-05-23_08h30m.Subject 52'!N20/'!2011-05-23_08h30m.Subject 52'!Q3 -> 0.1212121212 | E21: =SUM('!2011-05-23_08h30m.Subject 52'!L20:Q20)/'!2011-05-23_08h30m.Subject 52'!Q3 -> 2.151515152 | F21: ='!2011-05-23_08h30m.Subject 52'!Q16 -> 0.2655783435
A22: 20 | B22: ='!2011-05-24_09h55m.Subject 52'!B2:C2 -> 2011-05-24 | C22: =('!2011-05-24_09h55m.Subject 52'!F71/60)/'!2011-05-24_09h55m.Subject 52'!Q3 -> 2.123589744 | D22: ='!2011-05-24_09h55m.Subject 52'!N20/'!2011-05-24_09h55m.Subject 52'!Q3 -> 0.07692307692 | E22: =SUM('!2011-05-24_09h55m.Subject 52'!L20:Q20)/'!2011-05-24_09h55m.Subject 52'!Q3 -> 2.138461538 | F22: ='!2011-05-24_09h55m.Subject 52'!Q16 -> 0.2740090447
A23: 21 | B23: ='!2011-05-25_08h23m.Subject 52'!B2:C2 -> 2011-05-25 | C23: =('!2011-05-25_08h23m.Subject 52'!F95/60)/'!2011-05-25_08h23m.Subject 52'!Q3 -> 2.148501873 | D23: ='!2011-05-25_08h23m.Subject 52'!N20/'!2011-05-25_08h23m.Subject 52'!Q3 -> 0.07865168539 | E23: =SUM('!2011-05-25_08h23m.Subject 52'!L20:Q20)/'!2011-05-25_08h23m.Subject 52'!Q3 -> 1.674157303 | F23: ='!2011-05-25_08h23m.Subject 52'!Q16 -> 0.3488421314
A24: 22 | B24: ='!2011-05-27_08h39m.Subject 52'!B2:C2 -> 2011-05-27 | C24: =('!2011-05-27_08h39m.Subject 52'!F73/60)/'!2011-05-27_08h39m.Subject 52'!Q3 -> 1.938557214 | D24: ='!2011-05-27_08h39m.Subject 52'!N20/'!2011-05-27_08h39m.Subject 52'!Q3 -> 0.08955223881 | E24: =SUM('!2011-05-27_08h39m.Subject 52'!L20:Q20)/'!2011-05-27_08h39m.Subject 52'!Q3 -> 2.089552239 | F24: ='!2011-05-27_08h39m.Subject 52'!Q16 -> 0.3109766061
A25: 23 | B25: ='!2011-05-28_13h32m.Subject 52'!B2:C2 -> 2011-05-28 | C25: =('!2011-05-28_13h32m.Subject 52'!F60/60)/'!2011-05-28_13h32m.Subject 52'!Q3 -> 1.879320988 | D25: ='!2011-05-28_13h32m.Subject 52'!N20/'!2011-05-28_13h32m.Subject 52'!Q3 -> 0.1296296296 | E25: =SUM('!2011-05-28_13h32m.Subject 52'!L20:Q20)/'!2011-05-28_13h32m.Subject 52'!Q3 -> 2.537037037 | F25: ='!2011-05-28_13h32m.Subject 52'!Q16 -> 0.2195728376
A26: 24 | B26: ='!2011-05-29_08h02m.Subject 52'!B2:C2 -> 2011-05-29 | C26: =('!2011-05-29_08h02m.Subject 52'!F98/60)/'!2011-05-29_08h02m.Subject 52'!Q3 -> 1.979166667 | D26: ='!2011-05-29_08h02m.Subject 52'!N20/'!2011-05-29_08h02m.Subject 52'!Q3 -> 0.05434782609 | E26: =SUM('!2011-05-29_08h02m.Subject 52'!L20:Q20)/'!2011-05-29_08h02m.Subject 52'!Q3 -> 1.597826087 | F26: ='!2011-05-29_08h02m.Subject 52'!Q16 -> 0.3454786859
A27: 25 | B27: ='!2011-05-30_08h46m.Subject 52'!B2:C2 -> 2011-05-30 | C27: =('!2011-05-30_08h46m.Subject 52'!F62/60)/'!2011-05-30_08h46m.Subject 52'!Q3 -> 1.885119048 | D27: ='!2011-05-30_08h46m.Subject 52'!N20/'!2011-05-30_08h46m.Subject 52'!Q3 -> 0.07142857143 | E27: =SUM('!2011-05-30_08h46m.Subject 52'!L20:Q20)/'!2011-05-30_08h46m.Subject 52'!Q3 -> 2.410714286 | F27: ='!2011-05-30_08h46m.Subject 52'!Q16 -> 0.2374308632
A28: 26 | B28: ='!2011-05-31_09h38m.Subject 52'!B2:C2 -> 2011-05-31 | C28: =('!2011-05-31_09h38m.Subject 52'!F54/60)/'!2011-05-31_09h38m.Subject 52'!Q3 -> 1.852777778 | D28: ='!2011-05-31_09h38m.Subject 52'!N20/'!2011-05-31_09h38m.Subject 52'!Q3 -> 0.08333333333 | E28: =SUM('!2011-05-31_09h38m.Subject 52'!L20:Q20)/'!2011-05-31_09h38m.Subject 52'!Q3 -> 2.75 | F28: ='!2011-05-31_09h38m.Subject 52'!Q16 -> 0.1686115329
A29: 27 | B29: ='!2011-06-02_10h06m.Subject 52'!B2:C2 -> 2011-06-02 | C29: =('!2011-06-02_10h06m.Subject 52'!F59/60)/'!2011-06-02_10h06m.Subject 52'!Q3 -> 1.777358491 | D29: ='!2011-06-02_10h06m.Subject 52'!N20/'!2011-06-02_10h06m.Subject 52'!Q3 -> 0.03773584906 | E29: =SUM('!2011-06-02_10h06m.Subject 52'!L20:Q20)/'!2011-06-02_10h06m.Subject 52'!Q3 -> 2.471698113 | F29: ='!2011-06-02_10h06m.Subject 52'!Q16 -> 0.2142803284
A30: 28 | B30: ='!2011-06-03_09h32m.Subject 52'!B2:C2 -> 2011-06-03 | C30: =('!2011-06-03_09h32m.Subject 52'!F68/60)/'!2011-06-03_09h32m.Subject 52'!Q3 -> 1.80672043 | D30: ='!2011-06-03_09h32m.Subject 52'!N20/'!2011-06-03_09h32m.Subject 52'!Q3 -> 0.1451612903 | E30: =SUM('!2011-06-03_09h32m.Subject 52'!L20:Q20)/'!2011-06-03_09h32m.Subject 52'!Q3 -> 2.290322581 | F30: ='!2011-06-03_09h32m.Subject 52'!Q16 -> 0.2702879719
A31: 29 | B31: ='!2011-06-04_10h40m.Subject 52'!B2:C2 -> 2011-06-04 | C31: =('!2011-06-04_10h40m.Subject 52'!F61/60)/'!2011-06-04_10h40m.Subject 52'!Q3 -> 1.81969697 | D31: ='!2011-06-04_10h40m.Subject 52'!N20/'!2011-06-04_10h40m.Subject 52'!Q3 -> 0.01818181818 | E31: =SUM('!2011-06-04_10h40m.Subject 52'!L20:Q20)/'!2011-06-04_10h40m.Subject 52'!Q3 -> 2.563636364 | F31: ='!2011-06-04_10h40m.Subject 52'!Q16 -> 0.267623927
A32: 30 | B32: ='!2011-06-05_09h58m.Subject 52'!B2:C2 -> 2011-06-05 | C32: =('!2011-06-05_09h58m.Subject 52'!F73/60)/'!2011-06-05_09h58m.Subject 52'!Q3 -> 1.959452736 | D32: ='!2011-06-05_09h58m.Subject 52'!N20/'!2011-06-05_09h58m.Subject 52'!Q3 -> 0.1044776119 | E32: =SUM('!2011-06-05_09h58m.Subject 52'!L20:Q20)/'!2011-06-05_09h58m.Subject 52'!Q3 -> 2.104477612 | F32: ='!2011-06-05_09h58m.Subject 52'!Q16 -> 0.3096381824

Sheet Start
F1: Use Folder 51 | H1: Auto Clean Up | J1: Correct sequence
F2: FALSE | H2: TRUE | J2: 122
A4: Working with Folder | G4: Process All/Or Pick A number: ALL or an integer
A5: E:\Hen Data\Raw Data\52\Phase 2 CON\ | G5: ALL
A6: Filenames:
A7: !2011-05-05_09h39m.Subject 52 phase 2 | G7: Paint Cells
A8: !2011-05-06_08h52m.Subject 52 phase 2 | G8: FALSE
A9: !2011-05-07_09h34m.Subject 52 phase 2
A10: !2011-05-08_09h18m.Subject 52 phase 2
A11: !2011-05-09_08h56m.Subject 52 phase 2
A12: !2011-05-10_08h14m.Subject 52 phase 2
A13: !2011-05-11_08h02m.Subject 52 phase 2
A14: !2011-05-12_08h35m.Subject 52 phase 2
A15: !2011-05-13_09h26m.Subject 52 phase 2
A16: !2011-05-14_10h27m.Subject 52 phase 2
A17: !2011-05-15_08h55m.Subject 52 phase 2
A18: !2011-05-16_08h38m.Subject 52 phase 2
A19: !2011-05-17_09h27m.Subject 52 phase 2
A20: !2011-05-18_08h52m.Subject 52 phase 2
A21: !2011-05-19_09h16m.Subject 52
A22: !2011-05-20_09h21m.Subject 52
A23: !2011-05-21_08h39m.Subject 52
A24: !2011-05-22_08h49m.Subject 52
A25: !2011-05-23_08h30m.Subject 52
A26: !2011-05-24_09h55m.Subject 52
A27: !2011-05-25_08h23m.Subject 52
A28: !2011-05-27_08h39m.Subject 52
A29: !2011-05-28_13h32m.Subject 52
A30: !2011-05-29_08h02m.Subject 52
A31: !2011-05-30_08h46m.Subject 52
A32: !2011-05-31_09h38m.Subject 52
A33: !2011-06-02_10h06m.Subject 52
A34: !2011-06-03_09h32m.Subject 52
A35: !2011-06-04_10h40m.Subject 52
A36: !2011-06-05_09h58m.Subject 52

Sheet !2011-05-05_09h39m.Subject 52 p
A1: Report for:!2011-05-05_09h39m.Subject 52 phase 2
A2: Date | B2: 2011-05-05 | F2: Group | G2: 0
A3: Hen | B3: 0 | F3: Correct Sequence | G3: =Start!J2 -> 122 | P3: Total Sequences in Data | Q3: =4994-COUNTBLANK(L7:L5000) -> 191 | V3: Total Sequences in Block Data | W3: =COUNTA(L7:L38) -> 32 | AA3: Total Sequences in Block Data | AB3: =COUNTA(L39:L70) -> 32 | AF3: Total Sequences in Block Data | AG3: =COUNTA(L71:L101) -> 31 | AK3: Total Sequences in Block Data | AL3: =COUNTA(L102:L133) -> 32 | AP3: Total Sequences in Block Data | AQ3: =COUNTA(L134:L165) -> 32 | AU3: Total Sequences in Block Data | AV3: =COUNTA(L166:L197) -> 32
A4: Program | B4: 0 | P4: Total Sequences in Summary | Q4: =SUM(O7:O14) -> 190 | V4: Total Sequences in Block Summary | W4: =SUM(U7:U14) -> 32 | AA4: Total Sequences in Block Summary | AB4: =SUM(Z7:Z14) -> 32 | AF4: Total Sequences in Block Summary | AG4: =SUM(AE7:AE14) -> 31 | AK4: Total Sequences in Block Summary | AL4: =SUM(AJ7:AJ14) -> 32 | AP4: Total Sequences in Block Summary | AQ4: =SUM(AO7:AO14) -> 32 | AU4: Total Sequences in Block Summary | AV4: =SUM(AT7:AT14) -> 31
T5: Block 1 | Y5: Block 2 | AD5: Block 3 | AI5: Block 4 | AN5: Block 5 | AS5: Block 6
A6: Sequence Component 1 | B6: Time 1 | C6: Sequence Component 2 | D6: Time 2 | E6: Sequence Component 3 | F6: Time 3 | G6: Sequence Component 4 | H6: Time 4 | I6: Sequence Component 5 | J6: Time 5 | K6: Correct? 0=No 1=Yes | L6: Sequence | N6: Frequency | P6: Relative Frequency | Q6: Variability | T6: Frequency | V6: Relative Frequency | W6: Variability | Y6: Frequency | AA6: Relative Frequency | AB6: Variability | AD6: Frequency | AF6: Relative Frequency | AG6: Variability | AI6: Frequency | AK6: Relative Frequency | AL6: Variability | AN6: Frequency | AP6: Relative Frequency | AQ6: Variability | AS6: Frequency | AU6: Relative Frequency | AV6: Variability
A7: 11 | B7: 44 | C7: 11 | D7: 79 | E7: 12 | F7: 93 | K7: 0 | L7: 111 | N7: 111 | O7: =COUNTIF($L$7:$L$500,N7) -> 27 | P7: =O7/$Q$4 -> 0.1421052632 | Q7: =IF(P7=0,0,(P7*((LOG(P7))/LOG(2)))) -> -0.4000217835 | T7: =N7 -> 111 | U7: =COUNTIF(L7:L38,T7) -> 10 | V7: =U7/(W4-U10) -> 0.3125 | W7: =IF(V7=0,0,(V7*((LOG(V7))/LOG(2)))) -> -0.5243974703 | Y7: =N7 -> 111 | Z7: =COUNTIF(L39:L70,Y7) -> 7 | AA7: =Z7/(AB4-Z10) -> 0.2258064516 | AB7: =IF(AA7=0,0,(AA7*((LOG(AA7))/LOG(2)))) -> -0.4847706361 | AD7: =N7 -> 111 | AE7: =COUNTIF(L71:L101,AD7) -> 4 | AF7: =AE7/(AG4-AE10) -> 0.1290322581 | AG7: =IF(AF7=0,0,(AF7*((LOG(AF7))/LOG(2)))) -> -0.3811866207 | AI7: =N7 -> 111 | AJ7: =COUNTIF(L102:L133,AI7) -> 3 | AK7: =AJ7/(AL4-AJ10) -> 0.09677419355 | AL7: =IF(AK7=0,0,(AK7*((LOG(AK7))/LOG(2)))) -> -0.3260548848 | AN7: =N7 -> 111 | AO7: =COUNTIF(L134:L165,AN7) -> 2 | AP7: =AO7/(AQ4-AO10) -> 0.0625 | AQ7: =IF(AP7=0,0,(AP7*((LOG(AP7))/LOG(2)))) -> -0.25 | AS7: =N7 -> 111 | AT7: =COUNTIF(L166:L197,AS7) -> 1 | AU7: =AT7/(AV4-AT10) -> 0.03225806452 | AV7: =IF(AU7=0,0,(AU7*((LOG(AU7))/LOG(2)))) -> -0.1598127842
A8: 11 | B8: 193 | C8: 11 | D8: 201 | E8: 12 | F8: 210 | K8: 0 | L8: 111 | N8: 112 | O8: =COUNTIF($L$7:$L$500,N8) -> 6 | P8: =O8/$Q$4 -> 0.03157894737 | Q8: =IF(P8=0,0,(P8*((LOG(P8))/LOG(2)))) -> -0.1574176771 | T8: =N8 -> 112 | U8: =COUNTIF(L7:L38,T8) -> 1 | V8: =U8/(W4-U10) -> 0.03125 | W8: =IF(V8=0,0,(V8*((LOG(V8))/LOG(2)))) -> -0.15625 | Y8: =N8 -> 112 | Z8: =COUNTIF(L39:L70,Y8) -> 1 | AA8: =Z8/(AB4-Z10) -> 0.03225806452 | AB8: =IF(AA8=0,0,(AA8*((LOG(AA8))/LOG(2)))) -> -0.1598127842 | AD8: =N8 -> 112 | AE8: =COUNTIF(L71:L101,AD8) -> 1 | AF8: =AE8/(AG4-AE10) -> 0.03225806452 | AG8: =IF(AF8=0,0,(AF8*((LOG(AF8))/LOG(2)))) -> -0.1598127842 | AI8: =N8 -> 112 | AJ8: =COUNTIF(L102:L133,AI8) -> 0 | AK8: =AJ8/(AL4-AJ10) -> 0 | AL8: =IF(AK8=0,0,(AK8*((LOG(AK8))/LOG(2)))) -> 0 | AN8: =N8 -> 112 | AO8: =COUNTIF(L134:L165,AN8) -> 2 | AP8: =AO8/(AQ4-AO10) -> 0.0625 | AQ8: =IF(AP8=0,0,(AP8*((LOG(AP8))/LOG(2)))) -> -0.25 | AS8: =N8 -> 112 | AT8: =COUNTIF(L166:L197,AS8) -> 1 | AU8: =AT8/(AV4-AT10) -> 0.03225806452 | AV8: =IF(AU8=0,0,(AU8*((LOG(AU8))/LOG(2)))) -> -0.1598127842
A9: 22 | B9: 316 | C9: 13 | D9: 325 | E9: 14 | F9: 333 | K9: 0 | L9: 211 | N9: 121 | O9: =COUNTIF($L$7:$L$500,N9) -> 10 | P9: =O9/$Q$4 -> 0.05263157895 | Q9: =IF(P9=0,0,(P9*((LOG(P9))/LOG(2)))) -> -0.2235751323 | T9: =N9 -> 121 | U9: =COUNTIF(L7:L38,T9) -> 0 | V9: =U9/(W4-U10) -> 0 | W9: =IF(V9=0,0,(V9*((LOG(V9))/LOG(2)))) -> 0 | Y9: =N9 -> 121 | Z9: =COUNTIF(L39:L70,Y9) -> 2 | AA9: =Z9/(AB4-Z10) -> 0.06451612903 | AB9: =IF(AA9=0,0,(AA9*((LOG(AA9))/LOG(2)))) -> -0.2551094394 | AD9: =N9 -> 121 | AE9: =COUNTIF(L71:L101,AD9) -> 4 | AF9: =AE9/(AG4-AE10) -> 0.1290322581 | AG9: =IF(AF9=0,0,(AF9*((LOG(AF9))/LOG(2)))) -> -0.3811866207 | AI9: =N9 -> 121 | AJ9: =COUNTIF(L102:L133,AI9) -> 2 | AK9: =AJ9/(AL4-AJ10) -> 0.06451612903 | AL9: =IF(AK9=0,0,(AK9*((LOG(AK9))/LOG(2)))) -> -0.2551094394 | AN9: =N9 -> 121 | AO9: =COUNTIF(L134:L165,AN9) -> 0 | AP9: =AO9/(AQ4-AO10) -> 0 | AQ9: =IF(AP9=0,0,(AP9*((LOG(AP9))/LOG(2)))) -> 0 | AS9: =N9 -> 121 | AT9: =COUNTIF(L166:L197,AS9) -> 2 | AU9: =AT9/(AV4-AT10) -> 0.06451612903 | AV9: =IF(AU9=0,0,(AU9*((LOG(AU9))/LOG(2)))) -> -0.2551094394
A10: 22 | B10: 446 | C10: 13 | D10: 454 | E10: 14 | F10: 465 | K10: 0 | L10: 211 | N10: 122 | O10: =COUNTIF($L$7:$L$500,N10) -> 2 | P10: =O10/$Q$4 -> 0.01052631579 | Q10: =IF(P10=0,0,(P10*((LOG(P10))/LOG(2)))) -> -0.06915637482 | T10: =N10 -> 122 | U10: =COUNTIF(L7:L38,T10) -> 0 | Y10: =N10 -> 122 | Z10: =COUNTIF(L39:L70,Y10) -> 1 | AD10: =N10 -> 122 | AE10: =COUNTIF(L71:L101,AD10) -> 0 | AI10: =N10 -> 122 | AJ10: =COUNTIF(L102:L133,AI10) -> 1 | AN10: =N10 -> 122 | AO10: =COUNTIF(L134:L165,AN10) -> 0 | AS10: =N10 -> 122 | AT10: =COUNTIF(L166:L197,AS10) -> 0
A11: 22 | B11: 569 | C11: 13 | D11: 578 | E11: 14 | F11: 587 | K11: 0 | L11: 211 | N11: 211 | O11: =COUNTIF($L$7:$L$500,N11) -> 112 | P11: =O11/$Q$4 -> 0.5894736842 | Q11: =IF(P11=0,0,(P11*((LOG(P11))/LOG(2)))) -> -0.4494740888 | T11: =N11 -> 211 | U11: =COUNTIF(L7:L38,T11) -> 20 | V11: =U11/(W4-U10) -> 0.625 | W11: =IF(V11=0,0,(V11*((LOG(V11))/LOG(2)))) -> -0.4237949407 | Y11: =N11 -> 211 | Z11: =COUNTIF(L39:L70,Y11) -> 17 | AA11: =Z11/(AB4-Z10) -> 0.5483870968 | AB11: =IF(AA11=0,0,(AA11*((LOG(AA11))/LOG(2)))) -> -0.4753054508 | AD11: =N11 -> 211 | AE11: =COUNTIF(L71:L101,AD11) -> 21 | AF11: =AE11/(AG4-AE10) -> 0.6774193548 | AG11: =IF(AF11=0,0,(AF11*((LOG(AF11))/LOG(2)))) -> -0.3806276335 | AI11: =N11 -> 211 | AJ11: =COUNTIF(L102:L133,AI11) -> 18 | AK11: =AJ11/(AL4-AJ10) -> 0.5806451613 | AL11: =IF(AK11=0,0,(AK11*((LOG(AK11))/LOG(2)))) -> -0.4553833407 | AN11: =N11 -> 211 | AO11: =COUNTIF(L134:L165,AN11) -> 21 | AP11: =AO11/(AQ4-AO10) -> 0.65625 | AQ11: =IF(AP11=0,0,(AP11*((LOG(AP11))/LOG(2)))) -> -0.3987916913 | AS11: =N11 -> 211 | AT11: =COUNTIF(L166:L197,AS11) -> 15 | AU11: =AT11/(AV4-AT10) -> 0.4838709677 | AV11: =IF(AU11=0,0,(AU11*((LOG(AU11))/LOG(2)))) -> -0.5067608297
A12: 22 | B12: 695 | C12: 13 | D12: 704 | E12: 14 | F12: 714 | K12: 0 | L12: 211 | N12: 212 | O12: =COUNTIF($L$7:$L$500,N12) -> 18 | P12: =O12/$Q$4 -> 0.09473684211 | Q12: =IF(P12=0,0,(P12*((LOG(P12))/LOG(2)))) -> -0.3220986891 | T12: =N12 -> 212 | U12: =COUNTIF(L7:L38,T12) -> 0 | V12: =U12/(W4-U10) -> 0 | W12: =IF(V12=0,0,(V12*((LOG(V12))/LOG(2)))) -> 0 | Y12: =N12 -> 212 | Z12: =COUNTIF(L39:L70,Y12) -> 1 | AA12: =Z12/(AB4-Z10) -> 0.03225806452 | AB12: =IF(AA12=0,0,(AA12*((LOG(AA12))/LOG(2)))) -> -0.1598127842 | AD12: =N12 -> 212 | AE12: =COUNTIF(L71:L101,AD12) -> 1 | AF12: =AE12/(AG4-AE10) -> 0.03225806452 | AG12: =IF(AF12=0,0,(AF12*((LOG(AF12))/LOG(2)))) -> -0.1598127842 | AI12: =N12 -> 212 | AJ12: =COUNTIF(L102:L133,AI12) -> 4 | AK12: =AJ12/(AL4-AJ10) -> 0.1290322581 | AL12: =IF(AK12=0,0,(AK12*((LOG(AK12))/LOG(2)))) -> -0.3811866207 | AN12: =N12 -> 212 | AO12: =COUNTIF(L134:L165,AN12) -> 4 | AP12: =AO12/(AQ4-AO10) -> 0.125 | AQ12: =IF(AP12=0,0,(AP12*((LOG(AP12))/LOG(2)))) -> -0.375 | AS12: =N12 -> 212 | AT12: =COUNTIF(L166:L197,AS12) -> 8 | AU12: =AT12/(AV4-AT10) -> 0.2580645161 | AV12: =IF(AU12=0,0,(AU12*((LOG(AU12))/LOG(2)))) -> -0.5043087253
A13: 22 | B13: 816 | C13: 13 | D13: 825 | E13: 14 | F13: 836 | K13: 0 | L13: 211 | N13: 221 | O13: =COUNTIF($L$7:$L$500,N13) -> 13 | P13: =O13/$Q$4 -> 0.06842105263 | Q13: =IF(P13=0,0,(P13*((LOG(P13))/LOG(2)))) -> -0.2647495083 | T13: =N13 -> 221 | U13: =COUNTIF(L7:L38,T13) -> 1 | V13: =U13/(W4-U10) -> 0.03125 | W13: =IF(V13=0,0,(V13*((LOG(V13))/LOG(2)))) -> -0.15625 | Y13: =N13 -> 221 | Z13: =COUNTIF(L39:L70,Y13) -> 2 | AA13: =Z13/(AB4-Z10) -> 0.06451612903 | AB13: =IF(AA13=0,0,(AA13*((LOG(AA13))/LOG(2)))) -> -0.2551094394 | AD13: =N13 -> 221 | AE13: =COUNTIF(L71:L101,AD13) -> 0 | AF13: =AE13/(AG4-AE10) -> 0 | AG13: =IF(AF13=0,0,(AF13*((LOG(AF13))/LOG(2)))) -> 0 | AI13: =N13 -> 221 | AJ13: =COUNTIF(L102:L133,AI13) -> 3 | AK13: =AJ13/(AL4-AJ10) -> 0.09677419355 | AL13: =IF(AK13=0,0,(AK13*((LOG(AK13))/LOG(2)))) -> -0.3260548848 | AN13: =N13 -> 221 | AO13: =COUNTIF(L134:L165,AN13) -> 3 | AP13: =AO13/(AQ4-AO10) -> 0.09375 | AQ13: =IF(AP13=0,0,(AP13*((LOG(AP13))/LOG(2)))) -> -0.3201597656 | AS13: =N13 -> 221 | AT13: =COUNTIF(L166:L197,AS13) -> 4 | AU13: =AT13/(AV4-AT10) -> 0.1290322581 | AV13: =IF(AU13=0,0,(AU13*((LOG(AU13))/LOG(2)))) -> -0.3811866207
A14: 22 | B14: 936 | C14: 13 | D14: 944 | E14: 14 | F14: 950 | K14: 0 | L14: 211 | N14: 222 | O14: =COUNTIF($L$7:$L$500,N14) -> 2 | P14: =O14/$Q$4 -> 0.01052631579 | Q14: =IF(P14=0,0,(P14*((LOG(P14))/LOG(2)))) -> -0.06915637482 | T14: =N14 -> 222 | U14: =COUNTIF(L7:L38,T14) -> 0 | V14: =U14/(W4-U10) -> 0 | W14: =IF(V14=0,0,(V14*((LOG(V14))/LOG(2)))) -> 0 | Y14: =N14 -> 222 | Z14: =COUNTIF(L39:L70,Y14) -> 1 | AA14: =Z14/(AB4-Z10) -> 0.03225806452 | AB14: =IF(AA14=0,0,(AA14*((LOG(AA14))/LOG(2)))) -> -0.1598127842 | AD14: =N14 -> 222 | AE14: =COUNTIF(L71:L101,AD14) -> 0 | AF14: =AE14/(AG4-AE10) -> 0 | AG14: =IF(AF14=0,0,(AF14*((LOG(AF14))/LOG(2)))) -> 0 | AI14: =N14 -> 222 | AJ14: =COUNTIF(L102:L133,AI14) -> 1 | AK14: =AJ14/(AL4-AJ10) -> 0.03225806452 | AL14: =IF(AK14=0,0,(AK14*((LOG(AK14))/LOG(2)))) -> -0.1598127842 | AN14: =N14 -> 222 | AO14: =COUNTIF(L134:L165,AN14) -> 0 | AP14: =AO14/(AQ4-AO10) -> 0 | AQ14: =IF(AP14=0,0,(AP14*((LOG(AP14))/LOG(2)))) -> 0 | AS14: =N14 -> 222 | AT14: =COUNTIF(L166:L197,AS14) -> 0 | AU14: =AT14/(AV4-AT10) -> 0 | AV14: =IF(AU14=0,0,(AU14*((LOG(AU14))/LOG(2)))) -> 0
A15: 22 | B15: 1050 | C15: 13 | D15: 1057 | E15: 14 | F15: 1064 | K15: 0 | L15: 211 | P15: =SUM(P7:P14) -> 1 | Q15: =-SUM(Q7:Q14) -> 1.955649629 | V15: =SUM(V7:V14) -> 1 | W15: =-SUM(W7:W14) -> 1.260692411 | AA15: =SUM(AA7:AA14) -> 1 | AB15: =-SUM(AB7:AB14) -> 1.949733318 | AF15: =SUM(AF7:AF14) -> 1 | AG15: =-SUM(AG7:AG14) -> 1.462626443 | AK15: =SUM(AK7:AK14) -> 1 | AL15: =-SUM(AL7:AL14) -> 1.903601955 | AP15: =SUM(AP7:AP14) -> 1 | AQ15: =-SUM(AQ7:AQ14) -> 1.593951457 | AU15: =SUM(AU7:AU14) -> 1 | AV15: =-SUM(AV7:AV14) -> 1.966991183
A16: 11 | B16: 1174 | C16: 11 | D16: 1178 | E16: 12 | F16: 1185 | K16: 0 | L16: 111 | P16: U= | Q16: =Q15/(LOG(Q4)/LOG(2)) -> 0.2583470187 | V16: U1= | W16: =W15/(LOG(W4)/LOG(2)) -> 0.2521384822 | AA16: U2= | AB16: =AB15/(LOG(AB4)/LOG(2)) -> 0.3899466637 | AF16: U3= | AG16: =AG15/(LOG(AG4)/LOG(2)) -> 0.2952298116 | AK16: U4= | AL16: =AL15/(LOG(AL4)/LOG(2)) -> 0.3807203909 | AP16: U5= | AQ16: =AQ15/(LOG(AQ4)/LOG(2)) -> 0.3187902914 | AU16: U6= | AV16: =AV15/(LOG(AV4)/LOG(2)) -> 0.3970353737
A17: 11 | B17: 1289 | C17: 11 | D17: 1296 | E17: 12 | F17: 1302 | K17: 0 | L17: 111
A18: 22 | B18: 1405 | C18: 13 | D18: 1414 | E18: 14 | F18: 1419 | K18: 0 | L18: 211
A19: 22 | B19: 1523 | C19: 13 | D19: 1531 | E19: 14 | F19: 1540 | K19: 0 | L19: 211 | N19: Total Target Seq
A20: 11 | B20: 1651 | C20: 11 | D20: 1656 | E20: 12 | F20: 1662 | K20: 0 | L20: 111 | N20: =COUNTIF(L7:L197,G3) -> 2 | P20: 32 | Q20: 32 | R20: 31 | S20: 32 | T20: 32 | U20: 32
A21: 22 | B21: 1763 | C21: 13 | D21: 1772 | E21: 14 | F21: 1777 | K21: 0 | L21: 211 | P21: % of reinforcement given in 6 equal intervals based on number of trials
A22: 11 | B22: 1886 | C22: 11 | D22: 1892 | E22: 12 | F22: 1900 | K22: 0 | L22: 111 | P22: %_1 | Q22: %_2 | R22: %_3 | S22: %_4 | T22: %_5 | U22: %_6
A23: 22 | B23: 2002 | C23: 13 | D23: 2010 | E23: 14 | F23: 2016 | K23: 0 | L23: 211 | O23: target sequence | P23: =$G$3 -> 122 | Q23: =$G$3 -> 122 | R23: =$G$3 -> 122 | S23: =$G$3 -> 122 | T23: =$G$3 -> 122 | U23: =$G$3 -> 122
A24: 11 | B24: 2114 | C24: 11 | D24: 2121 | E24: 21 | F24: 2139 | K24: 0 | L24: 112 | O24: total reinforcement | P24: =U10 -> 0 | Q24: =Z10 -> 1 | R24: =AE10 -> 0 | S24: =AJ10 -> 1 | T24: =AO10 -> 0 | U24: =AT10 -> 0
A25: 22 | B25: 2242 | C25: 13 | D25: 2249 | E25: 14 | F25: 2260 | K25: 0 | L25: 211 | O25: % target
A26: 11 | B26: 2369 | C26: 11 | D26: 2374 | E26: 12 | F26: 2390 | K26: 0 | L26: 111 | O26: CCRF
A27: 22 | B27: 2490 | C27: 13 | D27: 2498 | E27: 14 | F27: 2506 | K27: 0 | L27: 211 | O27: % CCRf
A28: 22 | B28: 2608 | C28: 13 | D28: 2616 | E28: 14 | F28: 2621 | K28: 0 | L28: 211 | O28: average response rate | P28: =F38/P20 -> 117.34375 | Q28: =(F70-F38)/Q20 -> 118.5625 | R28: =(F101-F70)/R20 -> 124.1290323 | S28: =(F133-F101)/S20 -> 135.5625 | T28: =(F165-F133)/T20 -> 123.875 | U28: =(F197-F165)/U20 -> -615.59375
A29: 11 | B29: 2726 | C29: 11 | D29: 2730 | E29: 12 | F29: 2737 | K29: 0 | L29: 111
A30: 11 | B30: 2835 | C30: 11 | D30: 2840 | E30: 12 | F30: 2848 | K30: 0 | L30: 111
A31: 22 | B31: 2950 | C31: 13 | D31: 2958 | E31: 14 | F31: 2963 | K31: 0 | L31: 211
A32: 22 | B32: 3060 | C32: 13 | D32: 3068 | E32: 14 | F32: 3072 | K32: 0 | L32: 211
A33: 22 | B33: 3176 | C33: 13 | D33: 3183 | E33: 14 | F33: 3188 | K33: 0 | L33: 211
A34: 22 | B34: 3288 | C34: 24 | D34: 3298 | E34: 14 | F34: 3306 | K34: 0 | L34: 221
A35: 11 | B35: 3409 | C35: 11 | D35: 3414 | E35: 12 | F35: 3418 | K35: 0 | L35: 111
A36: 22 | B36: 3519 | C36: 13 | D36: 3524 | E36: 14 | F36: 3529 | K36: 0 | L36: 211
A37: 22 | B37: 3633 | C37: 13 | D37: 3640 | E37: 14 | F37: 3644 | K37: 0 | L37: 211
A38: 22 | B38: 3742 | C38: 13 | D38: 3751 | E38: 14 | F38: 3755 | K38: 0 | L38: 211
A39: 22 | B39: 3856 | C39: 13 | D39: 3865 | E39: 14 | F39: 3870 | K39: 0 | L39: 211
A40: 22 | B40: 3968 | C40: 13 | D40: 3975 | E40: 14 | F40: 3987 | K40: 0 | L40: 211
A41: 22 | B41: 4088 | C41: 13 | D41: 4095 | E41: 14 | F41: 4100 | K41: 0 | L41: 211
A42: 22 | B42: 4198 | C42: 13 | D42: 4205 | E42: 14 | F42: 4210 | K42: 0 | L42: 211
A43: 22 | B43: 4310 | C43: 13 | D43: 4317 | E43: 14 | F43: 4322 | K43: 0 | L43: 211
A44: 11 | B44: 4422 | C44: 11 | D44: 4429 | E44: 12 | F44: 4435 | K44: 0 | L44: 111
A45: 11 | B45: 4533 | C45: 11 | D45: 4538 | E45: 12 | F45: 4544 | K45: 0 | L45: 111
A46: 11 | B46: 4659 | C46: 22 | D46: 4673 | E46: 23 | F46: 4681 | K46: 0 | L46: 122
A47: 22 | B47: 4784 | C47: 13 | D47: 4792 | E47: 14 | F47: 4796 | K47: 0 | L47: 211
A48: 22 | B48: 4902 | C48: 13 | D48: 4909 | E48: 14 | F48: 4913 | K48: 0 | L48: 211
A49: 22 | B49: 5017 | C49: 13 | D49: 5025 | E49: 14 | F49: 5029 | K49: 0 | L49: 211
A50: 22 | B50: 5132 | C50: 13 | D50: 5140 | E50: 14 | F50: 5145 | K50: 0 | L50: 211
A51: 11 | B51: 5246 | C51: 22 | D51: 5259 | E51: 14 | F51: 5266 | K51: 0 | L51: 121
A52: 11 | B52: 5372 | C52: 11 | D52: 5379 | E52: 12 | F52: 5387 | K52: 0 | L52: 111
A53: 11 | B53: 5491 | C53: 11 | D53: 5498 | E53: 21 | F53: 5511 | K53: 0 | L53: 112
A54: 22 | B54: 5613 | C54: 13 | D54: 5620 | E54: 14 | F54: 5629 | K54: 0 | L54: 211
A55: 22 | B55: 5732 | C55: 13 | D55: 5740 | E55: 14 | F55: 5744 | K55: 0 | L55: 211
A56: 11 | B56: 5851 | C56: 11 | D56: 5858 | E56: 12 | F56: 5862 | K56: 0 | L56: 111
A57: 22 | B57: 5961 | C57: 13 | D57: 5969 | E57: 14 | F57: 5980 | K57: 0 | L57: 211
A58: 11 | B58: 6092 | C58: 11 | D58: 6097 | E58: 12 | F58: 6104 | K58: 0 | L58: 111
A59: 22 | B59: 6204 | C59: 13 | D59: 6211 | E59: 14 | F59: 6217 | K59: 0 | L59: 211
A60: 22 | B60: 6318 | C60: 13 | D60: 6326 | E60: 14 | F60: 6331 | K60: 0 | L60: 211
A61: 22 | B61: 6429 | C61: 24 | D61: 6441 | E61: 23 | F61: 6450 | K61: 0 | L61: 222
A62: 22 | B62: 6550 | C62: 13 | D62: 6558 | E62: 14 | F62: 6562 | K62: 0 | L62: 211
A63: 22 | B63: 6662 | C63: 13 | D63: 6670 | E63: 14 | F63: 6674 | K63: 0 | L63: 211
A64: 22 | B64: 6780 | C64: 13 | D64: 6789 | E64: 23 | F64: 6804 | K64: 0 | L64: 212
A65: 22 | B65: 6909 | C65: 24 | D65: 6917 | E65: 14 | F65: 6927 | K65: 0 | L65: 221
A66: 22 | B66: 7032 | C66: 13 | D66: 7040 | E66: 14 | F66: 7044 | K66: 0 | L66: 211
A67: 11 | B67: 7144 | C67: 11 | D67: 7148 | E67: 12 | F67: 7153 | K67: 0 | L67: 111
A68: 11 | B68: 7289 | C68: 22 | D68: 7301 | E68: 14 | F68: 7309 | K68: 0 | L68: 121
A69: 11 | B69: 7419 | C69: 11 | D69: 7424 | E69: 12 | F69: 7432 | K69: 0 | L69: 111
A70: 22 | B70: 7529 | C70: 24 | D70: 7540 | E70: 14 | F70: 7549 | K70: 0 | L70: 221
A71: 11 | B71: 7647 | C71: 22 | D71: 7659 | E71: 14 | F71: 7667 | K71: 0 | L71: 121
A72: 22 | B72: 7801 | C72: 13 | D72: 7810 | E72: 14 | F72: 7817 | K72: 0 | L72: 211
A73: 22 | B73: 7921 | C73: 13 | D73: 7929 | E73: 14 | F73: 7933 | K73: 0 | L73: 211
A74: 22 | B74: 8036 | C74: 13 | D74: 8047 | E74: 14 | F74: 8052 | K74: 0 | L74: 211
A75: 22 | B75: 8155 | C75: 13 | D75: 8164 | E75: 14 | F75: 8169 | K75: 0 | L75: 211
A76: 22 | B76: 8268 | C76: 13 | D76: 8276 | E76: 14 | F76: 8281 | K76: 0 | L76: 211
A77: 22 | B77: 8384 | C77: 13 | D77: 8391 | E77: 14 | F77: 8396 | K77: 0 | L77: 211
A78: 11 | B78: 8503 | C78: 22 | D78: 8516 | E78: 14 | F78: 8524 | K78: 0 | L78: 121
A79: 11 | B79: 8631 | C79: 11 | D79: 8638 | E79: 12 | F79: 8646 | K79: 0 | L79: 111
A80: 22 | B80: 8753 | C80: 13 | D80: 8762 | E80: 14 | F80: 8767 | K80: 0 | L80: 211
A81: 22 | B81: 8870 | C81: 13 | D81: 8878 | E81: 14 | F81: 8882 | K81: 0 | L81: 211
A82: 22 | B82: 8984 | C82: 13 | D82: 8992 | E82: 14 | F82: 9004 | K82: 0 | L82: 211
A83: 22 | B83: 9112 | C83: 13 | D83: 9120 | E83: 14 | F83: 9124 | K83: 0 | L83: 211
A84: 22 | B84: 9281 | C84: 13 | D84: 9293 | E84: 14 | F84: 9300 | K84: 0 | L84: 211
A85: 22 | B85: 9403 | C85: 13 | D85: 9411 | E85: 14 | F85: 9416 | K85: 0 | L85: 211
A86: 11 | B86: 9535 | C86: 11 | D86: 9542 | E86: 12 | F86: 9549 | K86: 0 | L86: 111
A87: 11 | B87: 9668 | C87: 22 | D87: 9682 | E87: 14 | F87: 9690 | K87: 0 | L87: 121
A88: 11 | B88: 9814 | C88: 11 | D88: 9820 | E88: 21 | F88: 9841 | K88: 0 | L88: 112
A89: 22 | B89: 9940 | C89: 13 | D89: 9948 | E89: 14 | F89: 9959 | K89: 0 | L89: 211
A90: 22 | B90: 10064 | C90: 13 | D90: 10072 | E90: 14 | F90: 10080 | K90: 0 | L90: 211
A91: 11 | B91: 10182 | C91: 22 | D91: 10194 | E91: 14 | F91: 10202 | K91: 0 | L91: 121
A92: 22 | B92: 10301 | C92: 13 | D92: 10308 | E92: 14 | F92: 10313 | K92: 0 | L92: 211
A93: 22 | B93: 10413 | C93: 13 | D93: 10425 | E93: 23 | F93: 10435 | K93: 0 | L93: 212
A94: 11 | B94: 10547 | C94: 11 | D94: 10556 | E94: 12 | F94: 10563 | K94: 0 | L94: 111
A95: 22 | B95: 10663 | C95: 13 | D95: 10670 | E95: 14 | F95: 10674 | K95: 0 | L95: 211
A96: 22 | B96: 10776 | C96: 13 | D96: 10783 | E96: 14 | F96: 10788 | K96: 0 | L96: 211
A97: 11 | B97: 10894 | C97: 11 | D97: 10898 | E97: 12 | F97: 10903 | K97: 0 | L97: 111
A98: 22 | B98: 11030 | C98: 13 | D98: 11037 | E98: 14 | F98: 11044 | K98: 0 | L98: 211
A99: 22 | B99: 11147 | C99: 13 | D99: 11154 | E99: 14 | F99: 11163 | K99: 0 | L99: 211
A100: 22 | B100: 11265 | C100: 13 | D100: 11274 | E100: 14 | F100: 11283 | K100: 0 | L100: 211
A101: 22 | B101: 11384 | C101: 13 | D101: 11393 | E101: 14 | F101: 11397 | K101: 0 | L101: 211
A102: 11 | B102: 11503 | C102: 22 | D102: 11515 | E102: 23 | F102: 11525 | K102: 0 | L102: 122
A103: 22 | B103: 11642 | C103: 13 | D103: 11651 | E103: 14 | F103: 11655 | K103: 0 | L103: 211
A104: 22 | B104: 11758 | C104: 13 | D104: 11766 | E104: 14 | F104: 11772 | K104: 0 | L104: 211
A105: 22 | B105: 11875 | C105: 24 | D105: 11884 | E105: 23 | F105: 11892 | K105: 0 | L105: 222
A106: 22 | B106: 12019 | C106: 13 | D106: 12027 | E106: 14 | F106: 12032 | K106: 0 | L106: 211
A107: 22 | B107: 12176 | C107: 13 | D107: 12189 | E107: 14 | F107: 12209 | K107: 0 | L107: 211
A108: 22 | B108: 12310 | C108: 13 | D108: 12318 | E108: 14 | F108: 12325 | K108: 0 | L108: 211
A109: 22 | B109: 12428 | C109: 13 | D109: 12436 | E109: 14 | F109: 12440 | K109: 0 | L109: 211
A110: 11 | B110: 12541 | C110: 22 | D110: 12554 | E110: 14 | F110: 12562 | K110: 0 | L110: 121
A111: 22 | B111: 12663 | C111: 13 | D111: 12671 | E111: 14 | F111: 12677 | K111: 0 | L111: 211
A112: 22 | B112: 12798 | C112: 13 | D112: 12807 | E112: 14 | F112: 12812 | K112: 0 | L112: 211
A113: 22 | B113: 12926 | C113: 13 | D113: 12933 | E113: 14 | F113: 12937 | K113: 0 | L113: 211
A114: 22 | B114: 13141 | C114: 13 | D114: 13151 | E114: 14 | F114: 13165 | K114: 0 | L114: 211
A115: 22 | B115: 13285 | C115: 13 | D115: 13294 | E115: 14 | F115: 13301 | K115: 0 | L115: 211
A116: 11 | B116: 13424 | C116: 11 | D116: 13430 | E116: 12 | F116: 13434 | K116: 0 | L116: 111
A117: 22 | B117: 13538 | C117: 13 | D117: 13547 | E117: 14 | F117: 13551 | K117: 0 | L117: 211
A118: 22 | B118: 13655 | C118: 24 | D118: 13664 | E118: 14 | F118: 13673 | K118: 0 | L118: 221
A119: 22 | B119: 13774 | C119: 13 | D119: 13783 | E119: 14 | F119: 13787 | K119: 0 | L119: 211
A120: 22 | B120: 13890 | C120: 13 | D120: 13899 | E120: 14 | F120: 13904 | K120: 0 | L120: 211
A121: 11 | B121: 14017 | C121: 22 | D121: 14038 | E121: 14 | F121: 14046 | K121: 0 | L121: 121
A122: 11 | B122: 14154 | C122: 11 | D122: 14160 | E122: 12 | F122: 14167 | K122: 0 | L122: 111
A123: 22 | B123: 14281 | C123: 13 | D123: 14289 | E123: 23 | F123: 14305 | K123: 0 | L123: 212
A124: 11 | B124: 14487 | C124: 11 | D124: 14496 | E124: 12 | F124: 14516 | K124: 0 | L124: 111
A125: 22 | B125: 14620 | C125: 13 | D125: 14629 | E125: 23 | F125: 14642 | K125: 0 | L125: 212
A126: 22 | B126: 14779 | C126: 24 | D126: 14787 | E126: 14 | F126: 14796 | K126: 0 | L126: 221
A127: 22 | B127: 14896 | C127: 13 | D127: 14904 | E127: 14 | F127: 14908 | K127: 0 | L127: 211
A128: 22 | B128: 15008 | C128: 24 | D128: 15019 | E128: 14 | F128: 15027 | K128: 0 | L128: 221
A129: 22 | B129: 15130 | C129: 13 | D129: 15152 | E129: 23 | F129: 15168 | K129: 0 | L129: 212
A130: 22 | B130: 15306 | C130: 13 | D130: 15314 | E130: 14 | F130: 15320 | K130: 0 | L130: 211
A131: 22 | B131: 15477 | C131: 13 | D131: 15485 | E131: 14 | F131: 15493 | K131: 0 | L131: 211
A132: 22 | B132: 15599 | C132: 13 | D132: 15607 | E132: 23 | F132: 15623 | K132: 0 | L132: 212
A133: 22 | B133: 15722 | C133: 13 | D133: 15730 | E133: 14 | F133: 15735 | K133: 0 | L133: 211
A134: 22 | B134: 15838 | C134: 13 | D134: 15846 | E134: 14 | F134: 15852 | K134: 0 | L134: 211
A135: 22 | B135: 15966 | C135: 13 | D135: 15973 | E135: 14 | F135: 15979 | K135: 0 | L135: 211
A136: 22 | B136: 16081 | C136: 13 | D136: 16089 | E136: 23 | F136: 16104 | K136: 0 | L136: 212
A137: 22 | B137: 16226 | C137: 13 | D137: 16234 | E137: 14 | F137: 16239 | K137: 0 | L137: 211
A138: 11 | B138: 16386 | C138: 11 | D138: 16394 | E138: 21 | F138: 16409 | K138: 0 | L138: 112
A139: 22 | B139: 16508 | C139: 13 | D139: 16516 | E139: 23 | F139: 16531 | K139: 0 | L139: 212
A140: 22 | B140: 16633 | C140: 13 | D140: 16640 | E140: 14 | F140: 16645 | K140: 0 | L140: 211
A141: 22 | B141: 16744 | C141: 13 | D141: 16751 | E141: 14 | F141: 16756 | K141: 0 | L141: 211
A142: 22 | B142: 16872 | C142: 24 | D142: 16880 | E142: 14 | F142: 16889 | K142: 0 | L142: 221
A143: 22 | B143: 16992 | C143: 13 | D143: 17000 | E143: 14 | F143: 17005 | K143: 0 | L143: 211
A144: 11 | B144: 17131 | C144: 11 | D144: 17136 | E144: 21 | F144: 17153 | K144: 0 | L144: 112
A145: 22 | B145: 17252 | C145: 13 | D145: 17260 | E145: 14 | F145: 17278 | K145: 0 | L145: 211
A146: 22 | B146: 17376 | C146: 13 | D146: 17384 | E146: 23 | F146: 17399 | K146: 0 | L146: 212
A147: 22 | B147: 17499 | C147: 13 | D147: 17507 | E147: 14 | F147: 17512 | K147: 0 | L147: 211
A148: 22 | B148: 17611 | C148: 13 | D148: 17619 | E148: 14 | F148: 17623 | K148: 0 | L148: 211
A149: 22 | B149: 17722 | C149: 13 | D149: 17730 | E149: 14 | F149: 17734 | K149: 0 | L149: 211
A150: 22 | B150: 17834 | C150: 13 | D150: 17842 | E150: 14 | F150: 17848 | K150: 0 | L150: 211
A151: 22 | B151: 17951 | C151: 24 | D151: 17960 | E151: 14 | F151: 17970 | K151: 0 | L151: 221
A152: 22 | B152: 18068 | C152: 13 | D152: 18076 | E152: 14 | F152: 18081 | K152: 0 | L152: 211
A153: 22 | B153: 18192 | C153: 13 | D153: 18200 | E153: 14 | F153: 18204 | K153: 0 | L153: 211
A154: 22 | B154: 18306 | C154: 13 | D154: 18314 | E154: 14 | F154: 18318 | K154: 0 | L154: 211
A155: 22 | B155: 18421 | C155: 13 | D155: 18433 | E155: 14 | F155: 18437 | K155: 0 | L155: 211
A156: 11 | B156: 18540 | C156: 11 | D156: 18544 | E156: 12 | F156: 18548 | K156: 0 | L156: 111
A157: 22 | B157: 18696 | C157: 13 | D157: 18706 | E157: 14 | F157: 18741 | K157: 0 | L157: 211
A158: 22 | B158: 18842 | C158: 13 | D158: 18851 | E158: 14 | F158: 18855 | K158: 0 | L158: 211
A159: 22 | B159: 18957 | C159: 13 | D159: 18964 | E159: 14 | F159: 18972 | K159: 0 | L159: 211
A160: 22 | B160: 19070 | C160: 13 | D160: 19080 | E160: 14 | F160: 19084 | K160: 0 | L160: 211
A161: 22 | B161: 19184 | C161: 13 | D161: 19192 | E161: 14 | F161: 19196 | K161: 0 | L161: 211
A162: 22 | B162: 19302 | C162: 13 | D162: 19310 | E162: 23 | F162: 19325 | K162: 0 | L162: 212
A163: 22 | B163: 19428 | C163: 24 | D163: 19444 | E163: 14 | F163: 19452 | K163: 0 | L163: 221
A164: 11 | B164: 19562 | C164: 11 | D164: 19571 | E164: 12 | F164: 19579 | K164: 0 | L164: 111
A165: 22 | B165: 19683 | C165: 13 | D165: 19691 | E165: 14 | F165: 19699 | K165: 0 | L165: 211
A166: 22 | B166: 19806 | C166: 13 | D166: 19814 | E166: 14 | F166: 19819 | K166: 0 | L166: 211
A167: 11 | B167: 19923 | C167: 11 | D167: 19930 | E167: 21 | F167: 19948 | K167: 0 | L167: 112
A168: 22 | B168: 20046 | C168: 13 | D168: 20053 | E168: 14 | F168: 20058 | K168: 0 | L168: 211
A169: 22 | B169: 20157 | C169: 13 | D169: 20166 | E169: 14 | F169: 20199 | K169: 0 | L169: 211
A170: 22 | B170: 20296 | C170: 13 | D170: 20304 | E170: 14 | F170: 20309 | K170: 0 | L170: 211
A171: 22 | B171: 20414 | C171: 13 | D171: 20422 | E171: 14 | F171: 20427 | K171: 0 | L171: 211
A172: 22 | B172: 20525 | C172: 24 | D172: 20535 | E172: 14 | F172: 20544 | K172: 0 | L172: 221
A173: 22 | B173: 20668 | C173: 13 | D173: 20676 | E173: 23 | F173: 20703 | K173: 0 | L173: 212
A174: 22 | B174: 20804 | C174: 13 | D174: 20811 | E174: 14 | F174: 20818 | K174: 0 | L174: 211
A175: 22 | B175: 20919 | C175: 13 | D175: 20927 | E175: 23 | F175: 20959 | K175: 0 | L175: 212
A176: 11 | B176: 21064 | C176: 11 | D176: 21071 | E176: 12 | F176: 21076 | K176: 0 | L176: 111
A177: 22 | B177: 21176 | C177: 13 | D177: 21186 | E177: 14 | F177: 21191 | K177: 0 | L177: 211
A178: 22 | B178: 21292 | C178: 13 | D178: 21300 | E178: 14 | F178: 21306 | K178: 0 | L178: 211
A179: 22 | B179: 21412 | C179: 13 | D179: 21419 | E179: 14 | F179: 21423 | K179: 0 | L179: 211
A180: 11 | B180: 21535 | C180: 22 | D180: 21551 | E180: 14 | F180: 21559 | K180: 0 | L180: 121
A181: 22 | B181: 21675 | C181: 13 | D181: 21689 | E181: 23 | F181: 21705 | K181: 0 | L181: 212
A182: 22 | B182: 21801 | C182: 13 | D182: 21813 | E182: 14 | F182: 21817 | K182: 0 | L182: 211
A183: 22 | B183: 21996 | C183: 13 | D183: 22004 | E183: 23 | F183: 22016 | K183: 0 | L183: 212
A184: 22 | B184: 22123 | C184: 13 | D184: 22132 | E184: 14 | F184: 22136 | K184: 0 | L184: 211
A185: 11 | B185: 22259 | C185: 22 | D185: 22272 | E185: 14 | F185: 22280 | K185: 0 | L185: 121
A186: 22 | B186: 22429 | C186: 13 | D186: 22438 | E186: 23 | F186: 22458 | K186: 0 | L186: 212
A187: 22 | B187: 22560 | C187: 24 | D187: 22568 | E187: 14 | F187: 22576 | K187: 0 | L187: 221
A188: 22 | B188: 22686 | C188: 24 | D188: 22694 | E188: 14 | F188: 22704 | K188: 0 | L188: 221
A189: 22 | B189: 22839 | C189: 13 | D189: 22848 | E189: 14 | F189: 22855 | K189: 0 | L189: 211
A190: 22 | B190: 22965 | C190: 13 | D190: 22973 | E190: 14 | F190: 22977 | K190: 0 | L190: 211
A191: 22 | B191: 23087 | C191: 13 | D191: 23099 | E191: 14 | F191: 23121 | K191: 0 | L191: 211
A192: 22 | B192: 23222 | C192: 13 | D192: 23231 | E192: 23 | F192: 23258 | K192: 0 | L192: 212
A193: 22 | B193: 23363 | C193: 13 | D193: 23371 | E193: 14 | F193: 23376 | K193: 0 | L193: 211
A194: 22 | B194: 23546 | C194: 24 | D194: 23558 | E194: 14 | F194: 23570 | K194: 0 | L194: 221
A195: 22 | B195: 23673 | C195: 13 | D195: 23683 | E195: 23 | F195: 23696 | K195: 0 | L195: 212
A196: 22 | B196: 23822 | C196: 13 | D196: 23835 | E196: 23 | F196: 23855 | K196: 0 | L196: 212
A197: 22 | B197: 23977 | C197: 13 | D197: 23985 | L197: 21

Sheet !2011-05-06_08h52m.Subject 52 p
A1: Report for:!2011-05-06_08h52m.Subject 52 phase 2
A2: Date | B2: 2011-05-06 | F2: Group | G2: 0
A3: Hen | B3: 0 | F3: Correct Sequence | G3: =Start!J2 -> 122 | P3: Total Sequences in Data | Q3: =4994-COUNTBLANK(L7:L5000) -> 126 | V3: Total Sequences in Block Data | W3: =COUNTA(L7:L27) -> 21 | AA3: Total Sequences in Block Data | AB3: =COUNTA(L28:L48) -> 21 | AF3: Total Sequences in Block Data | AG3: =COUNTA(L49:L69) -> 21 | AK3: Total Sequences in Block Data | AL3: =COUNTA(L70:L90) -> 21 | AP3: Total Sequences in Block Data | AQ3: =COUNTA(L91:L111) -> 21 | AU3: Total Sequences in Block Data | AV3: =COUNTA(L112:L132) -> 21
A4: Program | B4: 0 | P4: Total Sequences in Summary | Q4: =SUM(O7:O14) -> 126 | V4: Total Sequences in Block Summary | W4: =SUM(U7:U14) -> 21 | AA4: Total Sequences in Block Summary | AB4: =SUM(Z7:Z14) -> 21 | AF4: Total Sequences in Block Summary | AG4: =SUM(AE7:AE14) -> 21 | AK4: Total Sequences in Block Summary | AL4: =SUM(AJ7:AJ14) -> 21 | AP4: Total Sequences in Block Summary | AQ4: =SUM(AO7:AO14) -> 21 | AU4: Total Sequences in Block Summary | AV4: =SUM(AT7:AT14) -> 21
T5: Block 1 | Y5: Block 2 | AD5: Block 3 | AI5: Block 4 | AN5: Block 5 | AS5: Block 6
A6: Sequence Component 1 | B6: Time 1 | C6: Sequence Component 2 | D6: Time 2 | E6: Sequence Component 3 | F6: Time 3 | G6: Sequence Component 4 | H6: Time 4 | I6: Sequence Component 5 | J6: Time 5 | K6: Correct? 0=No 1=Yes | L6: Sequence | N6: Frequency | P6: Relative Frequency | Q6: Variability | T6: Frequency | V6: Relative Frequency | W6: Variability | Y6: Frequency | AA6: Relative Frequency | AB6: Variability | AD6: Frequency | AF6: Relative Frequency | AG6: Variability | AI6: Frequency | AK6: Relative Frequency | AL6: Variability | AN6: Frequency | AP6: Relative Frequency | AQ6: Variability | AS6: Frequency | AU6: Relative Frequency | AV6: Variability
A7: 22 | B7: 12 | C7: 13 | D7: 19 | E7: 14 | F7: 24 | K7: 0 | L7: 211 | N7: 111 | O7: =COUNTIF($L$7:$L$500,N7) -> 25 | P7: =O7/$Q$4 -> 0.1984126984 | Q7: =IF(P7=0,0,(P7*((LOG(P7))/LOG(2)))) -> -0.4629808995 | T7: =N7 -> 111 | U7: =COUNTIF(L7:L27,T7) -> 5 | V7: =U7/(W4-U10) -> 0.2380952381 | W7: =IF(V7=0,0,(V7*((LOG(V7))/LOG(2)))) -> -0.49294984 | Y7: =N7 -> 111 | Z7: =COUNTIF(L28:L48,Y7) -> 5 | AA7: =Z7/(AB4-Z10) -> 0.2380952381 | AB7: =IF(AA7=0,0,(AA7*((LOG(AA7))/LOG(2)))) -> -0.49294984 | AD7: =N7 -> 111 | AE7: =COUNTIF(L49:L69,AD7) -> 2 | AF7: =AE7/(AG4-AE10) -> 0.09523809524 | AG7: =IF(AF7=0,0,(AF7*((LOG(AF7))/LOG(2)))) -> -0.3230778498 | AI7: =N7 -> 111 | AJ7: =COUNTIF(L70:L90,AI7) -> 5 | AK7: =AJ7/(AL4-AJ10) -> 0.2380952381 | AL7: =IF(AK7=0,0,(AK7*((LOG(AK7))/LOG(2)))) -> -0.49294984 | AN7: =N7 -> 111 | AO7: =COUNTIF(L91:L111,AN7) -> 1 | AP7: =AO7/(AQ4-AO10) -> 0.05 | AQ7: =IF(AP7=0,0,(AP7*((LOG(AP7))/LOG(2)))) -> -0.2160964047 | AS7: =N7 -> 111 | AT7: =COUNTIF(L112:L132,AS7) -> 7 | AU7: =AT7/(AV4-AT10) -> 0.3333333333 | AV7: =IF(AU7=0,0,(AU7*((LOG(AU7))/LOG(2)))) -> -0.5283208336
A8: 22 | B8: 127 | C8: 24 | D8: 135 | E8: 14 | F8: 144 | K8: 0 | L8: 221 | N8: 112 | O8: =COUNTIF($L$7:$L$500,N8) -> 2 | P8: =O8/$Q$4 -> 0.01587301587 | Q8: =IF(P8=0,0,(P8*((LOG(P8))/LOG(2)))) -> -0.0948774591 | T8: =N8 -> 112 | U8: =COUNTIF(L7:L27,T8) -> 0 | V8: =U8/(W4-U10) -> 0 | W8: =IF(V8=0,0,(V8*((LOG(V8))/LOG(2)))) -> 0 | Y8: =N8 -> 112 | Z8: =COUNTIF(L28:L48,Y8) -> 1 | AA8: =Z8/(AB4-Z10) -> 0.04761904762 | AB8: =IF(AA8=0,0,(AA8*((LOG(AA8))/LOG(2)))) -> -0.2091579725 | AD8: =N8 -> 112 | AE8: =COUNTIF(L49:L69,AD8) -> 1 | AF8: =AE8/(AG4-AE10) -> 0.04761904762 | AG8: =IF(AF8=0,0,(AF8*((LOG(AF8))/LOG(2)))) -> -0.2091579725 | AI8: =N8 -> 112 | AJ8: =COUNTIF(L70:L90,AI8) -> 0 | AK8: =AJ8/(AL4-AJ10) -> 0 | AL8: =IF(AK8=0,0,(AK8*((LOG(AK8))/LOG(2)))) -> 0 | AN8: =N8 -> 112 | AO8: =COUNTIF(L91:L111,AN8) -> 0 | AP8: =AO8/(AQ4-AO10) -> 0 | AQ8: =IF(AP8=0,0,(AP8*((LOG(AP8))/LOG(2)))) -> 0 | AS8: =N8 -> 112 | AT8: =COUNTIF(L112:L132,AS8) -> 0 | AU8: =AT8/(AV4-AT10) -> 0 | AV8: =IF(AU8=0,0,(AU8*((LOG(AU8))/LOG(2)))) -> 0
A9: 22 | B9: 257 | C9: 13 | D9: 266 | E9: 23 | F9: 278 | K9: 0 | L9: 212 | N9: 121 | O9: =COUNTIF($L$7:$L$500,N9) -> 9 | P9: =O9/$Q$4 -> 0.07142857143 | Q9: =IF(P9=0,0,(P9*((LOG(P9))/LOG(2)))) -> -0.271953923 | T9: =N9 -> 121 | U9: =COUNTIF(L7:L27,T9) -> 2 | V9: =U9/(W4-U10) -> 0.09523809524 | W9: =IF(V9=0,0,(V9*((LOG(V9))/LOG(2)))) -> -0.3230778498 | Y9: =N9 -> 121 | Z9: =COUNTIF(L28:L48,Y9) -> 2 | AA9: =Z9/(AB4-Z10) -> 0.09523809524 | AB9: =IF(AA9=0,0,(AA9*((LOG(AA9))/LOG(2)))) -> -0.3230778498 | AD9: =N9 -> 121 | AE9: =COUNTIF(L49:L69,AD9) -> 0 | AF9: =AE9/(AG4-AE10) -> 0 | AG9: =IF(AF9=0,0,(AF9*((LOG(AF9))/LOG(2)))) -> 0 | AI9: =N9 -> 121 | AJ9: =COUNTIF(L70:L90,AI9) -> 3 | AK9: =AJ9/(AL4-AJ10) -> 0.1428571429 | AL9: =IF(AK9=0,0,(AK9*((LOG(AK9))/LOG(2)))) -> -0.4010507032 | AN9: =N9 -> 121 | AO9: =COUNTIF(L91:L111,AN9) -> 2 | AP9: =AO9/(AQ4-AO10) -> 0.1 | AQ9: =IF(AP9=0,0,(AP9*((LOG(AP9))/LOG(2)))) -> -0.3321928095 | AS9: =N9 -> 121 | AT9: =COUNTIF(L112:L132,AS9) -> 0 | AU9: =AT9/(AV4-AT10) -> 0 | AV9: =IF(AU9=0,0,(AU9*((LOG(AU9))/LOG(2)))) -> 0
A10: 22 | B10: 384 | C10: 13 | D10: 395 | E10: 14 | F10: 411 | K10: 0 | L10: 211 | N10: 122 | O10: =COUNTIF($L$7:$L$500,N10) -> 1 | P10: =O10/$Q$4 -> 0.007936507937 | Q10: =IF(P10=0,0,(P10*((LOG(P10))/LOG(2)))) -> -0.05537523749 | T10: =N10 -> 122 | U10: =COUNTIF(L7:L27,T10) -> 0 | Y10: =N10 -> 122 | Z10: =COUNTIF(L28:L48,Y10) -> 0 | AD10: =N10 -> 122 | AE10: =COUNTIF(L49:L69,AD10) -> 0 | AI10: =N10 -> 122 | AJ10: =COUNTIF(L70:L90,AI10) -> 0 | AN10: =N10 -> 122 | AO10: =COUNTIF(L91:L111,AN10) -> 1 | AS10: =N10 -> 122 | AT10: =COUNTIF(L112:L132,AS10) -> 0
A11: 22 | B11: 522 | C11: 24 | D11: 556 | E11: 14 | F11: 565 | K11: 0 | L11: 221 | N11: 211 | O11: =COUNTIF($L$7:$L$500,N11) -> 45 | P11: =O11/$Q$4 -> 0.3571428571 | Q11: =IF(P11=0,0,(P11*((LOG(P11))/LOG(2)))) -> -0.5305095811 | T11: =N11 -> 211 | U11: =COUNTIF(L7:L27,T11) -> 8 | V11: =U11/(W4-U10) -> 0.380952381 | W11: =IF(V11=0,0,(V11*((LOG(V11))/LOG(2)))) -> -0.5304066372 | Y11: =N11 -> 211 | Z11: =COUNTIF(L28:L48,Y11) -> 7 | AA11: =Z11/(AB4-Z10) -> 0.3333333333 | AB11: =IF(AA11=0,0,(AA11*((LOG(AA11))/LOG(2)))) -> -0.5283208336 | AD11: =N11 -> 211 | AE11: =COUNTIF(L49:L69,AD11) -> 13 | AF11: =AE11/(AG4-AE10) -> 0.619047619 | AG11: =IF(AF11=0,0,(AF11*((LOG(AF11))/LOG(2)))) -> -0.4283052457 | AI11: =N11 -> 211 | AJ11: =COUNTIF(L70:L90,AI11) -> 7 | AK11: =AJ11/(AL4-AJ10) -> 0.3333333333 | AL11: =IF(AK11=0,0,(AK11*((LOG(AK11))/LOG(2)))) -> -0.5283208336 | AN11: =N11 -> 211 | AO11: =COUNTIF(L91:L111,AN11) -> 6 | AP11: =AO11/(AQ4-AO10) -> 0.3 | AQ11: =IF(AP11=0,0,(AP11*((LOG(AP11))/LOG(2)))) -> -0.5210896782 | AS11: =N11 -> 211 | AT11: =COUNTIF(L112:L132,AS11) -> 4 | AU11: =AT11/(AV4-AT10) -> 0.1904761905 | AV11: =IF(AU11=0,0,(AU11*((LOG(AU11))/LOG(2)))) -> -0.4556795091
A12: 22 | B12: 668 | C12: 24 | D12: 678 | E12: 14 | F12: 687 | K12: 0 | L12: 221 | N12: 212 | O12: =COUNTIF($L$7:$L$500,N12) -> 13 | P12: =O12/$Q$4 -> 0.1031746032 | Q12: =IF(P12=0,0,(P12*((LOG(P12))/LOG(2)))) -> -0.3380866879 | T12: =N12 -> 212 | U12: =COUNTIF(L7:L27,T12) -> 1 | V12: =U12/(W4-U10) -> 0.04761904762 | W12: =IF(V12=0,0,(V12*((LOG(V12))/LOG(2)))) -> -0.2091579725 | Y12: =N12 -> 212 | Z12: =COUNTIF(L28:L48,Y12) -> 1 | AA12: =Z12/(AB4-Z10) -> 0.04761904762 | AB12: =IF(AA12=0,0,(AA12*((LOG(AA12))/LOG(2)))) -> -0.2091579725 | AD12: =N12 -> 212 | AE12: =COUNTIF(L49:L69,AD12) -> 4 | AF12: =AE12/(AG4-AE10) -> 0.1904761905 | AG12: =IF(AF12=0,0,(AF12*((LOG(AF12))/LOG(2)))) -> -0.4556795091 | AI12: =N12 -> 212 | AJ12: =COUNTIF(L70:L90,AI12) -> 4 | AK12: =AJ12/(AL4-AJ10) -> 0.1904761905 | AL12: =IF(AK12=0,0,(AK12*((LOG(AK12))/LOG(2)))) -> -0.4556795091 | AN12: =N12 -> 212 | AO12: =COUNTIF(L91:L111,AN12) -> 3 | AP12: =AO12/(AQ4-AO10) -> 0.15 | AQ12: =IF(AP12=0,0,(AP12*((LOG(AP12))/LOG(2)))) -> -0.4105448391 | AS12: =N12 -> 212 | AT12: =COUNTIF(L112:L132,AS12) -> 0 | AU12: =AT12/(AV4-AT10) -> 0 | AV12: =IF(AU12=0,0,(AU12*((LOG(AU12))/LOG(2)))) -> 0
A13: 11 | B13: 790 | C13: 11 | D13: 794 | E13: 12 | F13: 835 | K13: 0 | L13: 111 | N13: 221 | O13: =COUNTIF($L$7:$L$500,N13) -> 11 | P13: =O13/$Q$4 -> 0.0873015873 | Q13: =IF(P13=0,0,(P13*((LOG(P13))/LOG(2)))) -> -0.3071137409 | T13: =N13 -> 221 | U13: =COUNTIF(L7:L27,T13) -> 4 | V13: =U13/(W4-U10) -> 0.1904761905 | W13: =IF(V13=0,0,(V13*((LOG(V13))/LOG(2)))) -> -0.4556795091 | Y13: =N13 -> 221 | Z13: =COUNTIF(L28:L48,Y13) -> 4 | AA13: =Z13/(AB4-Z10) -> 0.1904761905 | AB13: =IF(AA13=0,0,(AA13*((LOG(AA13))/LOG(2)))) -> -0.4556795091 | AD13: =N13 -> 221 | AE13: =COUNTIF(L49:L69,AD13) -> 0 | AF13: =AE13/(AG4-AE10) -> 0 | AG13: =IF(AF13=0,0,(AF13*((LOG(AF13))/LOG(2)))) -> 0 | AI13: =N13 -> 221 | AJ13: =COUNTIF(L70:L90,AI13) -> 1 | AK13: =AJ13/(AL4-AJ10) -> 0.04761904762 | AL13: =IF(AK13=0,0,(AK13*((LOG(AK13))/LOG(2)))) -> -0.2091579725 | AN13: =N13 -> 221 | AO13: =COUNTIF(L91:L111,AN13) -> 1 | AP13: =AO13/(AQ4-AO10) -> 0.05 | AQ13: =IF(AP13=0,0,(AP13*((LOG(AP13))/LOG(2)))) -> -0.2160964047 | AS13: =N13 -> 221 | AT13: =COUNTIF(L112:L132,AS13) -> 1 | AU13: =AT13/(AV4-AT10) -> 0.04761904762 | AV13: =IF(AU13=0,0,(AU13*((LOG(AU13))/LOG(2)))) -> -0.2091579725
A14: 22 | B14: 1042 | C14: 13 | D14: 1067 | E14: 14 | F14: 1074 | K14: 0 | L14: 211 | N14: 222 | O14: =COUNTIF($L$7:$L$500,N14) -> 20 | P14: =O14/$Q$4 -> 0.1587301587 | Q14: =IF(P14=0,0,(P14*((LOG(P14))/LOG(2)))) -> -0.4214844172 | T14: =N14 -> 222 | U14: =COUNTIF(L7:L27,T14) -> 1 | V14: =U14/(W4-U10) -> 0.04761904762 | W14: =IF(V14=0,0,(V14*((LOG(V14))/LOG(2)))) -> -0.2091579725 | Y14: =N14 -> 222 | Z14: =COUNTIF(L28:L48,Y14) -> 1 | AA14: =Z14/(AB4-Z10) -> 0.04761904762 | AB14: =IF(AA14=0,0,(AA14*((LOG(AA14))/LOG(2)))) -> -0.2091579725 | AD14: =N14 -> 222 | AE14: =COUNTIF(L49:L69,AD14) -> 1 | AF14: =AE14/(AG4-AE10) -> 0.04761904762 | AG14: =IF(AF14=0,0,(AF14*((LOG(AF14))/LOG(2)))) -> -0.2091579725 | AI14: =N14 -> 222 | AJ14: =COUNTIF(L70:L90,AI14) -> 1 | AK14: =AJ14/(AL4-AJ10) -> 0.04761904762 | AL14: =IF(AK14=0,0,(AK14*((LOG(AK14))/LOG(2)))) -> -0.2091579725 | AN14: =N14 -> 222 | AO14: =COUNTIF(L91:L111,AN14) -> 7 | AP14: =AO14/(AQ4-AO10) -> 0.35 | AQ14: =IF(AP14=0,0,(AP14*((LOG(AP14))/LOG(2)))) -> -0.5301006105 | AS14: =N14 -> 222 | AT14: =COUNTIF(L112:L132,AS14) -> 9 | AU14: =AT14/(AV4-AT10) -> 0.4285714286 | AV14: =IF(AU14=0,0,(AU14*((LOG(AU14))/LOG(2)))) -> -0.5238824663
A15: 22 | B15: 1188 | C15: 13 | D15: 1196 | E15: 14 | F15: 1203 | K15: 0 | L15: 211 | P15: =SUM(P7:P14) -> 1 | Q15: =-SUM(Q7:Q14) -> 2.482381946 | V15: =SUM(V7:V14) -> 1 | W15: =-SUM(W7:W14) -> 2.220429781 | AA15: =SUM(AA7:AA14) -> 1 | AB15: =-SUM(AB7:AB14) -> 2.42750195 | AF15: =SUM(AF7:AF14) -> 1 | AG15: =-SUM(AG7:AG14) -> 1.62537855 | AK15: =SUM(AK7:AK14) -> 1 | AL15: =-SUM(AL7:AL14) -> 2.296316831 | AP15: =SUM(AP7:AP14) -> 1 | AQ15: =-SUM(AQ7:AQ14) -> 2.226120747 | AU15: =SUM(AU7:AU14) -> 1 | AV15: =-SUM(AV7:AV14) -> 1.717040781
A16: 22 | B16: 1313 | C16: 24 | D16: 1334 | E16: 23 | F16: 1344 | K16: 0 | L16: 222 | P16: U= | Q16: =Q15/(LOG(Q4)/LOG(2)) -> 0.3557807589 | V16: U1= | W16: =W15/(LOG(W4)/LOG(2)) -> 0.5055258005 | AA16: U2= | AB16: =AB15/(LOG(AB4)/LOG(2)) -> 0.5526699727 | AF16: U3= | AG16: =AG15/(LOG(AG4)/LOG(2)) -> 0.3700503386 | AK16: U4= | AL16: =AL15/(LOG(AL4)/LOG(2)) -> 0.522803024 | AP16: U5= | AQ16: =AQ15/(LOG(AQ4)/LOG(2)) -> 0.5068214641 | AU16: U6= | AV16: =AV15/(LOG(AV4)/LOG(2)) -> 0.3909191017
A17: 11 | B17: 1453 | C17: 22 | D17: 1468 | E17: 14 | F17: 1477 | K17: 0 | L17: 121
A18: 11 | B18: 1599 | C18: 11 | D18: 1604 | E18: 12 | F18: 1614 | K18: 0 | L18: 111
A19: 22 | B19: 1716 | C19: 24 | D19: 1741 | E19: 14 | F19: 1782 | K19: 0 | L19: 221 | N19: Total Target Seq
A20: 22 | B20: 1884 | C20: 13 | D20: 1892 | E20: 14 | F20: 1906 | K20: 0 | L20: 211 | N20: =COUNTIF(L7:L132,G3) -> 1 | P20: 21 | Q20: 21 | R20: 21 | S20: 21 | T20: 21 | U20: 21
A21: 11 | B21: 2027 | C21: 11 | D21: 2033 | E21: 12 | F21: 2042 | K21: 0 | L21: 111 | P21: % of reinforcement given in 6 equal intervals based on number of trials
A22: 22 | B22: 2151 | C22: 13 | D22: 2160 | E22: 14 | F22: 2166 | K22: 0 | L22: 211 | P22: %_1 | Q22: %_2 | R22: %_3 | S22: %_4 | T22: %_5 | U22: %_6
A23: 11 | B23: 2276 | C23: 11 | D23: 2281 | E23: 12 | F23: 2287 | K23: 0 | L23: 111 | O23: target sequence | P23: =$G$3 -> 122 | Q23: =$G$3 -> 122 | R23: =$G$3 -> 122 | S23: =$G$3 -> 122 | T23: =$G$3 -> 122 | U23: =$G$3 -> 122
A24: 22 | B24: 2410 | C24: 13 | D24: 2425 | E24: 14 | F24: 2430 | K24: 0 | L24: 211 | O24: total reinforcement | P24: =U10 -> 0 | Q24: =Z10 -> 0 | R24: =AE10 -> 0 | S24: =AJ10 -> 0 | T24: =AO10 -> 1 | U24: =AT10 -> 0
A25: 22 | B25: 2533 | C25: 13 | D25: 2542 | E25: 14 | F25: 2547 | K25: 0 | L25: 211 | O25: % target
A26: 11 | B26: 2653 | C26: 22 | D26: 2673 | E26: 14 | F26: 2695 | K26: 0 | L26: 121 | O26: CCRF
A27: 11 | B27: 2814 | C27: 11 | D27: 2821 | E27: 12 | F27: 2827 | K27: 0 | L27: 111 | O27: % CCRf
A28: 11 | B28: 2959 | C28: 11 | D28: 2967 | E28: 12 | F28: 3003 | K28: 0 | L28: 111 | O28: average response rate | P28: =F27/P20 -> 134.6190476 | Q28: =(F48-F27)/Q20 -> 150.4285714 | R28: =(F69-F48)/R20 -> 129.3333333 | S28: =(F90-F69)/S20 -> 156.9047619 | T28: =(F111-F90)/T20 -> 181.4285714 | U28: =(F132-F111)/U20 -> 388.1904762
A29: 11 | B29: 3127 | C29: 22 | D29: 3197 | E29: 14 | F29: 3210 | K29: 0 | L29: 121
A30: 11 | B30: 3403 | C30: 11 | D30: 3409 | E30: 12 | F30: 3443 | K30: 0 | L30: 111
A31: 11 | B31: 3557 | C31: 11 | D31: 3563 | E31: 12 | F31: 3603 | K31: 0 | L31: 111
A32: 22 | B32: 3714 | C32: 13 | D32: 3726 | E32: 14 | F32: 3733 | K32: 0 | L32: 211
A33: 22 | B33: 3838 | C33: 13 | D33: 3847 | E33: 14 | F33: 3860 | K33: 0 | L33: 211
A34: 22 | B34: 3969 | C34: 13 | D34: 3982 | E34: 23 | F34: 4055 | K34: 0 | L34: 212
A35: 11 | B35: 4219 | C35: 11 | D35: 4251 | E35: 12 | F35: 4258 | K35: 0 | L35: 111
A36: 22 | B36: 4374 | C36: 24 | D36: 4419 | E36: 14 | F36: 4430 | K36: 0 | L36: 221
A37: 11 | B37: 4542 | C37: 11 | D37: 4547 | E37: 21 | F37: 4570 | K37: 0 | L37: 112
A38: 22 | B38: 4668 | C38: 13 | D38: 4675 | E38: 14 | F38: 4683 | K38: 0 | L38: 211
A39: 22 | B39: 4800 | C39: 13 | D39: 4811 | E39: 14 | F39: 4821 | K39: 0 | L39: 211
A40: 22 | B40: 4926 | C40: 13 | D40: 4936 | E40: 14 | F40: 4943 | K40: 0 | L40: 211
A41: 22 | B41: 5042 | C41: 24 | D41: 5051 | E41: 23 | F41: 5063 | K41: 0 | L41: 222
A42: 22 | B42: 5169 | C42: 24 | D42: 5180 | E42: 14 | F42: 5191 | K42: 0 | L42: 221
A43: 11 | B43: 5295 | C43: 22 | D43: 5308 | E43: 14 | F43: 5318 | K43: 0 | L43: 121
A44: 11 | B44: 5452 | C44: 11 | D44: 5473 | E44: 12 | F44: 5480 | K44: 0 | L44: 111
A45: 22 | B45: 5583 | C45: 24 | D45: 5594 | E45: 14 | F45: 5602 | K45: 0 | L45: 221
A46: 22 | B46: 5703 | C46: 24 | D46: 5712 | E46: 14 | F46: 5722 | K46: 0 | L46: 221
A47: 22 | B47: 5824 | C47: 13 | D47: 5857 | E47: 14 | F47: 5863 | K47: 0 | L47: 211
A48: 22 | B48: 5968 | C48: 13 | D48: 5980 | E48: 14 | F48: 5986 | K48: 0 | L48: 211
A49: 11 | B49: 6097 | C49: 11 | D49: 6102 | E49: 12 | F49: 6106 | K49: 0 | L49: 111
A50: 22 | B50: 6205 | C50: 13 | D50: 6214 | E50: 14 | F50: 6221 | K50: 0 | L50: 211
A51: 11 | B51: 6322 | C51: 11 | D51: 6334 | E51: 21 | F51: 6352 | K51: 0 | L51: 112
A52: 22 | B52: 6447 | C52: 13 | D52: 6456 | E52: 23 | F52: 6478 | K52: 0 | L52: 212
A53: 22 | B53: 6577 | C53: 13 | D53: 6585 | E53: 14 | F53: 6589 | K53: 0 | L53: 211
A54: 22 | B54: 6732 | C54: 13 | D54: 6744 | E54: 23 | F54: 6763 | K54: 0 | L54: 212
A55: 22 | B55: 6861 | C55: 13 | D55: 6871 | E55: 14 | F55: 6877 | K55: 0 | L55: 211
A56: 22 | B56: 6977 | C56: 13 | D56: 6985 | E56: 14 | F56: 6991 | K56: 0 | L56: 211
A57: 22 | B57: 7097 | C57: 13 | D57: 7106 | E57: 14 | F57: 7110 | K57: 0 | L57: 211
A58: 22 | B58: 7243 | C58: 13 | D58: 7256 | E58: 14 | F58: 7263 | K58: 0 | L58: 211
A59: 22 | B59: 7366 | C59: 13 | D59: 7374 | E59: 14 | F59: 7381 | K59: 0 | L59: 211
A60: 22 | B60: 7490 | C60: 13 | D60: 7498 | E60: 23 | F60: 7529 | K60: 0 | L60: 212
A61: 22 | B61: 7634 | C61: 13 | D61: 7642 | E61: 14 | F61: 7649 | K61: 0 | L61: 211
A62: 22 | B62: 7750 | C62: 13 | D62: 7769 | E62: 14 | F62: 7779 | K62: 0 | L62: 211
A63: 22 | B63: 7879 | C63: 13 | D63: 7888 | E63: 14 | F63: 7900 | K63: 0 | L63: 211
A64: 22 | B64: 8011 | C64: 13 | D64: 8020 | E64: 14 | F64: 8042 | K64: 0 | L64: 211
A65: 22 | B65: 8155 | C65: 13 | D65: 8162 | E65: 23 | F65: 8188 | K65: 0 | L65: 212
A66: 22 | B66: 8288 | C66: 24 | D66: 8312 | E66: 23 | F66: 8338 | K66: 0 | L66: 222
A67: 22 | B67: 8444 | C67: 13 | D67: 8452 | E67: 14 | F67: 8458 | K67: 0 | L67: 211
A68: 22 | B68: 8562 | C68: 13 | D68: 8572 | E68: 14 | F68: 8579 | K68: 0 | L68: 211
A69: 11 | B69: 8688 | C69: 11 | D69: 8695 | E69: 12 | F69: 8702 | K69: 0 | L69: 111
A70: 22 | B70: 8834 | C70: 13 | D70: 8846 | E70: 23 | F70: 8864 | K70: 0 | L70: 212
A71: 22 | B71: 8966 | C71: 13 | D71: 8974 | E71: 14 | F71: 8981 | K71: 0 | L71: 211
A72: 22 | B72: 9082 | C72: 13 | D72: 9091 | E72: 14 | F72: 9098 | K72: 0 | L72: 211
A73: 11 | B73: 9207 | C73: 11 | D73: 9216 | E73: 12 | F73: 9225 | K73: 0 | L73: 111
A74: 22 | B74: 9327 | C74: 13 | D74: 9335 | E74: 14 | F74: 9342 | K74: 0 | L74: 211
A75: 11 | B75: 9469 | C75: 11 | D75: 9497 | E75: 12 | F75: 9505 | K75: 0 | L75: 111
A76: 11 | B76: 9663 | C76: 11 | D76: 9671 | E76: 12 | F76: 9678 | K76: 0 | L76: 111
A77: 11 | B77: 9809 | C77: 11 | D77: 9818 | E77: 12 | F77: 9838 | K77: 0 | L77: 111
A78: 22 | B78: 9942 | C78: 13 | D78: 9949 | E78: 23 | F78: 9967 | K78: 0 | L78: 212
A79: 11 | B79: 10152 | C79: 22 | D79: 10181 | E79: 14 | F79: 10190 | K79: 0 | L79: 121
A80: 22 | B80: 10296 | C80: 13 | D80: 10306 | E80: 14 | F80: 10311 | K80: 0 | L80: 211
A81: 22 | B81: 10412 | C81: 13 | D81: 10422 | E81: 23 | F81: 10439 | K81: 0 | L81: 212
A82: 11 | B82: 10551 | C82: 22 | D82: 10568 | E82: 14 | F82: 10578 | K82: 0 | L82: 121
A83: 22 | B83: 10684 | C83: 13 | D83: 10692 | E83: 23 | F83: 10736 | K83: 0 | L83: 212
A84: 22 | B84: 10843 | C84: 13 | D84: 10852 | E84: 14 | F84: 10865 | K84: 0 | L84: 211
A85: 11 | B85: 10995 | C85: 11 | D85: 11006 | E85: 12 | F85: 11014 | K85: 0 | L85: 111
A86: 22 | B86: 11249 | C86: 24 | D86: 11263 | E86: 14 | F86: 11274 | K86: 0 | L86: 221
A87: 22 | B87: 11381 | C87: 24 | D87: 11391 | E87: 23 | F87: 11399 | K87: 0 | L87: 222
A88: 22 | B88: 11505 | C88: 13 | D88: 11514 | E88: 14 | F88: 11521 | K88: 0 | L88: 211
A89: 22 | B89: 11837 | C89: 13 | D89: 11849 | E89: 14 | F89: 11857 | K89: 0 | L89: 211
A90: 11 | B90: 11967 | C90: 22 | D90: 11989 | E90: 14 | F90: 11997 | K90: 0 | L90: 121
A91: 22 | B91: 12100 | C91: 13 | D91: 12109 | E91: 14 | F91: 12117 | K91: 0 | L91: 211
A92: 22 | B92: 12229 | C92: 13 | D92: 12237 | E92: 14 | F92: 12245 | K92: 0 | L92: 211
A93: 22 | B93: 12428 | C93: 24 | D93: 12455 | E93: 23 | F93: 12464 | K93: 0 | L93: 222
A94: 11 | B94: 12667 | C94: 22 | D94: 12720 | E94: 14 | F94: 12728 | K94: 0 | L94: 121
A95: 22 | B95: 12845 | C95: 24 | D95: 12855 | E95: 23 | F95: 12864 | K95: 0 | L95: 222
A96: 11 | B96: 12976 | C96: 22 | D96: 12997 | E96: 14 | F96: 13020 | K96: 0 | L96: 121
A97: 22 | B97: 13138 | C97: 13 | D97: 13151 | E97: 23 | F97: 13191 | K97: 0 | L97: 212
A98: 22 | B98: 13328 | C98: 13 | D98: 13340 | E98: 14 | F98: 13348 | K98: 0 | L98: 211
A99: 11 | B99: 13635 | C99: 22 | D99: 13695 | E99: 23 | F99: 13732 | K99: 0 | L99: 122
A100: 22 | B100: 13841 | C100: 24 | D100: 13853 | E100: 23 | F100: 13868 | K100: 0 | L100: 222
A101: 22 | B101: 13992 | C101: 13 | D101: 14021 | E101: 14 | F101: 14057 | K101: 0 | L101: 211
A102: 11 | B102: 14177 | C102: 11 | D102: 14187 | E102: 12 | F102: 14196 | K102: 0 | L102: 111
A103: 22 | B103: 14299 | C103: 13 | D103: 14309 | E103: 14 | F103: 14317 | K103: 0 | L103: 211
A104: 22 | B104: 14444 | C104: 24 | D104: 14480 | E104: 23 | F104: 14505 | K104: 0 | L104: 222
A105: 22 | B105: 14639 | C105: 24 | D105: 14649 | E105: 14 | F105: 14844 | K105: 0 | L105: 221
A106: 22 | B106: 14961 | C106: 24 | D106: 14973 | E106: 23 | F106: 15008 | K106: 0 | L106: 222
A107: 22 | B107: 15136 | C107: 24 | D107: 15149 | E107: 23 | F107: 15156 | K107: 0 | L107: 222
A108: 22 | B108: 15259 | C108: 13 | D108: 15276 | E108: 23 | F108: 15298 | K108: 0 | L108: 212
A109: 22 | B109: 15403 | C109: 13 | D109: 15412 | E109: 23 | F109: 15445 | K109: 0 | L109: 212
A110: 22 | B110: 15551 | C110: 24 | D110: 15624 | E110: 23 | F110: 15629 | K110: 0 | L110: 222
A111: 22 | B111: 15779 | C111: 13 | D111: 15799 | E111: 14 | F111: 15807 | K111: 0 | L111: 211
A112: 22 | B112: 15917 | C112: 13 | D112: 15928 | E112: 14 | F112: 15937 | K112: 0 | L112: 211
A113: 22 | B113: 16094 | C113: 24 | D113: 16171 | E113: 23 | F113: 16225 | K113: 0 | L113: 222
A114: 11 | B114: 16386 | C114: 11 | D114: 16403 | E114: 12 | F114: 16412 | K114: 0 | L114: 111
A115: 11 | B115: 16534 | C115: 11 | D115: 16542 | E115: 12 | F115: 16550 | K115: 0 | L115: 111
A116: 22 | B116: 16694 | C116: 13 | D116: 16809 | E116: 14 | F116: 16820 | K116: 0 | L116: 211
A117: 22 | B117: 17569 | C117: 24 | D117: 17577 | E117: 23 | F117: 17606 | K117: 0 | L117: 222
A118: 22 | B118: 17763 | C118: 24 | D118: 17796 | E118: 23 | F118: 17806 | K118: 0 | L118: 222
A119: 11 | B119: 17919 | C119: 11 | D119: 17926 | E119: 12 | F119: 17944 | K119: 0 | L119: 111
A120: 22 | B120: 18068 | C120: 24 | D120: 18115 | E120: 23 | F120: 18132 | K120: 0 | L120: 222
A121: 22 | B121: 18259 | C121: 13 | D121: 18379 | E121: 14 | F121: 18388 | K121: 0 | L121: 211
A122: 22 | B122: 18498 | C122: 24 | D122: 18505 | E122: 23 | F122: 18528 | K122: 0 | L122: 222
A123: 11 | B123: 18944 | C123: 11 | D123: 18959 | E123: 12 | F123: 18966 | K123: 0 | L123: 111
A124: 11 | B124: 19167 | C124: 11 | D124: 19247 | E124: 12 | F124: 19254 | K124: 0 | L124: 111
A125: 22 | B125: 19402 | C125: 13 | D125: 19425 | E125: 14 | F125: 19433 | K125: 0 | L125: 211
A126: 11 | B126: 20113 | C126: 11 | D126: 20120 | E126: 12 | F126: 20157 | K126: 0 | L126: 111
A127: 22 | B127: 20293 | C127: 24 | D127: 20312 | E127: 23 | F127: 20319 | K127: 0 | L127: 222
A128: 22 | B128: 20936 | C128: 24 | D128: 20981 | E128: 14 | F128: 21029 | K128: 0 | L128: 221
A129: 22 | B129: 21355 | C129: 24 | D129: 21719 | E129: 23 | F129: 21742 | K129: 0 | L129: 222
A130: 11 | B130: 21885 | C130: 11 | D130: 21893 | E130: 12 | F130: 21927 | K130: 0 | L130: 111
A131: 22 | B131: 22138 | C131: 24 | D131: 22167 | E131: 23 | F131: 22207 | K131: 0 | L131: 222
A132: 22 | B132: 23923 | C132: 24 | D132: 23931 | E132: 23 | F132: 23959 | L132: 222

Sheet !2011-05-07_09h34m.Subject 52 p
A1: Report for:!2011-05-07_09h34m.Subject 52 phase 2
A2: Date | B2: 2011-05-07 | F2: Group | G2: 0
A3: Hen | B3: 0 | F3: Correct Sequence | G3: =Start!J2 -> 122 | P3: Total Sequences in Data | Q3: =4994-COUNTBLANK(L7:L5000) -> 147 | V3: Total Sequences in Block Data | W3: =COUNTA(L7:L31) -> 25 | AA3: Total Sequences in Block Data | AB3: =COUNTA(L32:L55) -> 24 | AF3: Total Sequences in Block Data | AG3: =COUNTA(L56:L80) -> 25 | AK3: Total Sequences in Block Data | AL3: =COUNTA(L81:L104) -> 24 | AP3: Total Sequences in Block Data | AQ3: =COUNTA(L105:L129) -> 25 | AU3: Total Sequences in Block Data | AV3: =COUNTA(L130:L153) -> 24
A4: Program | B4: 0 | P4: Total Sequences in Summary | Q4: =SUM(O7:O14) -> 147 | V4: Total Sequences in Block Summary | W4: =SUM(U7:U14) -> 25 | AA4: Total Sequences in Block Summary | AB4: =SUM(Z7:Z14) -> 24 | AF4: Total Sequences in Block Summary | AG4: =SUM(AE7:AE14) -> 25 | AK4: Total Sequences in Block Summary | AL4: =SUM(AJ7:AJ14) -> 24 | AP4: Total Sequences in Block Summary | AQ4: =SUM(AO7:AO14) -> 25 | AU4: Total Sequences in Block Summary | AV4: =SUM(AT7:AT14) -> 24
T5: Block 1 | Y5: Block 2 | AD5: Block 3 | AI5: Block 4 | AN5: Block 5 | AS5: Block 6
A6: Sequence Component 1 | B6: Time 1 | C6: Sequence Component 2 | D6: Time 2 | E6: Sequence Component 3 | F6: Time 3 | G6: Sequence Component 4 | H6: Time 4 | I6: Sequence Component 5 | J6: Time 5 | K6: Correct? 0=No 1=Yes | L6: Sequence | N6: Frequency | P6: Relative Frequency | Q6: Variability | T6: Frequency | V6: Relative Frequency | W6: Variability | Y6: Frequency | AA6: Relative Frequency | AB6: Variability | AD6: Frequency | AF6: Relative Frequency | AG6: Variability | AI6: Frequency | AK6: Relative Frequency | AL6: Variability | AN6: Frequency | AP6: Relative Frequency | AQ6: Variability | AS6: Frequency | AU6: Relative Frequency | AV6: Variability
A7: 22 | B7: 10 | C7: 24 | D7: 21 | E7: 23 | F7: 29 | K7: 0 | L7: 222 | N7: 111 | O7: =COUNTIF($L$7:$L$500,N7) -> 16 | P7: =O7/$Q$4 -> 0.1088435374 | Q7: =IF(P7=0,0,(P7*((LOG(P7))/LOG(2)))) -> -0.3482636566 | T7: =N7 -> 111 | U7: =COUNTIF(L7:L31,T7) -> 7 | V7: =U7/(W4-U10) -> 0.28 | W7: =IF(V7=0,0,(V7*((LOG(V7))/LOG(2)))) -> -0.514220355 | Y7: =N7 -> 111 | Z7: =COUNTIF(L32:L55,Y7) -> 4 | AA7: =Z7/(AB4-Z10) -> 0.1818181818 | AB7: =IF(AA7=0,0,(AA7*((LOG(AA7))/LOG(2)))) -> -0.4471693852 | AD7: =N7 -> 111 | AE7: =COUNTIF(L56:L80,AD7) -> 3 | AF7: =AE7/(AG4-AE10) -> 0.125 | AG7: =IF(AF7=0,0,(AF7*((LOG(AF7))/LOG(2)))) -> -0.375 | AI7: =N7 -> 111 | AJ7: =COUNTIF(L81:L104,AI7) -> 1 | AK7: =AJ7/(AL4-AJ10) -> 0.04347826087 | AL7: =IF(AK7=0,0,(AK7*((LOG(AK7))/LOG(2)))) -> -0.1966766068 | AN7: =N7 -> 111 | AO7: =COUNTIF(L105:L129,AN7) -> 0 | AP7: =AO7/(AQ4-AO10) -> 0 | AQ7: =IF(AP7=0,0,(AP7*((LOG(AP7))/LOG(2)))) -> 0 | AS7: =N7 -> 111 | AT7: =COUNTIF(L130:L153,AS7) -> 1 | AU7: =AT7/(AV4-AT10) -> 0.04166666667 | AV7: =IF(AU7=0,0,(AU7*((LOG(AU7))/LOG(2)))) -> -0.1910401042
A8: 11 | B8: 141 | C8: 11 | D8: 152 | E8: 12 | F8: 160 | K8: 0 | L8: 111 | N8: 112 | O8: =COUNTIF($L$7:$L$500,N8) -> 5 | P8: =O8/$Q$4 -> 0.03401360544 | Q8: =IF(P8=0,0,(P8*((LOG(P8))/LOG(2)))) -> -0.1659096684 | T8: =N8 -> 112 | U8: =COUNTIF(L7:L31,T8) -> 0 | V8: =U8/(W4-U10) -> 0 | W8: =IF(V8=0,0,(V8*((LOG(V8))/LOG(2)))) -> 0 | Y8: =N8 -> 112 | Z8: =COUNTIF(L32:L55,Y8) -> 1 | AA8: =Z8/(AB4-Z10) -> 0.04545454545 | AB8: =IF(AA8=0,0,(AA8*((LOG(AA8))/LOG(2)))) -> -0.2027014372 | AD8: =N8 -> 112 | AE8: =COUNTIF(L56:L80,AD8) -> 2 | AF8: =AE8/(AG4-AE10) -> 0.08333333333 | AG8: =IF(AF8=0,0,(AF8*((LOG(AF8))/LOG(2)))) -> -0.2987468751 | AI8: =N8 -> 112 | AJ8: =COUNTIF(L81:L104,AI8) -> 0 | AK8: =AJ8/(AL4-AJ10) -> 0 | AL8: =IF(AK8=0,0,(AK8*((LOG(AK8))/LOG(2)))) -> 0 | AN8: =N8 -> 112 | AO8: =COUNTIF(L105:L129,AN8) -> 1 | AP8: =AO8/(AQ4-AO10) -> 0.04 | AQ8: =IF(AP8=0,0,(AP8*((LOG(AP8))/LOG(2)))) -> -0.1857542476 | AS8: =N8 -> 112 | AT8: =COUNTIF(L130:L153,AS8) -> 1 | AU8: =AT8/(AV4-AT10) -> 0.04166666667 | AV8: =IF(AU8=0,0,(AU8*((LOG(AU8))/LOG(2)))) -> -0.1910401042
A9: 22 | B9: 263 | C9: 13 | D9: 271 | E9: 14 | F9: 276 | K9: 0 | L9: 211 | N9: 121 | O9: =COUNTIF($L$7:$L$500,N9) -> 1 | P9: =O9/$Q$4 -> 0.006802721088 | Q9: =IF(P9=0,0,(P9*((LOG(P9))/LOG(2)))) -> -0.04897736289 | T9: =N9 -> 121 | U9: =COUNTIF(L7:L31,T9) -> 0 | V9: =U9/(W4-U10) -> 0 | W9: =IF(V9=0,0,(V9*((LOG(V9))/LOG(2)))) -> 0 | Y9: =N9 -> 121 | Z9: =COUNTIF(L32:L55,Y9) -> 0 | AA9: =Z9/(AB4-Z10) -> 0 | AB9: =IF(AA9=0,0,(AA9*((LOG(AA9))/LOG(2)))) -> 0 | AD9: =N9 -> 121 | AE9: =COUNTIF(L56:L80,AD9) -> 0 | AF9: =AE9/(AG4-AE10) -> 0 | AG9: =IF(AF9=0,0,(AF9*((LOG(AF9))/LOG(2)))) -> 0 | AI9: =N9 -> 121 | AJ9: =COUNTIF(L81:L104,AI9) -> 0 | AK9: =AJ9/(AL4-AJ10) -> 0 | AL9: =IF(AK9=0,0,(AK9*((LOG(AK9))/LOG(2)))) -> 0 | AN9: =N9 -> 121 | AO9: =COUNTIF(L105:L129,AN9) -> 0 | AP9: =AO9/(AQ4-AO10) -> 0 | AQ9: =IF(AP9=0,0,(AP9*((LOG(AP9))/LOG(2)))) -> 0 | AS9: =N9 -> 121 | AT9: =COUNTIF(L130:L153,AS9) -> 1 | AU9: =AT9/(AV4-AT10) -> 0.04166666667 | AV9: =IF(AU9=0,0,(AU9*((LOG(AU9))/LOG(2)))) -> -0.1910401042
A10: 22 | B10: 392 | C10: 13 | D10: 400 | E10: 14 | F10: 410 | K10: 0 | L10: 211 | N10: 122 | O10: =COUNTIF($L$7:$L$500,N10) -> 4 | P10: =O10/$Q$4 -> 0.02721088435 | Q10: =IF(P10=0,0,(P10*((LOG(P10))/LOG(2)))) -> -0.1414876829 | T10: =N10 -> 122 | U10: =COUNTIF(L7:L31,T10) -> 0 | Y10: =N10 -> 122 | Z10: =COUNTIF(L32:L55,Y10) -> 2 | AD10: =N10 -> 122 | AE10: =COUNTIF(L56:L80,AD10) -> 1 | AI10: =N10 -> 122 | AJ10: =COUNTIF(L81:L104,AI10) -> 1 | AN10: =N10 -> 122 | AO10: =COUNTIF(L105:L129,AN10) -> 0 | AS10: =N10 -> 122 | AT10: =COUNTIF(L130:L153,AS10) -> 0
A11: 22 | B11: 560 | C11: 13 | D11: 570 | E11: 14 | F11: 590 | K11: 0 | L11: 211 | N11: 211 | O11: =COUNTIF($L$7:$L$500,N11) -> 27 | P11: =O11/$Q$4 -> 0.1836734694 | Q11: =IF(P11=0,0,(P11*((LOG(P11))/LOG(2)))) -> -0.449042114 | T11: =N11 -> 211 | U11: =COUNTIF(L7:L31,T11) -> 12 | V11: =U11/(W4-U10) -> 0.48 | W11: =IF(V11=0,0,(V11*((LOG(V11))/LOG(2)))) -> -0.5082689707 | Y11: =N11 -> 211 | Z11: =COUNTIF(L32:L55,Y11) -> 4 | AA11: =Z11/(AB4-Z10) -> 0.1818181818 | AB11: =IF(AA11=0,0,(AA11*((LOG(AA11))/LOG(2)))) -> -0.4471693852 | AD11: =N11 -> 211 | AE11: =COUNTIF(L56:L80,AD11) -> 2 | AF11: =AE11/(AG4-AE10) -> 0.08333333333 | AG11: =IF(AF11=0,0,(AF11*((LOG(AF11))/LOG(2)))) -> -0.2987468751 | AI11: =N11 -> 211 | AJ11: =COUNTIF(L81:L104,AI11) -> 3 | AK11: =AJ11/(AL4-AJ10) -> 0.1304347826 | AL11: =IF(AK11=0,0,(AK11*((LOG(AK11))/LOG(2)))) -> -0.3832955811 | AN11: =N11 -> 211 | AO11: =COUNTIF(L105:L129,AN11) -> 2 | AP11: =AO11/(AQ4-AO10) -> 0.08 | AQ11: =IF(AP11=0,0,(AP11*((LOG(AP11))/LOG(2)))) -> -0.2915084952 | AS11: =N11 -> 211 | AT11: =COUNTIF(L130:L153,AS11) -> 4 | AU11: =AT11/(AV4-AT10) -> 0.1666666667 | AV11: =IF(AU11=0,0,(AU11*((LOG(AU11))/LOG(2)))) -> -0.4308270835
A12: 22 | B12: 695 | C12: 24 | D12: 707 | E12: 14 | F12: 718 | K12: 0 | L12: 221 | N12: 212 | O12: =COUNTIF($L$7:$L$500,N12) -> 14 | P12: =O12/$Q$4 -> 0.09523809524 | Q12: =IF(P12=0,0,(P12*((LOG(P12))/LOG(2)))) -> -0.3230778498 | T12: =N12 -> 212 | U12: =COUNTIF(L7:L31,T12) -> 0 | V12: =U12/(W4-U10) -> 0 | W12: =IF(V12=0,0,(V12*((LOG(V12))/LOG(2)))) -> 0 | Y12: =N12 -> 212 | Z12: =COUNTIF(L32:L55,Y12) -> 1 | AA12: =Z12/(AB4-Z10) -> 0.04545454545 | AB12: =IF(AA12=0,0,(AA12*((LOG(AA12))/LOG(2)))) -> -0.2027014372 | AD12: =N12 -> 212 | AE12: =COUNTIF(L56:L80,AD12) -> 3 | AF12: =AE12/(AG4-AE10) -> 0.125 | AG12: =IF(AF12=0,0,(AF12*((LOG(AF12))/LOG(2)))) -> -0.375 | AI12: =N12 -> 212 | AJ12: =COUNTIF(L81:L104,AI12) -> 2 | AK12: =AJ12/(AL4-AJ10) -> 0.08695652174 | AL12: =IF(AK12=0,0,(AK12*((LOG(AK12))/LOG(2)))) -> -0.3063966918 | AN12: =N12 -> 212 | AO12: =COUNTIF(L105:L129,AN12) -> 5 | AP12: =AO12/(AQ4-AO10) -> 0.2 | AQ12: =IF(AP12=0,0,(AP12*((LOG(AP12))/LOG(2)))) -> -0.464385619 | AS12: =N12 -> 212 | AT12: =COUNTIF(L130:L153,AS12) -> 3 | AU12: =AT12/(AV4-AT10) -> 0.125 | AV12: =IF(AU12=0,0,(AU12*((LOG(AU12))/LOG(2)))) -> -0.375
A13: 11 | B13: 825 | C13: 11 | D13: 834 | E13: 12 | F13: 840 | K13: 0 | L13: 111 | N13: 221 | O13: =COUNTIF($L$7:$L$500,N13) -> 15 | P13: =O13/$Q$4 -> 0.1020408163 | Q13: =IF(P13=0,0,(P13*((LOG(P13))/LOG(2)))) -> -0.3359981377 | T13: =N13 -> 221 | U13: =COUNTIF(L7:L31,T13) -> 1 | V13: =U13/(W4-U10) -> 0.04 | W13: =IF(V13=0,0,(V13*((LOG(V13))/LOG(2)))) -> -0.1857542476 | Y13: =N13 -> 221 | Z13: =COUNTIF(L32:L55,Y13) -> 2 | AA13: =Z13/(AB4-Z10) -> 0.09090909091 | AB13: =IF(AA13=0,0,(AA13*((LOG(AA13))/LOG(2)))) -> -0.3144937835 | AD13: =N13 -> 221 | AE13: =COUNTIF(L56:L80,AD13) -> 1 | AF13: =AE13/(AG4-AE10) -> 0.04166666667 | AG13: =IF(AF13=0,0,(AF13*((LOG(AF13))/LOG(2)))) -> -0.1910401042 | AI13: =N13 -> 221 | AJ13: =COUNTIF(L81:L104,AI13) -> 1 | AK13: =AJ13/(AL4-AJ10) -> 0.04347826087 | AL13: =IF(AK13=0,0,(AK13*((LOG(AK13))/LOG(2)))) -> -0.1966766068 | AN13: =N13 -> 221 | AO13: =COUNTIF(L105:L129,AN13) -> 3 | AP13: =AO13/(AQ4-AO10) -> 0.12 | AQ13: =IF(AP13=0,0,(AP13*((LOG(AP13))/LOG(2)))) -> -0.3670672427 | AS13: =N13 -> 221 | AT13: =COUNTIF(L130:L153,AS13) -> 7 | AU13: =AT13/(AV4-AT10) -> 0.2916666667 | AV13: =IF(AU13=0,0,(AU13*((LOG(AU13))/LOG(2)))) -> -0.5184688771
A14: 22 | B14: 943 | C14: 13 | D14: 950 | E14: 14 | F14: 957 | K14: 0 | L14: 211 | N14: 222 | O14: =COUNTIF($L$7:$L$500,N14) -> 65 | P14: =O14/$Q$4 -> 0.4421768707 | Q14: =IF(P14=0,0,(P14*((LOG(P14))/LOG(2)))) -> -0.5205768338 | T14: =N14 -> 222 | U14: =COUNTIF(L7:L31,T14) -> 5 | V14: =U14/(W4-U10) -> 0.2 | W14: =IF(V14=0,0,(V14*((LOG(V14))/LOG(2)))) -> -0.464385619 | Y14: =N14 -> 222 | Z14: =COUNTIF(L32:L55,Y14) -> 10 | AA14: =Z14/(AB4-Z10) -> 0.4545454545 | AB14: =IF(AA14=0,0,(AA14*((LOG(AA14))/LOG(2)))) -> -0.5170470562 | AD14: =N14 -> 222 | AE14: =COUNTIF(L56:L80,AD14) -> 13 | AF14: =AE14/(AG4-AE10) -> 0.5416666667 | AG14: =IF(AF14=0,0,(AF14*((LOG(AF14))/LOG(2)))) -> -0.4791165072 | AI14: =N14 -> 222 | AJ14: =COUNTIF(L81:L104,AI14) -> 16 | AK14: =AJ14/(AL4-AJ10) -> 0.6956521739 | AL14: =IF(AK14=0,0,(AK14*((LOG(AK14))/LOG(2)))) -> -0.3642170129 | AN14: =N14 -> 222 | AO14: =COUNTIF(L105:L129,AN14) -> 14 | AP14: =AO14/(AQ4-AO10) -> 0.56 | AQ14: =IF(AP14=0,0,(AP14*((LOG(AP14))/LOG(2)))) -> -0.4684407099 | AS14: =N14 -> 222 | AT14: =COUNTIF(L130:L153,AS14) -> 7 | AU14: =AT14/(AV4-AT10) -> 0.2916666667 | AV14: =IF(AU14=0,0,(AU14*((LOG(AU14))/LOG(2)))) -> -0.5184688771
A15: 11 | B15: 1066 | C15: 11 | D15: 1073 | E15: 12 | F15: 1080 | K15: 0 | L15: 111 | P15: =SUM(P7:P14) -> 1 | Q15: =-SUM(Q7:Q14) -> 2.333333306 | V15: =SUM(V7:V14) -> 1 | W15: =-SUM(W7:W14) -> 1.672629192 | AA15: =SUM(AA7:AA14) -> 1 | AB15: =-SUM(AB7:AB14) -> 2.131282485 | AF15: =SUM(AF7:AF14) -> 1 | AG15: =-SUM(AG7:AG14) -> 2.017650362 | AK15: =SUM(AK7:AK14) -> 1 | AL15: =-SUM(AL7:AL14) -> 1.447262499 | AP15: =SUM(AP7:AP14) -> 1 | AQ15: =-SUM(AQ7:AQ14) -> 1.777156314 | AU15: =SUM(AU7:AU14) -> 1 | AV15: =-SUM(AV7:AV14) -> 2.41588515
A16: 22 | B16: 1181 | C16: 13 | D16: 1189 | E16: 14 | F16: 1197 | K16: 0 | L16: 211 | P16: U= | Q16: =Q15/(LOG(Q4)/LOG(2)) -> 0.3240888188 | V16: U1= | W16: =W15/(LOG(W4)/LOG(2)) -> 0.3601810917 | AA16: U2= | AB16: =AB15/(LOG(AB4)/LOG(2)) -> 0.4648418573 | AF16: U3= | AG16: =AG15/(LOG(AG4)/LOG(2)) -> 0.4344773566 | AK16: U4= | AL16: =AL15/(LOG(AL4)/LOG(2)) -> 0.3156541628 | AP16: U5= | AQ16: =AQ15/(LOG(AQ4)/LOG(2)) -> 0.3826897823 | AU16: U6= | AV16: =AV15/(LOG(AV4)/LOG(2)) -> 0.5269149202
A17: 22 | B17: 1299 | C17: 13 | D17: 1308 | E17: 14 | F17: 1313 | K17: 0 | L17: 211
A18: 22 | B18: 1441 | C18: 24 | D18: 1447 | E18: 23 | F18: 1471 | K18: 0 | L18: 222
A19: 11 | B19: 1632 | C19: 11 | D19: 1648 | E19: 12 | F19: 1659 | K19: 0 | L19: 111 | N19: Total Target Seq
A20: 22 | B20: 1765 | C20: 24 | D20: 1773 | E20: 23 | F20: 1790 | K20: 0 | L20: 222 | N20: =COUNTIF(L7:L153,G3) -> 4 | P20: 25 | Q20: 24 | R20: 25 | S20: 24 | T20: 25 | U20: 24
A21: 22 | B21: 1940 | C21: 13 | D21: 1955 | E21: 14 | F21: 1961 | K21: 0 | L21: 211 | P21: % of reinforcement given in 6 equal intervals based on number of trials
A22: 22 | B22: 2087 | C22: 24 | D22: 2097 | E22: 23 | F22: 2104 | K22: 0 | L22: 222 | P22: %_1 | Q22: %_2 | R22: %_3 | S22: %_4 | T22: %_5 | U22: %_6
A23: 22 | B23: 2247 | C23: 13 | D23: 2259 | E23: 14 | F23: 2266 | K23: 0 | L23: 211 | O23: target sequence | P23: =$G$3 -> 122 | Q23: =$G$3 -> 122 | R23: =$G$3 -> 122 | S23: =$G$3 -> 122 | T23: =$G$3 -> 122 | U23: =$G$3 -> 122
A24: 11 | B24: 2371 | C24: 11 | D24: 2377 | E24: 12 | F24: 2413 | K24: 0 | L24: 111 | O24: total reinforcement | P24: =U10 -> 0 | Q24: =Z10 -> 2 | R24: =AE10 -> 1 | S24: =AJ10 -> 1 | T24: =AO10 -> 0 | U24: =AT10 -> 0
A25: 22 | B25: 2515 | C25: 13 | D25: 2524 | E25: 14 | F25: 2529 | K25: 0 | L25: 211 | O25: % target
A26: 22 | B26: 2640 | C26: 13 | D26: 2650 | E26: 14 | F26: 2654 | K26: 0 | L26: 211 | O26: CCRF
A27: 11 | B27: 2755 | C27: 11 | D27: 2763 | E27: 12 | F27: 2770 | K27: 0 | L27: 111 | O27: % CCRf
A28: 22 | B28: 2873 | C28: 24 | D28: 2881 | E28: 23 | F28: 2888 | K28: 0 | L28: 222 | O28: average response rate | P28: =F31/P20 -> 130.72 | Q28: =(F55-F31)/Q20 -> 162.9583333 | R28: =(F80-F55)/R20 -> 142.76 | S28: =(F104-F80)/S20 -> 142.0416667 | T28: =(F129-F104)/T20 -> 169.84 | U28: =(F153-F129)/U20 -> 227.4583333
A29: 22 | B29: 2997 | C29: 13 | D29: 3006 | E29: 14 | F29: 3014 | K29: 0 | L29: 211
A30: 22 | B30: 3116 | C30: 13 | D30: 3125 | E30: 14 | F30: 3129 | K30: 0 | L30: 211
A31: 11 | B31: 3258 | C31: 11 | D31: 3262 | E31: 12 | F31: 3268 | K31: 0 | L31: 111
A32: 22 | B32: 3393 | C32: 13 | D32: 3414 | E32: 14 | F32: 3435 | K32: 0 | L32: 211
A33: 22 | B33: 3538 | C33: 13 | D33: 3547 | E33: 14 | F33: 3557 | K33: 0 | L33: 211
A34: 11 | B34: 3681 | C34: 11 | D34: 3690 | E34: 12 | F34: 3700 | K34: 0 | L34: 111
A35: 11 | B35: 3823 | C35: 22 | D35: 3862 | E35: 23 | F35: 3870 | K35: 0 | L35: 122
A36: 11 | B36: 3975 | C36: 22 | D36: 3995 | E36: 23 | F36: 4002 | K36: 0 | L36: 122
A37: 11 | B37: 4130 | C37: 11 | D37: 4136 | E37: 12 | F37: 4146 | K37: 0 | L37: 111
A38: 22 | B38: 4250 | C38: 13 | D38: 4263 | E38: 23 | F38: 4279 | K38: 0 | L38: 212
A39: 22 | B39: 4382 | C39: 24 | D39: 4412 | E39: 23 | F39: 4448 | K39: 0 | L39: 222
A40: 11 | B40: 4577 | C40: 11 | D40: 4582 | E40: 12 | F40: 4588 | K40: 0 | L40: 111
A41: 22 | B41: 4693 | C41: 24 | D41: 4699 | E41: 14 | F41: 4862 | K41: 0 | L41: 221
A42: 22 | B42: 4979 | C42: 24 | D42: 4999 | E42: 14 | F42: 5007 | K42: 0 | L42: 221
A43: 22 | B43: 5200 | C43: 13 | D43: 5289 | E43: 14 | F43: 5294 | K43: 0 | L43: 211
A44: 22 | B44: 5402 | C44: 13 | D44: 5412 | E44: 14 | F44: 5419 | K44: 0 | L44: 211
A45: 22 | B45: 5528 | C45: 24 | D45: 5562 | E45: 23 | F45: 5569 | K45: 0 | L45: 222
A46: 22 | B46: 5697 | C46: 24 | D46: 5705 | E46: 23 | F46: 5712 | K46: 0 | L46: 222
A47: 11 | B47: 5910 | C47: 11 | D47: 5917 | E47: 12 | F47: 5927 | K47: 0 | L47: 111
A48: 22 | B48: 6109 | C48: 24 | D48: 6114 | E48: 23 | F48: 6127 | K48: 0 | L48: 222
A49: 22 | B49: 6243 | C49: 24 | D49: 6255 | E49: 23 | F49: 6285 | K49: 0 | L49: 222
A50: 22 | B50: 6390 | C50: 24 | D50: 6398 | E50: 23 | F50: 6406 | K50: 0 | L50: 222
A51: 11 | B51: 6527 | C51: 11 | D51: 6546 | E51: 21 | F51: 6606 | K51: 0 | L51: 112
A52: 22 | B52: 6718 | C52: 24 | D52: 6736 | E52: 23 | F52: 6748 | K52: 0 | L52: 222
A53: 22 | B53: 6855 | C53: 24 | D53: 6877 | E53: 23 | F53: 6904 | K53: 0 | L53: 222
A54: 22 | B54: 7004 | C54: 24 | D54: 7041 | E54: 23 | F54: 7059 | K54: 0 | L54: 222
A55: 22 | B55: 7160 | C55: 24 | D55: 7168 | E55: 23 | F55: 7179 | K55: 0 | L55: 222
A56: 22 | B56: 7315 | C56: 24 | D56: 7341 | E56: 23 | F56: 7358 | K56: 0 | L56: 222
A57: 22 | B57: 7465 | C57: 24 | D57: 7479 | E57: 23 | F57: 7488 | K57: 0 | L57: 222
A58: 22 | B58: 7653 | C58: 13 | D58: 7665 | E58: 14 | F58: 7673 | K58: 0 | L58: 211
A59: 11 | B59: 7782 | C59: 11 | D59: 7790 | E59: 12 | F59: 7828 | K59: 0 | L59: 111
A60: 22 | B60: 7941 | C60: 24 | D60: 7947 | E60: 23 | F60: 7953 | K60: 0 | L60: 222
A61: 22 | B61: 8055 | C61: 24 | D61: 8061 | E61: 23 | F61: 8068 | K61: 0 | L61: 222
A62: 22 | B62: 8165 | C62: 24 | D62: 8172 | E62: 23 | F62: 8180 | K62: 0 | L62: 222
A63: 11 | B63: 8300 | C63: 11 | D63: 8305 | E63: 21 | F63: 8338 | K63: 0 | L63: 112
A64: 22 | B64: 8430 | C64: 13 | D64: 8442 | E64: 23 | F64: 8458 | K64: 0 | L64: 212
A65: 22 | B65: 8589 | C65: 24 | D65: 8602 | E65: 23 | F65: 8608 | K65: 0 | L65: 222
A66: 22 | B66: 8718 | C66: 24 | D66: 8725 | E66: 23 | F66: 8736 | K66: 0 | L66: 222
A67: 22 | B67: 8835 | C67: 24 | D67: 8853 | E67: 23 | F67: 8868 | K67: 0 | L67: 222
A68: 22 | B68: 8970 | C68: 24 | D68: 8984 | E68: 23 | F68: 8997 | K68: 0 | L68: 222
A69: 22 | B69: 9096 | C69: 13 | D69: 9108 | E69: 23 | F69: 9121 | K69: 0 | L69: 212
A70: 22 | B70: 9267 | C70: 24 | D70: 9282 | E70: 23 | F70: 9288 | K70: 0 | L70: 222
A71: 22 | B71: 9391 | C71: 24 | D71: 9398 | E71: 23 | F71: 9404 | K71: 0 | L71: 222
A72: 22 | B72: 9541 | C72: 13 | D72: 9559 | E72: 14 | F72: 9566 | K72: 0 | L72: 211
A73: 11 | B73: 9689 | C73: 22 | D73: 9716 | E73: 23 | F73: 9729 | K73: 0 | L73: 122
A74: 11 | B74: 9874 | C74: 11 | D74: 9887 | E74: 12 | F74: 9899 | K74: 0 | L74: 111
A75: 11 | B75: 10002 | C75: 11 | D75: 10014 | E75: 12 | F75: 10064 | K75: 0 | L75: 111
A76: 22 | B76: 10180 | C76: 24 | D76: 10194 | E76: 23 | F76: 10201 | K76: 0 | L76: 222
A77: 22 | B77: 10312 | C77: 24 | D77: 10325 | E77: 14 | F77: 10340 | K77: 0 | L77: 221
A78: 11 | B78: 10468 | C78: 11 | D78: 10477 | E78: 21 | F78: 10494 | K78: 0 | L78: 112
A79: 22 | B79: 10589 | C79: 13 | D79: 10602 | E79: 23 | F79: 10617 | K79: 0 | L79: 212
A80: 22 | B80: 10729 | C80: 24 | D80: 10740 | E80: 23 | F80: 10748 | K80: 0 | L80: 222
A81: 22 | B81: 10855 | C81: 24 | D81: 10865 | E81: 23 | F81: 10879 | K81: 0 | L81: 222
A82: 22 | B82: 10983 | C82: 24 | D82: 10999 | E82: 23 | F82: 11003 | K82: 0 | L82: 222
A83: 22 | B83: 11111 | C83: 13 | D83: 11126 | E83: 14 | F83: 11137 | K83: 0 | L83: 211
A84: 22 | B84: 11241 | C84: 13 | D84: 11265 | E84: 23 | F84: 11283 | K84: 0 | L84: 212
A85: 22 | B85: 11392 | C85: 24 | D85: 11397 | E85: 23 | F85: 11404 | K85: 0 | L85: 222
A86: 22 | B86: 11506 | C86: 24 | D86: 11512 | E86: 23 | F86: 11522 | K86: 0 | L86: 222
A87: 22 | B87: 11629 | C87: 24 | D87: 11637 | E87: 23 | F87: 11651 | K87: 0 | L87: 222
A88: 22 | B88: 11758 | C88: 24 | D88: 11782 | E88: 23 | F88: 11788 | K88: 0 | L88: 222
A89: 11 | B89: 11932 | C89: 11 | D89: 11943 | E89: 12 | F89: 11952 | K89: 0 | L89: 111
A90: 22 | B90: 12063 | C90: 24 | D90: 12078 | E90: 14 | F90: 12092 | K90: 0 | L90: 221
A91: 22 | B91: 12192 | C91: 24 | D91: 12200 | E91: 23 | F91: 12213 | K91: 0 | L91: 222
A92: 22 | B92: 12338 | C92: 24 | D92: 12348 | E92: 23 | F92: 12361 | K92: 0 | L92: 222
A93: 22 | B93: 12469 | C93: 24 | D93: 12477 | E93: 23 | F93: 12496 | K93: 0 | L93: 222
A94: 22 | B94: 12594 | C94: 24 | D94: 12600 | E94: 23 | F94: 12625 | K94: 0 | L94: 222
A95: 22 | B95: 12743 | C95: 24 | D95: 12751 | E95: 23 | F95: 12773 | K95: 0 | L95: 222
A96: 22 | B96: 12917 | C96: 24 | D96: 12924 | E96: 23 | F96: 12951 | K96: 0 | L96: 222
A97: 22 | B97: 13073 | C97: 13 | D97: 13101 | E97: 14 | F97: 13114 | K97: 0 | L97: 211
A98: 22 | B98: 13218 | C98: 24 | D98: 13231 | E98: 23 | F98: 13239 | K98: 0 | L98: 222
A99: 22 | B99: 13343 | C99: 24 | D99: 13350 | E99: 23 | F99: 13358 | K99: 0 | L99: 222
A100: 22 | B100: 13473 | C100: 13 | D100: 13543 | E100: 23 | F100: 13560 | K100: 0 | L100: 212
A101: 11 | B101: 13679 | C101: 22 | D101: 13699 | E101: 23 | F101: 13713 | K101: 0 | L101: 122
A102: 22 | B102: 13849 | C102: 24 | D102: 13854 | E102: 23 | F102: 13864 | K102: 0 | L102: 222
A103: 22 | B103: 14007 | C103: 24 | D103: 14015 | E103: 23 | F103: 14031 | K103: 0 | L103: 222
A104: 22 | B104: 14133 | C104: 13 | D104: 14153 | E104: 14 | F104: 14157 | K104: 0 | L104: 211
A105: 22 | B105: 14288 | C105: 24 | D105: 14300 | E105: 23 | F105: 14314 | K105: 0 | L105: 222
A106: 22 | B106: 14416 | C106: 13 | D106: 14427 | E106: 23 | F106: 14441 | K106: 0 | L106: 212
A107: 22 | B107: 14537 | C107: 24 | D107: 14561 | E107: 14 | F107: 14600 | K107: 0 | L107: 221
A108: 22 | B108: 14721 | C108: 13 | D108: 14773 | E108: 23 | F108: 14788 | K108: 0 | L108: 212
A109: 22 | B109: 14891 | C109: 24 | D109: 14958 | E109: 23 | F109: 14968 | K109: 0 | L109: 222
A110: 22 | B110: 15087 | C110: 24 | D110: 15103 | E110: 23 | F110: 15117 | K110: 0 | L110: 222
A111: 22 | B111: 15224 | C111: 24 | D111: 15235 | E111: 23 | F111: 15243 | K111: 0 | L111: 222
A112: 22 | B112: 15363 | C112: 13 | D112: 15377 | E112: 14 | F112: 15385 | K112: 0 | L112: 211
A113: 22 | B113: 15540 | C113: 24 | D113: 15551 | E113: 14 | F113: 15567 | K113: 0 | L113: 221
A114: 22 | B114: 15687 | C114: 13 | D114: 15705 | E114: 23 | F114: 15758 | K114: 0 | L114: 212
A115: 22 | B115: 15966 | C115: 24 | D115: 15979 | E115: 23 | F115: 15985 | K115: 0 | L115: 222
A116: 22 | B116: 16190 | C116: 13 | D116: 16205 | E116: 14 | F116: 16214 | K116: 0 | L116: 211
A117: 11 | B117: 16331 | C117: 11 | D117: 16347 | E117: 21 | F117: 16420 | K117: 0 | L117: 112
A118: 22 | B118: 16510 | C118: 13 | D118: 16522 | E118: 23 | F118: 16534 | K118: 0 | L118: 212
A119: 22 | B119: 16632 | C119: 24 | D119: 16644 | E119: 23 | F119: 16653 | K119: 0 | L119: 222
A120: 22 | B120: 16750 | C120: 24 | D120: 16761 | E120: 14 | F120: 16791 | K120: 0 | L120: 221
A121: 22 | B121: 16894 | C121: 24 | D121: 16907 | E121: 23 | F121: 16923 | K121: 0 | L121: 222
A122: 22 | B122: 17082 | C122: 24 | D122: 17102 | E122: 23 | F122: 17114 | K122: 0 | L122: 222
A123: 22 | B123: 17313 | C123: 24 | D123: 17332 | E123: 23 | F123: 17344 | K123: 0 | L123: 222
A124: 22 | B124: 17449 | C124: 24 | D124: 17460 | E124: 23 | F124: 17469 | K124: 0 | L124: 222
A125: 22 | B125: 17626 | C125: 24 | D125: 17638 | E125: 23 | F125: 17650 | K125: 0 | L125: 222
A126: 22 | B126: 17775 | C126: 13 | D126: 17792 | E126: 23 | F126: 17833 | K126: 0 | L126: 212
A127: 22 | B127: 17957 | C127: 24 | D127: 17970 | E127: 23 | F127: 18083 | K127: 0 | L127: 222
A128: 22 | B128: 18224 | C128: 24 | D128: 18239 | E128: 23 | F128: 18252 | K128: 0 | L128: 222
A129: 22 | B129: 18381 | C129: 24 | D129: 18390 | E129: 23 | F129: 18403 | K129: 0 | L129: 222
A130: 22 | B130: 18532 | C130: 24 | D130: 18543 | E130: 23 | F130: 18586 | K130: 0 | L130: 222
A131: 22 | B131: 18770 | C131: 24 | D131: 18777 | E131: 14 | F131: 18858 | K131: 0 | L131: 221
A132: 22 | B132: 18974 | C132: 24 | D132: 18988 | E132: 14 | F132: 19079 | K132: 0 | L132: 221
A133: 22 | B133: 19193 | C133: 13 | D133: 19206 | E133: 14 | F133: 19232 | K133: 0 | L133: 211
A134: 22 | B134: 19392 | C134: 13 | D134: 19406 | E134: 23 | F134: 19424 | K134: 0 | L134: 212
A135: 22 | B135: 19522 | C135: 24 | D135: 19541 | E135: 23 | F135: 19553 | K135: 0 | L135: 222
A136: 22 | B136: 19671 | C136: 24 | D136: 19686 | E136: 14 | F136: 19753 | K136: 0 | L136: 221
A137: 22 | B137: 19854 | C137: 13 | D137: 19867 | E137: 14 | F137: 19878 | K137: 0 | L137: 211
A138: 22 | B138: 20053 | C138: 24 | D138: 20132 | E138: 14 | F138: 20151 | K138: 0 | L138: 221
A139: 22 | B139: 20299 | C139: 24 | D139: 20307 | E139: 23 | F139: 20319 | K139: 0 | L139: 222
A140: 22 | B140: 20424 | C140: 13 | D140: 20477 | E140: 23 | F140: 20495 | K140: 0 | L140: 212
A141: 22 | B141: 20764 | C141: 13 | D141: 20831 | E141: 14 | F141: 20844 | K141: 0 | L141: 211
A142: 22 | B142: 20988 | C142: 24 | D142: 21027 | E142: 23 | F142: 22151 | K142: 0 | L142: 222
A143: 22 | B143: 22260 | C143: 24 | D143: 22274 | E143: 14 | F143: 22305 | K143: 0 | L143: 221
A144: 11 | B144: 22465 | C144: 11 | D144: 22481 | E144: 21 | F144: 22510 | K144: 0 | L144: 112
A145: 22 | B145: 22608 | C145: 24 | D145: 22621 | E145: 23 | F145: 22633 | K145: 0 | L145: 222
A146: 22 | B146: 22734 | C146: 24 | D146: 22746 | E146: 14 | F146: 22760 | K146: 0 | L146: 221
A147: 22 | B147: 22860 | C147: 24 | D147: 22869 | E147: 23 | F147: 22883 | K147: 0 | L147: 222
A148: 22 | B148: 22985 | C148: 13 | D148: 23055 | E148: 14 | F148: 23069 | K148: 0 | L148: 211
A149: 11 | B149: 23173 | C149: 11 | D149: 23184 | E149: 12 | F149: 23191 | K149: 0 | L149: 111
A150: 22 | B150: 23292 | C150: 24 | D150: 23300 | E150: 23 | F150: 23313 | K150: 0 | L150: 222
A151: 22 | B151: 23449 | C151: 13 | D151: 23464 | E151: 23 | F151: 23506 | K151: 0 | L151: 212
A152: 11 | B152: 23637 | C152: 22 | D152: 23669 | E152: 14 | F152: 23682 | K152: 0 | L152: 121
A153: 22 | B153: 23825 | C153: 24 | D153: 23848 | E153: 14 | F153: 23862 | K153: 0 | L153: 221

Sheet !2011-05-08_09h18m.Subject 52 p
A1: Report for:!2011-05-08_09h18m.Subject 52 phase 2
A2: Date | B2: 2011-05-08 | F2: Group | G2: 0
A3: Hen | B3: 0 | F3: Correct Sequence | G3: =Start!J2 -> 122 | P3: Total Sequences in Data | Q3: =4994-COUNTBLANK(L7:L5000) -> 136 | V3: Total Sequences in Block Data | W3: =COUNTA(L7:L29) -> 23 | AA3: Total Sequences in Block Data | AB3: =COUNTA(L30:L51) -> 22 | AF3: Total Sequences in Block Data | AG3: =COUNTA(L52:L74) -> 23 | AK3: Total Sequences in Block Data | AL3: =COUNTA(L75:L97) -> 23 | AP3: Total Sequences in Block Data | AQ3: =COUNTA(L98:L119) -> 22 | AU3: Total Sequences in Block Data | AV3: =COUNTA(L120:L142) -> 23
A4: Program | B4: 0 | P4: Total Sequences in Summary | Q4: =SUM(O7:O14) -> 136 | V4: Total Sequences in Block Summary | W4: =SUM(U7:U14) -> 23 | AA4: Total Sequences in Block Summary | AB4: =SUM(Z7:Z14) -> 22 | AF4: Total Sequences in Block Summary | AG4: =SUM(AE7:AE14) -> 23 | AK4: Total Sequences in Block Summary | AL4: =SUM(AJ7:AJ14) -> 23 | AP4: Total Sequences in Block Summary | AQ4: =SUM(AO7:AO14) -> 22 | AU4: Total Sequences in Block Summary | AV4: =SUM(AT7:AT14) -> 23
T5: Block 1 | Y5: Block 2 | AD5: Block 3 | AI5: Block 4 | AN5: Block 5 | AS5: Block 6
A6: Sequence Component 1 | B6: Time 1 | C6: Sequence Component 2 | D6: Time 2 | E6: Sequence Component 3 | F6: Time 3 | G6: Sequence Component 4 | H6: Time 4 | I6: Sequence Component 5 | J6: Time 5 | K6: Correct? 0=No 1=Yes | L6: Sequence | N6: Frequency | P6: Relative Frequency | Q6: Variability | T6: Frequency | V6: Relative Frequency | W6: Variability | Y6: Frequency | AA6: Relative Frequency | AB6: Variability | AD6: Frequency | AF6: Relative Frequency | AG6: Variability | AI6: Frequency | AK6: Relative Frequency | AL6: Variability | AN6: Frequency | AP6: Relative Frequency | AQ6: Variability | AS6: Frequency | AU6: Relative Frequency | AV6: Variability
A7: 11 | B7: 11 | C7: 22 | D7: 24 | E7: 14 | F7: 31 | K7: 0 | L7: 121 | N7: 111 | O7: =COUNTIF($L$7:$L$500,N7) -> 1 | P7: =O7/$Q$4 -> 0.007352941176 | Q7: =IF(P7=0,0,(P7*((LOG(P7))/LOG(2)))) -> -0.05211369736 | T7: =N7 -> 111 | U7: =COUNTIF(L7:L29,T7) -> 0 | V7: =U7/(W4-U10) -> 0 | W7: =IF(V7=0,0,(V7*((LOG(V7))/LOG(2)))) -> 0 | Y7: =N7 -> 111 | Z7: =COUNTIF(L30:L51,Y7) -> 0 | AA7: =Z7/(AB4-Z10) -> 0 | AB7: =IF(AA7=0,0,(AA7*((LOG(AA7))/LOG(2)))) -> 0 | AD7: =N7 -> 111 | AE7: =COUNTIF(L52:L74,AD7) -> 0 | AF7: =AE7/(AG4-AE10) -> 0 | AG7: =IF(AF7=0,0,(AF7*((LOG(AF7))/LOG(2)))) -> 0 | AI7: =N7 -> 111 | AJ7: =COUNTIF(L75:L97,AI7) -> 0 | AK7: =AJ7/(AL4-AJ10) -> 0 | AL7: =IF(AK7=0,0,(AK7*((LOG(AK7))/LOG(2)))) -> 0 | AN7: =N7 -> 111 | AO7: =COUNTIF(L98:L119,AN7) -> 1 | AP7: =AO7/(AQ4-AO10) -> 0.05 | AQ7: =IF(AP7=0,0,(AP7*((LOG(AP7))/LOG(2)))) -> -0.2160964047 | AS7: =N7 -> 111 | AT7: =COUNTIF(L120:L142,AS7) -> 0 | AU7: =AT7/(AV4-AT10) -> 0 | AV7: =IF(AU7=0,0,(AU7*((LOG(AU7))/LOG(2)))) -> 0
A8: 22 | B8: 142 | C8: 24 | D8: 150 | E8: 23 | F8: 158 | K8: 0 | L8: 222 | N8: 112 | O8: =COUNTIF($L$7:$L$500,N8) -> 5 | P8: =O8/$Q$4 -> 0.03676470588 | Q8: =IF(P8=0,0,(P8*((LOG(P8))/LOG(2)))) -> -0.1752034833 | T8: =N8 -> 112 | U8: =COUNTIF(L7:L29,T8) -> 2 | V8: =U8/(W4-U10) -> 0.09523809524 | W8: =IF(V8=0,0,(V8*((LOG(V8))/LOG(2)))) -> -0.3230778498 | Y8: =N8 -> 112 | Z8: =COUNTIF(L30:L51,Y8) -> 1 | AA8: =Z8/(AB4-Z10) -> 0.04545454545 | AB8: =IF(AA8=0,0,(AA8*((LOG(AA8))/LOG(2)))) -> -0.2027014372 | AD8: =N8 -> 112 | AE8: =COUNTIF(L52:L74,AD8) -> 1 | AF8: =AE8/(AG4-AE10) -> 0.04545454545 | AG8: =IF(AF8=0,0,(AF8*((LOG(AF8))/LOG(2)))) -> -0.2027014372 | AI8: =N8 -> 112 | AJ8: =COUNTIF(L75:L97,AI8) -> 0 | AK8: =AJ8/(AL4-AJ10) -> 0 | AL8: =IF(AK8=0,0,(AK8*((LOG(AK8))/LOG(2)))) -> 0 | AN8: =N8 -> 112 | AO8: =COUNTIF(L98:L119,AN8) -> 0 | AP8: =AO8/(AQ4-AO10) -> 0 | AQ8: =IF(AP8=0,0,(AP8*((LOG(AP8))/LOG(2)))) -> 0 | AS8: =N8 -> 112 | AT8: =COUNTIF(L120:L142,AS8) -> 1 | AU8: =AT8/(AV4-AT10) -> 0.05 | AV8: =IF(AU8=0,0,(AU8*((LOG(AU8))/LOG(2)))) -> -0.2160964047
A9: 11 | B9: 267 | C9: 11 | D9: 274 | E9: 21 | F9: 282 | K9: 0 | L9: 112 | N9: 121 | O9: =COUNTIF($L$7:$L$500,N9) -> 7 | P9: =O9/$Q$4 -> 0.05147058824 | Q9: =IF(P9=0,0,(P9*((LOG(P9))/LOG(2)))) -> -0.2202996723 | T9: =N9 -> 121 | U9: =COUNTIF(L7:L29,T9) -> 2 | V9: =U9/(W4-U10) -> 0.09523809524 | W9: =IF(V9=0,0,(V9*((LOG(V9))/LOG(2)))) -> -0.3230778498 | Y9: =N9 -> 121 | Z9: =COUNTIF(L30:L51,Y9) -> 0 | AA9: =Z9/(AB4-Z10) -> 0 | AB9: =IF(AA9=0,0,(AA9*((LOG(AA9))/LOG(2)))) -> 0 | AD9: =N9 -> 121 | AE9: =COUNTIF(L52:L74,AD9) -> 0 | AF9: =AE9/(AG4-AE10) -> 0 | AG9: =IF(AF9=0,0,(AF9*((LOG(AF9))/LOG(2)))) -> 0 | AI9: =N9 -> 121 | AJ9: =COUNTIF(L75:L97,AI9) -> 4 | AK9: =AJ9/(AL4-AJ10) -> 0.1739130435 | AL9: =IF(AK9=0,0,(AK9*((LOG(AK9))/LOG(2)))) -> -0.4388803402 | AN9: =N9 -> 121 | AO9: =COUNTIF(L98:L119,AN9) -> 1 | AP9: =AO9/(AQ4-AO10) -> 0.05 | AQ9: =IF(AP9=0,0,(AP9*((LOG(AP9))/LOG(2)))) -> -0.2160964047 | AS9: =N9 -> 121 | AT9: =COUNTIF(L120:L142,AS9) -> 0 | AU9: =AT9/(AV4-AT10) -> 0 | AV9: =IF(AU9=0,0,(AU9*((LOG(AU9))/LOG(2)))) -> 0
A10: 22 | B10: 387 | C10: 13 | D10: 395 | E10: 14 | F10: 401 | K10: 0 | L10: 211 | N10: 122 | O10: =COUNTIF($L$7:$L$500,N10) -> 8 | P10: =O10/$Q$4 -> 0.05882352941 | Q10: =IF(P10=0,0,(P10*((LOG(P10))/LOG(2)))) -> -0.2404389907 | T10: =N10 -> 122 | U10: =COUNTIF(L7:L29,T10) -> 2 | Y10: =N10 -> 122 | Z10: =COUNTIF(L30:L51,Y10) -> 0 | AD10: =N10 -> 122 | AE10: =COUNTIF(L52:L74,AD10) -> 1 | AI10: =N10 -> 122 | AJ10: =COUNTIF(L75:L97,AI10) -> 0 | AN10: =N10 -> 122 | AO10: =COUNTIF(L98:L119,AN10) -> 2 | AS10: =N10 -> 122 | AT10: =COUNTIF(L120:L142,AS10) -> 3
A11: 22 | B11: 525 | C11: 24 | D11: 543 | E11: 23 | F11: 556 | K11: 0 | L11: 222 | N11: 211 | O11: =COUNTIF($L$7:$L$500,N11) -> 9 | P11: =O11/$Q$4 -> 0.06617647059 | Q11: =IF(P11=0,0,(P11*((LOG(P11))/LOG(2)))) -> -0.2592488276 | T11: =N11 -> 211 | U11: =COUNTIF(L7:L29,T11) -> 2 | V11: =U11/(W4-U10) -> 0.09523809524 | W11: =IF(V11=0,0,(V11*((LOG(V11))/LOG(2)))) -> -0.3230778498 | Y11: =N11 -> 211 | Z11: =COUNTIF(L30:L51,Y11) -> 1 | AA11: =Z11/(AB4-Z10) -> 0.04545454545 | AB11: =IF(AA11=0,0,(AA11*((LOG(AA11))/LOG(2)))) -> -0.2027014372 | AD11: =N11 -> 211 | AE11: =COUNTIF(L52:L74,AD11) -> 1 | AF11: =AE11/(AG4-AE10) -> 0.04545454545 | AG11: =IF(AF11=0,0,(AF11*((LOG(AF11))/LOG(2)))) -> -0.2027014372 | AI11: =N11 -> 211 | AJ11: =COUNTIF(L75:L97,AI11) -> 3 | AK11: =AJ11/(AL4-AJ10) -> 0.1304347826 | AL11: =IF(AK11=0,0,(AK11*((LOG(AK11))/LOG(2)))) -> -0.3832955811 | AN11: =N11 -> 211 | AO11: =COUNTIF(L98:L119,AN11) -> 1 | AP11: =AO11/(AQ4-AO10) -> 0.05 | AQ11: =IF(AP11=0,0,(AP11*((LOG(AP11))/LOG(2)))) -> -0.2160964047 | AS11: =N11 -> 211 | AT11: =COUNTIF(L120:L142,AS11) -> 1 | AU11: =AT11/(AV4-AT10) -> 0.05 | AV11: =IF(AU11=0,0,(AU11*((LOG(AU11))/LOG(2)))) -> -0.2160964047
A12: 22 | B12: 661 | C12: 24 | D12: 669 | E12: 23 | F12: 678 | K12: 0 | L12: 222 | N12: 212 | O12: =COUNTIF($L$7:$L$500,N12) -> 19 | P12: =O12/$Q$4 -> 0.1397058824 | Q12: =IF(P12=0,0,(P12*((LOG(P12))/LOG(2)))) -> -0.3966997884 | T12: =N12 -> 212 | U12: =COUNTIF(L7:L29,T12) -> 1 | V12: =U12/(W4-U10) -> 0.04761904762 | W12: =IF(V12=0,0,(V12*((LOG(V12))/LOG(2)))) -> -0.2091579725 | Y12: =N12 -> 212 | Z12: =COUNTIF(L30:L51,Y12) -> 4 | AA12: =Z12/(AB4-Z10) -> 0.1818181818 | AB12: =IF(AA12=0,0,(AA12*((LOG(AA12))/LOG(2)))) -> -0.4471693852 | AD12: =N12 -> 212 | AE12: =COUNTIF(L52:L74,AD12) -> 2 | AF12: =AE12/(AG4-AE10) -> 0.09090909091 | AG12: =IF(AF12=0,0,(AF12*((LOG(AF12))/LOG(2)))) -> -0.3144937835 | AI12: =N12 -> 212 | AJ12: =COUNTIF(L75:L97,AI12) -> 4 | AK12: =AJ12/(AL4-AJ10) -> 0.1739130435 | AL12: =IF(AK12=0,0,(AK12*((LOG(AK12))/LOG(2)))) -> -0.4388803402 | AN12: =N12 -> 212 | AO12: =COUNTIF(L98:L119,AN12) -> 3 | AP12: =AO12/(AQ4-AO10) -> 0.15 | AQ12: =IF(AP12=0,0,(AP12*((LOG(AP12))/LOG(2)))) -> -0.4105448391 | AS12: =N12 -> 212 | AT12: =COUNTIF(L120:L142,AS12) -> 5 | AU12: =AT12/(AV4-AT10) -> 0.25 | AV12: =IF(AU12=0,0,(AU12*((LOG(AU12))/LOG(2)))) -> -0.5
A13: 22 | B13: 847 | C13: 24 | D13: 854 | E13: 23 | F13: 862 | K13: 0 | L13: 222 | N13: 221 | O13: =COUNTIF($L$7:$L$500,N13) -> 20 | P13: =O13/$Q$4 -> 0.1470588235 | Q13: =IF(P13=0,0,(P13*((LOG(P13))/LOG(2)))) -> -0.4066962862 | T13: =N13 -> 221 | U13: =COUNTIF(L7:L29,T13) -> 0 | V13: =U13/(W4-U10) -> 0 | W13: =IF(V13=0,0,(V13*((LOG(V13))/LOG(2)))) -> 0 | Y13: =N13 -> 221 | Z13: =COUNTIF(L30:L51,Y13) -> 5 | AA13: =Z13/(AB4-Z10) -> 0.2272727273 | AB13: =IF(AA13=0,0,(AA13*((LOG(AA13))/LOG(2)))) -> -0.4857962554 | AD13: =N13 -> 221 | AE13: =COUNTIF(L52:L74,AD13) -> 4 | AF13: =AE13/(AG4-AE10) -> 0.1818181818 | AG13: =IF(AF13=0,0,(AF13*((LOG(AF13))/LOG(2)))) -> -0.4471693852 | AI13: =N13 -> 221 | AJ13: =COUNTIF(L75:L97,AI13) -> 2 | AK13: =AJ13/(AL4-AJ10) -> 0.08695652174 | AL13: =IF(AK13=0,0,(AK13*((LOG(AK13))/LOG(2)))) -> -0.3063966918 | AN13: =N13 -> 221 | AO13: =COUNTIF(L98:L119,AN13) -> 6 | AP13: =AO13/(AQ4-AO10) -> 0.3 | AQ13: =IF(AP13=0,0,(AP13*((LOG(AP13))/LOG(2)))) -> -0.5210896782 | AS13: =N13 -> 221 | AT13: =COUNTIF(L120:L142,AS13) -> 3 | AU13: =AT13/(AV4-AT10) -> 0.15 | AV13: =IF(AU13=0,0,(AU13*((LOG(AU13))/LOG(2)))) -> -0.4105448391
A14: 11 | B14: 977 | C14: 22 | D14: 992 | E14: 23 | F14: 999 | K14: 0 | L14: 122 | N14: 222 | O14: =COUNTIF($L$7:$L$500,N14) -> 67 | P14: =O14/$Q$4 -> 0.4926470588 | Q14: =IF(P14=0,0,(P14*((LOG(P14))/LOG(2)))) -> -0.503176725 | T14: =N14 -> 222 | U14: =COUNTIF(L7:L29,T14) -> 14 | V14: =U14/(W4-U10) -> 0.6666666667 | W14: =IF(V14=0,0,(V14*((LOG(V14))/LOG(2)))) -> -0.3899750005 | Y14: =N14 -> 222 | Z14: =COUNTIF(L30:L51,Y14) -> 11 | AA14: =Z14/(AB4-Z10) -> 0.5 | AB14: =IF(AA14=0,0,(AA14*((LOG(AA14))/LOG(2)))) -> -0.5 | AD14: =N14 -> 222 | AE14: =COUNTIF(L52:L74,AD14) -> 14 | AF14: =AE14/(AG4-AE10) -> 0.6363636364 | AG14: =IF(AF14=0,0,(AF14*((LOG(AF14))/LOG(2)))) -> -0.4149578978 | AI14: =N14 -> 222 | AJ14: =COUNTIF(L75:L97,AI14) -> 10 | AK14: =AJ14/(AL4-AJ10) -> 0.4347826087 | AL14: =IF(AK14=0,0,(AK14*((LOG(AK14))/LOG(2)))) -> -0.5224495049 | AN14: =N14 -> 222 | AO14: =COUNTIF(L98:L119,AN14) -> 8 | AP14: =AO14/(AQ4-AO10) -> 0.4 | AQ14: =IF(AP14=0,0,(AP14*((LOG(AP14))/LOG(2)))) -> -0.528771238 | AS14: =N14 -> 222 | AT14: =COUNTIF(L120:L142,AS14) -> 10 | AU14: =AT14/(AV4-AT10) -> 0.5 | AV14: =IF(AU14=0,0,(AU14*((LOG(AU14))/LOG(2)))) -> -0.5
A15: 22 | B15: 1113 | C15: 24 | D15: 1122 | E15: 23 | F15: 1129 | K15: 0 | L15: 222 | P15: =SUM(P7:P14) -> 1 | Q15: =-SUM(Q7:Q14) -> 2.253877471 | V15: =SUM(V7:V14) -> 1 | W15: =-SUM(W7:W14) -> 1.568366522 | AA15: =SUM(AA7:AA14) -> 1 | AB15: =-SUM(AB7:AB14) -> 1.838368515 | AF15: =SUM(AF7:AF14) -> 1 | AG15: =-SUM(AG7:AG14) -> 1.582023941 | AK15: =SUM(AK7:AK14) -> 1 | AL15: =-SUM(AL7:AL14) -> 2.089902458 | AP15: =SUM(AP7:AP14) -> 1 | AQ15: =-SUM(AQ7:AQ14) -> 2.10869497 | AU15: =SUM(AU7:AU14) -> 1 | AV15: =-SUM(AV7:AV14) -> 1.842737649
A16: 11 | B16: 1233 | C16: 11 | D16: 1240 | E16: 21 | F16: 1275 | K16: 0 | L16: 112 | P16: U= | Q16: =Q15/(LOG(Q4)/LOG(2)) -> 0.3180090706 | V16: U1= | W16: =W15/(LOG(W4)/LOG(2)) -> 0.346710521 | AA16: U2= | AB16: =AB15/(LOG(AB4)/LOG(2)) -> 0.4122427861 | AF16: U3= | AG16: =AG15/(LOG(AG4)/LOG(2)) -> 0.3497296945 | AK16: U4= | AL16: =AL15/(LOG(AL4)/LOG(2)) -> 0.4620037215 | AP16: U5= | AQ16: =AQ15/(LOG(AQ4)/LOG(2)) -> 0.4728618241 | AU16: U6= | AV16: =AV15/(LOG(AV4)/LOG(2)) -> 0.4073642998
A17: 22 | B17: 1366 | C17: 24 | D17: 1374 | E17: 23 | F17: 1383 | K17: 0 | L17: 222
A18: 22 | B18: 1483 | C18: 24 | D18: 1507 | E18: 23 | F18: 1513 | K18: 0 | L18: 222
A19: 11 | B19: 1655 | C19: 22 | D19: 1674 | E19: 14 | F19: 1691 | K19: 0 | L19: 121 | N19: Total Target Seq
A20: 22 | B20: 1789 | C20: 24 | D20: 1796 | E20: 23 | F20: 1811 | K20: 0 | L20: 222 | N20: =COUNTIF(L7:L142,G3) -> 8 | P20: 23 | Q20: 22 | R20: 23 | S20: 23 | T20: 22 | U20: 23
A21: 22 | B21: 1923 | C21: 13 | D21: 1937 | E21: 14 | F21: 1945 | K21: 0 | L21: 211 | P21: % of reinforcement given in 6 equal intervals based on number of trials
A22: 22 | B22: 2048 | C22: 24 | D22: 2056 | E22: 23 | F22: 2083 | K22: 0 | L22: 222 | P22: %_1 | Q22: %_2 | R22: %_3 | S22: %_4 | T22: %_5 | U22: %_6
A23: 11 | B23: 2217 | C23: 22 | D23: 2235 | E23: 23 | F23: 2246 | K23: 0 | L23: 122 | O23: target sequence | P23: =$G$3 -> 122 | Q23: =$G$3 -> 122 | R23: =$G$3 -> 122 | S23: =$G$3 -> 122 | T23: =$G$3 -> 122 | U23: =$G$3 -> 122
A24: 22 | B24: 2346 | C24: 13 | D24: 2359 | E24: 23 | F24: 2370 | K24: 0 | L24: 212 | O24: total reinforcement | P24: =U10 -> 2 | Q24: =Z10 -> 0 | R24: =AE10 -> 1 | S24: =AJ10 -> 0 | T24: =AO10 -> 2 | U24: =AT10 -> 3
A25: 22 | B25: 2478 | C25: 24 | D25: 2493 | E25: 23 | F25: 2503 | K25: 0 | L25: 222 | O25: % target
A26: 22 | B26: 2619 | C26: 24 | D26: 2631 | E26: 23 | F26: 2646 | K26: 0 | L26: 222 | O26: CCRF
A27: 22 | B27: 2749 | C27: 24 | D27: 2766 | E27: 23 | F27: 2775 | K27: 0 | L27: 222 | O27: % CCRf
A28: 22 | B28: 2883 | C28: 24 | D28: 2893 | E28: 23 | F28: 2912 | K28: 0 | L28: 222 | O28: average response rate | P28: =F29/P20 -> 131.826087 | Q28: =(F51-F29)/Q20 -> 140.8181818 | R28: =(F74-F51)/R20 -> 151.7391304 | S28: =(F97-F74)/S20 -> 178.5217391 | T28: =(F119-F97)/T20 -> 231.4090909 | U28: =(F142-F119)/U20 -> 222.1304348
A29: 22 | B29: 3015 | C29: 24 | D29: 3024 | E29: 23 | F29: 3032 | K29: 0 | L29: 222
A30: 11 | B30: 3161 | C30: 11 | D30: 3171 | E30: 21 | F30: 3202 | K30: 0 | L30: 112
A31: 22 | B31: 3293 | C31: 24 | D31: 3305 | E31: 23 | F31: 3313 | K31: 0 | L31: 222
A32: 22 | B32: 3421 | C32: 24 | D32: 3432 | E32: 23 | F32: 3439 | K32: 0 | L32: 222
A33: 22 | B33: 3531 | C33: 24 | D33: 3536 | E33: 23 | F33: 3545 | K33: 0 | L33: 222
A34: 22 | B34: 3694 | C34: 24 | D34: 3707 | E34: 14 | F34: 3722 | K34: 0 | L34: 221
A35: 22 | B35: 3827 | C35: 24 | D35: 3835 | E35: 23 | F35: 3842 | K35: 0 | L35: 222
A36: 22 | B36: 3954 | C36: 13 | D36: 3966 | E36: 23 | F36: 3979 | K36: 0 | L36: 212
A37: 22 | B37: 4094 | C37: 24 | D37: 4103 | E37: 23 | F37: 4110 | K37: 0 | L37: 222
A38: 22 | B38: 4211 | C38: 24 | D38: 4218 | E38: 23 | F38: 4227 | K38: 0 | L38: 222
A39: 22 | B39: 4340 | C39: 24 | D39: 4365 | E39: 14 | F39: 4377 | K39: 0 | L39: 221
A40: 22 | B40: 4478 | C40: 13 | D40: 4497 | E40: 23 | F40: 4522 | K40: 0 | L40: 212
A41: 22 | B41: 4626 | C41: 24 | D41: 4639 | E41: 23 | F41: 4647 | K41: 0 | L41: 222
A42: 22 | B42: 4769 | C42: 24 | D42: 4776 | E42: 14 | F42: 4803 | K42: 0 | L42: 221
A43: 22 | B43: 4903 | C43: 24 | D43: 4915 | E43: 23 | F43: 4928 | K43: 0 | L43: 222
A44: 22 | B44: 5032 | C44: 24 | D44: 5042 | E44: 14 | F44: 5059 | K44: 0 | L44: 221
A45: 22 | B45: 5165 | C45: 24 | D45: 5173 | E45: 23 | F45: 5219 | K45: 0 | L45: 222
A46: 22 | B46: 5321 | C46: 13 | D46: 5342 | E46: 23 | F46: 5371 | K46: 0 | L46: 212
A47: 22 | B47: 5495 | C47: 24 | D47: 5503 | E47: 23 | F47: 5511 | K47: 0 | L47: 222
A48: 22 | B48: 5633 | C48: 24 | D48: 5645 | E48: 23 | F48: 5657 | K48: 0 | L48: 222
A49: 22 | B49: 5765 | C49: 13 | D49: 5780 | E49: 23 | F49: 5802 | K49: 0 | L49: 212
A50: 22 | B50: 5913 | C50: 13 | D50: 5937 | E50: 14 | F50: 5945 | K50: 0 | L50: 211
A51: 22 | B51: 6061 | C51: 24 | D51: 6072 | E51: 14 | F51: 6130 | K51: 0 | L51: 221
A52: 22 | B52: 6282 | C52: 24 | D52: 6328 | E52: 14 | F52: 6341 | K52: 0 | L52: 221
A53: 22 | B53: 6441 | C53: 24 | D53: 6451 | E53: 23 | F53: 6470 | K53: 0 | L53: 222
A54: 22 | B54: 6573 | C54: 24 | D54: 6586 | E54: 14 | F54: 6606 | K54: 0 | L54: 221
A55: 11 | B55: 6735 | C55: 11 | D55: 6744 | E55: 21 | F55: 6762 | K55: 0 | L55: 112
A56: 22 | B56: 6863 | C56: 24 | D56: 6876 | E56: 14 | F56: 6890 | K56: 0 | L56: 221
A57: 22 | B57: 6996 | C57: 24 | D57: 7009 | E57: 23 | F57: 7018 | K57: 0 | L57: 222
A58: 22 | B58: 7122 | C58: 24 | D58: 7134 | E58: 23 | F58: 7143 | K58: 0 | L58: 222
A59: 22 | B59: 7242 | C59: 24 | D59: 7250 | E59: 23 | F59: 7257 | K59: 0 | L59: 222
A60: 22 | B60: 7362 | C60: 24 | D60: 7382 | E60: 23 | F60: 7390 | K60: 0 | L60: 222
A61: 22 | B61: 7490 | C61: 24 | D61: 7504 | E61: 23 | F61: 7520 | K61: 0 | L61: 222
A62: 22 | B62: 7690 | C62: 13 | D62: 7709 | E62: 23 | F62: 7723 | K62: 0 | L62: 212
A63: 22 | B63: 7830 | C63: 24 | D63: 7842 | E63: 23 | F63: 7851 | K63: 0 | L63: 222
A64: 22 | B64: 7969 | C64: 13 | D64: 7982 | E64: 23 | F64: 7994 | K64: 0 | L64: 212
A65: 11 | B65: 8109 | C65: 22 | D65: 8130 | E65: 23 | F65: 8149 | K65: 0 | L65: 122
A66: 22 | B66: 8251 | C66: 24 | D66: 8265 | E66: 23 | F66: 8275 | K66: 0 | L66: 222
A67: 22 | B67: 8408 | C67: 24 | D67: 8421 | E67: 14 | F67: 8433 | K67: 0 | L67: 221
A68: 22 | B68: 8552 | C68: 24 | D68: 8598 | E68: 23 | F68: 8607 | K68: 0 | L68: 222
A69: 22 | B69: 8731 | C69: 24 | D69: 8761 | E69: 23 | F69: 8771 | K69: 0 | L69: 222
A70: 22 | B70: 8901 | C70: 24 | D70: 8911 | E70: 23 | F70: 8919 | K70: 0 | L70: 222
A71: 22 | B71: 9051 | C71: 24 | D71: 9062 | E71: 23 | F71: 9071 | K71: 0 | L71: 222
A72: 22 | B72: 9207 | C72: 13 | D72: 9238 | E72: 14 | F72: 9250 | K72: 0 | L72: 211
A73: 22 | B73: 9402 | C73: 24 | D73: 9412 | E73: 23 | F73: 9461 | K73: 0 | L73: 222
A74: 22 | B74: 9602 | C74: 24 | D74: 9612 | E74: 23 | F74: 9620 | K74: 0 | L74: 222
A75: 22 | B75: 9739 | C75: 24 | D75: 9756 | E75: 23 | F75: 9763 | K75: 0 | L75: 222
A76: 22 | B76: 9889 | C76: 24 | D76: 9916 | E76: 23 | F76: 9945 | K76: 0 | L76: 222
A77: 22 | B77: 10065 | C77: 24 | D77: 10072 | E77: 23 | F77: 10101 | K77: 0 | L77: 222
A78: 11 | B78: 10318 | C78: 22 | D78: 10350 | E78: 14 | F78: 10362 | K78: 0 | L78: 121
A79: 22 | B79: 10474 | C79: 24 | D79: 10491 | E79: 14 | F79: 10510 | K79: 0 | L79: 221
A80: 22 | B80: 10612 | C80: 13 | D80: 10687 | E80: 23 | F80: 10700 | K80: 0 | L80: 212
A81: 22 | B81: 10818 | C81: 24 | D81: 10867 | E81: 23 | F81: 10873 | K81: 0 | L81: 222
A82: 22 | B82: 10995 | C82: 13 | D82: 11017 | E82: 23 | F82: 11037 | K82: 0 | L82: 212
A83: 22 | B83: 11164 | C83: 24 | D83: 11204 | E83: 23 | F83: 11210 | K83: 0 | L83: 222
A84: 22 | B84: 11328 | C84: 24 | D84: 11450 | E84: 23 | F84: 11470 | K84: 0 | L84: 222
A85: 11 | B85: 11578 | C85: 22 | D85: 11620 | E85: 14 | F85: 11649 | K85: 0 | L85: 121
A86: 22 | B86: 11796 | C86: 13 | D86: 11810 | E86: 23 | F86: 11839 | K86: 0 | L86: 212
A87: 11 | B87: 11949 | C87: 22 | D87: 11971 | E87: 14 | F87: 11984 | K87: 0 | L87: 121
A88: 22 | B88: 12096 | C88: 13 | D88: 12123 | E88: 14 | F88: 12146 | K88: 0 | L88: 211
A89: 22 | B89: 12266 | C89: 24 | D89: 12275 | E89: 23 | F89: 12303 | K89: 0 | L89: 222
A90: 22 | B90: 12418 | C90: 13 | D90: 12444 | E90: 14 | F90: 12467 | K90: 0 | L90: 211
A91: 22 | B91: 12687 | C91: 13 | D91: 12704 | E91: 14 | F91: 12725 | K91: 0 | L91: 211
A92: 22 | B92: 12840 | C92: 24 | D92: 12850 | E92: 23 | F92: 12857 | K92: 0 | L92: 222
A93: 22 | B93: 12978 | C93: 24 | D93: 12988 | E93: 23 | F93: 13000 | K93: 0 | L93: 222
A94: 11 | B94: 13121 | C94: 22 | D94: 13147 | E94: 14 | F94: 13222 | K94: 0 | L94: 121
A95: 22 | B95: 13324 | C95: 13 | D95: 13341 | E95: 23 | F95: 13355 | K95: 0 | L95: 212
A96: 22 | B96: 13470 | C96: 24 | D96: 13479 | E96: 23 | F96: 13498 | K96: 0 | L96: 222
A97: 22 | B97: 13688 | C97: 24 | D97: 13707 | E97: 14 | F97: 13726 | K97: 0 | L97: 221
A98: 22 | B98: 13852 | C98: 24 | D98: 13869 | E98: 23 | F98: 13885 | K98: 0 | L98: 222
A99: 22 | B99: 14343 | C99: 24 | D99: 14362 | E99: 14 | F99: 14400 | K99: 0 | L99: 221
A100: 22 | B100: 14504 | C100: 24 | D100: 14516 | E100: 23 | F100: 14525 | K100: 0 | L100: 222
A101: 22 | B101: 14683 | C101: 24 | D101: 14706 | E101: 23 | F101: 14720 | K101: 0 | L101: 222
A102: 22 | B102: 14876 | C102: 13 | D102: 14899 | E102: 23 | F102: 14917 | K102: 0 | L102: 212
A103: 22 | B103: 15031 | C103: 24 | D103: 15055 | E103: 23 | F103: 15065 | K103: 0 | L103: 222
A104: 22 | B104: 15184 | C104: 24 | D104: 15217 | E104: 14 | F104: 15235 | K104: 0 | L104: 221
A105: 22 | B105: 15359 | C105: 24 | D105: 15385 | E105: 14 | F105: 15438 | K105: 0 | L105: 221
A106: 22 | B106: 15548 | C106: 24 | D106: 15653 | E106: 23 | F106: 15672 | K106: 0 | L106: 222
A107: 22 | B107: 15788 | C107: 24 | D107: 15797 | E107: 23 | F107: 15821 | K107: 0 | L107: 222
A108: 22 | B108: 15968 | C108: 24 | D108: 15994 | E108: 14 | F108: 16034 | K108: 0 | L108: 221
A109: 22 | B109: 16240 | C109: 24 | D109: 16251 | E109: 14 | F109: 16321 | K109: 0 | L109: 221
A110: 11 | B110: 16799 | C110: 11 | D110: 16816 | E110: 12 | F110: 16857 | K110: 0 | L110: 111
A111: 11 | B111: 16977 | C111: 22 | D111: 16995 | E111: 23 | F111: 17006 | K111: 0 | L111: 122
A112: 11 | B112: 17170 | C112: 22 | D112: 17191 | E112: 23 | F112: 17210 | K112: 0 | L112: 122
A113: 22 | B113: 17332 | C113: 13 | D113: 17373 | E113: 23 | F113: 17390 | K113: 0 | L113: 212
A114: 22 | B114: 17524 | C114: 24 | D114: 17555 | E114: 23 | F114: 17568 | K114: 0 | L114: 222
A115: 11 | B115: 17701 | C115: 22 | D115: 17716 | E115: 14 | F115: 17737 | K115: 0 | L115: 121
A116: 22 | B116: 17852 | C116: 13 | D116: 17905 | E116: 23 | F116: 17935 | K116: 0 | L116: 212
A117: 22 | B117: 18308 | C117: 24 | D117: 18327 | E117: 23 | F117: 18340 | K117: 0 | L117: 222
A118: 22 | B118: 18444 | C118: 13 | D118: 18548 | E118: 14 | F118: 18561 | K118: 0 | L118: 211
A119: 22 | B119: 18718 | C119: 24 | D119: 18736 | E119: 14 | F119: 18817 | K119: 0 | L119: 221
A120: 22 | B120: 18989 | C120: 24 | D120: 18997 | E120: 23 | F120: 19054 | K120: 0 | L120: 222
A121: 22 | B121: 19157 | C121: 24 | D121: 19275 | E121: 23 | F121: 19352 | K121: 0 | L121: 222
A122: 22 | B122: 19492 | C122: 24 | D122: 19505 | E122: 23 | F122: 19515 | K122: 0 | L122: 222
A123: 11 | B123: 19659 | C123: 11 | D123: 19744 | E123: 21 | F123: 19760 | K123: 0 | L123: 112
A124: 22 | B124: 19856 | C124: 13 | D124: 19872 | E124: 23 | F124: 19883 | K124: 0 | L124: 212
A125: 22 | B125: 19989 | C125: 24 | D125: 20004 | E125: 23 | F125: 20016 | K125: 0 | L125: 222
A126: 22 | B126: 20118 | C126: 24 | D126: 20174 | E126: 23 | F126: 20193 | K126: 0 | L126: 222
A127: 11 | B127: 20303 | C127: 22 | D127: 20334 | E127: 23 | F127: 20342 | K127: 0 | L127: 122
A128: 22 | B128: 20479 | C128: 13 | D128: 20506 | E128: 14 | F128: 20513 | K128: 0 | L128: 211
A129: 22 | B129: 20618 | C129: 24 | D129: 20689 | E129: 23 | F129: 20698 | K129: 0 | L129: 222
A130: 22 | B130: 20920 | C130: 13 | D130: 20941 | E130: 23 | F130: 20973 | K130: 0 | L130: 212
A131: 22 | B131: 21172 | C131: 24 | D131: 21183 | E131: 14 | F131: 21210 | K131: 0 | L131: 221
A132: 22 | B132: 21312 | C132: 24 | D132: 21325 | E132: 23 | F132: 21337 | K132: 0 | L132: 222
A133: 11 | B133: 21482 | C133: 22 | D133: 21515 | E133: 23 | F133: 21528 | K133: 0 | L133: 122
A134: 22 | B134: 21678 | C134: 13 | D134: 21701 | E134: 23 | F134: 21719 | K134: 0 | L134: 212
A135: 22 | B135: 22362 | C135: 24 | D135: 22378 | E135: 23 | F135: 22391 | K135: 0 | L135: 222
A136: 22 | B136: 22522 | C136: 24 | D136: 22543 | E136: 14 | F136: 22558 | K136: 0 | L136: 221
A137: 22 | B137: 22713 | C137: 13 | D137: 22732 | E137: 23 | F137: 22747 | K137: 0 | L137: 212
A138: 22 | B138: 22873 | C138: 13 | D138: 22928 | E138: 23 | F138: 22946 | K138: 0 | L138: 212
A139: 22 | B139: 23049 | C139: 24 | D139: 23066 | E139: 23 | F139: 23146 | K139: 0 | L139: 222
A140: 22 | B140: 23302 | C140: 24 | D140: 23315 | E140: 14 | F140: 23355 | K140: 0 | L140: 221
A141: 11 | B141: 23719 | C141: 22 | D141: 23734 | E141: 23 | F141: 23744 | K141: 0 | L141: 122
A142: 22 | B142: 23892 | C142: 24 | D142: 23910 | E142: 23 | F142: 23926 | L142: 222

Sheet !2011-05-09_08h56m.Subject 52 p
A1: Report for:!2011-05-09_08h56m.Subject 52 phase 2
A2: Date | B2: 2011-05-09 | F2: Group | G2: 0
A3: Hen | B3: 0 | F3: Correct Sequence | G3: =Start!J2 -> 122 | P3: Total Sequences in Data | Q3: =4994-COUNTBLANK(L7:L5000) -> 151 | V3: Total Sequences in Block Data | W3: =COUNTA(L7:L31) -> 25 | AA3: Total Sequences in Block Data | AB3: =COUNTA(L32:L56) -> 25 | AF3: Total Sequences in Block Data | AG3: =COUNTA(L57:L82) -> 26 | AK3: Total Sequences in Block Data | AL3: =COUNTA(L83:L107) -> 25 | AP3: Total Sequences in Block Data | AQ3: =COUNTA(L108:L132) -> 25 | AU3: Total Sequences in Block Data | AV3: =COUNTA(L133:L157) -> 25
A4: Program | B4: 0 | P4: Total Sequences in Summary | Q4: =SUM(O7:O14) -> 151 | V4: Total Sequences in Block Summary | W4: =SUM(U7:U14) -> 25 | AA4: Total Sequences in Block Summary | AB4: =SUM(Z7:Z14) -> 25 | AF4: Total Sequences in Block Summary | AG4: =SUM(AE7:AE14) -> 26 | AK4: Total Sequences in Block Summary | AL4: =SUM(AJ7:AJ14) -> 25 | AP4: Total Sequences in Block Summary | AQ4: =SUM(AO7:AO14) -> 25 | AU4: Total Sequences in Block Summary | AV4: =SUM(AT7:AT14) -> 25
T5: Block 1 | Y5: Block 2 | AD5: Block 3 | AI5: Block 4 | AN5: Block 5 | AS5: Block 6
A6: Sequence Component 1 | B6: Time 1 | C6: Sequence Component 2 | D6: Time 2 | E6: Sequence Component 3 | F6: Time 3 | G6: Sequence Component 4 | H6: Time 4 | I6: Sequence Component 5 | J6: Time 5 | K6: Correct? 0=No 1=Yes | L6: Sequence | N6: Frequency | P6: Relative Frequency | Q6: Variability | T6: Frequency | V6: Relative Frequency | W6: Variability | Y6: Frequency | AA6: Relative Frequency | AB6: Variability | AD6: Frequency | AF6: Relative Frequency | AG6: Variability | AI6: Frequency | AK6: Relative Frequency | AL6: Variability | AN6: Frequency | AP6: Relative Frequency | AQ6: Variability | AS6: Frequency | AU6: Relative Frequency | AV6: Variability
A7: 22 | B7: 9 | C7: 24 | D7: 15 | E7: 23 | F7: 27 | K7: 0 | L7: 222 | N7: 111 | O7: =COUNTIF($L$7:$L$500,N7) -> 0 | P7: =O7/$Q$4 -> 0 | Q7: =IF(P7=0,0,(P7*((LOG(P7))/LOG(2)))) -> 0 | T7: =N7 -> 111 | U7: =COUNTIF(L7:L31,T7) -> 0 | V7: =U7/(W4-U10) -> 0 | W7: =IF(V7=0,0,(V7*((LOG(V7))/LOG(2)))) -> 0 | Y7: =N7 -> 111 | Z7: =COUNTIF(L32:L56,Y7) -> 0 | AA7: =Z7/(AB4-Z10) -> 0 | AB7: =IF(AA7=0,0,(AA7*((LOG(AA7))/LOG(2)))) -> 0 | AD7: =N7 -> 111 | AE7: =COUNTIF(L57:L82,AD7) -> 0 | AF7: =AE7/(AG4-AE10) -> 0 | AG7: =IF(AF7=0,0,(AF7*((LOG(AF7))/LOG(2)))) -> 0 | AI7: =N7 -> 111 | AJ7: =COUNTIF(L83:L107,AI7) -> 0 | AK7: =AJ7/(AL4-AJ10) -> 0 | AL7: =IF(AK7=0,0,(AK7*((LOG(AK7))/LOG(2)))) -> 0 | AN7: =N7 -> 111 | AO7: =COUNTIF(L108:L132,AN7) -> 0 | AP7: =AO7/(AQ4-AO10) -> 0 | AQ7: =IF(AP7=0,0,(AP7*((LOG(AP7))/LOG(2)))) -> 0 | AS7: =N7 -> 111 | AT7: =COUNTIF(L133:L157,AS7) -> 0 | AU7: =AT7/(AV4-AT10) -> 0 | AV7: =IF(AU7=0,0,(AU7*((LOG(AU7))/LOG(2)))) -> 0
A8: 22 | B8: 129 | C8: 13 | D8: 139 | E8: 14 | F8: 151 | K8: 0 | L8: 211 | N8: 112 | O8: =COUNTIF($L$7:$L$500,N8) -> 3 | P8: =O8/$Q$4 -> 0.01986754967 | Q8: =IF(P8=0,0,(P8*((LOG(P8))/LOG(2)))) -> -0.1123200445 | T8: =N8 -> 112 | U8: =COUNTIF(L7:L31,T8) -> 0 | V8: =U8/(W4-U10) -> 0 | W8: =IF(V8=0,0,(V8*((LOG(V8))/LOG(2)))) -> 0 | Y8: =N8 -> 112 | Z8: =COUNTIF(L32:L56,Y8) -> 1 | AA8: =Z8/(AB4-Z10) -> 0.04347826087 | AB8: =IF(AA8=0,0,(AA8*((LOG(AA8))/LOG(2)))) -> -0.1966766068 | AD8: =N8 -> 112 | AE8: =COUNTIF(L57:L82,AD8) -> 1 | AF8: =AE8/(AG4-AE10) -> 0.05263157895 | AG8: =IF(AF8=0,0,(AF8*((LOG(AF8))/LOG(2)))) -> -0.2235751323 | AI8: =N8 -> 112 | AJ8: =COUNTIF(L83:L107,AI8) -> 0 | AK8: =AJ8/(AL4-AJ10) -> 0 | AL8: =IF(AK8=0,0,(AK8*((LOG(AK8))/LOG(2)))) -> 0 | AN8: =N8 -> 112 | AO8: =COUNTIF(L108:L132,AN8) -> 1 | AP8: =AO8/(AQ4-AO10) -> 0.05263157895 | AQ8: =IF(AP8=0,0,(AP8*((LOG(AP8))/LOG(2)))) -> -0.2235751323 | AS8: =N8 -> 112 | AT8: =COUNTIF(L133:L157,AS8) -> 0 | AU8: =AT8/(AV4-AT10) -> 0 | AV8: =IF(AU8=0,0,(AU8*((LOG(AU8))/LOG(2)))) -> 0
A9: 22 | B9: 250 | C9: 13 | D9: 258 | E9: 14 | F9: 263 | K9: 0 | L9: 211 | N9: 121 | O9: =COUNTIF($L$7:$L$500,N9) -> 17 | P9: =O9/$Q$4 -> 0.1125827815 | Q9: =IF(P9=0,0,(P9*((LOG(P9))/LOG(2)))) -> -0.3547418031 | T9: =N9 -> 121 | U9: =COUNTIF(L7:L31,T9) -> 0 | V9: =U9/(W4-U10) -> 0 | W9: =IF(V9=0,0,(V9*((LOG(V9))/LOG(2)))) -> 0 | Y9: =N9 -> 121 | Z9: =COUNTIF(L32:L56,Y9) -> 5 | AA9: =Z9/(AB4-Z10) -> 0.2173913043 | AB9: =IF(AA9=0,0,(AA9*((LOG(AA9))/LOG(2)))) -> -0.4786160568 | AD9: =N9 -> 121 | AE9: =COUNTIF(L57:L82,AD9) -> 0 | AF9: =AE9/(AG4-AE10) -> 0 | AG9: =IF(AF9=0,0,(AF9*((LOG(AF9))/LOG(2)))) -> 0 | AI9: =N9 -> 121 | AJ9: =COUNTIF(L83:L107,AI9) -> 2 | AK9: =AJ9/(AL4-AJ10) -> 0.08333333333 | AL9: =IF(AK9=0,0,(AK9*((LOG(AK9))/LOG(2)))) -> -0.2987468751 | AN9: =N9 -> 121 | AO9: =COUNTIF(L108:L132,AN9) -> 5 | AP9: =AO9/(AQ4-AO10) -> 0.2631578947 | AQ9: =IF(AP9=0,0,(AP9*((LOG(AP9))/LOG(2)))) -> -0.5068419523 | AS9: =N9 -> 121 | AT9: =COUNTIF(L133:L157,AS9) -> 5 | AU9: =AT9/(AV4-AT10) -> 0.2777777778 | AV9: =IF(AU9=0,0,(AU9*((LOG(AU9))/LOG(2)))) -> -0.513332474
A10: 22 | B10: 370 | C10: 13 | D10: 381 | E10: 23 | F10: 392 | K10: 0 | L10: 212 | N10: 122 | O10: =COUNTIF($L$7:$L$500,N10) -> 26 | P10: =O10/$Q$4 -> 0.1721854305 | Q10: =IF(P10=0,0,(P10*((LOG(P10))/LOG(2)))) -> -0.4370005997 | T10: =N10 -> 122 | U10: =COUNTIF(L7:L31,T10) -> 3 | Y10: =N10 -> 122 | Z10: =COUNTIF(L32:L56,Y10) -> 2 | AD10: =N10 -> 122 | AE10: =COUNTIF(L57:L82,AD10) -> 7 | AI10: =N10 -> 122 | AJ10: =COUNTIF(L83:L107,AI10) -> 1 | AN10: =N10 -> 122 | AO10: =COUNTIF(L108:L132,AN10) -> 6 | AS10: =N10 -> 122 | AT10: =COUNTIF(L133:L157,AS10) -> 7
A11: 22 | B11: 495 | C11: 24 | D11: 505 | E11: 23 | F11: 533 | K11: 0 | L11: 222 | N11: 211 | O11: =COUNTIF($L$7:$L$500,N11) -> 3 | P11: =O11/$Q$4 -> 0.01986754967 | Q11: =IF(P11=0,0,(P11*((LOG(P11))/LOG(2)))) -> -0.1123200445 | T11: =N11 -> 211 | U11: =COUNTIF(L7:L31,T11) -> 2 | V11: =U11/(W4-U10) -> 0.09090909091 | W11: =IF(V11=0,0,(V11*((LOG(V11))/LOG(2)))) -> -0.3144937835 | Y11: =N11 -> 211 | Z11: =COUNTIF(L32:L56,Y11) -> 0 | AA11: =Z11/(AB4-Z10) -> 0 | AB11: =IF(AA11=0,0,(AA11*((LOG(AA11))/LOG(2)))) -> 0 | AD11: =N11 -> 211 | AE11: =COUNTIF(L57:L82,AD11) -> 0 | AF11: =AE11/(AG4-AE10) -> 0 | AG11: =IF(AF11=0,0,(AF11*((LOG(AF11))/LOG(2)))) -> 0 | AI11: =N11 -> 211 | AJ11: =COUNTIF(L83:L107,AI11) -> 0 | AK11: =AJ11/(AL4-AJ10) -> 0 | AL11: =IF(AK11=0,0,(AK11*((LOG(AK11))/LOG(2)))) -> 0 | AN11: =N11 -> 211 | AO11: =COUNTIF(L108:L132,AN11) -> 0 | AP11: =AO11/(AQ4-AO10) -> 0 | AQ11: =IF(AP11=0,0,(AP11*((LOG(AP11))/LOG(2)))) -> 0 | AS11: =N11 -> 211 | AT11: =COUNTIF(L133:L157,AS11) -> 1 | AU11: =AT11/(AV4-AT10) -> 0.05555555556 | AV11: =IF(AU11=0,0,(AU11*((LOG(AU11))/LOG(2)))) -> -0.2316625001
A12: 22 | B12: 639 | C12: 24 | D12: 647 | E12: 23 | F12: 655 | K12: 0 | L12: 222 | N12: 212 | O12: =COUNTIF($L$7:$L$500,N12) -> 18 | P12: =O12/$Q$4 -> 0.119205298 | Q12: =IF(P12=0,0,(P12*((LOG(P12))/LOG(2)))) -> -0.3657790416 | T12: =N12 -> 212 | U12: =COUNTIF(L7:L31,T12) -> 1 | V12: =U12/(W4-U10) -> 0.04545454545 | W12: =IF(V12=0,0,(V12*((LOG(V12))/LOG(2)))) -> -0.2027014372 | Y12: =N12 -> 212 | Z12: =COUNTIF(L32:L56,Y12) -> 2 | AA12: =Z12/(AB4-Z10) -> 0.08695652174 | AB12: =IF(AA12=0,0,(AA12*((LOG(AA12))/LOG(2)))) -> -0.3063966918 | AD12: =N12 -> 212 | AE12: =COUNTIF(L57:L82,AD12) -> 3 | AF12: =AE12/(AG4-AE10) -> 0.1578947368 | AG12: =IF(AF12=0,0,(AF12*((LOG(AF12))/LOG(2)))) -> -0.4204681599 | AI12: =N12 -> 212 | AJ12: =COUNTIF(L83:L107,AI12) -> 2 | AK12: =AJ12/(AL4-AJ10) -> 0.08333333333 | AL12: =IF(AK12=0,0,(AK12*((LOG(AK12))/LOG(2)))) -> -0.2987468751 | AN12: =N12 -> 212 | AO12: =COUNTIF(L108:L132,AN12) -> 3 | AP12: =AO12/(AQ4-AO10) -> 0.1578947368 | AQ12: =IF(AP12=0,0,(AP12*((LOG(AP12))/LOG(2)))) -> -0.4204681599 | AS12: =N12 -> 212 | AT12: =COUNTIF(L133:L157,AS12) -> 7 | AU12: =AT12/(AV4-AT10) -> 0.3888888889 | AV12: =IF(AU12=0,0,(AU12*((LOG(AU12))/LOG(2)))) -> -0.5298883642
A13: 22 | B13: 757 | C13: 24 | D13: 767 | E13: 23 | F13: 775 | K13: 0 | L13: 222 | N13: 221 | O13: =COUNTIF($L$7:$L$500,N13) -> 16 | P13: =O13/$Q$4 -> 0.1059602649 | Q13: =IF(P13=0,0,(P13*((LOG(P13))/LOG(2)))) -> -0.343142224 | T13: =N13 -> 221 | U13: =COUNTIF(L7:L31,T13) -> 0 | V13: =U13/(W4-U10) -> 0 | W13: =IF(V13=0,0,(V13*((LOG(V13))/LOG(2)))) -> 0 | Y13: =N13 -> 221 | Z13: =COUNTIF(L32:L56,Y13) -> 3 | AA13: =Z13/(AB4-Z10) -> 0.1304347826 | AB13: =IF(AA13=0,0,(AA13*((LOG(AA13))/LOG(2)))) -> -0.3832955811 | AD13: =N13 -> 221 | AE13: =COUNTIF(L57:L82,AD13) -> 4 | AF13: =AE13/(AG4-AE10) -> 0.2105263158 | AG13: =IF(AF13=0,0,(AF13*((LOG(AF13))/LOG(2)))) -> -0.4732478976 | AI13: =N13 -> 221 | AJ13: =COUNTIF(L83:L107,AI13) -> 5 | AK13: =AJ13/(AL4-AJ10) -> 0.2083333333 | AL13: =IF(AK13=0,0,(AK13*((LOG(AK13))/LOG(2)))) -> -0.4714655012 | AN13: =N13 -> 221 | AO13: =COUNTIF(L108:L132,AN13) -> 4 | AP13: =AO13/(AQ4-AO10) -> 0.2105263158 | AQ13: =IF(AP13=0,0,(AP13*((LOG(AP13))/LOG(2)))) -> -0.4732478976 | AS13: =N13 -> 221 | AT13: =COUNTIF(L133:L157,AS13) -> 0 | AU13: =AT13/(AV4-AT10) -> 0 | AV13: =IF(AU13=0,0,(AU13*((LOG(AU13))/LOG(2)))) -> 0
A14: 22 | B14: 904 | C14: 24 | D14: 919 | E14: 23 | F14: 933 | K14: 0 | L14: 222 | N14: 222 | O14: =COUNTIF($L$7:$L$500,N14) -> 68 | P14: =O14/$Q$4 -> 0.4503311258 | Q14: =IF(P14=0,0,(P14*((LOG(P14))/LOG(2)))) -> -0.5183049607 | T14: =N14 -> 222 | U14: =COUNTIF(L7:L31,T14) -> 19 | V14: =U14/(W4-U10) -> 0.8636363636 | W14: =IF(V14=0,0,(V14*((LOG(V14))/LOG(2)))) -> -0.1826626363 | Y14: =N14 -> 222 | Z14: =COUNTIF(L32:L56,Y14) -> 12 | AA14: =Z14/(AB4-Z10) -> 0.5217391304 | AB14: =IF(AA14=0,0,(AA14*((LOG(AA14))/LOG(2)))) -> -0.4897040637 | AD14: =N14 -> 222 | AE14: =COUNTIF(L57:L82,AD14) -> 11 | AF14: =AE14/(AG4-AE10) -> 0.5789473684 | AG14: =IF(AF14=0,0,(AF14*((LOG(AF14))/LOG(2)))) -> -0.4564976233 | AI14: =N14 -> 222 | AJ14: =COUNTIF(L83:L107,AI14) -> 15 | AK14: =AJ14/(AL4-AJ10) -> 0.625 | AL14: =IF(AK14=0,0,(AK14*((LOG(AK14))/LOG(2)))) -> -0.4237949407 | AN14: =N14 -> 222 | AO14: =COUNTIF(L108:L132,AN14) -> 6 | AP14: =AO14/(AQ4-AO10) -> 0.3157894737 | AQ14: =IF(AP14=0,0,(AP14*((LOG(AP14))/LOG(2)))) -> -0.5251468461 | AS14: =N14 -> 222 | AT14: =COUNTIF(L133:L157,AS14) -> 5 | AU14: =AT14/(AV4-AT10) -> 0.2777777778 | AV14: =IF(AU14=0,0,(AU14*((LOG(AU14))/LOG(2)))) -> -0.513332474
A15: 22 | B15: 1039 | C15: 24 | D15: 1047 | E15: 23 | F15: 1056 | K15: 0 | L15: 222 | P15: =SUM(P7:P14) -> 1 | Q15: =-SUM(Q7:Q14) -> 2.243608718 | V15: =SUM(V7:V14) -> 1 | W15: =-SUM(W7:W14) -> 0.699857857 | AA15: =SUM(AA7:AA14) -> 1 | AB15: =-SUM(AB7:AB14) -> 1.854689 | AF15: =SUM(AF7:AF14) -> 1 | AG15: =-SUM(AG7:AG14) -> 1.573788813 | AK15: =SUM(AK7:AK14) -> 1 | AL15: =-SUM(AL7:AL14) -> 1.492754192 | AP15: =SUM(AP7:AP14) -> 1 | AQ15: =-SUM(AQ7:AQ14) -> 2.149279988 | AU15: =SUM(AU7:AU14) -> 1 | AV15: =-SUM(AV7:AV14) -> 1.788215812
A16: 22 | B16: 1161 | C16: 24 | D16: 1166 | E16: 23 | F16: 1179 | K16: 0 | L16: 222 | P16: U= | Q16: =Q15/(LOG(Q4)/LOG(2)) -> 0.3099590032 | V16: U1= | W16: =W15/(LOG(W4)/LOG(2)) -> 0.1507061865 | AA16: U2= | AB16: =AB15/(LOG(AB4)/LOG(2)) -> 0.3993855374 | AF16: U3= | AG16: =AG15/(LOG(AG4)/LOG(2)) -> 0.3348173591 | AK16: U4= | AL16: =AL15/(LOG(AL4)/LOG(2)) -> 0.3214471187 | AP16: U5= | AQ16: =AQ15/(LOG(AQ4)/LOG(2)) -> 0.4628222538 | AU16: U6= | AV16: =AV15/(LOG(AV4)/LOG(2)) -> 0.3850713156
A17: 22 | B17: 1279 | C17: 24 | D17: 1293 | E17: 23 | F17: 1308 | K17: 0 | L17: 222
A18: 22 | B18: 1408 | C18: 24 | D18: 1417 | E18: 23 | F18: 1432 | K18: 0 | L18: 222
A19: 11 | B19: 1573 | C19: 22 | D19: 1587 | E19: 23 | F19: 1599 | K19: 0 | L19: 122 | N19: Total Target Seq
A20: 22 | B20: 1699 | C20: 24 | D20: 1707 | E20: 23 | F20: 1718 | K20: 0 | L20: 222 | N20: =COUNTIF(L7:L157,G3) -> 26 | P20: 25 | Q20: 25 | R20: 26 | S20: 25 | T20: 25 | U20: 25
A21: 22 | B21: 1814 | C21: 24 | D21: 1822 | E21: 23 | F21: 1827 | K21: 0 | L21: 222 | P21: % of reinforcement given in 6 equal intervals based on number of trials
A22: 11 | B22: 2064 | C22: 22 | D22: 2078 | E22: 23 | F22: 2086 | K22: 0 | L22: 122 | P22: %_1 | Q22: %_2 | R22: %_3 | S22: %_4 | T22: %_5 | U22: %_6
A23: 11 | B23: 2194 | C23: 22 | D23: 2207 | E23: 23 | F23: 2216 | K23: 0 | L23: 122 | O23: target sequence | P23: =$G$3 -> 122 | Q23: =$G$3 -> 122 | R23: =$G$3 -> 122 | S23: =$G$3 -> 122 | T23: =$G$3 -> 122 | U23: =$G$3 -> 122
A24: 22 | B24: 2324 | C24: 24 | D24: 2335 | E24: 23 | F24: 2349 | K24: 0 | L24: 222 | O24: total reinforcement | P24: =U10 -> 3 | Q24: =Z10 -> 2 | R24: =AE10 -> 7 | S24: =AJ10 -> 1 | T24: =AO10 -> 6 | U24: =AT10 -> 7
A25: 22 | B25: 2476 | C25: 24 | D25: 2489 | E25: 23 | F25: 2504 | K25: 0 | L25: 222 | O25: % target
A26: 22 | B26: 2610 | C26: 24 | D26: 2618 | E26: 23 | F26: 2646 | K26: 0 | L26: 222 | O26: CCRF
A27: 22 | B27: 2754 | C27: 24 | D27: 2766 | E27: 23 | F27: 2776 | K27: 0 | L27: 222 | O27: % CCRf
A28: 22 | B28: 2903 | C28: 24 | D28: 2917 | E28: 23 | F28: 2933 | K28: 0 | L28: 222 | O28: average response rate | P28: =F31/P20 -> 136.48 | Q28: =(F56-F31)/Q20 -> 161.08 | R28: =(F82-F56)/R20 -> 147 | S28: =(F107-F82)/S20 -> 163.04 | T28: =(F132-F107)/T20 -> 171.6 | U28: =(F157-F132)/U20 -> 172.2
A29: 22 | B29: 3052 | C29: 24 | D29: 3065 | E29: 23 | F29: 3098 | K29: 0 | L29: 222
A30: 22 | B30: 3208 | C30: 24 | D30: 3222 | E30: 23 | F30: 3275 | K30: 0 | L30: 222
A31: 22 | B31: 3389 | C31: 24 | D31: 3399 | E31: 23 | F31: 3412 | K31: 0 | L31: 222
A32: 22 | B32: 3526 | C32: 24 | D32: 3533 | E32: 23 | F32: 3539 | K32: 0 | L32: 222
A33: 22 | B33: 3642 | C33: 24 | D33: 3652 | E33: 23 | F33: 3661 | K33: 0 | L33: 222
A34: 22 | B34: 3767 | C34: 24 | D34: 3791 | E34: 14 | F34: 3807 | K34: 0 | L34: 221
A35: 22 | B35: 3962 | C35: 24 | D35: 3985 | E35: 23 | F35: 3998 | K35: 0 | L35: 222
A36: 22 | B36: 4104 | C36: 24 | D36: 4111 | E36: 23 | F36: 4136 | K36: 0 | L36: 222
A37: 22 | B37: 4242 | C37: 24 | D37: 4255 | E37: 23 | F37: 4266 | K37: 0 | L37: 222
A38: 11 | B38: 4388 | C38: 22 | D38: 4401 | E38: 23 | F38: 4416 | K38: 0 | L38: 122
A39: 11 | B39: 4543 | C39: 22 | D39: 4555 | E39: 14 | F39: 4571 | K39: 0 | L39: 121
A40: 22 | B40: 4680 | C40: 24 | D40: 4696 | E40: 23 | F40: 4703 | K40: 0 | L40: 222
A41: 11 | B41: 4840 | C41: 22 | D41: 4856 | E41: 14 | F41: 4871 | K41: 0 | L41: 121
A42: 11 | B42: 5006 | C42: 22 | D42: 5019 | E42: 14 | F42: 5034 | K42: 0 | L42: 121
A43: 22 | B43: 5266 | C43: 24 | D43: 5278 | E43: 23 | F43: 5289 | K43: 0 | L43: 222
A44: 11 | B44: 5405 | C44: 22 | D44: 5417 | E44: 14 | F44: 5438 | K44: 0 | L44: 121
A45: 22 | B45: 5549 | C45: 13 | D45: 5568 | E45: 23 | F45: 5582 | K45: 0 | L45: 212
A46: 22 | B46: 5715 | C46: 24 | D46: 5739 | E46: 23 | F46: 5748 | K46: 0 | L46: 222
A47: 11 | B47: 5946 | C47: 22 | D47: 5966 | E47: 14 | F47: 5991 | K47: 0 | L47: 121
A48: 11 | B48: 6126 | C48: 22 | D48: 6146 | E48: 23 | F48: 6169 | K48: 0 | L48: 122
A49: 22 | B49: 6278 | C49: 24 | D49: 6298 | E49: 23 | F49: 6323 | K49: 0 | L49: 222
A50: 22 | B50: 6432 | C50: 24 | D50: 6449 | E50: 14 | F50: 6469 | K50: 0 | L50: 221
A51: 11 | B51: 6622 | C51: 11 | D51: 6655 | E51: 21 | F51: 6696 | K51: 0 | L51: 112
A52: 22 | B52: 6807 | C52: 24 | D52: 6815 | E52: 14 | F52: 6832 | K52: 0 | L52: 221
A53: 22 | B53: 6940 | C53: 24 | D53: 6948 | E53: 23 | F53: 6971 | K53: 0 | L53: 222
A54: 22 | B54: 7087 | C54: 24 | D54: 7116 | E54: 23 | F54: 7123 | K54: 0 | L54: 222
A55: 22 | B55: 7239 | C55: 24 | D55: 7251 | E55: 23 | F55: 7259 | K55: 0 | L55: 222
A56: 22 | B56: 7403 | C56: 13 | D56: 7421 | E56: 23 | F56: 7439 | K56: 0 | L56: 212
A57: 22 | B57: 7541 | C57: 24 | D57: 7556 | E57: 14 | F57: 7571 | K57: 0 | L57: 221
A58: 22 | B58: 7678 | C58: 24 | D58: 7686 | E58: 23 | F58: 7706 | K58: 0 | L58: 222
A59: 22 | B59: 7809 | C59: 24 | D59: 7829 | E59: 23 | F59: 7837 | K59: 0 | L59: 222
A60: 22 | B60: 7949 | C60: 24 | D60: 7966 | E60: 14 | F60: 7980 | K60: 0 | L60: 221
A61: 22 | B61: 8097 | C61: 24 | D61: 8109 | E61: 23 | F61: 8117 | K61: 0 | L61: 222
A62: 11 | B62: 8234 | C62: 22 | D62: 8247 | E62: 23 | F62: 8255 | K62: 0 | L62: 122
A63: 22 | B63: 8371 | C63: 13 | D63: 8387 | E63: 23 | F63: 8400 | K63: 0 | L63: 212
A64: 22 | B64: 8499 | C64: 24 | D64: 8507 | E64: 23 | F64: 8530 | K64: 0 | L64: 222
A65: 22 | B65: 8639 | C65: 24 | D65: 8652 | E65: 23 | F65: 8663 | K65: 0 | L65: 222
A66: 11 | B66: 8863 | C66: 22 | D66: 8876 | E66: 23 | F66: 8903 | K66: 0 | L66: 122
A67: 22 | B67: 9026 | C67: 24 | D67: 9040 | E67: 23 | F67: 9057 | K67: 0 | L67: 222
A68: 22 | B68: 9179 | C68: 13 | D68: 9196 | E68: 23 | F68: 9209 | K68: 0 | L68: 212
A69: 11 | B69: 9321 | C69: 22 | D69: 9341 | E69: 23 | F69: 9361 | K69: 0 | L69: 122
A70: 11 | B70: 9532 | C70: 22 | D70: 9545 | E70: 23 | F70: 9554 | K70: 0 | L70: 122
A71: 22 | B71: 9656 | C71: 24 | D71: 9672 | E71: 23 | F71: 9710 | K71: 0 | L71: 222
A72: 22 | B72: 9818 | C72: 13 | D72: 9833 | E72: 23 | F72: 9844 | K72: 0 | L72: 212
A73: 11 | B73: 9979 | C73: 22 | D73: 9993 | E73: 23 | F73: 10021 | K73: 0 | L73: 122
A74: 11 | B74: 10184 | C74: 22 | D74: 10196 | E74: 23 | F74: 10208 | K74: 0 | L74: 122
A75: 22 | B75: 10319 | C75: 24 | D75: 10346 | E75: 14 | F75: 10368 | K75: 0 | L75: 221
A76: 11 | B76: 10483 | C76: 11 | D76: 10490 | E76: 21 | F76: 10502 | K76: 0 | L76: 112
A77: 22 | B77: 10603 | C77: 24 | D77: 10612 | E77: 14 | F77: 10623 | K77: 0 | L77: 221
A78: 22 | B78: 10727 | C78: 24 | D78: 10741 | E78: 23 | F78: 10769 | K78: 0 | L78: 222
A79: 22 | B79: 10867 | C79: 24 | D79: 10876 | E79: 23 | F79: 10884 | K79: 0 | L79: 222
A80: 22 | B80: 10983 | C80: 24 | D80: 11001 | E80: 23 | F80: 11007 | K80: 0 | L80: 222
A81: 11 | B81: 11107 | C81: 22 | D81: 11117 | E81: 23 | F81: 11125 | K81: 0 | L81: 122
A82: 22 | B82: 11227 | C82: 24 | D82: 11255 | E82: 23 | F82: 11261 | K82: 0 | L82: 222
A83: 22 | B83: 11386 | C83: 24 | D83: 11397 | E83: 23 | F83: 11405 | K83: 0 | L83: 222
A84: 22 | B84: 11540 | C84: 24 | D84: 11554 | E84: 23 | F84: 11565 | K84: 0 | L84: 222
A85: 22 | B85: 11671 | C85: 24 | D85: 11681 | E85: 23 | F85: 11690 | K85: 0 | L85: 222
A86: 22 | B86: 11789 | C86: 24 | D86: 11800 | E86: 23 | F86: 11809 | K86: 0 | L86: 222
A87: 22 | B87: 11918 | C87: 24 | D87: 11932 | E87: 14 | F87: 11948 | K87: 0 | L87: 221
A88: 22 | B88: 12051 | C88: 24 | D88: 12073 | E88: 23 | F88: 12081 | K88: 0 | L88: 222
A89: 22 | B89: 12187 | C89: 24 | D89: 12207 | E89: 23 | F89: 12218 | K89: 0 | L89: 222
A90: 22 | B90: 12341 | C90: 24 | D90: 12358 | E90: 23 | F90: 12378 | K90: 0 | L90: 222
A91: 11 | B91: 12585 | C91: 22 | D91: 12604 | E91: 23 | F91: 12620 | K91: 0 | L91: 122
A92: 11 | B92: 12728 | C92: 22 | D92: 12743 | E92: 14 | F92: 12770 | K92: 0 | L92: 121
A93: 22 | B93: 12903 | C93: 24 | D93: 12911 | E93: 23 | F93: 12922 | K93: 0 | L93: 222
A94: 22 | B94: 13032 | C94: 24 | D94: 13044 | E94: 23 | F94: 13056 | K94: 0 | L94: 222
A95: 22 | B95: 13173 | C95: 24 | D95: 13189 | E95: 23 | F95: 13208 | K95: 0 | L95: 222
A96: 22 | B96: 13372 | C96: 24 | D96: 13387 | E96: 23 | F96: 13393 | K96: 0 | L96: 222
A97: 22 | B97: 13514 | C97: 24 | D97: 13530 | E97: 23 | F97: 13567 | K97: 0 | L97: 222
A98: 22 | B98: 13697 | C98: 13 | D98: 13715 | E98: 23 | F98: 13725 | K98: 0 | L98: 212
A99: 22 | B99: 13850 | C99: 13 | D99: 13867 | E99: 23 | F99: 13883 | K99: 0 | L99: 212
A100: 22 | B100: 13988 | C100: 24 | D100: 14002 | E100: 23 | F100: 14009 | K100: 0 | L100: 222
A101: 22 | B101: 14159 | C101: 24 | D101: 14177 | E101: 23 | F101: 14192 | K101: 0 | L101: 222
A102: 22 | B102: 14333 | C102: 24 | D102: 14342 | E102: 14 | F102: 14361 | K102: 0 | L102: 221
A103: 22 | B103: 14518 | C103: 24 | D103: 14525 | E103: 14 | F103: 14550 | K103: 0 | L103: 221
A104: 22 | B104: 14659 | C104: 24 | D104: 14684 | E104: 14 | F104: 14705 | K104: 0 | L104: 221
A105: 11 | B105: 14853 | C105: 22 | D105: 14869 | E105: 14 | F105: 14883 | K105: 0 | L105: 121
A106: 22 | B106: 15071 | C106: 24 | D106: 15079 | E106: 14 | F106: 15103 | K106: 0 | L106: 221
A107: 22 | B107: 15297 | C107: 24 | D107: 15310 | E107: 23 | F107: 15337 | K107: 0 | L107: 222
A108: 22 | B108: 15440 | C108: 24 | D108: 15455 | E108: 14 | F108: 15470 | K108: 0 | L108: 221
A109: 22 | B109: 15578 | C109: 24 | D109: 15585 | E109: 23 | F109: 15653 | K109: 0 | L109: 222
A110: 11 | B110: 15771 | C110: 22 | D110: 15786 | E110: 14 | F110: 15802 | K110: 0 | L110: 121
A111: 22 | B111: 15909 | C111: 13 | D111: 15968 | E111: 23 | F111: 15980 | K111: 0 | L111: 212
A112: 11 | B112: 16091 | C112: 22 | D112: 16103 | E112: 23 | F112: 16121 | K112: 0 | L112: 122
A113: 22 | B113: 16228 | C113: 24 | D113: 16249 | E113: 23 | F113: 16273 | K113: 0 | L113: 222
A114: 11 | B114: 16397 | C114: 22 | D114: 16408 | E114: 14 | F114: 16423 | K114: 0 | L114: 121
A115: 22 | B115: 16538 | C115: 24 | D115: 16567 | E115: 23 | F115: 16584 | K115: 0 | L115: 222
A116: 22 | B116: 16723 | C116: 13 | D116: 16746 | E116: 23 | F116: 16757 | K116: 0 | L116: 212
A117: 11 | B117: 16902 | C117: 22 | D117: 16916 | E117: 23 | F117: 16940 | K117: 0 | L117: 122
A118: 22 | B118: 17074 | C118: 24 | D118: 17096 | E118: 14 | F118: 17112 | K118: 0 | L118: 221
A119: 11 | B119: 17378 | C119: 22 | D119: 17390 | E119: 23 | F119: 17403 | K119: 0 | L119: 122
A120: 22 | B120: 17553 | C120: 24 | D120: 17572 | E120: 14 | F120: 17598 | K120: 0 | L120: 221
A121: 11 | B121: 17728 | C121: 22 | D121: 17740 | E121: 14 | F121: 17754 | K121: 0 | L121: 121
A122: 11 | B122: 17924 | C122: 22 | D122: 17938 | E122: 14 | F122: 17962 | K122: 0 | L122: 121
A123: 11 | B123: 18146 | C123: 22 | D123: 18159 | E123: 14 | F123: 18176 | K123: 0 | L123: 121
A124: 11 | B124: 18330 | C124: 11 | D124: 18393 | E124: 21 | F124: 18415 | K124: 0 | L124: 112
A125: 11 | B125: 18515 | C125: 22 | D125: 18528 | E125: 23 | F125: 18542 | K125: 0 | L125: 122
A126: 22 | B126: 18640 | C126: 24 | D126: 18661 | E126: 23 | F126: 18669 | K126: 0 | L126: 222
A127: 22 | B127: 18788 | C127: 13 | D127: 18845 | E127: 23 | F127: 18856 | K127: 0 | L127: 212
A128: 22 | B128: 18964 | C128: 24 | D128: 18971 | E128: 14 | F128: 18990 | K128: 0 | L128: 221
A129: 22 | B129: 19096 | C129: 24 | D129: 19117 | E129: 23 | F129: 19125 | K129: 0 | L129: 222
A130: 11 | B130: 19290 | C130: 22 | D130: 19308 | E130: 23 | F130: 19329 | K130: 0 | L130: 122
A131: 11 | B131: 19453 | C131: 22 | D131: 19466 | E131: 23 | F131: 19481 | K131: 0 | L131: 122
A132: 22 | B132: 19587 | C132: 24 | D132: 19614 | E132: 23 | F132: 19627 | K132: 0 | L132: 222
A133: 22 | B133: 19751 | C133: 13 | D133: 19768 | E133: 23 | F133: 19780 | K133: 0 | L133: 212
A134: 22 | B134: 19883 | C134: 24 | D134: 19899 | E134: 23 | F134: 19908 | K134: 0 | L134: 222
A135: 11 | B135: 20013 | C135: 22 | D135: 20025 | E135: 14 | F135: 20050 | K135: 0 | L135: 121
A136: 11 | B136: 20176 | C136: 22 | D136: 20187 | E136: 23 | F136: 20196 | K136: 0 | L136: 122
A137: 22 | B137: 20314 | C137: 24 | D137: 20324 | E137: 23 | F137: 20341 | K137: 0 | L137: 222
A138: 11 | B138: 20586 | C138: 22 | D138: 20602 | E138: 14 | F138: 20620 | K138: 0 | L138: 121
A139: 11 | B139: 20742 | C139: 22 | D139: 20753 | E139: 23 | F139: 20794 | K139: 0 | L139: 122
A140: 22 | B140: 20892 | C140: 24 | D140: 20921 | E140: 23 | F140: 20951 | K140: 0 | L140: 222
A141: 11 | B141: 21072 | C141: 22 | D141: 21087 | E141: 23 | F141: 21117 | K141: 0 | L141: 122
A142: 11 | B142: 21220 | C142: 22 | D142: 21234 | E142: 23 | F142: 21268 | K142: 0 | L142: 122
A143: 11 | B143: 21382 | C143: 22 | D143: 21394 | E143: 23 | F143: 21409 | K143: 0 | L143: 122
A144: 22 | B144: 21535 | C144: 13 | D144: 21571 | E144: 23 | F144: 21583 | K144: 0 | L144: 212
A145: 11 | B145: 21729 | C145: 22 | D145: 21741 | E145: 14 | F145: 21761 | K145: 0 | L145: 121
A146: 11 | B146: 21882 | C146: 22 | D146: 21893 | E146: 23 | F146: 21917 | K146: 0 | L146: 122
A147: 22 | B147: 22029 | C147: 13 | D147: 22053 | E147: 23 | F147: 22064 | K147: 0 | L147: 212
A148: 22 | B148: 22196 | C148: 13 | D148: 22212 | E148: 23 | F148: 22224 | K148: 0 | L148: 212
A149: 22 | B149: 22346 | C149: 13 | D149: 22364 | E149: 14 | F149: 22372 | K149: 0 | L149: 211
A150: 11 | B150: 22486 | C150: 22 | D150: 22500 | E150: 14 | F150: 22514 | K150: 0 | L150: 121
A151: 22 | B151: 22636 | C151: 24 | D151: 22645 | E151: 23 | F151: 22654 | K151: 0 | L151: 222
A152: 11 | B152: 22858 | C152: 22 | D152: 22892 | E152: 14 | F152: 22913 | K152: 0 | L152: 121
A153: 22 | B153: 23095 | C153: 24 | D153: 23111 | E153: 23 | F153: 23126 | K153: 0 | L153: 222
A154: 22 | B154: 23284 | C154: 13 | D154: 23304 | E154: 23 | F154: 23316 | K154: 0 | L154: 212
A155: 11 | B155: 23539 | C155: 22 | D155: 23553 | E155: 23 | F155: 23571 | K155: 0 | L155: 122
A156: 22 | B156: 23702 | C156: 13 | D156: 23721 | E156: 23 | F156: 23734 | K156: 0 | L156: 212
A157: 22 | B157: 23896 | C157: 13 | D157: 23919 | E157: 23 | F157: 23932 | L157: 212

Sheet !2011-05-10_08h14m.Subject 52 p
A1: Report for:!2011-05-10_08h14m.Subject 52 phase 2
A2: Date | B2: 2011-05-10 | F2: Group | G2: 0
A3: Hen | B3: 0 | F3: Correct Sequence | G3: =Start!J2 -> 122 | P3: Total Sequences in Data | Q3: =4994-COUNTBLANK(L7:L5000) -> 115 | V3: Total Sequences in Block Data | W3: =COUNTA(L7:L25) -> 19 | AA3: Total Sequences in Block Data | AB3: =COUNTA(L26:L44) -> 19 | AF3: Total Sequences in Block Data | AG3: =COUNTA(L45:L64) -> 20 | AK3: Total Sequences in Block Data | AL3: =COUNTA(L65:L83) -> 19 | AP3: Total Sequences in Block Data | AQ3: =COUNTA(L84:L102) -> 19 | AU3: Total Sequences in Block Data | AV3: =COUNTA(L103:L121) -> 19
A4: Program | B4: 0 | P4: Total Sequences in Summary | Q4: =SUM(O7:O14) -> 115 | V4: Total Sequences in Block Summary | W4: =SUM(U7:U14) -> 19 | AA4: Total Sequences in Block Summary | AB4: =SUM(Z7:Z14) -> 19 | AF4: Total Sequences in Block Summary | AG4: =SUM(AE7:AE14) -> 20 | AK4: Total Sequences in Block Summary | AL4: =SUM(AJ7:AJ14) -> 19 | AP4: Total Sequences in Block Summary | AQ4: =SUM(AO7:AO14) -> 19 | AU4: Total Sequences in Block Summary | AV4: =SUM(AT7:AT14) -> 19
T5: Block 1 | Y5: Block 2 | AD5: Block 3 | AI5: Block 4 | AN5: Block 5 | AS5: Block 6
A6: Sequence Component 1 | B6: Time 1 | C6: Sequence Component 2 | D6: Time 2 | E6: Sequence Component 3 | F6: Time 3 | G6: Sequence Component 4 | H6: Time 4 | I6: Sequence Component 5 | J6: Time 5 | K6: Correct? 0=No 1=Yes | L6: Sequence | N6: Frequency | P6: Relative Frequency | Q6: Variability | T6: Frequency | V6: Relative Frequency | W6: Variability | Y6: Frequency | AA6: Relative Frequency | AB6: Variability | AD6: Frequency | AF6: Relative Frequency | AG6: Variability | AI6: Frequency | AK6: Relative Frequency | AL6: Variability | AN6: Frequency | AP6: Relative Frequency | AQ6: Variability | AS6: Frequency | AU6: Relative Frequency | AV6: Variability
A7: 22 | B7: 14 | C7: 24 | D7: 21 | E7: 23 | F7: 34 | K7: 0 | L7: 222 | N7: 111 | O7: =COUNTIF($L$7:$L$500,N7) -> 0 | P7: =O7/$Q$4 -> 0 | Q7: =IF(P7=0,0,(P7*((LOG(P7))/LOG(2)))) -> 0 | T7: =N7 -> 111 | U7: =COUNTIF(L7:L25,T7) -> 0 | V7: =U7/(W4-U10) -> 0 | W7: =IF(V7=0,0,(V7*((LOG(V7))/LOG(2)))) -> 0 | Y7: =N7 -> 111 | Z7: =COUNTIF(L26:L44,Y7) -> 0 | AA7: =Z7/(AB4-Z10) -> 0 | AB7: =IF(AA7=0,0,(AA7*((LOG(AA7))/LOG(2)))) -> 0 | AD7: =N7 -> 111 | AE7: =COUNTIF(L45:L64,AD7) -> 0 | AF7: =AE7/(AG4-AE10) -> 0 | AG7: =IF(AF7=0,0,(AF7*((LOG(AF7))/LOG(2)))) -> 0 | AI7: =N7 -> 111 | AJ7: =COUNTIF(L65:L83,AI7) -> 0 | AK7: =AJ7/(AL4-AJ10) -> 0 | AL7: =IF(AK7=0,0,(AK7*((LOG(AK7))/LOG(2)))) -> 0 | AN7: =N7 -> 111 | AO7: =COUNTIF(L84:L102,AN7) -> 0 | AP7: =AO7/(AQ4-AO10) -> 0 | AQ7: =IF(AP7=0,0,(AP7*((LOG(AP7))/LOG(2)))) -> 0 | AS7: =N7 -> 111 | AT7: =COUNTIF(L103:L121,AS7) -> 0 | AU7: =AT7/(AV4-AT10) -> 0 | AV7: =IF(AU7=0,0,(AU7*((LOG(AU7))/LOG(2)))) -> 0
A8: 22 | B8: 141 | C8: 24 | D8: 148 | E8: 14 | F8: 168 | K8: 0 | L8: 221 | N8: 112 | O8: =COUNTIF($L$7:$L$500,N8) -> 1 | P8: =O8/$Q$4 -> 0.008695652174 | Q8: =IF(P8=0,0,(P8*((LOG(P8))/LOG(2)))) -> -0.05952600044 | T8: =N8 -> 112 | U8: =COUNTIF(L7:L25,T8) -> 0 | V8: =U8/(W4-U10) -> 0 | W8: =IF(V8=0,0,(V8*((LOG(V8))/LOG(2)))) -> 0 | Y8: =N8 -> 112 | Z8: =COUNTIF(L26:L44,Y8) -> 0 | AA8: =Z8/(AB4-Z10) -> 0 | AB8: =IF(AA8=0,0,(AA8*((LOG(AA8))/LOG(2)))) -> 0 | AD8: =N8 -> 112 | AE8: =COUNTIF(L45:L64,AD8) -> 1 | AF8: =AE8/(AG4-AE10) -> 0.07692307692 | AG8: =IF(AF8=0,0,(AF8*((LOG(AF8))/LOG(2)))) -> -0.2846492091 | AI8: =N8 -> 112 | AJ8: =COUNTIF(L65:L83,AI8) -> 0 | AK8: =AJ8/(AL4-AJ10) -> 0 | AL8: =IF(AK8=0,0,(AK8*((LOG(AK8))/LOG(2)))) -> 0 | AN8: =N8 -> 112 | AO8: =COUNTIF(L84:L102,AN8) -> 0 | AP8: =AO8/(AQ4-AO10) -> 0 | AQ8: =IF(AP8=0,0,(AP8*((LOG(AP8))/LOG(2)))) -> 0 | AS8: =N8 -> 112 | AT8: =COUNTIF(L103:L121,AS8) -> 0 | AU8: =AT8/(AV4-AT10) -> 0 | AV8: =IF(AU8=0,0,(AU8*((LOG(AU8))/LOG(2)))) -> 0
A9: 22 | B9: 277 | C9: 24 | D9: 284 | E9: 14 | F9: 304 | K9: 0 | L9: 221 | N9: 121 | O9: =COUNTIF($L$7:$L$500,N9) -> 35 | P9: =O9/$Q$4 -> 0.3043478261 | Q9: =IF(P9=0,0,(P9*((LOG(P9))/LOG(2)))) -> -0.5223238799 | T9: =N9 -> 121 | U9: =COUNTIF(L7:L25,T9) -> 0 | V9: =U9/(W4-U10) -> 0 | W9: =IF(V9=0,0,(V9*((LOG(V9))/LOG(2)))) -> 0 | Y9: =N9 -> 121 | Z9: =COUNTIF(L26:L44,Y9) -> 10 | AA9: =Z9/(AB4-Z10) -> 0.5555555556 | AB9: =IF(AA9=0,0,(AA9*((LOG(AA9))/LOG(2)))) -> -0.4711093925 | AD9: =N9 -> 121 | AE9: =COUNTIF(L45:L64,AD9) -> 7 | AF9: =AE9/(AG4-AE10) -> 0.5384615385 | AG9: =IF(AF9=0,0,(AF9*((LOG(AF9))/LOG(2)))) -> -0.4808918133 | AI9: =N9 -> 121 | AJ9: =COUNTIF(L65:L83,AI9) -> 6 | AK9: =AJ9/(AL4-AJ10) -> 0.3529411765 | AL9: =IF(AK9=0,0,(AK9*((LOG(AK9))/LOG(2)))) -> -0.5302942378 | AN9: =N9 -> 121 | AO9: =COUNTIF(L84:L102,AN9) -> 7 | AP9: =AO9/(AQ4-AO10) -> 0.4117647059 | AQ9: =IF(AP9=0,0,(AP9*((LOG(AP9))/LOG(2)))) -> -0.5271032608 | AS9: =N9 -> 121 | AT9: =COUNTIF(L103:L121,AS9) -> 5 | AU9: =AT9/(AV4-AT10) -> 0.2941176471 | AV9: =IF(AU9=0,0,(AU9*((LOG(AU9))/LOG(2)))) -> -0.5192749254
A10: 22 | B10: 408 | C10: 24 | D10: 429 | E10: 23 | F10: 438 | K10: 0 | L10: 222 | N10: 122 | O10: =COUNTIF($L$7:$L$500,N10) -> 20 | P10: =O10/$Q$4 -> 0.1739130435 | Q10: =IF(P10=0,0,(P10*((LOG(P10))/LOG(2)))) -> -0.4388803402 | T10: =N10 -> 122 | U10: =COUNTIF(L7:L25,T10) -> 6 | Y10: =N10 -> 122 | Z10: =COUNTIF(L26:L44,Y10) -> 1 | AD10: =N10 -> 122 | AE10: =COUNTIF(L45:L64,AD10) -> 7 | AI10: =N10 -> 122 | AJ10: =COUNTIF(L65:L83,AI10) -> 2 | AN10: =N10 -> 122 | AO10: =COUNTIF(L84:L102,AN10) -> 2 | AS10: =N10 -> 122 | AT10: =COUNTIF(L103:L121,AS10) -> 2
A11: 11 | B11: 568 | C11: 22 | D11: 591 | E11: 23 | F11: 598 | K11: 0 | L11: 122 | N11: 211 | O11: =COUNTIF($L$7:$L$500,N11) -> 2 | P11: =O11/$Q$4 -> 0.01739130435 | Q11: =IF(P11=0,0,(P11*((LOG(P11))/LOG(2)))) -> -0.1016606965 | T11: =N11 -> 211 | U11: =COUNTIF(L7:L25,T11) -> 0 | V11: =U11/(W4-U10) -> 0 | W11: =IF(V11=0,0,(V11*((LOG(V11))/LOG(2)))) -> 0 | Y11: =N11 -> 211 | Z11: =COUNTIF(L26:L44,Y11) -> 0 | AA11: =Z11/(AB4-Z10) -> 0 | AB11: =IF(AA11=0,0,(AA11*((LOG(AA11))/LOG(2)))) -> 0 | AD11: =N11 -> 211 | AE11: =COUNTIF(L45:L64,AD11) -> 1 | AF11: =AE11/(AG4-AE10) -> 0.07692307692 | AG11: =IF(AF11=0,0,(AF11*((LOG(AF11))/LOG(2)))) -> -0.2846492091 | AI11: =N11 -> 211 | AJ11: =COUNTIF(L65:L83,AI11) -> 1 | AK11: =AJ11/(AL4-AJ10) -> 0.05882352941 | AL11: =IF(AK11=0,0,(AK11*((LOG(AK11))/LOG(2)))) -> -0.2404389907 | AN11: =N11 -> 211 | AO11: =COUNTIF(L84:L102,AN11) -> 0 | AP11: =AO11/(AQ4-AO10) -> 0 | AQ11: =IF(AP11=0,0,(AP11*((LOG(AP11))/LOG(2)))) -> 0 | AS11: =N11 -> 211 | AT11: =COUNTIF(L103:L121,AS11) -> 0 | AU11: =AT11/(AV4-AT10) -> 0 | AV11: =IF(AU11=0,0,(AU11*((LOG(AU11))/LOG(2)))) -> 0
A12: 22 | B12: 707 | C12: 24 | D12: 714 | E12: 23 | F12: 721 | K12: 0 | L12: 222 | N12: 212 | O12: =COUNTIF($L$7:$L$500,N12) -> 27 | P12: =O12/$Q$4 -> 0.2347826087 | Q12: =IF(P12=0,0,(P12*((LOG(P12))/LOG(2)))) -> -0.4908371201 | T12: =N12 -> 212 | U12: =COUNTIF(L7:L25,T12) -> 3 | V12: =U12/(W4-U10) -> 0.2307692308 | W12: =IF(V12=0,0,(V12*((LOG(V12))/LOG(2)))) -> -0.4881870502 | Y12: =N12 -> 212 | Z12: =COUNTIF(L26:L44,Y12) -> 5 | AA12: =Z12/(AB4-Z10) -> 0.2777777778 | AB12: =IF(AA12=0,0,(AA12*((LOG(AA12))/LOG(2)))) -> -0.513332474 | AD12: =N12 -> 212 | AE12: =COUNTIF(L45:L64,AD12) -> 1 | AF12: =AE12/(AG4-AE10) -> 0.07692307692 | AG12: =IF(AF12=0,0,(AF12*((LOG(AF12))/LOG(2)))) -> -0.2846492091 | AI12: =N12 -> 212 | AJ12: =COUNTIF(L65:L83,AI12) -> 6 | AK12: =AJ12/(AL4-AJ10) -> 0.3529411765 | AL12: =IF(AK12=0,0,(AK12*((LOG(AK12))/LOG(2)))) -> -0.5302942378 | AN12: =N12 -> 212 | AO12: =COUNTIF(L84:L102,AN12) -> 4 | AP12: =AO12/(AQ4-AO10) -> 0.2352941176 | AQ12: =IF(AP12=0,0,(AP12*((LOG(AP12))/LOG(2)))) -> -0.4911677274 | AS12: =N12 -> 212 | AT12: =COUNTIF(L103:L121,AS12) -> 8 | AU12: =AT12/(AV4-AT10) -> 0.4705882353 | AV12: =IF(AU12=0,0,(AU12*((LOG(AU12))/LOG(2)))) -> -0.5117472194
A13: 22 | B13: 823 | C13: 24 | D13: 829 | E13: 23 | F13: 841 | K13: 0 | L13: 222 | N13: 221 | O13: =COUNTIF($L$7:$L$500,N13) -> 15 | P13: =O13/$Q$4 -> 0.1304347826 | Q13: =IF(P13=0,0,(P13*((LOG(P13))/LOG(2)))) -> -0.3832955811 | T13: =N13 -> 221 | U13: =COUNTIF(L7:L25,T13) -> 4 | V13: =U13/(W4-U10) -> 0.3076923077 | W13: =IF(V13=0,0,(V13*((LOG(V13))/LOG(2)))) -> -0.523212221 | Y13: =N13 -> 221 | Z13: =COUNTIF(L26:L44,Y13) -> 3 | AA13: =Z13/(AB4-Z10) -> 0.1666666667 | AB13: =IF(AA13=0,0,(AA13*((LOG(AA13))/LOG(2)))) -> -0.4308270835 | AD13: =N13 -> 221 | AE13: =COUNTIF(L45:L64,AD13) -> 1 | AF13: =AE13/(AG4-AE10) -> 0.07692307692 | AG13: =IF(AF13=0,0,(AF13*((LOG(AF13))/LOG(2)))) -> -0.2846492091 | AI13: =N13 -> 221 | AJ13: =COUNTIF(L65:L83,AI13) -> 2 | AK13: =AJ13/(AL4-AJ10) -> 0.1176470588 | AL13: =IF(AK13=0,0,(AK13*((LOG(AK13))/LOG(2)))) -> -0.3632309225 | AN13: =N13 -> 221 | AO13: =COUNTIF(L84:L102,AN13) -> 2 | AP13: =AO13/(AQ4-AO10) -> 0.1176470588 | AQ13: =IF(AP13=0,0,(AP13*((LOG(AP13))/LOG(2)))) -> -0.3632309225 | AS13: =N13 -> 221 | AT13: =COUNTIF(L103:L121,AS13) -> 3 | AU13: =AT13/(AV4-AT10) -> 0.1764705882 | AV13: =IF(AU13=0,0,(AU13*((LOG(AU13))/LOG(2)))) -> -0.4416177072
A14: 11 | B14: 1167 | C14: 22 | D14: 1179 | E14: 23 | F14: 1187 | K14: 0 | L14: 122 | N14: 222 | O14: =COUNTIF($L$7:$L$500,N14) -> 15 | P14: =O14/$Q$4 -> 0.1304347826 | Q14: =IF(P14=0,0,(P14*((LOG(P14))/LOG(2)))) -> -0.3832955811 | T14: =N14 -> 222 | U14: =COUNTIF(L7:L25,T14) -> 6 | V14: =U14/(W4-U10) -> 0.4615384615 | W14: =IF(V14=0,0,(V14*((LOG(V14))/LOG(2)))) -> -0.5148356388 | Y14: =N14 -> 222 | Z14: =COUNTIF(L26:L44,Y14) -> 0 | AA14: =Z14/(AB4-Z10) -> 0 | AB14: =IF(AA14=0,0,(AA14*((LOG(AA14))/LOG(2)))) -> 0 | AD14: =N14 -> 222 | AE14: =COUNTIF(L45:L64,AD14) -> 2 | AF14: =AE14/(AG4-AE10) -> 0.1538461538 | AG14: =IF(AF14=0,0,(AF14*((LOG(AF14))/LOG(2)))) -> -0.4154522643 | AI14: =N14 -> 222 | AJ14: =COUNTIF(L65:L83,AI14) -> 2 | AK14: =AJ14/(AL4-AJ10) -> 0.1176470588 | AL14: =IF(AK14=0,0,(AK14*((LOG(AK14))/LOG(2)))) -> -0.3632309225 | AN14: =N14 -> 222 | AO14: =COUNTIF(L84:L102,AN14) -> 4 | AP14: =AO14/(AQ4-AO10) -> 0.2352941176 | AQ14: =IF(AP14=0,0,(AP14*((LOG(AP14))/LOG(2)))) -> -0.4911677274 | AS14: =N14 -> 222 | AT14: =COUNTIF(L103:L121,AS14) -> 1 | AU14: =AT14/(AV4-AT10) -> 0.05882352941 | AV14: =IF(AU14=0,0,(AU14*((LOG(AU14))/LOG(2)))) -> -0.2404389907
A15: 11 | B15: 1290 | C15: 22 | D15: 1301 | E15: 23 | F15: 1328 | K15: 0 | L15: 122 | P15: =SUM(P7:P14) -> 1 | Q15: =-SUM(Q7:Q14) -> 2.379819199 | V15: =SUM(V7:V14) -> 1 | W15: =-SUM(W7:W14) -> 1.52623491 | AA15: =SUM(AA7:AA14) -> 1 | AB15: =-SUM(AB7:AB14) -> 1.41526895 | AF15: =SUM(AF7:AF14) -> 1 | AG15: =-SUM(AG7:AG14) -> 2.034940914 | AK15: =SUM(AK7:AK14) -> 1 | AL15: =-SUM(AL7:AL14) -> 2.027489311 | AP15: =SUM(AP7:AP14) -> 1 | AQ15: =-SUM(AQ7:AQ14) -> 1.872669638 | AU15: =SUM(AU7:AU14) -> 1 | AV15: =-SUM(AV7:AV14) -> 1.713078843
A16: 22 | B16: 1507 | C16: 13 | D16: 1523 | E16: 23 | F16: 1535 | K16: 0 | L16: 212 | P16: U= | Q16: =Q15/(LOG(Q4)/LOG(2)) -> 0.3476477479 | V16: U1= | W16: =W15/(LOG(W4)/LOG(2)) -> 0.3592893017 | AA16: U2= | AB16: =AB15/(LOG(AB4)/LOG(2)) -> 0.3331669256 | AF16: U3= | AG16: =AG15/(LOG(AG4)/LOG(2)) -> 0.4708409926 | AK16: U4= | AL16: =AL15/(LOG(AL4)/LOG(2)) -> 0.4772890556 | AP16: U5= | AQ16: =AQ15/(LOG(AQ4)/LOG(2)) -> 0.4408431246 | AU16: U6= | AV16: =AV15/(LOG(AV4)/LOG(2)) -> 0.4032740289
A17: 22 | B17: 1651 | C17: 24 | D17: 1660 | E17: 23 | F17: 1668 | K17: 0 | L17: 222
A18: 11 | B18: 1864 | C18: 22 | D18: 1876 | E18: 23 | F18: 1888 | K18: 0 | L18: 122
A19: 22 | B19: 1990 | C19: 24 | D19: 2019 | E19: 14 | F19: 2036 | K19: 0 | L19: 221 | N19: Total Target Seq
A20: 11 | B20: 2144 | C20: 22 | D20: 2156 | E20: 23 | F20: 2164 | K20: 0 | L20: 122 | N20: =COUNTIF(L7:L121,G3) -> 20 | P20: 19 | Q20: 19 | R20: 20 | S20: 19 | T20: 19 | U20: 19
A21: 22 | B21: 2291 | C21: 24 | D21: 2307 | E21: 14 | F21: 2334 | K21: 0 | L21: 221 | P21: % of reinforcement given in 6 equal intervals based on number of trials
A22: 22 | B22: 2450 | C22: 13 | D22: 2466 | E22: 23 | F22: 2476 | K22: 0 | L22: 212 | P22: %_1 | Q22: %_2 | R22: %_3 | S22: %_4 | T22: %_5 | U22: %_6
A23: 11 | B23: 2576 | C23: 22 | D23: 2587 | E23: 23 | F23: 2595 | K23: 0 | L23: 122 | O23: target sequence | P23: =$G$3 -> 122 | Q23: =$G$3 -> 122 | R23: =$G$3 -> 122 | S23: =$G$3 -> 122 | T23: =$G$3 -> 122 | U23: =$G$3 -> 122
A24: 22 | B24: 2703 | C24: 24 | D24: 2717 | E24: 23 | F24: 2726 | K24: 0 | L24: 222 | O24: total reinforcement | P24: =U10 -> 6 | Q24: =Z10 -> 1 | R24: =AE10 -> 7 | S24: =AJ10 -> 2 | T24: =AO10 -> 2 | U24: =AT10 -> 2
A25: 22 | B25: 2852 | C25: 13 | D25: 2876 | E25: 23 | F25: 2888 | K25: 0 | L25: 212 | O25: % target
A26: 11 | B26: 3014 | C26: 22 | D26: 3026 | E26: 14 | F26: 3040 | K26: 0 | L26: 121 | O26: CCRF
A27: 11 | B27: 3148 | C27: 22 | D27: 3165 | E27: 23 | F27: 3193 | K27: 0 | L27: 122 | O27: % CCRf
A28: 11 | B28: 3326 | C28: 22 | D28: 3339 | E28: 14 | F28: 3353 | K28: 0 | L28: 121 | O28: average response rate | P28: =F25/P20 -> 152 | Q28: =(F44-F25)/Q20 -> 162.4736842 | R28: =(F64-F44)/R20 -> 281.6 | S28: =(F83-F64)/S20 -> 146.1052632 | T28: =(F102-F83)/T20 -> 222.8947368 | U28: =(F121-F102)/U20 -> 273.9473684
A29: 22 | B29: 3489 | C29: 13 | D29: 3508 | E29: 23 | F29: 3521 | K29: 0 | L29: 212
A30: 11 | B30: 3654 | C30: 22 | D30: 3666 | E30: 14 | F30: 3680 | K30: 0 | L30: 121
A31: 22 | B31: 3795 | C31: 13 | D31: 3821 | E31: 23 | F31: 3833 | K31: 0 | L31: 212
A32: 22 | B32: 3944 | C32: 13 | D32: 3961 | E32: 23 | F32: 3974 | K32: 0 | L32: 212
A33: 11 | B33: 4167 | C33: 22 | D33: 4182 | E33: 14 | F33: 4201 | K33: 0 | L33: 121
A34: 11 | B34: 4330 | C34: 22 | D34: 4342 | E34: 14 | F34: 4359 | K34: 0 | L34: 121
A35: 22 | B35: 4514 | C35: 24 | D35: 4535 | E35: 14 | F35: 4553 | K35: 0 | L35: 221
A36: 11 | B36: 4675 | C36: 22 | D36: 4684 | E36: 14 | F36: 4702 | K36: 0 | L36: 121
A37: 11 | B37: 4835 | C37: 22 | D37: 4846 | E37: 14 | F37: 4860 | K37: 0 | L37: 121
A38: 22 | B38: 4984 | C38: 13 | D38: 4998 | E38: 23 | F38: 5011 | K38: 0 | L38: 212
A39: 11 | B39: 5154 | C39: 22 | D39: 5166 | E39: 14 | F39: 5182 | K39: 0 | L39: 121
A40: 22 | B40: 5311 | C40: 24 | D40: 5320 | E40: 14 | F40: 5337 | K40: 0 | L40: 221
A41: 22 | B41: 5492 | C41: 24 | D41: 5525 | E41: 14 | F41: 5547 | K41: 0 | L41: 221
A42: 11 | B42: 5658 | C42: 22 | D42: 5670 | E42: 14 | F42: 5691 | K42: 0 | L42: 121
A43: 11 | B43: 5795 | C43: 22 | D43: 5807 | E43: 14 | F43: 5822 | K43: 0 | L43: 121
A44: 22 | B44: 5926 | C44: 13 | D44: 5963 | E44: 23 | F44: 5975 | K44: 0 | L44: 212
A45: 11 | B45: 6145 | C45: 22 | D45: 6158 | E45: 23 | F45: 6176 | K45: 0 | L45: 122
A46: 11 | B46: 6297 | C46: 22 | D46: 6313 | E46: 14 | F46: 6330 | K46: 0 | L46: 121
A47: 11 | B47: 6466 | C47: 22 | D47: 6479 | E47: 23 | F47: 6496 | K47: 0 | L47: 122
A48: 11 | B48: 6684 | C48: 22 | D48: 6699 | E48: 14 | F48: 6737 | K48: 0 | L48: 121
A49: 22 | B49: 6837 | C49: 24 | D49: 6852 | E49: 14 | F49: 6869 | K49: 0 | L49: 221
A50: 22 | B50: 6966 | C50: 24 | D50: 6976 | E50: 23 | F50: 6986 | K50: 0 | L50: 222
A51: 22 | B51: 7112 | C51: 13 | D51: 7128 | E51: 23 | F51: 7139 | K51: 0 | L51: 212
A52: 11 | B52: 7267 | C52: 22 | D52: 7282 | E52: 14 | F52: 7294 | K52: 0 | L52: 121
A53: 11 | B53: 7513 | C53: 22 | D53: 7530 | E53: 14 | F53: 7542 | K53: 0 | L53: 121
A54: 11 | B54: 7681 | C54: 22 | D54: 7694 | E54: 23 | F54: 7718 | K54: 0 | L54: 122
A55: 11 | B55: 8027 | C55: 22 | D55: 8046 | E55: 23 | F55: 8059 | K55: 0 | L55: 122
A56: 22 | B56: 9249 | C56: 13 | D56: 9278 | E56: 14 | F56: 9312 | K56: 0 | L56: 211
A57: 11 | B57: 9423 | C57: 22 | D57: 9438 | E57: 23 | F57: 9458 | K57: 0 | L57: 122
A58: 22 | B58: 9572 | C58: 24 | D58: 9583 | E58: 23 | F58: 9593 | K58: 0 | L58: 222
A59: 11 | B59: 9768 | C59: 22 | D59: 9780 | E59: 23 | F59: 9795 | K59: 0 | L59: 122
A60: 11 | B60: 10533 | C60: 22 | D60: 10549 | E60: 14 | F60: 10589 | K60: 0 | L60: 121
A61: 11 | B61: 10729 | C61: 22 | D61: 10743 | E61: 14 | F61: 10757 | K61: 0 | L61: 121
A62: 11 | B62: 10919 | C62: 22 | D62: 10934 | E62: 23 | F62: 10957 | K62: 0 | L62: 122
A63: 11 | B63: 11090 | C63: 22 | D63: 11102 | E63: 14 | F63: 11119 | K63: 0 | L63: 121
A64: 11 | B64: 11558 | C64: 11 | D64: 11592 | E64: 21 | F64: 11607 | K64: 0 | L64: 112
A65: 11 | B65: 11712 | C65: 22 | D65: 11724 | E65: 23 | F65: 11732 | K65: 0 | L65: 122
A66: 22 | B66: 11837 | C66: 24 | D66: 11846 | E66: 14 | F66: 11863 | K66: 0 | L66: 221
A67: 22 | B67: 11979 | C67: 13 | D67: 11994 | E67: 23 | F67: 12023 | K67: 0 | L67: 212
A68: 22 | B68: 12133 | C68: 13 | D68: 12146 | E68: 23 | F68: 12157 | K68: 0 | L68: 212
A69: 11 | B69: 12267 | C69: 22 | D69: 12277 | E69: 14 | F69: 12291 | K69: 0 | L69: 121
A70: 22 | B70: 12392 | C70: 13 | D70: 12407 | E70: 23 | F70: 12418 | K70: 0 | L70: 212
A71: 22 | B71: 12530 | C71: 13 | D71: 12544 | E71: 23 | F71: 12554 | K71: 0 | L71: 212
A72: 11 | B72: 12663 | C72: 22 | D72: 12674 | E72: 14 | F72: 12687 | K72: 0 | L72: 121
A73: 22 | B73: 12800 | C73: 24 | D73: 12813 | E73: 23 | F73: 12829 | K73: 0 | L73: 222
A74: 22 | B74: 12929 | C74: 24 | D74: 12938 | E74: 23 | F74: 12947 | K74: 0 | L74: 222
A75: 22 | B75: 13081 | C75: 13 | D75: 13095 | E75: 23 | F75: 13105 | K75: 0 | L75: 212
A76: 22 | B76: 13214 | C76: 13 | D76: 13231 | E76: 14 | F76: 13239 | K76: 0 | L76: 211
A77: 11 | B77: 13341 | C77: 22 | D77: 13354 | E77: 14 | F77: 13374 | K77: 0 | L77: 121
A78: 11 | B78: 13555 | C78: 22 | D78: 13568 | E78: 14 | F78: 13586 | K78: 0 | L78: 121
A79: 11 | B79: 13718 | C79: 22 | D79: 13727 | E79: 14 | F79: 13743 | K79: 0 | L79: 121
A80: 11 | B80: 13889 | C80: 22 | D80: 13902 | E80: 14 | F80: 13918 | K80: 0 | L80: 121
A81: 11 | B81: 14046 | C81: 22 | D81: 14060 | E81: 23 | F81: 14079 | K81: 0 | L81: 122
A82: 22 | B82: 14210 | C82: 13 | D82: 14226 | E82: 23 | F82: 14237 | K82: 0 | L82: 212
A83: 22 | B83: 14351 | C83: 24 | D83: 14361 | E83: 14 | F83: 14383 | K83: 0 | L83: 221
A84: 22 | B84: 14535 | C84: 24 | D84: 14543 | E84: 14 | F84: 14571 | K84: 0 | L84: 221
A85: 11 | B85: 14740 | C85: 22 | D85: 14759 | E85: 14 | F85: 14777 | K85: 0 | L85: 121
A86: 22 | B86: 15324 | C86: 13 | D86: 15344 | E86: 23 | F86: 15361 | K86: 0 | L86: 212
A87: 22 | B87: 15551 | C87: 24 | D87: 15560 | E87: 14 | F87: 15581 | K87: 0 | L87: 221
A88: 22 | B88: 15745 | C88: 24 | D88: 15768 | E88: 23 | F88: 15786 | K88: 0 | L88: 222
A89: 22 | B89: 15906 | C89: 13 | D89: 15925 | E89: 23 | F89: 15940 | K89: 0 | L89: 212
A90: 22 | B90: 16454 | C90: 24 | D90: 16466 | E90: 23 | F90: 16485 | K90: 0 | L90: 222
A91: 11 | B91: 16652 | C91: 22 | D91: 16664 | E91: 14 | F91: 16681 | K91: 0 | L91: 121
A92: 22 | B92: 16805 | C92: 24 | D92: 16813 | E92: 23 | F92: 16823 | K92: 0 | L92: 222
A93: 11 | B93: 17017 | C93: 22 | D93: 17038 | E93: 14 | F93: 17074 | K93: 0 | L93: 121
A94: 22 | B94: 17192 | C94: 13 | D94: 17209 | E94: 23 | F94: 17223 | K94: 0 | L94: 212
A95: 11 | B95: 17396 | C95: 22 | D95: 17408 | E95: 23 | F95: 17424 | K95: 0 | L95: 122
A96: 22 | B96: 17545 | C96: 13 | D96: 17561 | E96: 23 | F96: 17573 | K96: 0 | L96: 212
A97: 22 | B97: 17717 | C97: 24 | D97: 17727 | E97: 23 | F97: 17750 | K97: 0 | L97: 222
A98: 11 | B98: 17880 | C98: 22 | D98: 17894 | E98: 14 | F98: 17911 | K98: 0 | L98: 121
A99: 11 | B99: 18022 | C99: 22 | D99: 18034 | E99: 14 | F99: 18054 | K99: 0 | L99: 121
A100: 11 | B100: 18215 | C100: 22 | D100: 18228 | E100: 14 | F100: 18245 | K100: 0 | L100: 121
A101: 11 | B101: 18392 | C101: 22 | D101: 18406 | E101: 14 | F101: 18425 | K101: 0 | L101: 121
A102: 11 | B102: 18583 | C102: 22 | D102: 18597 | E102: 23 | F102: 18618 | K102: 0 | L102: 122
A103: 11 | B103: 18750 | C103: 22 | D103: 18761 | E103: 14 | F103: 18784 | K103: 0 | L103: 121
A104: 22 | B104: 18902 | C104: 13 | D104: 18924 | E104: 23 | F104: 18935 | K104: 0 | L104: 212
A105: 22 | B105: 19092 | C105: 13 | D105: 19113 | E105: 23 | F105: 19125 | K105: 0 | L105: 212
A106: 22 | B106: 20230 | C106: 24 | D106: 20246 | E106: 14 | F106: 20274 | K106: 0 | L106: 221
A107: 11 | B107: 20520 | C107: 22 | D107: 20533 | E107: 23 | F107: 20556 | K107: 0 | L107: 122
A108: 22 | B108: 20671 | C108: 13 | D108: 20686 | E108: 23 | F108: 20697 | K108: 0 | L108: 212
A109: 22 | B109: 20800 | C109: 24 | D109: 20818 | E109: 14 | F109: 20846 | K109: 0 | L109: 221
A110: 22 | B110: 20976 | C110: 13 | D110: 20997 | E110: 23 | F110: 21015 | K110: 0 | L110: 212
A111: 22 | B111: 21136 | C111: 13 | D111: 21156 | E111: 23 | F111: 21168 | K111: 0 | L111: 212
A112: 11 | B112: 21307 | C112: 22 | D112: 21320 | E112: 14 | F112: 21336 | K112: 0 | L112: 121
A113: 22 | B113: 21454 | C113: 13 | D113: 21473 | E113: 23 | F113: 21484 | K113: 0 | L113: 212
A114: 11 | B114: 21639 | C114: 22 | D114: 21653 | E114: 14 | F114: 21674 | K114: 0 | L114: 121
A115: 11 | B115: 21998 | C115: 22 | D115: 22027 | E115: 23 | F115: 22034 | K115: 0 | L115: 122
A116: 11 | B116: 22158 | C116: 22 | D116: 22169 | E116: 14 | F116: 22189 | K116: 0 | L116: 121
A117: 22 | B117: 22489 | C117: 24 | D117: 22498 | E117: 23 | F117: 22521 | K117: 0 | L117: 222
A118: 22 | B118: 23168 | C118: 24 | D118: 23181 | E118: 14 | F118: 23213 | K118: 0 | L118: 221
A119: 11 | B119: 23324 | C119: 22 | D119: 23336 | E119: 14 | F119: 23356 | K119: 0 | L119: 121
A120: 22 | B120: 23543 | C120: 13 | D120: 23567 | E120: 23 | F120: 23581 | K120: 0 | L120: 212
A121: 22 | B121: 23792 | C121: 13 | D121: 23810 | E121: 23 | F121: 23823 | K121: 0 | L121: 212

Sheet !2011-05-11_08h02m.Subject 52 p
A1: Report for:!2011-05-11_08h02m.Subject 52 phase 2
A2: Date | B2: 2011-05-11 | F2: Group | G2: 0
A3: Hen | B3: 0 | F3: Correct Sequence | G3: =Start!J2 -> 122 | P3: Total Sequences in Data | Q3: =4994-COUNTBLANK(L7:L5000) -> 22 | V3: Total Sequences in Block Data | W3: =COUNTA(L7:L10) -> 4 | AA3: Total Sequences in Block Data | AB3: =COUNTA(L11:L13) -> 3 | AF3: Total Sequences in Block Data | AG3: =COUNTA(L14:L17) -> 4 | AK3: Total Sequences in Block Data | AL3: =COUNTA(L18:L21) -> 4 | AP3: Total Sequences in Block Data | AQ3: =COUNTA(L22:L24) -> 3 | AU3: Total Sequences in Block Data | AV3: =COUNTA(L25:L28) -> 4
A4: Program | B4: 0 | P4: Total Sequences in Summary | Q4: =SUM(O7:O14) -> 22 | V4: Total Sequences in Block Summary | W4: =SUM(U7:U14) -> 4 | AA4: Total Sequences in Block Summary | AB4: =SUM(Z7:Z14) -> 3 | AF4: Total Sequences in Block Summary | AG4: =SUM(AE7:AE14) -> 4 | AK4: Total Sequences in Block Summary | AL4: =SUM(AJ7:AJ14) -> 4 | AP4: Total Sequences in Block Summary | AQ4: =SUM(AO7:AO14) -> 3 | AU4: Total Sequences in Block Summary | AV4: =SUM(AT7:AT14) -> 4
T5: Block 1 | Y5: Block 2 | AD5: Block 3 | AI5: Block 4 | AN5: Block 5 | AS5: Block 6
A6: Sequence Component 1 | B6: Time 1 | C6: Sequence Component 2 | D6: Time 2 | E6: Sequence Component 3 | F6: Time 3 | G6: Sequence Component 4 | H6: Time 4 | I6: Sequence Component 5 | J6: Time 5 | K6: Correct? 0=No 1=Yes | L6: Sequence | N6: Frequency | P6: Relative Frequency | Q6: Variability | T6: Frequency | V6: Relative Frequency | W6: Variability | Y6: Frequency | AA6: Relative Frequency | AB6: Variability | AD6: Frequency | AF6: Relative Frequency | AG6: Variability | AI6: Frequency | AK6: Relative Frequency | AL6: Variability | AN6: Frequency | AP6: Relative Frequency | AQ6: Variability | AS6: Frequency | AU6: Relative Frequency | AV6: Variability
A7: 11 | B7: 15 | C7: 11 | D7: 40 | E7: 21 | F7: 57 | K7: 0 | L7: 112 | N7: 111 | O7: =COUNTIF($L$7:$L$500,N7) -> 0 | P7: =O7/$Q$4 -> 0 | Q7: =IF(P7=0,0,(P7*((LOG(P7))/LOG(2)))) -> 0 | T7: =N7 -> 111 | U7: =COUNTIF(L7:L10,T7) -> 0 | V7: =U7/(W4-U10) -> 0 | W7: =IF(V7=0,0,(V7*((LOG(V7))/LOG(2)))) -> 0 | Y7: =N7 -> 111 | Z7: =COUNTIF(L11:L13,Y7) -> 0 | AA7: =Z7/(AB4-Z10) -> 0 | AB7: =IF(AA7=0,0,(AA7*((LOG(AA7))/LOG(2)))) -> 0 | AD7: =N7 -> 111 | AE7: =COUNTIF(L14:L17,AD7) -> 0 | AF7: =AE7/(AG4-AE10) -> 0 | AG7: =IF(AF7=0,0,(AF7*((LOG(AF7))/LOG(2)))) -> 0 | AI7: =N7 -> 111 | AJ7: =COUNTIF(L18:L21,AI7) -> 0 | AK7: =AJ7/(AL4-AJ10) -> 0 | AL7: =IF(AK7=0,0,(AK7*((LOG(AK7))/LOG(2)))) -> 0 | AN7: =N7 -> 111 | AO7: =COUNTIF(L22:L24,AN7) -> 0 | AP7: =AO7/(AQ4-AO10) -> 0 | AQ7: =IF(AP7=0,0,(AP7*((LOG(AP7))/LOG(2)))) -> 0 | AS7: =N7 -> 111 | AT7: =COUNTIF(L25:L28,AS7) -> 0 | AU7: =AT7/(AV4-AT10) -> 0 | AV7: =IF(AU7=0,0,(AU7*((LOG(AU7))/LOG(2)))) -> 0
A8: 11 | B8: 167 | C8: 22 | D8: 179 | E8: 23 | F8: 185 | K8: 0 | L8: 122 | N8: 112 | O8: =COUNTIF($L$7:$L$500,N8) -> 1 | P8: =O8/$Q$4 -> 0.04545454545 | Q8: =IF(P8=0,0,(P8*((LOG(P8))/LOG(2)))) -> -0.2027014372 | T8: =N8 -> 112 | U8: =COUNTIF(L7:L10,T8) -> 1 | V8: =U8/(W4-U10) -> 0.3333333333 | W8: =IF(V8=0,0,(V8*((LOG(V8))/LOG(2)))) -> -0.5283208336 | Y8: =N8 -> 112 | Z8: =COUNTIF(L11:L13,Y8) -> 0 | AA8: =Z8/(AB4-Z10) -> 0 | AB8: =IF(AA8=0,0,(AA8*((LOG(AA8))/LOG(2)))) -> 0 | AD8: =N8 -> 112 | AE8: =COUNTIF(L14:L17,AD8) -> 0 | AF8: =AE8/(AG4-AE10) -> 0 | AG8: =IF(AF8=0,0,(AF8*((LOG(AF8))/LOG(2)))) -> 0 | AI8: =N8 -> 112 | AJ8: =COUNTIF(L18:L21,AI8) -> 0 | AK8: =AJ8/(AL4-AJ10) -> 0 | AL8: =IF(AK8=0,0,(AK8*((LOG(AK8))/LOG(2)))) -> 0 | AN8: =N8 -> 112 | AO8: =COUNTIF(L22:L24,AN8) -> 0 | AP8: =AO8/(AQ4-AO10) -> 0 | AQ8: =IF(AP8=0,0,(AP8*((LOG(AP8))/LOG(2)))) -> 0 | AS8: =N8 -> 112 | AT8: =COUNTIF(L25:L28,AS8) -> 0 | AU8: =AT8/(AV4-AT10) -> 0 | AV8: =IF(AU8=0,0,(AU8*((LOG(AU8))/LOG(2)))) -> 0
A9: 22 | B9: 285 | C9: 24 | D9: 296 | E9: 23 | F9: 309 | K9: 0 | L9: 222 | N9: 121 | O9: =COUNTIF($L$7:$L$500,N9) -> 2 | P9: =O9/$Q$4 -> 0.09090909091 | Q9: =IF(P9=0,0,(P9*((LOG(P9))/LOG(2)))) -> -0.3144937835 | T9: =N9 -> 121 | U9: =COUNTIF(L7:L10,T9) -> 0 | V9: =U9/(W4-U10) -> 0 | W9: =IF(V9=0,0,(V9*((LOG(V9))/LOG(2)))) -> 0 | Y9: =N9 -> 121 | Z9: =COUNTIF(L11:L13,Y9) -> 0 | AA9: =Z9/(AB4-Z10) -> 0 | AB9: =IF(AA9=0,0,(AA9*((LOG(AA9))/LOG(2)))) -> 0 | AD9: =N9 -> 121 | AE9: =COUNTIF(L14:L17,AD9) -> 1 | AF9: =AE9/(AG4-AE10) -> 0.25 | AG9: =IF(AF9=0,0,(AF9*((LOG(AF9))/LOG(2)))) -> -0.5 | AI9: =N9 -> 121 | AJ9: =COUNTIF(L18:L21,AI9) -> 1 | AK9: =AJ9/(AL4-AJ10) -> 0.25 | AL9: =IF(AK9=0,0,(AK9*((LOG(AK9))/LOG(2)))) -> -0.5 | AN9: =N9 -> 121 | AO9: =COUNTIF(L22:L24,AN9) -> 0 | AP9: =AO9/(AQ4-AO10) -> 0 | AQ9: =IF(AP9=0,0,(AP9*((LOG(AP9))/LOG(2)))) -> 0 | AS9: =N9 -> 121 | AT9: =COUNTIF(L25:L28,AS9) -> 0 | AU9: =AT9/(AV4-AT10) -> 0 | AV9: =IF(AU9=0,0,(AU9*((LOG(AU9))/LOG(2)))) -> 0
A10: 22 | B10: 406 | C10: 24 | D10: 413 | E10: 23 | F10: 425 | K10: 0 | L10: 222 | N10: 122 | O10: =COUNTIF($L$7:$L$500,N10) -> 2 | P10: =O10/$Q$4 -> 0.09090909091 | Q10: =IF(P10=0,0,(P10*((LOG(P10))/LOG(2)))) -> -0.3144937835 | T10: =N10 -> 122 | U10: =COUNTIF(L7:L10,T10) -> 1 | Y10: =N10 -> 122 | Z10: =COUNTIF(L11:L13,Y10) -> 1 | AD10: =N10 -> 122 | AE10: =COUNTIF(L14:L17,AD10) -> 0 | AI10: =N10 -> 122 | AJ10: =COUNTIF(L18:L21,AI10) -> 0 | AN10: =N10 -> 122 | AO10: =COUNTIF(L22:L24,AN10) -> 0 | AS10: =N10 -> 122 | AT10: =COUNTIF(L25:L28,AS10) -> 0
A11: 22 | B11: 538 | C11: 13 | D11: 550 | E11: 23 | F11: 559 | K11: 0 | L11: 212 | N11: 211 | O11: =COUNTIF($L$7:$L$500,N11) -> 0 | P11: =O11/$Q$4 -> 0 | Q11: =IF(P11=0,0,(P11*((LOG(P11))/LOG(2)))) -> 0 | T11: =N11 -> 211 | U11: =COUNTIF(L7:L10,T11) -> 0 | V11: =U11/(W4-U10) -> 0 | W11: =IF(V11=0,0,(V11*((LOG(V11))/LOG(2)))) -> 0 | Y11: =N11 -> 211 | Z11: =COUNTIF(L11:L13,Y11) -> 0 | AA11: =Z11/(AB4-Z10) -> 0 | AB11: =IF(AA11=0,0,(AA11*((LOG(AA11))/LOG(2)))) -> 0 | AD11: =N11 -> 211 | AE11: =COUNTIF(L14:L17,AD11) -> 0 | AF11: =AE11/(AG4-AE10) -> 0 | AG11: =IF(AF11=0,0,(AF11*((LOG(AF11))/LOG(2)))) -> 0 | AI11: =N11 -> 211 | AJ11: =COUNTIF(L18:L21,AI11) -> 0 | AK11: =AJ11/(AL4-AJ10) -> 0 | AL11: =IF(AK11=0,0,(AK11*((LOG(AK11))/LOG(2)))) -> 0 | AN11: =N11 -> 211 | AO11: =COUNTIF(L22:L24,AN11) -> 0 | AP11: =AO11/(AQ4-AO10) -> 0 | AQ11: =IF(AP11=0,0,(AP11*((LOG(AP11))/LOG(2)))) -> 0 | AS11: =N11 -> 211 | AT11: =COUNTIF(L25:L28,AS11) -> 0 | AU11: =AT11/(AV4-AT10) -> 0 | AV11: =IF(AU11=0,0,(AU11*((LOG(AU11))/LOG(2)))) -> 0
A12: 11 | B12: 935 | C12: 22 | D12: 949 | E12: 23 | F12: 965 | K12: 0 | L12: 122 | N12: 212 | O12: =COUNTIF($L$7:$L$500,N12) -> 8 | P12: =O12/$Q$4 -> 0.3636363636 | Q12: =IF(P12=0,0,(P12*((LOG(P12))/LOG(2)))) -> -0.5307024068 | T12: =N12 -> 212 | U12: =COUNTIF(L7:L10,T12) -> 0 | V12: =U12/(W4-U10) -> 0 | W12: =IF(V12=0,0,(V12*((LOG(V12))/LOG(2)))) -> 0 | Y12: =N12 -> 212 | Z12: =COUNTIF(L11:L13,Y12) -> 2 | AA12: =Z12/(AB4-Z10) -> 1 | AB12: =IF(AA12=0,0,(AA12*((LOG(AA12))/LOG(2)))) -> 0 | AD12: =N12 -> 212 | AE12: =COUNTIF(L14:L17,AD12) -> 0 | AF12: =AE12/(AG4-AE10) -> 0 | AG12: =IF(AF12=0,0,(AF12*((LOG(AF12))/LOG(2)))) -> 0 | AI12: =N12 -> 212 | AJ12: =COUNTIF(L18:L21,AI12) -> 2 | AK12: =AJ12/(AL4-AJ10) -> 0.5 | AL12: =IF(AK12=0,0,(AK12*((LOG(AK12))/LOG(2)))) -> -0.5 | AN12: =N12 -> 212 | AO12: =COUNTIF(L22:L24,AN12) -> 2 | AP12: =AO12/(AQ4-AO10) -> 0.6666666667 | AQ12: =IF(AP12=0,0,(AP12*((LOG(AP12))/LOG(2)))) -> -0.3899750005 | AS12: =N12 -> 212 | AT12: =COUNTIF(L25:L28,AS12) -> 2 | AU12: =AT12/(AV4-AT10) -> 0.5 | AV12: =IF(AU12=0,0,(AU12*((LOG(AU12))/LOG(2)))) -> -0.5
A13: 22 | B13: 1077 | C13: 13 | D13: 1090 | E13: 23 | F13: 1100 | K13: 0 | L13: 212 | N13: 221 | O13: =COUNTIF($L$7:$L$500,N13) -> 3 | P13: =O13/$Q$4 -> 0.1363636364 | Q13: =IF(P13=0,0,(P13*((LOG(P13))/LOG(2)))) -> -0.3919730615 | T13: =N13 -> 221 | U13: =COUNTIF(L7:L10,T13) -> 0 | V13: =U13/(W4-U10) -> 0 | W13: =IF(V13=0,0,(V13*((LOG(V13))/LOG(2)))) -> 0 | Y13: =N13 -> 221 | Z13: =COUNTIF(L11:L13,Y13) -> 0 | AA13: =Z13/(AB4-Z10) -> 0 | AB13: =IF(AA13=0,0,(AA13*((LOG(AA13))/LOG(2)))) -> 0 | AD13: =N13 -> 221 | AE13: =COUNTIF(L14:L17,AD13) -> 2 | AF13: =AE13/(AG4-AE10) -> 0.5 | AG13: =IF(AF13=0,0,(AF13*((LOG(AF13))/LOG(2)))) -> -0.5 | AI13: =N13 -> 221 | AJ13: =COUNTIF(L18:L21,AI13) -> 0 | AK13: =AJ13/(AL4-AJ10) -> 0 | AL13: =IF(AK13=0,0,(AK13*((LOG(AK13))/LOG(2)))) -> 0 | AN13: =N13 -> 221 | AO13: =COUNTIF(L22:L24,AN13) -> 0 | AP13: =AO13/(AQ4-AO10) -> 0 | AQ13: =IF(AP13=0,0,(AP13*((LOG(AP13))/LOG(2)))) -> 0 | AS13: =N13 -> 221 | AT13: =COUNTIF(L25:L28,AS13) -> 1 | AU13: =AT13/(AV4-AT10) -> 0.25 | AV13: =IF(AU13=0,0,(AU13*((LOG(AU13))/LOG(2)))) -> -0.5
A14: 22 | B14: 1204 | C14: 24 | D14: 1231 | E14: 14 | F14: 1244 | K14: 0 | L14: 221 | N14: 222 | O14: =COUNTIF($L$7:$L$500,N14) -> 6 | P14: =O14/$Q$4 -> 0.2727272727 | Q14: =IF(P14=0,0,(P14*((LOG(P14))/LOG(2)))) -> -0.5112188503 | T14: =N14 -> 222 | U14: =COUNTIF(L7:L10,T14) -> 2 | V14: =U14/(W4-U10) -> 0.6666666667 | W14: =IF(V14=0,0,(V14*((LOG(V14))/LOG(2)))) -> -0.3899750005 | Y14: =N14 -> 222 | Z14: =COUNTIF(L11:L13,Y14) -> 0 | AA14: =Z14/(AB4-Z10) -> 0 | AB14: =IF(AA14=0,0,(AA14*((LOG(AA14))/LOG(2)))) -> 0 | AD14: =N14 -> 222 | AE14: =COUNTIF(L14:L17,AD14) -> 1 | AF14: =AE14/(AG4-AE10) -> 0.25 | AG14: =IF(AF14=0,0,(AF14*((LOG(AF14))/LOG(2)))) -> -0.5 | AI14: =N14 -> 222 | AJ14: =COUNTIF(L18:L21,AI14) -> 1 | AK14: =AJ14/(AL4-AJ10) -> 0.25 | AL14: =IF(AK14=0,0,(AK14*((LOG(AK14))/LOG(2)))) -> -0.5 | AN14: =N14 -> 222 | AO14: =COUNTIF(L22:L24,AN14) -> 1 | AP14: =AO14/(AQ4-AO10) -> 0.3333333333 | AQ14: =IF(AP14=0,0,(AP14*((LOG(AP14))/LOG(2)))) -> -0.5283208336 | AS14: =N14 -> 222 | AT14: =COUNTIF(L25:L28,AS14) -> 1 | AU14: =AT14/(AV4-AT10) -> 0.25 | AV14: =IF(AU14=0,0,(AU14*((LOG(AU14))/LOG(2)))) -> -0.5
A15: 22 | B15: 1357 | C15: 24 | D15: 1366 | E15: 23 | F15: 1395 | K15: 0 | L15: 222 | P15: =SUM(P7:P14) -> 1 | Q15: =-SUM(Q7:Q14) -> 2.265583323 | V15: =SUM(V7:V14) -> 1 | W15: =-SUM(W7:W14) -> 0.9182958341 | AA15: =SUM(AA7:AA14) -> 1 | AB15: =-SUM(AB7:AB14) -> 0 | AF15: =SUM(AF7:AF14) -> 1 | AG15: =-SUM(AG7:AG14) -> 1.5 | AK15: =SUM(AK7:AK14) -> 1 | AL15: =-SUM(AL7:AL14) -> 1.5 | AP15: =SUM(AP7:AP14) -> 1 | AQ15: =-SUM(AQ7:AQ14) -> 0.9182958341 | AU15: =SUM(AU7:AU14) -> 1 | AV15: =-SUM(AV7:AV14) -> 1.5
A16: 11 | B16: 1527 | C16: 22 | D16: 1537 | E16: 14 | F16: 1551 | K16: 0 | L16: 121 | P16: U= | Q16: =Q15/(LOG(Q4)/LOG(2)) -> 0.5080430684 | V16: U1= | W16: =W15/(LOG(W4)/LOG(2)) -> 0.459147917 | AA16: U2= | AB16: =AB15/(LOG(AB4)/LOG(2)) -> 0 | AF16: U3= | AG16: =AG15/(LOG(AG4)/LOG(2)) -> 0.75 | AK16: U4= | AL16: =AL15/(LOG(AL4)/LOG(2)) -> 0.75 | AP16: U5= | AQ16: =AQ15/(LOG(AQ4)/LOG(2)) -> 0.5793801643 | AU16: U6= | AV16: =AV15/(LOG(AV4)/LOG(2)) -> 0.75
A17: 22 | B17: 1680 | C17: 24 | D17: 1715 | E17: 14 | F17: 1734 | K17: 0 | L17: 221
A18: 11 | B18: 1932 | C18: 22 | D18: 1944 | E18: 14 | F18: 1962 | K18: 0 | L18: 121
A19: 22 | B19: 2106 | C19: 13 | D19: 2121 | E19: 23 | F19: 2132 | K19: 0 | L19: 212 | N19: Total Target Seq
A20: 22 | B20: 4271 | C20: 24 | D20: 4289 | E20: 23 | F20: 4305 | K20: 0 | L20: 222 | N20: =COUNTIF(L7:L28,G3) -> 2 | P20: 4 | Q20: 3 | R20: 4 | S20: 4 | T20: 3 | U20: 4
A21: 22 | B21: 4420 | C21: 13 | D21: 4442 | E21: 23 | F21: 4455 | K21: 0 | L21: 212 | P21: % of reinforcement given in 6 equal intervals based on number of trials
A22: 22 | B22: 4631 | C22: 24 | D22: 4642 | E22: 23 | F22: 4651 | K22: 0 | L22: 222 | P22: %_1 | Q22: %_2 | R22: %_3 | S22: %_4 | T22: %_5 | U22: %_6
A23: 22 | B23: 4813 | C23: 13 | D23: 4833 | E23: 23 | F23: 4844 | K23: 0 | L23: 212 | O23: target sequence | P23: =$G$3 -> 122 | Q23: =$G$3 -> 122 | R23: =$G$3 -> 122 | S23: =$G$3 -> 122 | T23: =$G$3 -> 122 | U23: =$G$3 -> 122
A24: 22 | B24: 4961 | C24: 13 | D24: 4988 | E24: 23 | F24: 4998 | K24: 0 | L24: 212 | O24: total reinforcement | P24: =U10 -> 1 | Q24: =Z10 -> 1 | R24: =AE10 -> 0 | S24: =AJ10 -> 0 | T24: =AO10 -> 0 | U24: =AT10 -> 0
A25: 22 | B25: 5135 | C25: 13 | D25: 5186 | E25: 23 | F25: 5197 | K25: 0 | L25: 212 | O25: % target
A26: 22 | B26: 5354 | C26: 13 | D26: 5375 | E26: 23 | F26: 5385 | K26: 0 | L26: 212 | O26: CCRF
A27: 22 | B27: 5613 | C27: 24 | D27: 5623 | E27: 14 | F27: 7003 | K27: 0 | L27: 221 | O27: % CCRf
A28: 22 | B28: 7406 | C28: 24 | D28: 7416 | E28: 23 | F28: 7454 | K28: 0 | L28: 222 | O28: average response rate | P28: =F10/P20 -> 106.25 | Q28: =(F13-F10)/Q20 -> 225 | R28: =(F17-F13)/R20 -> 158.5 | S28: =(F21-F17)/S20 -> 680.25 | T28: =(F24-F21)/T20 -> 181 | U28: =(F28-F24)/U20 -> 614

Sheet !2011-05-12_08h35m.Subject 52 p
A1: Report for:!2011-05-12_08h35m.Subject 52 phase 2
A2: Date | B2: 2011-05-12 | F2: Group | G2: 0
A3: Hen | B3: 0 | F3: Correct Sequence | G3: =Start!J2 -> 122 | P3: Total Sequences in Data | Q3: =4994-COUNTBLANK(L7:L5000) -> 174 | V3: Total Sequences in Block Data | W3: =COUNTA(L7:L35) -> 29 | AA3: Total Sequences in Block Data | AB3: =COUNTA(L36:L64) -> 29 | AF3: Total Sequences in Block Data | AG3: =COUNTA(L65:L93) -> 29 | AK3: Total Sequences in Block Data | AL3: =COUNTA(L94:L122) -> 29 | AP3: Total Sequences in Block Data | AQ3: =COUNTA(L123:L151) -> 29 | AU3: Total Sequences in Block Data | AV3: =COUNTA(L152:L180) -> 29
A4: Program | B4: 0 | P4: Total Sequences in Summary | Q4: =SUM(O7:O14) -> 173 | V4: Total Sequences in Block Summary | W4: =SUM(U7:U14) -> 29 | AA4: Total Sequences in Block Summary | AB4: =SUM(Z7:Z14) -> 29 | AF4: Total Sequences in Block Summary | AG4: =SUM(AE7:AE14) -> 29 | AK4: Total Sequences in Block Summary | AL4: =SUM(AJ7:AJ14) -> 29 | AP4: Total Sequences in Block Summary | AQ4: =SUM(AO7:AO14) -> 29 | AU4: Total Sequences in Block Summary | AV4: =SUM(AT7:AT14) -> 28
T5: Block 1 | Y5: Block 2 | AD5: Block 3 | AI5: Block 4 | AN5: Block 5 | AS5: Block 6
A6: Sequence Component 1 | B6: Time 1 | C6: Sequence Component 2 | D6: Time 2 | E6: Sequence Component 3 | F6: Time 3 | G6: Sequence Component 4 | H6: Time 4 | I6: Sequence Component 5 | J6: Time 5 | K6: Correct? 0=No 1=Yes | L6: Sequence | N6: Frequency | P6: Relative Frequency | Q6: Variability | T6: Frequency | V6: Relative Frequency | W6: Variability | Y6: Frequency | AA6: Relative Frequency | AB6: Variability | AD6: Frequency | AF6: Relative Frequency | AG6: Variability | AI6: Frequency | AK6: Relative Frequency | AL6: Variability | AN6: Frequency | AP6: Relative Frequency | AQ6: Variability | AS6: Frequency | AU6: Relative Frequency | AV6: Variability
A7: 22 | B7: 14 | C7: 13 | D7: 23 | E7: 23 | F7: 33 | K7: 0 | L7: 212 | N7: 111 | O7: =COUNTIF($L$7:$L$500,N7) -> 0 | P7: =O7/$Q$4 -> 0 | Q7: =IF(P7=0,0,(P7*((LOG(P7))/LOG(2)))) -> 0 | T7: =N7 -> 111 | U7: =COUNTIF(L7:L35,T7) -> 0 | V7: =U7/(W4-U10) -> 0 | W7: =IF(V7=0,0,(V7*((LOG(V7))/LOG(2)))) -> 0 | Y7: =N7 -> 111 | Z7: =COUNTIF(L36:L64,Y7) -> 0 | AA7: =Z7/(AB4-Z10) -> 0 | AB7: =IF(AA7=0,0,(AA7*((LOG(AA7))/LOG(2)))) -> 0 | AD7: =N7 -> 111 | AE7: =COUNTIF(L65:L93,AD7) -> 0 | AF7: =AE7/(AG4-AE10) -> 0 | AG7: =IF(AF7=0,0,(AF7*((LOG(AF7))/LOG(2)))) -> 0 | AI7: =N7 -> 111 | AJ7: =COUNTIF(L94:L122,AI7) -> 0 | AK7: =AJ7/(AL4-AJ10) -> 0 | AL7: =IF(AK7=0,0,(AK7*((LOG(AK7))/LOG(2)))) -> 0 | AN7: =N7 -> 111 | AO7: =COUNTIF(L123:L151,AN7) -> 0 | AP7: =AO7/(AQ4-AO10) -> 0 | AQ7: =IF(AP7=0,0,(AP7*((LOG(AP7))/LOG(2)))) -> 0 | AS7: =N7 -> 111 | AT7: =COUNTIF(L152:L180,AS7) -> 0 | AU7: =AT7/(AV4-AT10) -> 0 | AV7: =IF(AU7=0,0,(AU7*((LOG(AU7))/LOG(2)))) -> 0
A8: 11 | B8: 131 | C8: 22 | D8: 139 | E8: 14 | F8: 147 | K8: 0 | L8: 121 | N8: 112 | O8: =COUNTIF($L$7:$L$500,N8) -> 5 | P8: =O8/$Q$4 -> 0.0289017341 | Q8: =IF(P8=0,0,(P8*((LOG(P8))/LOG(2)))) -> -0.1477658998 | T8: =N8 -> 112 | U8: =COUNTIF(L7:L35,T8) -> 2 | V8: =U8/(W4-U10) -> 0.08 | W8: =IF(V8=0,0,(V8*((LOG(V8))/LOG(2)))) -> -0.2915084952 | Y8: =N8 -> 112 | Z8: =COUNTIF(L36:L64,Y8) -> 0 | AA8: =Z8/(AB4-Z10) -> 0 | AB8: =IF(AA8=0,0,(AA8*((LOG(AA8))/LOG(2)))) -> 0 | AD8: =N8 -> 112 | AE8: =COUNTIF(L65:L93,AD8) -> 1 | AF8: =AE8/(AG4-AE10) -> 0.03703703704 | AG8: =IF(AF8=0,0,(AF8*((LOG(AF8))/LOG(2)))) -> -0.1761069445 | AI8: =N8 -> 112 | AJ8: =COUNTIF(L94:L122,AI8) -> 1 | AK8: =AJ8/(AL4-AJ10) -> 0.03846153846 | AL8: =IF(AK8=0,0,(AK8*((LOG(AK8))/LOG(2)))) -> -0.180786143 | AN8: =N8 -> 112 | AO8: =COUNTIF(L123:L151,AN8) -> 0 | AP8: =AO8/(AQ4-AO10) -> 0 | AQ8: =IF(AP8=0,0,(AP8*((LOG(AP8))/LOG(2)))) -> 0 | AS8: =N8 -> 112 | AT8: =COUNTIF(L152:L180,AS8) -> 1 | AU8: =AT8/(AV4-AT10) -> 0.04 | AV8: =IF(AU8=0,0,(AU8*((LOG(AU8))/LOG(2)))) -> -0.1857542476
A9: 22 | B9: 250 | C9: 13 | D9: 261 | E9: 23 | F9: 274 | K9: 0 | L9: 212 | N9: 121 | O9: =COUNTIF($L$7:$L$500,N9) -> 37 | P9: =O9/$Q$4 -> 0.2138728324 | Q9: =IF(P9=0,0,(P9*((LOG(P9))/LOG(2)))) -> -0.4759044503 | T9: =N9 -> 121 | U9: =COUNTIF(L7:L35,T9) -> 1 | V9: =U9/(W4-U10) -> 0.04 | W9: =IF(V9=0,0,(V9*((LOG(V9))/LOG(2)))) -> -0.1857542476 | Y9: =N9 -> 121 | Z9: =COUNTIF(L36:L64,Y9) -> 3 | AA9: =Z9/(AB4-Z10) -> 0.1363636364 | AB9: =IF(AA9=0,0,(AA9*((LOG(AA9))/LOG(2)))) -> -0.3919730615 | AD9: =N9 -> 121 | AE9: =COUNTIF(L65:L93,AD9) -> 10 | AF9: =AE9/(AG4-AE10) -> 0.3703703704 | AG9: =IF(AF9=0,0,(AF9*((LOG(AF9))/LOG(2)))) -> -0.5307257064 | AI9: =N9 -> 121 | AJ9: =COUNTIF(L94:L122,AI9) -> 8 | AK9: =AJ9/(AL4-AJ10) -> 0.3076923077 | AL9: =IF(AK9=0,0,(AK9*((LOG(AK9))/LOG(2)))) -> -0.523212221 | AN9: =N9 -> 121 | AO9: =COUNTIF(L123:L151,AN9) -> 7 | AP9: =AO9/(AQ4-AO10) -> 0.2592592593 | AQ9: =IF(AP9=0,0,(AP9*((LOG(AP9))/LOG(2)))) -> -0.5049158541 | AS9: =N9 -> 121 | AT9: =COUNTIF(L152:L180,AS9) -> 8 | AU9: =AT9/(AV4-AT10) -> 0.32 | AV9: =IF(AU9=0,0,(AU9*((LOG(AU9))/LOG(2)))) -> -0.5260339807
A10: 22 | B10: 373 | C10: 13 | D10: 381 | E10: 23 | F10: 399 | K10: 0 | L10: 212 | N10: 122 | O10: =COUNTIF($L$7:$L$500,N10) -> 21 | P10: =O10/$Q$4 -> 0.1213872832 | Q10: =IF(P10=0,0,(P10*((LOG(P10))/LOG(2)))) -> -0.3692978434 | T10: =N10 -> 122 | U10: =COUNTIF(L7:L35,T10) -> 4 | Y10: =N10 -> 122 | Z10: =COUNTIF(L36:L64,Y10) -> 7 | AD10: =N10 -> 122 | AE10: =COUNTIF(L65:L93,AD10) -> 2 | AI10: =N10 -> 122 | AJ10: =COUNTIF(L94:L122,AI10) -> 3 | AN10: =N10 -> 122 | AO10: =COUNTIF(L123:L151,AN10) -> 2 | AS10: =N10 -> 122 | AT10: =COUNTIF(L152:L180,AS10) -> 3
A11: 22 | B11: 500 | C11: 13 | D11: 512 | E11: 23 | F11: 523 | K11: 0 | L11: 212 | N11: 211 | O11: =COUNTIF($L$7:$L$500,N11) -> 8 | P11: =O11/$Q$4 -> 0.04624277457 | Q11: =IF(P11=0,0,(P11*((LOG(P11))/LOG(2)))) -> -0.2050695134 | T11: =N11 -> 211 | U11: =COUNTIF(L7:L35,T11) -> 1 | V11: =U11/(W4-U10) -> 0.04 | W11: =IF(V11=0,0,(V11*((LOG(V11))/LOG(2)))) -> -0.1857542476 | Y11: =N11 -> 211 | Z11: =COUNTIF(L36:L64,Y11) -> 3 | AA11: =Z11/(AB4-Z10) -> 0.1363636364 | AB11: =IF(AA11=0,0,(AA11*((LOG(AA11))/LOG(2)))) -> -0.3919730615 | AD11: =N11 -> 211 | AE11: =COUNTIF(L65:L93,AD11) -> 0 | AF11: =AE11/(AG4-AE10) -> 0 | AG11: =IF(AF11=0,0,(AF11*((LOG(AF11))/LOG(2)))) -> 0 | AI11: =N11 -> 211 | AJ11: =COUNTIF(L94:L122,AI11) -> 0 | AK11: =AJ11/(AL4-AJ10) -> 0 | AL11: =IF(AK11=0,0,(AK11*((LOG(AK11))/LOG(2)))) -> 0 | AN11: =N11 -> 211 | AO11: =COUNTIF(L123:L151,AN11) -> 3 | AP11: =AO11/(AQ4-AO10) -> 0.1111111111 | AQ11: =IF(AP11=0,0,(AP11*((LOG(AP11))/LOG(2)))) -> -0.352213889 | AS11: =N11 -> 211 | AT11: =COUNTIF(L152:L180,AS11) -> 1 | AU11: =AT11/(AV4-AT10) -> 0.04 | AV11: =IF(AU11=0,0,(AU11*((LOG(AU11))/LOG(2)))) -> -0.1857542476
A12: 11 | B12: 625 | C12: 22 | D12: 639 | E12: 23 | F12: 647 | K12: 0 | L12: 122 | N12: 212 | O12: =COUNTIF($L$7:$L$500,N12) -> 51 | P12: =O12/$Q$4 -> 0.2947976879 | Q12: =IF(P12=0,0,(P12*((LOG(P12))/LOG(2)))) -> -0.5194933362 | T12: =N12 -> 212 | U12: =COUNTIF(L7:L35,T12) -> 8 | V12: =U12/(W4-U10) -> 0.32 | W12: =IF(V12=0,0,(V12*((LOG(V12))/LOG(2)))) -> -0.5260339807 | Y12: =N12 -> 212 | Z12: =COUNTIF(L36:L64,Y12) -> 3 | AA12: =Z12/(AB4-Z10) -> 0.1363636364 | AB12: =IF(AA12=0,0,(AA12*((LOG(AA12))/LOG(2)))) -> -0.3919730615 | AD12: =N12 -> 212 | AE12: =COUNTIF(L65:L93,AD12) -> 11 | AF12: =AE12/(AG4-AE10) -> 0.4074074074 | AG12: =IF(AF12=0,0,(AF12*((LOG(AF12))/LOG(2)))) -> -0.5277783229 | AI12: =N12 -> 212 | AJ12: =COUNTIF(L94:L122,AI12) -> 9 | AK12: =AJ12/(AL4-AJ10) -> 0.3461538462 | AL12: =IF(AK12=0,0,(AK12*((LOG(AK12))/LOG(2)))) -> -0.5297935558 | AN12: =N12 -> 212 | AO12: =COUNTIF(L123:L151,AN12) -> 9 | AP12: =AO12/(AQ4-AO10) -> 0.3333333333 | AQ12: =IF(AP12=0,0,(AP12*((LOG(AP12))/LOG(2)))) -> -0.5283208336 | AS12: =N12 -> 212 | AT12: =COUNTIF(L152:L180,AS12) -> 11 | AU12: =AT12/(AV4-AT10) -> 0.44 | AV12: =IF(AU12=0,0,(AU12*((LOG(AU12))/LOG(2)))) -> -0.5211468113
A13: 11 | B13: 753 | C13: 22 | D13: 763 | E13: 23 | F13: 770 | K13: 0 | L13: 122 | N13: 221 | O13: =COUNTIF($L$7:$L$500,N13) -> 25 | P13: =O13/$Q$4 -> 0.1445086705 | Q13: =IF(P13=0,0,(P13*((LOG(P13))/LOG(2)))) -> -0.4032907569 | T13: =N13 -> 221 | U13: =COUNTIF(L7:L35,T13) -> 4 | V13: =U13/(W4-U10) -> 0.16 | W13: =IF(V13=0,0,(V13*((LOG(V13))/LOG(2)))) -> -0.4230169904 | Y13: =N13 -> 221 | Z13: =COUNTIF(L36:L64,Y13) -> 5 | AA13: =Z13/(AB4-Z10) -> 0.2272727273 | AB13: =IF(AA13=0,0,(AA13*((LOG(AA13))/LOG(2)))) -> -0.4857962554 | AD13: =N13 -> 221 | AE13: =COUNTIF(L65:L93,AD13) -> 4 | AF13: =AE13/(AG4-AE10) -> 0.1481481481 | AG13: =IF(AF13=0,0,(AF13*((LOG(AF13))/LOG(2)))) -> -0.4081314818 | AI13: =N13 -> 221 | AJ13: =COUNTIF(L94:L122,AI13) -> 3 | AK13: =AJ13/(AL4-AJ10) -> 0.1153846154 | AL13: =IF(AK13=0,0,(AK13*((LOG(AK13))/LOG(2)))) -> -0.3594781405 | AN13: =N13 -> 221 | AO13: =COUNTIF(L123:L151,AN13) -> 5 | AP13: =AO13/(AQ4-AO10) -> 0.1851851852 | AQ13: =IF(AP13=0,0,(AP13*((LOG(AP13))/LOG(2)))) -> -0.4505480384 | AS13: =N13 -> 221 | AT13: =COUNTIF(L152:L180,AS13) -> 4 | AU13: =AT13/(AV4-AT10) -> 0.16 | AV13: =IF(AU13=0,0,(AU13*((LOG(AU13))/LOG(2)))) -> -0.4230169904
A14: 22 | B14: 876 | C14: 13 | D14: 898 | E14: 23 | F14: 910 | K14: 0 | L14: 212 | N14: 222 | O14: =COUNTIF($L$7:$L$500,N14) -> 26 | P14: =O14/$Q$4 -> 0.1502890173 | Q14: =IF(P14=0,0,(P14*((LOG(P14))/LOG(2)))) -> -0.4109185043 | T14: =N14 -> 222 | U14: =COUNTIF(L7:L35,T14) -> 9 | V14: =U14/(W4-U10) -> 0.36 | W14: =IF(V14=0,0,(V14*((LOG(V14))/LOG(2)))) -> -0.5306152278 | Y14: =N14 -> 222 | Z14: =COUNTIF(L36:L64,Y14) -> 8 | AA14: =Z14/(AB4-Z10) -> 0.3636363636 | AB14: =IF(AA14=0,0,(AA14*((LOG(AA14))/LOG(2)))) -> -0.5307024068 | AD14: =N14 -> 222 | AE14: =COUNTIF(L65:L93,AD14) -> 1 | AF14: =AE14/(AG4-AE10) -> 0.03703703704 | AG14: =IF(AF14=0,0,(AF14*((LOG(AF14))/LOG(2)))) -> -0.1761069445 | AI14: =N14 -> 222 | AJ14: =COUNTIF(L94:L122,AI14) -> 5 | AK14: =AJ14/(AL4-AJ10) -> 0.1923076923 | AL14: =IF(AK14=0,0,(AK14*((LOG(AK14))/LOG(2)))) -> -0.4574060814 | AN14: =N14 -> 222 | AO14: =COUNTIF(L123:L151,AN14) -> 3 | AP14: =AO14/(AQ4-AO10) -> 0.1111111111 | AQ14: =IF(AP14=0,0,(AP14*((LOG(AP14))/LOG(2)))) -> -0.352213889 | AS14: =N14 -> 222 | AT14: =COUNTIF(L152:L180,AS14) -> 0 | AU14: =AT14/(AV4-AT10) -> 0 | AV14: =IF(AU14=0,0,(AU14*((LOG(AU14))/LOG(2)))) -> 0
A15: 11 | B15: 1010 | C15: 22 | D15: 1019 | E15: 23 | F15: 1047 | K15: 0 | L15: 122 | P15: =SUM(P7:P14) -> 1 | Q15: =-SUM(Q7:Q14) -> 2.531740304 | V15: =SUM(V7:V14) -> 1 | W15: =-SUM(W7:W14) -> 2.142683189 | AA15: =SUM(AA7:AA14) -> 1 | AB15: =-SUM(AB7:AB14) -> 2.192417847 | AF15: =SUM(AF7:AF14) -> 1 | AG15: =-SUM(AG7:AG14) -> 1.8188494 | AK15: =SUM(AK7:AK14) -> 1 | AL15: =-SUM(AL7:AL14) -> 2.050676142 | AP15: =SUM(AP7:AP14) -> 1 | AQ15: =-SUM(AQ7:AQ14) -> 2.188212504 | AU15: =SUM(AU7:AU14) -> 1 | AV15: =-SUM(AV7:AV14) -> 1.841706278
A16: 22 | B16: 1146 | C16: 13 | D16: 1156 | E16: 23 | F16: 1172 | K16: 0 | L16: 212 | P16: U= | Q16: =Q15/(LOG(Q4)/LOG(2)) -> 0.3405335448 | V16: U1= | W16: =W15/(LOG(W4)/LOG(2)) -> 0.4410645475 | AA16: U2= | AB16: =AB15/(LOG(AB4)/LOG(2)) -> 0.4513022692 | AF16: U3= | AG16: =AG15/(LOG(AG4)/LOG(2)) -> 0.3744043877 | AK16: U4= | AL16: =AL15/(LOG(AL4)/LOG(2)) -> 0.4221251882 | AP16: U5= | AQ16: =AQ15/(LOG(AQ4)/LOG(2)) -> 0.4504366127 | AU16: U6= | AV16: =AV15/(LOG(AV4)/LOG(2)) -> 0.3831017904
A17: 22 | B17: 1289 | C17: 24 | D17: 1296 | E17: 14 | F17: 1310 | K17: 0 | L17: 221
A18: 11 | B18: 1421 | C18: 11 | D18: 1425 | E18: 21 | F18: 1440 | K18: 0 | L18: 112
A19: 22 | B19: 1535 | C19: 24 | D19: 1547 | E19: 23 | F19: 1556 | K19: 0 | L19: 222 | N19: Total Target Seq
A20: 22 | B20: 1658 | C20: 24 | D20: 1673 | E20: 23 | F20: 1692 | K20: 0 | L20: 222 | N20: =COUNTIF(L7:L180,G3) -> 21 | P20: 29 | Q20: 29 | R20: 29 | S20: 29 | T20: 29 | U20: 29
A21: 22 | B21: 1792 | C21: 24 | D21: 1798 | E21: 23 | F21: 1804 | K21: 0 | L21: 222 | P21: % of reinforcement given in 6 equal intervals based on number of trials
A22: 22 | B22: 1911 | C22: 24 | D22: 1920 | E22: 23 | F22: 1941 | K22: 0 | L22: 222 | P22: %_1 | Q22: %_2 | R22: %_3 | S22: %_4 | T22: %_5 | U22: %_6
A23: 22 | B23: 2065 | C23: 24 | D23: 2080 | E23: 23 | F23: 2092 | K23: 0 | L23: 222 | O23: target sequence | P23: =$G$3 -> 122 | Q23: =$G$3 -> 122 | R23: =$G$3 -> 122 | S23: =$G$3 -> 122 | T23: =$G$3 -> 122 | U23: =$G$3 -> 122
A24: 22 | B24: 2195 | C24: 24 | D24: 2206 | E24: 23 | F24: 2213 | K24: 0 | L24: 222 | O24: total reinforcement | P24: =U10 -> 4 | Q24: =Z10 -> 7 | R24: =AE10 -> 2 | S24: =AJ10 -> 3 | T24: =AO10 -> 2 | U24: =AT10 -> 3
A25: 22 | B25: 2317 | C25: 24 | D25: 2342 | E25: 14 | F25: 2355 | K25: 0 | L25: 221 | O25: % target
A26: 22 | B26: 2456 | C26: 13 | D26: 2469 | E26: 23 | F26: 2477 | K26: 0 | L26: 212 | O26: CCRF
A27: 22 | B27: 2577 | C27: 24 | D27: 2586 | E27: 14 | F27: 2598 | K27: 0 | L27: 221 | O27: % CCRf
A28: 22 | B28: 2718 | C28: 13 | D28: 2732 | E28: 23 | F28: 2744 | K28: 0 | L28: 212 | O28: average response rate | P28: =F35/P20 -> 125.0689655 | Q28: =(F64-F35)/Q20 -> 129.6896552 | R28: =(F93-F64)/R20 -> 138.3448276 | S28: =(F122-F93)/S20 -> 143.8275862 | T28: =(F151-F122)/T20 -> 145.4482759 | U28: =(F180-F151)/U20 -> -682.3793103
A29: 22 | B29: 2850 | C29: 13 | D29: 2861 | E29: 14 | F29: 2868 | K29: 0 | L29: 211
A30: 22 | B30: 2967 | C30: 24 | D30: 2987 | E30: 23 | F30: 2995 | K30: 0 | L30: 222
A31: 22 | B31: 3100 | C31: 24 | D31: 3108 | E31: 23 | F31: 3128 | K31: 0 | L31: 222
A32: 11 | B32: 3229 | C32: 11 | D32: 3247 | E32: 21 | F32: 3258 | K32: 0 | L32: 112
A33: 11 | B33: 3356 | C33: 22 | D33: 3364 | E33: 23 | F33: 3372 | K33: 0 | L33: 122
A34: 22 | B34: 3479 | C34: 24 | D34: 3491 | E34: 14 | F34: 3504 | K34: 0 | L34: 221
A35: 22 | B35: 3602 | C35: 24 | D35: 3614 | E35: 23 | F35: 3627 | K35: 0 | L35: 222
A36: 22 | B36: 3742 | C36: 24 | D36: 3756 | E36: 23 | F36: 3770 | K36: 0 | L36: 222
A37: 22 | B37: 3872 | C37: 24 | D37: 3886 | E37: 23 | F37: 3892 | K37: 0 | L37: 222
A38: 11 | B38: 3990 | C38: 22 | D38: 3999 | E38: 23 | F38: 4011 | K38: 0 | L38: 122
A39: 22 | B39: 4108 | C39: 24 | D39: 4117 | E39: 23 | F39: 4129 | K39: 0 | L39: 222
A40: 22 | B40: 4230 | C40: 24 | D40: 4243 | E40: 23 | F40: 4255 | K40: 0 | L40: 222
A41: 22 | B41: 4362 | C41: 24 | D41: 4370 | E41: 14 | F41: 4382 | K41: 0 | L41: 221
A42: 22 | B42: 4483 | C42: 13 | D42: 4495 | E42: 14 | F42: 4500 | K42: 0 | L42: 211
A43: 22 | B43: 4617 | C43: 13 | D43: 4629 | E43: 14 | F43: 4636 | K43: 0 | L43: 211
A44: 11 | B44: 4749 | C44: 22 | D44: 4757 | E44: 23 | F44: 4765 | K44: 0 | L44: 122
A45: 22 | B45: 4864 | C45: 24 | D45: 4874 | E45: 14 | F45: 4887 | K45: 0 | L45: 221
A46: 22 | B46: 4988 | C46: 24 | D46: 4999 | E46: 23 | F46: 5011 | K46: 0 | L46: 222
A47: 22 | B47: 5120 | C47: 24 | D47: 5127 | E47: 23 | F47: 5139 | K47: 0 | L47: 222
A48: 22 | B48: 5236 | C48: 24 | D48: 5251 | E48: 23 | F48: 5259 | K48: 0 | L48: 222
A49: 11 | B49: 5368 | C49: 22 | D49: 5379 | E49: 23 | F49: 5389 | K49: 0 | L49: 122
A50: 22 | B50: 5493 | C50: 24 | D50: 5504 | E50: 14 | F50: 5518 | K50: 0 | L50: 221
A51: 11 | B51: 5620 | C51: 22 | D51: 5629 | E51: 23 | F51: 5640 | K51: 0 | L51: 122
A52: 22 | B52: 5793 | C52: 13 | D52: 5808 | E52: 23 | F52: 5819 | K52: 0 | L52: 212
A53: 11 | B53: 5927 | C53: 22 | D53: 5937 | E53: 23 | F53: 5945 | K53: 0 | L53: 122
A54: 22 | B54: 6042 | C54: 24 | D54: 6049 | E54: 14 | F54: 6061 | K54: 0 | L54: 221
A55: 22 | B55: 6167 | C55: 24 | D55: 6179 | E55: 23 | F55: 6188 | K55: 0 | L55: 222
A56: 22 | B56: 6293 | C56: 13 | D56: 6309 | E56: 23 | F56: 6317 | K56: 0 | L56: 212
A57: 22 | B57: 6438 | C57: 13 | D57: 6449 | E57: 14 | F57: 6468 | K57: 0 | L57: 211
A58: 11 | B58: 6565 | C58: 22 | D58: 6576 | E58: 23 | F58: 6590 | K58: 0 | L58: 122
A59: 11 | B59: 6702 | C59: 22 | D59: 6710 | E59: 14 | F59: 6721 | K59: 0 | L59: 121
A60: 22 | B60: 6825 | C60: 13 | D60: 6836 | E60: 23 | F60: 6844 | K60: 0 | L60: 212
A61: 11 | B61: 6960 | C61: 22 | D61: 6971 | E61: 23 | F61: 6988 | K61: 0 | L61: 122
A62: 22 | B62: 7091 | C62: 24 | D62: 7105 | E62: 14 | F62: 7119 | K62: 0 | L62: 221
A63: 11 | B63: 7240 | C63: 22 | D63: 7248 | E63: 14 | F63: 7260 | K63: 0 | L63: 121
A64: 11 | B64: 7365 | C64: 22 | D64: 7375 | E64: 14 | F64: 7388 | K64: 0 | L64: 121
A65: 22 | B65: 7485 | C65: 13 | D65: 7498 | E65: 23 | F65: 7510 | K65: 0 | L65: 212
A66: 22 | B66: 7615 | C66: 13 | D66: 7628 | E66: 23 | F66: 7637 | K66: 0 | L66: 212
A67: 11 | B67: 7746 | C67: 22 | D67: 7756 | E67: 14 | F67: 7768 | K67: 0 | L67: 121
A68: 22 | B68: 7907 | C68: 13 | D68: 7924 | E68: 23 | F68: 7936 | K68: 0 | L68: 212
A69: 11 | B69: 8039 | C69: 22 | D69: 8050 | E69: 23 | F69: 8063 | K69: 0 | L69: 122
A70: 22 | B70: 8179 | C70: 13 | D70: 8192 | E70: 23 | F70: 8202 | K70: 0 | L70: 212
A71: 11 | B71: 8307 | C71: 22 | D71: 8316 | E71: 14 | F71: 8331 | K71: 0 | L71: 121
A72: 11 | B72: 8444 | C72: 22 | D72: 8454 | E72: 23 | F72: 8463 | K72: 0 | L72: 122
A73: 11 | B73: 8576 | C73: 22 | D73: 8584 | E73: 14 | F73: 8598 | K73: 0 | L73: 121
A74: 22 | B74: 8711 | C74: 24 | D74: 8717 | E74: 23 | F74: 8731 | K74: 0 | L74: 222
A75: 11 | B75: 8843 | C75: 22 | D75: 8852 | E75: 14 | F75: 8866 | K75: 0 | L75: 121
A76: 11 | B76: 8998 | C76: 22 | D76: 9007 | E76: 14 | F76: 9021 | K76: 0 | L76: 121
A77: 11 | B77: 9135 | C77: 22 | D77: 9147 | E77: 14 | F77: 9162 | K77: 0 | L77: 121
A78: 22 | B78: 9286 | C78: 13 | D78: 9301 | E78: 23 | F78: 9312 | K78: 0 | L78: 212
A79: 22 | B79: 9424 | C79: 24 | D79: 9438 | E79: 14 | F79: 9453 | K79: 0 | L79: 221
A80: 11 | B80: 9553 | C80: 22 | D80: 9567 | E80: 14 | F80: 9583 | K80: 0 | L80: 121
A81: 22 | B81: 9715 | C81: 24 | D81: 9746 | E81: 14 | F81: 9759 | K81: 0 | L81: 221
A82: 11 | B82: 9866 | C82: 22 | D82: 9879 | E82: 14 | F82: 9894 | K82: 0 | L82: 121
A83: 11 | B83: 10004 | C83: 22 | D83: 10013 | E83: 14 | F83: 10025 | K83: 0 | L83: 121
A84: 11 | B84: 10157 | C84: 11 | D84: 10172 | E84: 21 | F84: 10180 | K84: 0 | L84: 112
A85: 22 | B85: 10283 | C85: 24 | D85: 10292 | E85: 14 | F85: 10305 | K85: 0 | L85: 221
A86: 22 | B86: 10407 | C86: 24 | D86: 10421 | E86: 14 | F86: 10431 | K86: 0 | L86: 221
A87: 22 | B87: 10536 | C87: 13 | D87: 10546 | E87: 23 | F87: 10555 | K87: 0 | L87: 212
A88: 22 | B88: 10656 | C88: 13 | D88: 10672 | E88: 23 | F88: 10680 | K88: 0 | L88: 212
A89: 22 | B89: 10793 | C89: 13 | D89: 10805 | E89: 23 | F89: 10814 | K89: 0 | L89: 212
A90: 11 | B90: 10931 | C90: 22 | D90: 10940 | E90: 14 | F90: 10952 | K90: 0 | L90: 121
A91: 22 | B91: 11114 | C91: 13 | D91: 11126 | E91: 23 | F91: 11136 | K91: 0 | L91: 212
A92: 22 | B92: 11253 | C92: 13 | D92: 11265 | E92: 23 | F92: 11275 | K92: 0 | L92: 212
A93: 22 | B93: 11379 | C93: 13 | D93: 11390 | E93: 23 | F93: 11400 | K93: 0 | L93: 212
A94: 11 | B94: 11505 | C94: 22 | D94: 11514 | E94: 14 | F94: 11526 | K94: 0 | L94: 121
A95: 11 | B95: 11644 | C95: 22 | D95: 11656 | E95: 23 | F95: 11678 | K95: 0 | L95: 122
A96: 22 | B96: 11781 | C96: 13 | D96: 11794 | E96: 23 | F96: 11802 | K96: 0 | L96: 212
A97: 22 | B97: 11927 | C97: 13 | D97: 11939 | E97: 23 | F97: 11950 | K97: 0 | L97: 212
A98: 22 | B98: 12074 | C98: 13 | D98: 12087 | E98: 23 | F98: 12096 | K98: 0 | L98: 212
A99: 22 | B99: 12195 | C99: 13 | D99: 12203 | E99: 23 | F99: 12213 | K99: 0 | L99: 212
A100: 11 | B100: 12325 | C100: 22 | D100: 12335 | E100: 14 | F100: 12352 | K100: 0 | L100: 121
A101: 11 | B101: 12465 | C101: 22 | D101: 12474 | E101: 14 | F101: 12488 | K101: 0 | L101: 121
A102: 11 | B102: 12595 | C102: 22 | D102: 12607 | E102: 14 | F102: 12623 | K102: 0 | L102: 121
A103: 11 | B103: 12727 | C103: 22 | D103: 12738 | E103: 23 | F103: 12756 | K103: 0 | L103: 122
A104: 11 | B104: 12871 | C104: 22 | D104: 12881 | E104: 14 | F104: 12897 | K104: 0 | L104: 121
A105: 22 | B105: 13027 | C105: 24 | D105: 13042 | E105: 23 | F105: 13056 | K105: 0 | L105: 222
A106: 22 | B106: 13167 | C106: 13 | D106: 13182 | E106: 23 | F106: 13194 | K106: 0 | L106: 212
A107: 22 | B107: 13300 | C107: 13 | D107: 13313 | E107: 23 | F107: 13321 | K107: 0 | L107: 212
A108: 11 | B108: 13477 | C108: 22 | D108: 13493 | E108: 14 | F108: 13507 | K108: 0 | L108: 121
A109: 22 | B109: 13613 | C109: 13 | D109: 13626 | E109: 23 | F109: 13638 | K109: 0 | L109: 212
A110: 11 | B110: 13746 | C110: 22 | D110: 13757 | E110: 14 | F110: 13771 | K110: 0 | L110: 121
A111: 11 | B111: 13999 | C111: 22 | D111: 14011 | E111: 23 | F111: 14026 | K111: 0 | L111: 122
A112: 22 | B112: 14128 | C112: 13 | D112: 14141 | E112: 23 | F112: 14150 | K112: 0 | L112: 212
A113: 11 | B113: 14256 | C113: 22 | D113: 14266 | E113: 14 | F113: 14279 | K113: 0 | L113: 121
A114: 11 | B114: 14391 | C114: 11 | D114: 14407 | E114: 21 | F114: 14416 | K114: 0 | L114: 112
A115: 22 | B115: 14521 | C115: 24 | D115: 14534 | E115: 14 | F115: 14546 | K115: 0 | L115: 221
A116: 22 | B116: 14667 | C116: 24 | D116: 14685 | E116: 23 | F116: 14702 | K116: 0 | L116: 222
A117: 22 | B117: 14800 | C117: 24 | D117: 14823 | E117: 23 | F117: 14835 | K117: 0 | L117: 222
A118: 22 | B118: 14949 | C118: 24 | D118: 14958 | E118: 23 | F118: 14973 | K118: 0 | L118: 222
A119: 22 | B119: 15078 | C119: 24 | D119: 15090 | E119: 14 | F119: 15102 | K119: 0 | L119: 221
A120: 22 | B120: 15226 | C120: 24 | D120: 15241 | E120: 14 | F120: 15266 | K120: 0 | L120: 221
A121: 22 | B121: 15368 | C121: 13 | D121: 15381 | E121: 23 | F121: 15392 | K121: 0 | L121: 212
A122: 22 | B122: 15542 | C122: 24 | D122: 15553 | E122: 23 | F122: 15571 | K122: 0 | L122: 222
A123: 22 | B123: 15702 | C123: 24 | D123: 15717 | E123: 14 | F123: 15731 | K123: 0 | L123: 221
A124: 11 | B124: 15883 | C124: 22 | D124: 15894 | E124: 14 | F124: 15912 | K124: 0 | L124: 121
A125: 22 | B125: 16013 | C125: 13 | D125: 16025 | E125: 23 | F125: 16037 | K125: 0 | L125: 212
A126: 22 | B126: 16153 | C126: 24 | D126: 16167 | E126: 14 | F126: 16182 | K126: 0 | L126: 221
A127: 22 | B127: 16289 | C127: 13 | D127: 16300 | E127: 14 | F127: 16307 | K127: 0 | L127: 211
A128: 11 | B128: 16422 | C128: 22 | D128: 16434 | E128: 23 | F128: 16447 | K128: 0 | L128: 122
A129: 22 | B129: 16565 | C129: 13 | D129: 16578 | E129: 23 | F129: 16590 | K129: 0 | L129: 212
A130: 11 | B130: 16694 | C130: 22 | D130: 16705 | E130: 14 | F130: 16716 | K130: 0 | L130: 121
A131: 22 | B131: 16854 | C131: 24 | D131: 16868 | E131: 14 | F131: 16881 | K131: 0 | L131: 221
A132: 22 | B132: 17032 | C132: 13 | D132: 17042 | E132: 23 | F132: 17054 | K132: 0 | L132: 212
A133: 22 | B133: 17224 | C133: 13 | D133: 17235 | E133: 23 | F133: 17246 | K133: 0 | L133: 212
A134: 22 | B134: 17367 | C134: 13 | D134: 17378 | E134: 23 | F134: 17389 | K134: 0 | L134: 212
A135: 22 | B135: 17512 | C135: 13 | D135: 17524 | E135: 23 | F135: 17535 | K135: 0 | L135: 212
A136: 22 | B136: 17680 | C136: 24 | D136: 17698 | E136: 23 | F136: 17713 | K136: 0 | L136: 222
A137: 22 | B137: 17822 | C137: 24 | D137: 17837 | E137: 23 | F137: 17846 | K137: 0 | L137: 222
A138: 22 | B138: 17981 | C138: 24 | D138: 17995 | E138: 14 | F138: 18007 | K138: 0 | L138: 221
A139: 11 | B139: 18114 | C139: 22 | D139: 18123 | E139: 14 | F139: 18137 | K139: 0 | L139: 121
A140: 22 | B140: 18244 | C140: 13 | D140: 18257 | E140: 14 | F140: 18263 | K140: 0 | L140: 211
A141: 11 | B141: 18378 | C141: 22 | D141: 18388 | E141: 14 | F141: 18400 | K141: 0 | L141: 121
A142: 11 | B142: 18506 | C142: 22 | D142: 18517 | E142: 14 | F142: 18528 | K142: 0 | L142: 121
A143: 22 | B143: 18626 | C143: 13 | D143: 18634 | E143: 14 | F143: 18639 | K143: 0 | L143: 211
A144: 11 | B144: 18743 | C144: 22 | D144: 18754 | E144: 23 | F144: 18767 | K144: 0 | L144: 122
A145: 22 | B145: 18887 | C145: 24 | D145: 18902 | E145: 23 | F145: 18920 | K145: 0 | L145: 222
A146: 11 | B146: 19029 | C146: 22 | D146: 19041 | E146: 14 | F146: 19052 | K146: 0 | L146: 121
A147: 22 | B147: 19151 | C147: 13 | D147: 19161 | E147: 23 | F147: 19170 | K147: 0 | L147: 212
A148: 11 | B148: 19297 | C148: 22 | D148: 19308 | E148: 14 | F148: 19325 | K148: 0 | L148: 121
A149: 22 | B149: 19470 | C149: 24 | D149: 19479 | E149: 14 | F149: 19515 | K149: 0 | L149: 221
A150: 22 | B150: 19643 | C150: 13 | D150: 19657 | E150: 23 | F150: 19669 | K150: 0 | L150: 212
A151: 22 | B151: 19773 | C151: 13 | D151: 19781 | E151: 23 | F151: 19789 | K151: 0 | L151: 212
A152: 22 | B152: 19914 | C152: 24 | D152: 19927 | E152: 14 | F152: 19941 | K152: 0 | L152: 221
A153: 11 | B153: 20041 | C153: 22 | D153: 20054 | E153: 14 | F153: 20071 | K153: 0 | L153: 121
A154: 22 | B154: 20197 | C154: 13 | D154: 20210 | E154: 23 | F154: 20221 | K154: 0 | L154: 212
A155: 11 | B155: 20322 | C155: 22 | D155: 20333 | E155: 23 | F155: 20342 | K155: 0 | L155: 122
A156: 22 | B156: 20445 | C156: 13 | D156: 20456 | E156: 23 | F156: 20467 | K156: 0 | L156: 212
A157: 22 | B157: 20597 | C157: 13 | D157: 20610 | E157: 23 | F157: 20622 | K157: 0 | L157: 212
A158: 22 | B158: 20756 | C158: 13 | D158: 20768 | E158: 23 | F158: 20779 | K158: 0 | L158: 212
A159: 11 | B159: 20918 | C159: 22 | D159: 20931 | E159: 14 | F159: 20948 | K159: 0 | L159: 121
A160: 11 | B160: 21091 | C160: 22 | D160: 21103 | E160: 14 | F160: 21121 | K160: 0 | L160: 121
A161: 22 | B161: 21272 | C161: 13 | D161: 21287 | E161: 14 | F161: 21315 | K161: 0 | L161: 211
A162: 22 | B162: 21440 | C162: 24 | D162: 21447 | E162: 14 | F162: 21459 | K162: 0 | L162: 221
A163: 11 | B163: 21604 | C163: 22 | D163: 21616 | E163: 14 | F163: 21629 | K163: 0 | L163: 121
A164: 11 | B164: 21741 | C164: 22 | D164: 21749 | E164: 14 | F164: 21762 | K164: 0 | L164: 121
A165: 11 | B165: 21887 | C165: 22 | D165: 21900 | E165: 14 | F165: 21913 | K165: 0 | L165: 121
A166: 11 | B166: 22059 | C166: 22 | D166: 22072 | E166: 14 | F166: 22086 | K166: 0 | L166: 121
A167: 22 | B167: 22194 | C167: 13 | D167: 22206 | E167: 23 | F167: 22216 | K167: 0 | L167: 212
A168: 11 | B168: 22323 | C168: 22 | D168: 22335 | E168: 23 | F168: 22355 | K168: 0 | L168: 122
A169: 22 | B169: 22472 | C169: 13 | D169: 22484 | E169: 23 | F169: 22498 | K169: 0 | L169: 212
A170: 22 | B170: 22618 | C170: 13 | D170: 22633 | E170: 23 | F170: 22645 | K170: 0 | L170: 212
A171: 22 | B171: 22764 | C171: 13 | D171: 22778 | E171: 23 | F171: 22789 | K171: 0 | L171: 212
A172: 22 | B172: 22896 | C172: 24 | D172: 22922 | E172: 14 | F172: 22934 | K172: 0 | L172: 221
A173: 11 | B173: 23045 | C173: 22 | D173: 23057 | E173: 14 | F173: 23068 | K173: 0 | L173: 121
A174: 22 | B174: 23178 | C174: 24 | D174: 23190 | E174: 14 | F174: 23219 | K174: 0 | L174: 221
A175: 11 | B175: 23337 | C175: 11 | D175: 23356 | E175: 21 | F175: 23370 | K175: 0 | L175: 112
A176: 22 | B176: 23467 | C176: 13 | D176: 23479 | E176: 23 | F176: 23488 | K176: 0 | L176: 212
A177: 22 | B177: 23604 | C177: 13 | D177: 23620 | E177: 23 | F177: 23630 | K177: 0 | L177: 212
A178: 22 | B178: 23738 | C178: 13 | D178: 23749 | E178: 23 | F178: 23761 | K178: 0 | L178: 212
A179: 11 | B179: 23866 | C179: 22 | D179: 23875 | E179: 23 | F179: 23892 | K179: 0 | L179: 122
A180: 22 | B180: 23994 | L180: 2

Sheet !2011-05-13_09h26m.Subject 52 p
A1: Report for:!2011-05-13_09h26m.Subject 52 phase 2
A2: Date | B2: 2011-05-13 | F2: Group | G2: 0
A3: Hen | B3: 0 | F3: Correct Sequence | G3: =Start!J2 -> 122 | P3: Total Sequences in Data | Q3: =4994-COUNTBLANK(L7:L5000) -> 173 | V3: Total Sequences in Block Data | W3: =COUNTA(L7:L35) -> 29 | AA3: Total Sequences in Block Data | AB3: =COUNTA(L36:L64) -> 29 | AF3: Total Sequences in Block Data | AG3: =COUNTA(L65:L92) -> 28 | AK3: Total Sequences in Block Data | AL3: =COUNTA(L93:L121) -> 29 | AP3: Total Sequences in Block Data | AQ3: =COUNTA(L122:L150) -> 29 | AU3: Total Sequences in Block Data | AV3: =COUNTA(L151:L179) -> 29
A4: Program | B4: 0 | P4: Total Sequences in Summary | Q4: =SUM(O7:O14) -> 173 | V4: Total Sequences in Block Summary | W4: =SUM(U7:U14) -> 29 | AA4: Total Sequences in Block Summary | AB4: =SUM(Z7:Z14) -> 29 | AF4: Total Sequences in Block Summary | AG4: =SUM(AE7:AE14) -> 28 | AK4: Total Sequences in Block Summary | AL4: =SUM(AJ7:AJ14) -> 29 | AP4: Total Sequences in Block Summary | AQ4: =SUM(AO7:AO14) -> 29 | AU4: Total Sequences in Block Summary | AV4: =SUM(AT7:AT14) -> 29
T5: Block 1 | Y5: Block 2 | AD5: Block 3 | AI5: Block 4 | AN5: Block 5 | AS5: Block 6
A6: Sequence Component 1 | B6: Time 1 | C6: Sequence Component 2 | D6: Time 2 | E6: Sequence Component 3 | F6: Time 3 | G6: Sequence Component 4 | H6: Time 4 | I6: Sequence Component 5 | J6: Time 5 | K6: Correct? 0=No 1=Yes | L6: Sequence | N6: Frequency | P6: Relative Frequency | Q6: Variability | T6: Frequency | V6: Relative Frequency | W6: Variability | Y6: Frequency | AA6: Relative Frequency | AB6: Variability | AD6: Frequency | AF6: Relative Frequency | AG6: Variability | AI6: Frequency | AK6: Relative Frequency | AL6: Variability | AN6: Frequency | AP6: Relative Frequency | AQ6: Variability | AS6: Frequency | AU6: Relative Frequency | AV6: Variability
A7: 11 | B7: 136 | C7: 22 | D7: 153 | E7: 23 | F7: 168 | K7: 0 | L7: 122 | N7: 111 | O7: =COUNTIF($L$7:$L$500,N7) -> 0 | P7: =O7/$Q$4 -> 0 | Q7: =IF(P7=0,0,(P7*((LOG(P7))/LOG(2)))) -> 0 | T7: =N7 -> 111 | U7: =COUNTIF(L7:L35,T7) -> 0 | V7: =U7/(W4-U10) -> 0 | W7: =IF(V7=0,0,(V7*((LOG(V7))/LOG(2)))) -> 0 | Y7: =N7 -> 111 | Z7: =COUNTIF(L36:L64,Y7) -> 0 | AA7: =Z7/(AB4-Z10) -> 0 | AB7: =IF(AA7=0,0,(AA7*((LOG(AA7))/LOG(2)))) -> 0 | AD7: =N7 -> 111 | AE7: =COUNTIF(L65:L92,AD7) -> 0 | AF7: =AE7/(AG4-AE10) -> 0 | AG7: =IF(AF7=0,0,(AF7*((LOG(AF7))/LOG(2)))) -> 0 | AI7: =N7 -> 111 | AJ7: =COUNTIF(L93:L121,AI7) -> 0 | AK7: =AJ7/(AL4-AJ10) -> 0 | AL7: =IF(AK7=0,0,(AK7*((LOG(AK7))/LOG(2)))) -> 0 | AN7: =N7 -> 111 | AO7: =COUNTIF(L122:L150,AN7) -> 0 | AP7: =AO7/(AQ4-AO10) -> 0 | AQ7: =IF(AP7=0,0,(AP7*((LOG(AP7))/LOG(2)))) -> 0 | AS7: =N7 -> 111 | AT7: =COUNTIF(L151:L179,AS7) -> 0 | AU7: =AT7/(AV4-AT10) -> 0 | AV7: =IF(AU7=0,0,(AU7*((LOG(AU7))/LOG(2)))) -> 0
A8: 22 | B8: 268 | C8: 24 | D8: 293 | E8: 23 | F8: 317 | K8: 0 | L8: 222 | N8: 112 | O8: =COUNTIF($L$7:$L$500,N8) -> 7 | P8: =O8/$Q$4 -> 0.04046242775 | Q8: =IF(P8=0,0,(P8*((LOG(P8))/LOG(2)))) -> -0.1872307118 | T8: =N8 -> 112 | U8: =COUNTIF(L7:L35,T8) -> 1 | V8: =U8/(W4-U10) -> 0.03846153846 | W8: =IF(V8=0,0,(V8*((LOG(V8))/LOG(2)))) -> -0.180786143 | Y8: =N8 -> 112 | Z8: =COUNTIF(L36:L64,Y8) -> 1 | AA8: =Z8/(AB4-Z10) -> 0.04 | AB8: =IF(AA8=0,0,(AA8*((LOG(AA8))/LOG(2)))) -> -0.1857542476 | AD8: =N8 -> 112 | AE8: =COUNTIF(L65:L92,AD8) -> 1 | AF8: =AE8/(AG4-AE10) -> 0.04347826087 | AG8: =IF(AF8=0,0,(AF8*((LOG(AF8))/LOG(2)))) -> -0.1966766068 | AI8: =N8 -> 112 | AJ8: =COUNTIF(L93:L121,AI8) -> 1 | AK8: =AJ8/(AL4-AJ10) -> 0.03571428571 | AL8: =IF(AK8=0,0,(AK8*((LOG(AK8))/LOG(2)))) -> -0.1716912472 | AN8: =N8 -> 112 | AO8: =COUNTIF(L122:L150,AN8) -> 1 | AP8: =AO8/(AQ4-AO10) -> 0.04347826087 | AQ8: =IF(AP8=0,0,(AP8*((LOG(AP8))/LOG(2)))) -> -0.1966766068 | AS8: =N8 -> 112 | AT8: =COUNTIF(L151:L179,AS8) -> 2 | AU8: =AT8/(AV4-AT10) -> 0.08 | AV8: =IF(AU8=0,0,(AU8*((LOG(AU8))/LOG(2)))) -> -0.2915084952
A9: 22 | B9: 436 | C9: 24 | D9: 447 | E9: 23 | F9: 460 | K9: 0 | L9: 222 | N9: 121 | O9: =COUNTIF($L$7:$L$500,N9) -> 67 | P9: =O9/$Q$4 -> 0.387283237 | Q9: =IF(P9=0,0,(P9*((LOG(P9))/LOG(2)))) -> -0.5300122283 | T9: =N9 -> 121 | U9: =COUNTIF(L7:L35,T9) -> 2 | V9: =U9/(W4-U10) -> 0.07692307692 | W9: =IF(V9=0,0,(V9*((LOG(V9))/LOG(2)))) -> -0.2846492091 | Y9: =N9 -> 121 | Z9: =COUNTIF(L36:L64,Y9) -> 10 | AA9: =Z9/(AB4-Z10) -> 0.4 | AB9: =IF(AA9=0,0,(AA9*((LOG(AA9))/LOG(2)))) -> -0.528771238 | AD9: =N9 -> 121 | AE9: =COUNTIF(L65:L92,AD9) -> 20 | AF9: =AE9/(AG4-AE10) -> 0.8695652174 | AG9: =IF(AF9=0,0,(AF9*((LOG(AF9))/LOG(2)))) -> -0.1753337923 | AI9: =N9 -> 121 | AJ9: =COUNTIF(L93:L121,AI9) -> 9 | AK9: =AJ9/(AL4-AJ10) -> 0.3214285714 | AL9: =IF(AK9=0,0,(AK9*((LOG(AK9))/LOG(2)))) -> -0.5263167602 | AN9: =N9 -> 121 | AO9: =COUNTIF(L122:L150,AN9) -> 14 | AP9: =AO9/(AQ4-AO10) -> 0.6086956522 | AQ9: =IF(AP9=0,0,(AP9*((LOG(AP9))/LOG(2)))) -> -0.4359521077 | AS9: =N9 -> 121 | AT9: =COUNTIF(L151:L179,AS9) -> 12 | AU9: =AT9/(AV4-AT10) -> 0.48 | AV9: =IF(AU9=0,0,(AU9*((LOG(AU9))/LOG(2)))) -> -0.5082689707
A10: 22 | B10: 562 | C10: 24 | D10: 570 | E10: 14 | F10: 584 | K10: 0 | L10: 221 | N10: 122 | O10: =COUNTIF($L$7:$L$500,N10) -> 23 | P10: =O10/$Q$4 -> 0.1329479769 | Q10: =IF(P10=0,0,(P10*((LOG(P10))/LOG(2)))) -> -0.3870203714 | T10: =N10 -> 122 | U10: =COUNTIF(L7:L35,T10) -> 3 | Y10: =N10 -> 122 | Z10: =COUNTIF(L36:L64,Y10) -> 4 | AD10: =N10 -> 122 | AE10: =COUNTIF(L65:L92,AD10) -> 5 | AI10: =N10 -> 122 | AJ10: =COUNTIF(L93:L121,AI10) -> 1 | AN10: =N10 -> 122 | AO10: =COUNTIF(L122:L150,AN10) -> 6 | AS10: =N10 -> 122 | AT10: =COUNTIF(L151:L179,AS10) -> 4
A11: 11 | B11: 738 | C11: 22 | D11: 749 | E11: 23 | F11: 757 | K11: 0 | L11: 122 | N11: 211 | O11: =COUNTIF($L$7:$L$500,N11) -> 0 | P11: =O11/$Q$4 -> 0 | Q11: =IF(P11=0,0,(P11*((LOG(P11))/LOG(2)))) -> 0 | T11: =N11 -> 211 | U11: =COUNTIF(L7:L35,T11) -> 0 | V11: =U11/(W4-U10) -> 0 | W11: =IF(V11=0,0,(V11*((LOG(V11))/LOG(2)))) -> 0 | Y11: =N11 -> 211 | Z11: =COUNTIF(L36:L64,Y11) -> 0 | AA11: =Z11/(AB4-Z10) -> 0 | AB11: =IF(AA11=0,0,(AA11*((LOG(AA11))/LOG(2)))) -> 0 | AD11: =N11 -> 211 | AE11: =COUNTIF(L65:L92,AD11) -> 0 | AF11: =AE11/(AG4-AE10) -> 0 | AG11: =IF(AF11=0,0,(AF11*((LOG(AF11))/LOG(2)))) -> 0 | AI11: =N11 -> 211 | AJ11: =COUNTIF(L93:L121,AI11) -> 0 | AK11: =AJ11/(AL4-AJ10) -> 0 | AL11: =IF(AK11=0,0,(AK11*((LOG(AK11))/LOG(2)))) -> 0 | AN11: =N11 -> 211 | AO11: =COUNTIF(L122:L150,AN11) -> 0 | AP11: =AO11/(AQ4-AO10) -> 0 | AQ11: =IF(AP11=0,0,(AP11*((LOG(AP11))/LOG(2)))) -> 0 | AS11: =N11 -> 211 | AT11: =COUNTIF(L151:L179,AS11) -> 0 | AU11: =AT11/(AV4-AT10) -> 0 | AV11: =IF(AU11=0,0,(AU11*((LOG(AU11))/LOG(2)))) -> 0
A12: 22 | B12: 862 | C12: 24 | D12: 884 | E12: 23 | F12: 896 | K12: 0 | L12: 222 | N12: 212 | O12: =COUNTIF($L$7:$L$500,N12) -> 54 | P12: =O12/$Q$4 -> 0.3121387283 | Q12: =IF(P12=0,0,(P12*((LOG(P12))/LOG(2)))) -> -0.524312134 | T12: =N12 -> 212 | U12: =COUNTIF(L7:L35,T12) -> 8 | V12: =U12/(W4-U10) -> 0.3076923077 | W12: =IF(V12=0,0,(V12*((LOG(V12))/LOG(2)))) -> -0.523212221 | Y12: =N12 -> 212 | Z12: =COUNTIF(L36:L64,Y12) -> 10 | AA12: =Z12/(AB4-Z10) -> 0.4 | AB12: =IF(AA12=0,0,(AA12*((LOG(AA12))/LOG(2)))) -> -0.528771238 | AD12: =N12 -> 212 | AE12: =COUNTIF(L65:L92,AD12) -> 2 | AF12: =AE12/(AG4-AE10) -> 0.08695652174 | AG12: =IF(AF12=0,0,(AF12*((LOG(AF12))/LOG(2)))) -> -0.3063966918 | AI12: =N12 -> 212 | AJ12: =COUNTIF(L93:L121,AI12) -> 17 | AK12: =AJ12/(AL4-AJ10) -> 0.6071428571 | AL12: =IF(AK12=0,0,(AK12*((LOG(AK12))/LOG(2)))) -> -0.4370773348 | AN12: =N12 -> 212 | AO12: =COUNTIF(L122:L150,AN12) -> 6 | AP12: =AO12/(AQ4-AO10) -> 0.2608695652 | AQ12: =IF(AP12=0,0,(AP12*((LOG(AP12))/LOG(2)))) -> -0.505721597 | AS12: =N12 -> 212 | AT12: =COUNTIF(L151:L179,AS12) -> 11 | AU12: =AT12/(AV4-AT10) -> 0.44 | AV12: =IF(AU12=0,0,(AU12*((LOG(AU12))/LOG(2)))) -> -0.5211468113
A13: 11 | B13: 989 | C13: 11 | D13: 1005 | E13: 21 | F13: 1017 | K13: 0 | L13: 112 | N13: 221 | O13: =COUNTIF($L$7:$L$500,N13) -> 5 | P13: =O13/$Q$4 -> 0.0289017341 | Q13: =IF(P13=0,0,(P13*((LOG(P13))/LOG(2)))) -> -0.1477658998 | T13: =N13 -> 221 | U13: =COUNTIF(L7:L35,T13) -> 3 | V13: =U13/(W4-U10) -> 0.1153846154 | W13: =IF(V13=0,0,(V13*((LOG(V13))/LOG(2)))) -> -0.3594781405 | Y13: =N13 -> 221 | Z13: =COUNTIF(L36:L64,Y13) -> 1 | AA13: =Z13/(AB4-Z10) -> 0.04 | AB13: =IF(AA13=0,0,(AA13*((LOG(AA13))/LOG(2)))) -> -0.1857542476 | AD13: =N13 -> 221 | AE13: =COUNTIF(L65:L92,AD13) -> 0 | AF13: =AE13/(AG4-AE10) -> 0 | AG13: =IF(AF13=0,0,(AF13*((LOG(AF13))/LOG(2)))) -> 0 | AI13: =N13 -> 221 | AJ13: =COUNTIF(L93:L121,AI13) -> 1 | AK13: =AJ13/(AL4-AJ10) -> 0.03571428571 | AL13: =IF(AK13=0,0,(AK13*((LOG(AK13))/LOG(2)))) -> -0.1716912472 | AN13: =N13 -> 221 | AO13: =COUNTIF(L122:L150,AN13) -> 0 | AP13: =AO13/(AQ4-AO10) -> 0 | AQ13: =IF(AP13=0,0,(AP13*((LOG(AP13))/LOG(2)))) -> 0 | AS13: =N13 -> 221 | AT13: =COUNTIF(L151:L179,AS13) -> 0 | AU13: =AT13/(AV4-AT10) -> 0 | AV13: =IF(AU13=0,0,(AU13*((LOG(AU13))/LOG(2)))) -> 0
A14: 22 | B14: 1116 | C14: 24 | D14: 1128 | E14: 23 | F14: 1136 | K14: 0 | L14: 222 | N14: 222 | O14: =COUNTIF($L$7:$L$500,N14) -> 17 | P14: =O14/$Q$4 -> 0.09826589595 | Q14: =IF(P14=0,0,(P14*((LOG(P14))/LOG(2)))) -> -0.3289122056 | T14: =N14 -> 222 | U14: =COUNTIF(L7:L35,T14) -> 12 | V14: =U14/(W4-U10) -> 0.4615384615 | W14: =IF(V14=0,0,(V14*((LOG(V14))/LOG(2)))) -> -0.5148356388 | Y14: =N14 -> 222 | Z14: =COUNTIF(L36:L64,Y14) -> 3 | AA14: =Z14/(AB4-Z10) -> 0.12 | AB14: =IF(AA14=0,0,(AA14*((LOG(AA14))/LOG(2)))) -> -0.3670672427 | AD14: =N14 -> 222 | AE14: =COUNTIF(L65:L92,AD14) -> 0 | AF14: =AE14/(AG4-AE10) -> 0 | AG14: =IF(AF14=0,0,(AF14*((LOG(AF14))/LOG(2)))) -> 0 | AI14: =N14 -> 222 | AJ14: =COUNTIF(L93:L121,AI14) -> 0 | AK14: =AJ14/(AL4-AJ10) -> 0 | AL14: =IF(AK14=0,0,(AK14*((LOG(AK14))/LOG(2)))) -> 0 | AN14: =N14 -> 222 | AO14: =COUNTIF(L122:L150,AN14) -> 2 | AP14: =AO14/(AQ4-AO10) -> 0.08695652174 | AQ14: =IF(AP14=0,0,(AP14*((LOG(AP14))/LOG(2)))) -> -0.3063966918 | AS14: =N14 -> 222 | AT14: =COUNTIF(L151:L179,AS14) -> 0 | AU14: =AT14/(AV4-AT10) -> 0 | AV14: =IF(AU14=0,0,(AU14*((LOG(AU14))/LOG(2)))) -> 0
A15: 22 | B15: 1235 | C15: 24 | D15: 1243 | E15: 23 | F15: 1267 | K15: 0 | L15: 222 | P15: =SUM(P7:P14) -> 1 | Q15: =-SUM(Q7:Q14) -> 2.105253551 | V15: =SUM(V7:V14) -> 1 | W15: =-SUM(W7:W14) -> 1.862961352 | AA15: =SUM(AA7:AA14) -> 1 | AB15: =-SUM(AB7:AB14) -> 1.796118214 | AF15: =SUM(AF7:AF14) -> 1 | AG15: =-SUM(AG7:AG14) -> 0.6784070909 | AK15: =SUM(AK7:AK14) -> 1 | AL15: =-SUM(AL7:AL14) -> 1.306776589 | AP15: =SUM(AP7:AP14) -> 1 | AQ15: =-SUM(AQ7:AQ14) -> 1.444747003 | AU15: =SUM(AU7:AU14) -> 1 | AV15: =-SUM(AV7:AV14) -> 1.320924277
A16: 22 | B16: 1369 | C16: 24 | D16: 1378 | E16: 23 | F16: 1399 | K16: 0 | L16: 222 | P16: U= | Q16: =Q15/(LOG(Q4)/LOG(2)) -> 0.2831686382 | V16: U1= | W16: =W15/(LOG(W4)/LOG(2)) -> 0.3834846934 | AA16: U2= | AB16: =AB15/(LOG(AB4)/LOG(2)) -> 0.369725245 | AF16: U3= | AG16: =AG15/(LOG(AG4)/LOG(2)) -> 0.1411185781 | AK16: U4= | AL16: =AL15/(LOG(AL4)/LOG(2)) -> 0.2689958217 | AP16: U5= | AQ16: =AQ15/(LOG(AQ4)/LOG(2)) -> 0.2973965943 | AU16: U6= | AV16: =AV15/(LOG(AV4)/LOG(2)) -> 0.2719080784
A17: 22 | B17: 1497 | C17: 13 | D17: 1510 | E17: 23 | F17: 1521 | K17: 0 | L17: 212
A18: 22 | B18: 1616 | C18: 24 | D18: 1625 | E18: 23 | F18: 1642 | K18: 0 | L18: 222
A19: 22 | B19: 1744 | C19: 24 | D19: 1757 | E19: 23 | F19: 1772 | K19: 0 | L19: 222 | N19: Total Target Seq
A20: 22 | B20: 1871 | C20: 13 | D20: 1882 | E20: 23 | F20: 1891 | K20: 0 | L20: 212 | N20: =COUNTIF(L7:L179,G3) -> 23 | P20: 29 | Q20: 29 | R20: 28 | S20: 29 | T20: 29 | U20: 29
A21: 22 | B21: 2029 | C21: 24 | D21: 2042 | E21: 14 | F21: 2051 | K21: 0 | L21: 221 | P21: % of reinforcement given in 6 equal intervals based on number of trials
A22: 22 | B22: 2153 | C22: 24 | D22: 2164 | E22: 23 | F22: 2177 | K22: 0 | L22: 222 | P22: %_1 | Q22: %_2 | R22: %_3 | S22: %_4 | T22: %_5 | U22: %_6
A23: 22 | B23: 2275 | C23: 24 | D23: 2285 | E23: 23 | F23: 2297 | K23: 0 | L23: 222 | O23: target sequence | P23: =$G$3 -> 122 | Q23: =$G$3 -> 122 | R23: =$G$3 -> 122 | S23: =$G$3 -> 122 | T23: =$G$3 -> 122 | U23: =$G$3 -> 122
A24: 22 | B24: 2410 | C24: 13 | D24: 2422 | E24: 23 | F24: 2433 | K24: 0 | L24: 212 | O24: total reinforcement | P24: =U10 -> 3 | Q24: =Z10 -> 4 | R24: =AE10 -> 5 | S24: =AJ10 -> 1 | T24: =AO10 -> 6 | U24: =AT10 -> 4
A25: 22 | B25: 2541 | C25: 13 | D25: 2554 | E25: 23 | F25: 2564 | K25: 0 | L25: 212 | O25: % target
A26: 22 | B26: 2662 | C26: 24 | D26: 2675 | E26: 14 | F26: 2687 | K26: 0 | L26: 221 | O26: CCRF
A27: 22 | B27: 2794 | C27: 24 | D27: 2805 | E27: 23 | F27: 2812 | K27: 0 | L27: 222 | O27: % CCRf
A28: 22 | B28: 2914 | C28: 24 | D28: 2928 | E28: 23 | F28: 2937 | K28: 0 | L28: 222 | O28: average response rate | P28: =F35/P20 -> 133.9655172 | Q28: =(F64-F35)/Q20 -> 141.5862069 | R28: =(F92-F64)/R20 -> 145.8214286 | S28: =(F121-F92)/S20 -> 133.2413793 | T28: =(F150-F121)/T20 -> 140.3448276 | U28: =(F179-F150)/U20 -> 132.8275862
A29: 11 | B29: 3072 | C29: 22 | D29: 3084 | E29: 14 | F29: 3100 | K29: 0 | L29: 121
A30: 22 | B30: 3205 | C30: 13 | D30: 3216 | E30: 23 | F30: 3225 | K30: 0 | L30: 212
A31: 22 | B31: 3326 | C31: 13 | D31: 3338 | E31: 23 | F31: 3350 | K31: 0 | L31: 212
A32: 22 | B32: 3446 | C32: 13 | D32: 3457 | E32: 23 | F32: 3465 | K32: 0 | L32: 212
A33: 22 | B33: 3578 | C33: 13 | D33: 3587 | E33: 23 | F33: 3595 | K33: 0 | L33: 212
A34: 11 | B34: 3713 | C34: 22 | D34: 3721 | E34: 14 | F34: 3733 | K34: 0 | L34: 121
A35: 11 | B35: 3862 | C35: 22 | D35: 3871 | E35: 23 | F35: 3885 | K35: 0 | L35: 122
A36: 22 | B36: 4014 | C36: 13 | D36: 4027 | E36: 23 | F36: 4035 | K36: 0 | L36: 212
A37: 22 | B37: 4187 | C37: 24 | D37: 4199 | E37: 23 | F37: 4207 | K37: 0 | L37: 222
A38: 22 | B38: 4327 | C38: 13 | D38: 4340 | E38: 23 | F38: 4348 | K38: 0 | L38: 212
A39: 22 | B39: 4463 | C39: 13 | D39: 4481 | E39: 23 | F39: 4490 | K39: 0 | L39: 212
A40: 22 | B40: 4624 | C40: 13 | D40: 4639 | E40: 23 | F40: 4650 | K40: 0 | L40: 212
A41: 11 | B41: 4768 | C41: 22 | D41: 4779 | E41: 23 | F41: 4793 | K41: 0 | L41: 122
A42: 11 | B42: 4904 | C42: 22 | D42: 4913 | E42: 23 | F42: 4921 | K42: 0 | L42: 122
A43: 11 | B43: 5037 | C43: 22 | D43: 5050 | E43: 14 | F43: 5063 | K43: 0 | L43: 121
A44: 11 | B44: 5210 | C44: 11 | D44: 5226 | E44: 21 | F44: 5238 | K44: 0 | L44: 112
A45: 11 | B45: 5337 | C45: 22 | D45: 5348 | E45: 14 | F45: 5356 | K45: 0 | L45: 121
A46: 11 | B46: 5467 | C46: 22 | D46: 5478 | E46: 14 | F46: 5490 | K46: 0 | L46: 121
A47: 11 | B47: 5583 | C47: 22 | D47: 5593 | E47: 14 | F47: 5605 | K47: 0 | L47: 121
A48: 22 | B48: 5705 | C48: 24 | D48: 5713 | E48: 23 | F48: 5726 | K48: 0 | L48: 222
A49: 22 | B49: 5844 | C49: 24 | D49: 5858 | E49: 14 | F49: 5868 | K49: 0 | L49: 221
A50: 22 | B50: 5975 | C50: 13 | D50: 5986 | E50: 23 | F50: 5995 | K50: 0 | L50: 212
A51: 22 | B51: 6094 | C51: 24 | D51: 6109 | E51: 23 | F51: 6123 | K51: 0 | L51: 222
A52: 22 | B52: 6253 | C52: 13 | D52: 6262 | E52: 23 | F52: 6273 | K52: 0 | L52: 212
A53: 22 | B53: 6376 | C53: 13 | D53: 6389 | E53: 23 | F53: 6397 | K53: 0 | L53: 212
A54: 11 | B54: 6513 | C54: 22 | D54: 6524 | E54: 14 | F54: 6539 | K54: 0 | L54: 121
A55: 11 | B55: 6678 | C55: 22 | D55: 6690 | E55: 23 | F55: 6704 | K55: 0 | L55: 122
A56: 11 | B56: 6821 | C56: 22 | D56: 6830 | E56: 23 | F56: 6841 | K56: 0 | L56: 122
A57: 22 | B57: 6987 | C57: 13 | D57: 6996 | E57: 23 | F57: 7008 | K57: 0 | L57: 212
A58: 11 | B58: 7131 | C58: 22 | D58: 7140 | E58: 14 | F58: 7153 | K58: 0 | L58: 121
A59: 11 | B59: 7286 | C59: 22 | D59: 7297 | E59: 14 | F59: 7307 | K59: 0 | L59: 121
A60: 11 | B60: 7416 | C60: 22 | D60: 7428 | E60: 14 | F60: 7440 | K60: 0 | L60: 121
A61: 22 | B61: 7556 | C61: 13 | D61: 7566 | E61: 23 | F61: 7575 | K61: 0 | L61: 212
A62: 11 | B62: 7693 | C62: 22 | D62: 7702 | E62: 14 | F62: 7713 | K62: 0 | L62: 121
A63: 11 | B63: 7823 | C63: 22 | D63: 7837 | E63: 14 | F63: 7851 | K63: 0 | L63: 121
A64: 22 | B64: 7972 | C64: 13 | D64: 7980 | E64: 23 | F64: 7991 | K64: 0 | L64: 212
A65: 11 | B65: 8104 | C65: 22 | D65: 8116 | E65: 14 | F65: 8128 | K65: 0 | L65: 121
A66: 11 | B66: 8242 | C66: 22 | D66: 8254 | E66: 14 | F66: 8265 | K66: 0 | L66: 121
A67: 11 | B67: 8392 | C67: 22 | D67: 8417 | E67: 14 | F67: 8432 | K67: 0 | L67: 121
A68: 11 | B68: 8557 | C68: 22 | D68: 8566 | E68: 14 | F68: 8582 | K68: 0 | L68: 121
A69: 11 | B69: 8696 | C69: 22 | D69: 8708 | E69: 14 | F69: 8719 | K69: 0 | L69: 121
A70: 11 | B70: 8825 | C70: 22 | D70: 8834 | E70: 14 | F70: 8846 | K70: 0 | L70: 121
A71: 11 | B71: 8963 | C71: 22 | D71: 8974 | E71: 14 | F71: 8989 | K71: 0 | L71: 121
A72: 11 | B72: 9109 | C72: 22 | D72: 9118 | E72: 14 | F72: 9128 | K72: 0 | L72: 121
A73: 11 | B73: 9250 | C73: 22 | D73: 9260 | E73: 14 | F73: 9274 | K73: 0 | L73: 121
A74: 11 | B74: 9390 | C74: 22 | D74: 9399 | E74: 14 | F74: 9412 | K74: 0 | L74: 121
A75: 11 | B75: 9522 | C75: 22 | D75: 9531 | E75: 14 | F75: 9542 | K75: 0 | L75: 121
A76: 11 | B76: 9702 | C76: 22 | D76: 9713 | E76: 23 | F76: 9734 | K76: 0 | L76: 122
A77: 11 | B77: 9853 | C77: 22 | D77: 9864 | E77: 14 | F77: 9873 | K77: 0 | L77: 121
A78: 11 | B78: 9994 | C78: 22 | D78: 10007 | E78: 14 | F78: 10031 | K78: 0 | L78: 121
A79: 11 | B79: 10137 | C79: 22 | D79: 10146 | E79: 14 | F79: 10155 | K79: 0 | L79: 121
A80: 11 | B80: 10295 | C80: 22 | D80: 10305 | E80: 14 | F80: 10320 | K80: 0 | L80: 121
A81: 11 | B81: 10432 | C81: 22 | D81: 10441 | E81: 14 | F81: 10450 | K81: 0 | L81: 121
A82: 11 | B82: 10573 | C82: 22 | D82: 10582 | E82: 14 | F82: 10602 | K82: 0 | L82: 121
A83: 11 | B83: 10722 | C83: 22 | D83: 10732 | E83: 14 | F83: 10745 | K83: 0 | L83: 121
A84: 11 | B84: 10879 | C84: 22 | D84: 10888 | E84: 23 | F84: 10906 | K84: 0 | L84: 122
A85: 22 | B85: 11014 | C85: 13 | D85: 11026 | E85: 23 | F85: 11036 | K85: 0 | L85: 212
A86: 22 | B86: 11167 | C86: 13 | D86: 11180 | E86: 23 | F86: 11189 | K86: 0 | L86: 212
A87: 11 | B87: 11299 | C87: 22 | D87: 11308 | E87: 14 | F87: 11320 | K87: 0 | L87: 121
A88: 11 | B88: 11473 | C88: 22 | D88: 11484 | E88: 23 | F88: 11506 | K88: 0 | L88: 122
A89: 11 | B89: 11626 | C89: 22 | D89: 11637 | E89: 23 | F89: 11653 | K89: 0 | L89: 122
A90: 11 | B90: 11776 | C90: 22 | D90: 11785 | E90: 14 | F90: 11796 | K90: 0 | L90: 121
A91: 11 | B91: 11912 | C91: 11 | D91: 11936 | E91: 21 | F91: 11945 | K91: 0 | L91: 112
A92: 11 | B92: 12047 | C92: 22 | D92: 12059 | E92: 23 | F92: 12074 | K92: 0 | L92: 122
A93: 22 | B93: 12189 | C93: 24 | D93: 12196 | E93: 14 | F93: 12209 | K93: 0 | L93: 221
A94: 11 | B94: 12326 | C94: 22 | D94: 12339 | E94: 14 | F94: 12353 | K94: 0 | L94: 121
A95: 22 | B95: 12469 | C95: 13 | D95: 12480 | E95: 23 | F95: 12490 | K95: 0 | L95: 212
A96: 11 | B96: 12603 | C96: 22 | D96: 12612 | E96: 14 | F96: 12625 | K96: 0 | L96: 121
A97: 11 | B97: 12747 | C97: 22 | D97: 12756 | E97: 23 | F97: 12772 | K97: 0 | L97: 122
A98: 11 | B98: 12900 | C98: 22 | D98: 12909 | E98: 14 | F98: 12925 | K98: 0 | L98: 121
A99: 22 | B99: 13038 | C99: 13 | D99: 13049 | E99: 23 | F99: 13057 | K99: 0 | L99: 212
A100: 22 | B100: 13177 | C100: 13 | D100: 13188 | E100: 23 | F100: 13196 | K100: 0 | L100: 212
A101: 22 | B101: 13320 | C101: 13 | D101: 13329 | E101: 23 | F101: 13344 | K101: 0 | L101: 212
A102: 11 | B102: 13444 | C102: 11 | D102: 13460 | E102: 21 | F102: 13469 | K102: 0 | L102: 112
A103: 22 | B103: 13601 | C103: 13 | D103: 13614 | E103: 23 | F103: 13624 | K103: 0 | L103: 212
A104: 11 | B104: 13742 | C104: 22 | D104: 13751 | E104: 14 | F104: 13761 | K104: 0 | L104: 121
A105: 22 | B105: 13865 | C105: 13 | D105: 13873 | E105: 23 | F105: 13881 | K105: 0 | L105: 212
A106: 22 | B106: 13990 | C106: 13 | D106: 14001 | E106: 23 | F106: 14009 | K106: 0 | L106: 212
A107: 22 | B107: 14109 | C107: 13 | D107: 14117 | E107: 23 | F107: 14130 | K107: 0 | L107: 212
A108: 11 | B108: 14231 | C108: 22 | D108: 14241 | E108: 14 | F108: 14250 | K108: 0 | L108: 121
A109: 22 | B109: 14362 | C109: 13 | D109: 14369 | E109: 23 | F109: 14378 | K109: 0 | L109: 212
A110: 22 | B110: 14486 | C110: 13 | D110: 14498 | E110: 23 | F110: 14507 | K110: 0 | L110: 212
A111: 22 | B111: 14602 | C111: 13 | D111: 14624 | E111: 23 | F111: 14633 | K111: 0 | L111: 212
A112: 11 | B112: 14744 | C112: 22 | D112: 14752 | E112: 14 | F112: 14763 | K112: 0 | L112: 121
A113: 22 | B113: 14867 | C113: 13 | D113: 14875 | E113: 23 | F113: 14884 | K113: 0 | L113: 212
A114: 11 | B114: 15015 | C114: 22 | D114: 15024 | E114: 14 | F114: 15039 | K114: 0 | L114: 121
A115: 11 | B115: 15148 | C115: 22 | D115: 15162 | E115: 14 | F115: 15179 | K115: 0 | L115: 121
A116: 22 | B116: 15277 | C116: 13 | D116: 15290 | E116: 23 | F116: 15300 | K116: 0 | L116: 212
A117: 22 | B117: 15397 | C117: 13 | D117: 15407 | E117: 23 | F117: 15416 | K117: 0 | L117: 212
A118: 22 | B118: 15514 | C118: 13 | D118: 15523 | E118: 23 | F118: 15531 | K118: 0 | L118: 212
A119: 22 | B119: 15637 | C119: 13 | D119: 15645 | E119: 23 | F119: 15657 | K119: 0 | L119: 212
A120: 11 | B120: 15780 | C120: 22 | D120: 15791 | E120: 14 | F120: 15805 | K120: 0 | L120: 121
A121: 22 | B121: 15920 | C121: 13 | D121: 15928 | E121: 23 | F121: 15938 | K121: 0 | L121: 212
A122: 11 | B122: 16043 | C122: 22 | D122: 16052 | E122: 14 | F122: 16064 | K122: 0 | L122: 121
A123: 11 | B123: 16172 | C123: 11 | D123: 16187 | E123: 21 | F123: 16196 | K123: 0 | L123: 112
A124: 11 | B124: 16290 | C124: 22 | D124: 16299 | E124: 14 | F124: 16307 | K124: 0 | L124: 121
A125: 22 | B125: 16410 | C125: 13 | D125: 16423 | E125: 23 | F125: 16433 | K125: 0 | L125: 212
A126: 22 | B126: 16550 | C126: 13 | D126: 16559 | E126: 23 | F126: 16567 | K126: 0 | L126: 212
A127: 11 | B127: 16670 | C127: 22 | D127: 16679 | E127: 14 | F127: 16687 | K127: 0 | L127: 121
A128: 22 | B128: 16810 | C128: 13 | D128: 16821 | E128: 23 | F128: 16834 | K128: 0 | L128: 212
A129: 11 | B129: 16933 | C129: 22 | D129: 16942 | E129: 23 | F129: 16963 | K129: 0 | L129: 122
A130: 22 | B130: 17062 | C130: 24 | D130: 17074 | E130: 23 | F130: 17081 | K130: 0 | L130: 222
A131: 22 | B131: 17189 | C131: 13 | D131: 17199 | E131: 23 | F131: 17211 | K131: 0 | L131: 212
A132: 11 | B132: 17313 | C132: 22 | D132: 17352 | E132: 14 | F132: 17366 | K132: 0 | L132: 121
A133: 11 | B133: 17487 | C133: 22 | D133: 17497 | E133: 14 | F133: 17516 | K133: 0 | L133: 121
A134: 22 | B134: 17625 | C134: 13 | D134: 17634 | E134: 23 | F134: 17644 | K134: 0 | L134: 212
A135: 11 | B135: 17792 | C135: 22 | D135: 17803 | E135: 23 | F135: 17812 | K135: 0 | L135: 122
A136: 22 | B136: 17925 | C136: 13 | D136: 17935 | E136: 23 | F136: 17944 | K136: 0 | L136: 212
A137: 11 | B137: 18064 | C137: 22 | D137: 18077 | E137: 14 | F137: 18088 | K137: 0 | L137: 121
A138: 11 | B138: 18225 | C138: 22 | D138: 18234 | E138: 23 | F138: 18241 | K138: 0 | L138: 122
A139: 11 | B139: 18341 | C139: 22 | D139: 18351 | E139: 14 | F139: 18363 | K139: 0 | L139: 121
A140: 22 | B140: 18480 | C140: 24 | D140: 18495 | E140: 23 | F140: 18510 | K140: 0 | L140: 222
A141: 11 | B141: 18792 | C141: 22 | D141: 18801 | E141: 23 | F141: 18813 | K141: 0 | L141: 122
A142: 11 | B142: 18936 | C142: 22 | D142: 18945 | E142: 14 | F142: 18961 | K142: 0 | L142: 121
A143: 11 | B143: 19065 | C143: 22 | D143: 19074 | E143: 14 | F143: 19085 | K143: 0 | L143: 121
A144: 11 | B144: 19183 | C144: 22 | D144: 19194 | E144: 14 | F144: 19206 | K144: 0 | L144: 121
A145: 11 | B145: 19321 | C145: 22 | D145: 19329 | E145: 14 | F145: 19340 | K145: 0 | L145: 121
A146: 11 | B146: 19444 | C146: 22 | D146: 19452 | E146: 23 | F146: 19470 | K146: 0 | L146: 122
A147: 11 | B147: 19573 | C147: 22 | D147: 19585 | E147: 23 | F147: 19597 | K147: 0 | L147: 122
A148: 11 | B148: 19711 | C148: 22 | D148: 19720 | E148: 14 | F148: 19728 | K148: 0 | L148: 121
A149: 11 | B149: 19859 | C149: 22 | D149: 19872 | E149: 14 | F149: 19886 | K149: 0 | L149: 121
A150: 11 | B150: 19985 | C150: 22 | D150: 19997 | E150: 14 | F150: 20008 | K150: 0 | L150: 121
A151: 22 | B151: 20142 | C151: 13 | D151: 20155 | E151: 23 | F151: 20164 | K151: 0 | L151: 212
A152: 11 | B152: 20286 | C152: 22 | D152: 20296 | E152: 14 | F152: 20310 | K152: 0 | L152: 121
A153: 11 | B153: 20427 | C153: 22 | D153: 20440 | E153: 14 | F153: 20449 | K153: 0 | L153: 121
A154: 11 | B154: 20566 | C154: 22 | D154: 20587 | E154: 14 | F154: 20596 | K154: 0 | L154: 121
A155: 22 | B155: 20697 | C155: 13 | D155: 20705 | E155: 23 | F155: 20714 | K155: 0 | L155: 212
A156: 11 | B156: 20826 | C156: 22 | D156: 20835 | E156: 14 | F156: 20843 | K156: 0 | L156: 121
A157: 11 | B157: 20961 | C157: 11 | D157: 20974 | E157: 21 | F157: 20987 | K157: 0 | L157: 112
A158: 11 | B158: 21086 | C158: 11 | D158: 21106 | E158: 21 | F158: 21114 | K158: 0 | L158: 112
A159: 22 | B159: 21224 | C159: 13 | D159: 21233 | E159: 23 | F159: 21242 | K159: 0 | L159: 212
A160: 22 | B160: 21350 | C160: 13 | D160: 21361 | E160: 23 | F160: 21369 | K160: 0 | L160: 212
A161: 11 | B161: 21473 | C161: 22 | D161: 21481 | E161: 14 | F161: 21494 | K161: 0 | L161: 121
A162: 11 | B162: 21596 | C162: 22 | D162: 21604 | E162: 23 | F162: 21616 | K162: 0 | L162: 122
A163: 22 | B163: 21717 | C163: 13 | D163: 21725 | E163: 23 | F163: 21733 | K163: 0 | L163: 212
A164: 11 | B164: 21852 | C164: 22 | D164: 21860 | E164: 14 | F164: 21873 | K164: 0 | L164: 121
A165: 11 | B165: 21975 | C165: 22 | D165: 21983 | E165: 23 | F165: 21991 | K165: 0 | L165: 122
A166: 11 | B166: 22112 | C166: 22 | D166: 22121 | E166: 23 | F166: 22138 | K166: 0 | L166: 122
A167: 11 | B167: 22246 | C167: 22 | D167: 22255 | E167: 14 | F167: 22267 | K167: 0 | L167: 121
A168: 11 | B168: 22379 | C168: 22 | D168: 22394 | E168: 14 | F168: 22402 | K168: 0 | L168: 121
A169: 11 | B169: 22552 | C169: 22 | D169: 22564 | E169: 14 | F169: 22577 | K169: 0 | L169: 121
A170: 11 | B170: 22686 | C170: 22 | D170: 22695 | E170: 14 | F170: 22707 | K170: 0 | L170: 121
A171: 22 | B171: 22805 | C171: 13 | D171: 22815 | E171: 23 | F171: 22824 | K171: 0 | L171: 212
A172: 11 | B172: 22929 | C172: 22 | D172: 22942 | E172: 14 | F172: 22952 | K172: 0 | L172: 121
A173: 22 | B173: 23062 | C173: 13 | D173: 23077 | E173: 23 | F173: 23086 | K173: 0 | L173: 212
A174: 11 | B174: 23190 | C174: 22 | D174: 23198 | E174: 23 | F174: 23216 | K174: 0 | L174: 122
A175: 22 | B175: 23339 | C175: 13 | D175: 23348 | E175: 23 | F175: 23358 | K175: 0 | L175: 212
A176: 11 | B176: 23461 | C176: 22 | D176: 23470 | E176: 14 | F176: 23485 | K176: 0 | L176: 121
A177: 22 | B177: 23597 | C177: 13 | D177: 23605 | E177: 23 | F177: 23614 | K177: 0 | L177: 212
A178: 22 | B178: 23714 | C178: 13 | D178: 23723 | E178: 23 | F178: 23732 | K178: 0 | L178: 212
A179: 22 | B179: 23843 | C179: 13 | D179: 23852 | E179: 23 | F179: 23860 | K179: 0 | L179: 212

Sheet !2011-05-14_10h27m.Subject 52 p
A1: Report for:!2011-05-14_10h27m.Subject 52 phase 2
A2: Date | B2: 2011-05-14 | F2: Group | G2: 0
A3: Hen | B3: 0 | F3: Correct Sequence | G3: =Start!J2 -> 122 | P3: Total Sequences in Data | Q3: =4994-COUNTBLANK(L7:L5000) -> 183 | V3: Total Sequences in Block Data | W3: =COUNTA(L7:L37) -> 31 | AA3: Total Sequences in Block Data | AB3: =COUNTA(L38:L67) -> 30 | AF3: Total Sequences in Block Data | AG3: =COUNTA(L68:L98) -> 31 | AK3: Total Sequences in Block Data | AL3: =COUNTA(L99:L128) -> 30 | AP3: Total Sequences in Block Data | AQ3: =COUNTA(L129:L159) -> 31 | AU3: Total Sequences in Block Data | AV3: =COUNTA(L160:L189) -> 30
A4: Program | B4: 0 | P4: Total Sequences in Summary | Q4: =SUM(O7:O14) -> 182 | V4: Total Sequences in Block Summary | W4: =SUM(U7:U14) -> 31 | AA4: Total Sequences in Block Summary | AB4: =SUM(Z7:Z14) -> 30 | AF4: Total Sequences in Block Summary | AG4: =SUM(AE7:AE14) -> 31 | AK4: Total Sequences in Block Summary | AL4: =SUM(AJ7:AJ14) -> 30 | AP4: Total Sequences in Block Summary | AQ4: =SUM(AO7:AO14) -> 31 | AU4: Total Sequences in Block Summary | AV4: =SUM(AT7:AT14) -> 29
T5: Block 1 | Y5: Block 2 | AD5: Block 3 | AI5: Block 4 | AN5: Block 5 | AS5: Block 6
A6: Sequence Component 1 | B6: Time 1 | C6: Sequence Component 2 | D6: Time 2 | E6: Sequence Component 3 | F6: Time 3 | G6: Sequence Component 4 | H6: Time 4 | I6: Sequence Component 5 | J6: Time 5 | K6: Correct? 0=No 1=Yes | L6: Sequence | N6: Frequency | P6: Relative Frequency | Q6: Variability | T6: Frequency | V6: Relative Frequency | W6: Variability | Y6: Frequency | AA6: Relative Frequency | AB6: Variability | AD6: Frequency | AF6: Relative Frequency | AG6: Variability | AI6: Frequency | AK6: Relative Frequency | AL6: Variability | AN6: Frequency | AP6: Relative Frequency | AQ6: Variability | AS6: Frequency | AU6: Relative Frequency | AV6: Variability
A7: 11 | B7: 10 | C7: 22 | D7: 23 | E7: 14 | F7: 37 | K7: 0 | L7: 121 | N7: 111 | O7: =COUNTIF($L$7:$L$500,N7) -> 1 | P7: =O7/$Q$4 -> 0.005494505495 | Q7: =IF(P7=0,0,(P7*((LOG(P7))/LOG(2)))) -> -0.0412516189 | T7: =N7 -> 111 | U7: =COUNTIF(L7:L37,T7) -> 0 | V7: =U7/(W4-U10) -> 0 | W7: =IF(V7=0,0,(V7*((LOG(V7))/LOG(2)))) -> 0 | Y7: =N7 -> 111 | Z7: =COUNTIF(L38:L67,Y7) -> 0 | AA7: =Z7/(AB4-Z10) -> 0 | AB7: =IF(AA7=0,0,(AA7*((LOG(AA7))/LOG(2)))) -> 0 | AD7: =N7 -> 111 | AE7: =COUNTIF(L68:L98,AD7) -> 0 | AF7: =AE7/(AG4-AE10) -> 0 | AG7: =IF(AF7=0,0,(AF7*((LOG(AF7))/LOG(2)))) -> 0 | AI7: =N7 -> 111 | AJ7: =COUNTIF(L99:L128,AI7) -> 0 | AK7: =AJ7/(AL4-AJ10) -> 0 | AL7: =IF(AK7=0,0,(AK7*((LOG(AK7))/LOG(2)))) -> 0 | AN7: =N7 -> 111 | AO7: =COUNTIF(L129:L159,AN7) -> 0 | AP7: =AO7/(AQ4-AO10) -> 0 | AQ7: =IF(AP7=0,0,(AP7*((LOG(AP7))/LOG(2)))) -> 0 | AS7: =N7 -> 111 | AT7: =COUNTIF(L160:L189,AS7) -> 1 | AU7: =AT7/(AV4-AT10) -> 0.05 | AV7: =IF(AU7=0,0,(AU7*((LOG(AU7))/LOG(2)))) -> -0.2160964047
A8: 11 | B8: 136 | C8: 22 | D8: 145 | E8: 23 | F8: 152 | K8: 0 | L8: 122 | N8: 112 | O8: =COUNTIF($L$7:$L$500,N8) -> 13 | P8: =O8/$Q$4 -> 0.07142857143 | Q8: =IF(P8=0,0,(P8*((LOG(P8))/LOG(2)))) -> -0.271953923 | T8: =N8 -> 112 | U8: =COUNTIF(L7:L37,T8) -> 2 | V8: =U8/(W4-U10) -> 0.07692307692 | W8: =IF(V8=0,0,(V8*((LOG(V8))/LOG(2)))) -> -0.2846492091 | Y8: =N8 -> 112 | Z8: =COUNTIF(L38:L67,Y8) -> 1 | AA8: =Z8/(AB4-Z10) -> 0.03571428571 | AB8: =IF(AA8=0,0,(AA8*((LOG(AA8))/LOG(2)))) -> -0.1716912472 | AD8: =N8 -> 112 | AE8: =COUNTIF(L68:L98,AD8) -> 3 | AF8: =AE8/(AG4-AE10) -> 0.1153846154 | AG8: =IF(AF8=0,0,(AF8*((LOG(AF8))/LOG(2)))) -> -0.3594781405 | AI8: =N8 -> 112 | AJ8: =COUNTIF(L99:L128,AI8) -> 3 | AK8: =AJ8/(AL4-AJ10) -> 0.1428571429 | AL8: =IF(AK8=0,0,(AK8*((LOG(AK8))/LOG(2)))) -> -0.4010507032 | AN8: =N8 -> 112 | AO8: =COUNTIF(L129:L159,AN8) -> 3 | AP8: =AO8/(AQ4-AO10) -> 0.1153846154 | AQ8: =IF(AP8=0,0,(AP8*((LOG(AP8))/LOG(2)))) -> -0.3594781405 | AS8: =N8 -> 112 | AT8: =COUNTIF(L160:L189,AS8) -> 1 | AU8: =AT8/(AV4-AT10) -> 0.05 | AV8: =IF(AU8=0,0,(AU8*((LOG(AU8))/LOG(2)))) -> -0.2160964047
A9: 11 | B9: 255 | C9: 22 | D9: 265 | E9: 23 | F9: 272 | K9: 0 | L9: 122 | N9: 121 | O9: =COUNTIF($L$7:$L$500,N9) -> 57 | P9: =O9/$Q$4 -> 0.3131868132 | Q9: =IF(P9=0,0,(P9*((LOG(P9))/LOG(2)))) -> -0.5245580422 | T9: =N9 -> 121 | U9: =COUNTIF(L7:L37,T9) -> 11 | V9: =U9/(W4-U10) -> 0.4230769231 | W9: =IF(V9=0,0,(V9*((LOG(V9))/LOG(2)))) -> -0.5250418883 | Y9: =N9 -> 121 | Z9: =COUNTIF(L38:L67,Y9) -> 16 | AA9: =Z9/(AB4-Z10) -> 0.5714285714 | AB9: =IF(AA9=0,0,(AA9*((LOG(AA9))/LOG(2)))) -> -0.4613456697 | AD9: =N9 -> 121 | AE9: =COUNTIF(L68:L98,AD9) -> 5 | AF9: =AE9/(AG4-AE10) -> 0.1923076923 | AG9: =IF(AF9=0,0,(AF9*((LOG(AF9))/LOG(2)))) -> -0.4574060814 | AI9: =N9 -> 121 | AJ9: =COUNTIF(L99:L128,AI9) -> 5 | AK9: =AJ9/(AL4-AJ10) -> 0.2380952381 | AL9: =IF(AK9=0,0,(AK9*((LOG(AK9))/LOG(2)))) -> -0.49294984 | AN9: =N9 -> 121 | AO9: =COUNTIF(L129:L159,AN9) -> 10 | AP9: =AO9/(AQ4-AO10) -> 0.3846153846 | AQ9: =IF(AP9=0,0,(AP9*((LOG(AP9))/LOG(2)))) -> -0.5301967782 | AS9: =N9 -> 121 | AT9: =COUNTIF(L160:L189,AS9) -> 10 | AU9: =AT9/(AV4-AT10) -> 0.5 | AV9: =IF(AU9=0,0,(AU9*((LOG(AU9))/LOG(2)))) -> -0.5
A10: 22 | B10: 371 | C10: 24 | D10: 378 | E10: 14 | F10: 386 | K10: 0 | L10: 221 | N10: 122 | O10: =COUNTIF($L$7:$L$500,N10) -> 35 | P10: =O10/$Q$4 -> 0.1923076923 | Q10: =IF(P10=0,0,(P10*((LOG(P10))/LOG(2)))) -> -0.4574060814 | T10: =N10 -> 122 | U10: =COUNTIF(L7:L37,T10) -> 5 | Y10: =N10 -> 122 | Z10: =COUNTIF(L38:L67,Y10) -> 2 | AD10: =N10 -> 122 | AE10: =COUNTIF(L68:L98,AD10) -> 5 | AI10: =N10 -> 122 | AJ10: =COUNTIF(L99:L128,AI10) -> 9 | AN10: =N10 -> 122 | AO10: =COUNTIF(L129:L159,AN10) -> 5 | AS10: =N10 -> 122 | AT10: =COUNTIF(L160:L189,AS10) -> 9
A11: 22 | B11: 491 | C11: 24 | D11: 508 | E11: 14 | F11: 520 | K11: 0 | L11: 221 | N11: 211 | O11: =COUNTIF($L$7:$L$500,N11) -> 1 | P11: =O11/$Q$4 -> 0.005494505495 | Q11: =IF(P11=0,0,(P11*((LOG(P11))/LOG(2)))) -> -0.0412516189 | T11: =N11 -> 211 | U11: =COUNTIF(L7:L37,T11) -> 0 | V11: =U11/(W4-U10) -> 0 | W11: =IF(V11=0,0,(V11*((LOG(V11))/LOG(2)))) -> 0 | Y11: =N11 -> 211 | Z11: =COUNTIF(L38:L67,Y11) -> 0 | AA11: =Z11/(AB4-Z10) -> 0 | AB11: =IF(AA11=0,0,(AA11*((LOG(AA11))/LOG(2)))) -> 0 | AD11: =N11 -> 211 | AE11: =COUNTIF(L68:L98,AD11) -> 0 | AF11: =AE11/(AG4-AE10) -> 0 | AG11: =IF(AF11=0,0,(AF11*((LOG(AF11))/LOG(2)))) -> 0 | AI11: =N11 -> 211 | AJ11: =COUNTIF(L99:L128,AI11) -> 0 | AK11: =AJ11/(AL4-AJ10) -> 0 | AL11: =IF(AK11=0,0,(AK11*((LOG(AK11))/LOG(2)))) -> 0 | AN11: =N11 -> 211 | AO11: =COUNTIF(L129:L159,AN11) -> 1 | AP11: =AO11/(AQ4-AO10) -> 0.03846153846 | AQ11: =IF(AP11=0,0,(AP11*((LOG(AP11))/LOG(2)))) -> -0.180786143 | AS11: =N11 -> 211 | AT11: =COUNTIF(L160:L189,AS11) -> 0 | AU11: =AT11/(AV4-AT10) -> 0 | AV11: =IF(AU11=0,0,(AU11*((LOG(AU11))/LOG(2)))) -> 0
A12: 22 | B12: 622 | C12: 24 | D12: 640 | E12: 23 | F12: 652 | K12: 0 | L12: 222 | N12: 212 | O12: =COUNTIF($L$7:$L$500,N12) -> 49 | P12: =O12/$Q$4 -> 0.2692307692 | Q12: =IF(P12=0,0,(P12*((LOG(P12))/LOG(2)))) -> -0.5096766759 | T12: =N12 -> 212 | U12: =COUNTIF(L7:L37,T12) -> 8 | V12: =U12/(W4-U10) -> 0.3076923077 | W12: =IF(V12=0,0,(V12*((LOG(V12))/LOG(2)))) -> -0.523212221 | Y12: =N12 -> 212 | Z12: =COUNTIF(L38:L67,Y12) -> 8 | AA12: =Z12/(AB4-Z10) -> 0.2857142857 | AB12: =IF(AA12=0,0,(AA12*((LOG(AA12))/LOG(2)))) -> -0.5163871206 | AD12: =N12 -> 212 | AE12: =COUNTIF(L68:L98,AD12) -> 15 | AF12: =AE12/(AG4-AE10) -> 0.5769230769 | AG12: =IF(AF12=0,0,(AF12*((LOG(AF12))/LOG(2)))) -> -0.4578168015 | AI12: =N12 -> 212 | AJ12: =COUNTIF(L99:L128,AI12) -> 5 | AK12: =AJ12/(AL4-AJ10) -> 0.2380952381 | AL12: =IF(AK12=0,0,(AK12*((LOG(AK12))/LOG(2)))) -> -0.49294984 | AN12: =N12 -> 212 | AO12: =COUNTIF(L129:L159,AN12) -> 11 | AP12: =AO12/(AQ4-AO10) -> 0.4230769231 | AQ12: =IF(AP12=0,0,(AP12*((LOG(AP12))/LOG(2)))) -> -0.5250418883 | AS12: =N12 -> 212 | AT12: =COUNTIF(L160:L189,AS12) -> 2 | AU12: =AT12/(AV4-AT10) -> 0.1 | AV12: =IF(AU12=0,0,(AU12*((LOG(AU12))/LOG(2)))) -> -0.3321928095
A13: 22 | B13: 762 | C13: 13 | D13: 770 | E13: 23 | F13: 782 | K13: 0 | L13: 212 | N13: 221 | O13: =COUNTIF($L$7:$L$500,N13) -> 14 | P13: =O13/$Q$4 -> 0.07692307692 | Q13: =IF(P13=0,0,(P13*((LOG(P13))/LOG(2)))) -> -0.2846492091 | T13: =N13 -> 221 | U13: =COUNTIF(L7:L37,T13) -> 3 | V13: =U13/(W4-U10) -> 0.1153846154 | W13: =IF(V13=0,0,(V13*((LOG(V13))/LOG(2)))) -> -0.3594781405 | Y13: =N13 -> 221 | Z13: =COUNTIF(L38:L67,Y13) -> 2 | AA13: =Z13/(AB4-Z10) -> 0.07142857143 | AB13: =IF(AA13=0,0,(AA13*((LOG(AA13))/LOG(2)))) -> -0.271953923 | AD13: =N13 -> 221 | AE13: =COUNTIF(L68:L98,AD13) -> 3 | AF13: =AE13/(AG4-AE10) -> 0.1153846154 | AG13: =IF(AF13=0,0,(AF13*((LOG(AF13))/LOG(2)))) -> -0.3594781405 | AI13: =N13 -> 221 | AJ13: =COUNTIF(L99:L128,AI13) -> 4 | AK13: =AJ13/(AL4-AJ10) -> 0.1904761905 | AL13: =IF(AK13=0,0,(AK13*((LOG(AK13))/LOG(2)))) -> -0.4556795091 | AN13: =N13 -> 221 | AO13: =COUNTIF(L129:L159,AN13) -> 1 | AP13: =AO13/(AQ4-AO10) -> 0.03846153846 | AQ13: =IF(AP13=0,0,(AP13*((LOG(AP13))/LOG(2)))) -> -0.180786143 | AS13: =N13 -> 221 | AT13: =COUNTIF(L160:L189,AS13) -> 1 | AU13: =AT13/(AV4-AT10) -> 0.05 | AV13: =IF(AU13=0,0,(AU13*((LOG(AU13))/LOG(2)))) -> -0.2160964047
A14: 22 | B14: 881 | C14: 24 | D14: 893 | E14: 14 | F14: 905 | K14: 0 | L14: 221 | N14: 222 | O14: =COUNTIF($L$7:$L$500,N14) -> 12 | P14: =O14/$Q$4 -> 0.06593406593 | Q14: =IF(P14=0,0,(P14*((LOG(P14))/LOG(2)))) -> -0.2586482729 | T14: =N14 -> 222 | U14: =COUNTIF(L7:L37,T14) -> 2 | V14: =U14/(W4-U10) -> 0.07692307692 | W14: =IF(V14=0,0,(V14*((LOG(V14))/LOG(2)))) -> -0.2846492091 | Y14: =N14 -> 222 | Z14: =COUNTIF(L38:L67,Y14) -> 1 | AA14: =Z14/(AB4-Z10) -> 0.03571428571 | AB14: =IF(AA14=0,0,(AA14*((LOG(AA14))/LOG(2)))) -> -0.1716912472 | AD14: =N14 -> 222 | AE14: =COUNTIF(L68:L98,AD14) -> 0 | AF14: =AE14/(AG4-AE10) -> 0 | AG14: =IF(AF14=0,0,(AF14*((LOG(AF14))/LOG(2)))) -> 0 | AI14: =N14 -> 222 | AJ14: =COUNTIF(L99:L128,AI14) -> 4 | AK14: =AJ14/(AL4-AJ10) -> 0.1904761905 | AL14: =IF(AK14=0,0,(AK14*((LOG(AK14))/LOG(2)))) -> -0.4556795091 | AN14: =N14 -> 222 | AO14: =COUNTIF(L129:L159,AN14) -> 0 | AP14: =AO14/(AQ4-AO10) -> 0 | AQ14: =IF(AP14=0,0,(AP14*((LOG(AP14))/LOG(2)))) -> 0 | AS14: =N14 -> 222 | AT14: =COUNTIF(L160:L189,AS14) -> 5 | AU14: =AT14/(AV4-AT10) -> 0.25 | AV14: =IF(AU14=0,0,(AU14*((LOG(AU14))/LOG(2)))) -> -0.5
A15: 22 | B15: 1009 | C15: 24 | D15: 1021 | E15: 23 | F15: 1035 | K15: 0 | L15: 222 | P15: =SUM(P7:P14) -> 1 | Q15: =-SUM(Q7:Q14) -> 2.389395442 | V15: =SUM(V7:V14) -> 1 | W15: =-SUM(W7:W14) -> 1.977030668 | AA15: =SUM(AA7:AA14) -> 1 | AB15: =-SUM(AB7:AB14) -> 1.593069208 | AF15: =SUM(AF7:AF14) -> 1 | AG15: =-SUM(AG7:AG14) -> 1.634179164 | AK15: =SUM(AK7:AK14) -> 1 | AL15: =-SUM(AL7:AL14) -> 2.298309401 | AP15: =SUM(AP7:AP14) -> 1 | AQ15: =-SUM(AQ7:AQ14) -> 1.776289093 | AU15: =SUM(AU7:AU14) -> 1 | AV15: =-SUM(AV7:AV14) -> 1.980482024
A16: 11 | B16: 1146 | C16: 22 | D16: 1154 | E16: 23 | F16: 1162 | K16: 0 | L16: 122 | P16: U= | Q16: =Q15/(LOG(Q4)/LOG(2)) -> 0.3182553009 | V16: U1= | W16: =W15/(LOG(W4)/LOG(2)) -> 0.3990618345 | AA16: U2= | AB16: =AB15/(LOG(AB4)/LOG(2)) -> 0.3246596142 | AF16: U3= | AG16: =AG15/(LOG(AG4)/LOG(2)) -> 0.3298575715 | AK16: U4= | AL16: =AL15/(LOG(AL4)/LOG(2)) -> 0.4683840727 | AP16: U5= | AQ16: =AQ15/(LOG(AQ4)/LOG(2)) -> 0.3585423309 | AU16: U6= | AV16: =AV15/(LOG(AV4)/LOG(2)) -> 0.4076759513
A17: 11 | B17: 1278 | C17: 11 | D17: 1300 | E17: 21 | F17: 1309 | K17: 0 | L17: 112
A18: 11 | B18: 1410 | C18: 22 | D18: 1418 | E18: 14 | F18: 1426 | K18: 0 | L18: 121
A19: 22 | B19: 1529 | C19: 13 | D19: 1539 | E19: 23 | F19: 1549 | K19: 0 | L19: 212 | N19: Total Target Seq
A20: 22 | B20: 1648 | C20: 13 | D20: 1655 | E20: 23 | F20: 1666 | K20: 0 | L20: 212 | N20: =COUNTIF(L7:L189,G3) -> 35 | P20: 31 | Q20: 30 | R20: 31 | S20: 30 | T20: 31 | U20: 30
A21: 11 | B21: 1767 | C21: 22 | D21: 1776 | E21: 14 | F21: 1785 | K21: 0 | L21: 121 | P21: % of reinforcement given in 6 equal intervals based on number of trials
A22: 11 | B22: 1886 | C22: 22 | D22: 1898 | E22: 14 | F22: 1907 | K22: 0 | L22: 121 | P22: %_1 | Q22: %_2 | R22: %_3 | S22: %_4 | T22: %_5 | U22: %_6
A23: 22 | B23: 2007 | C23: 13 | D23: 2015 | E23: 23 | F23: 2024 | K23: 0 | L23: 212 | O23: target sequence | P23: =$G$3 -> 122 | Q23: =$G$3 -> 122 | R23: =$G$3 -> 122 | S23: =$G$3 -> 122 | T23: =$G$3 -> 122 | U23: =$G$3 -> 122
A24: 11 | B24: 2123 | C24: 22 | D24: 2132 | E24: 14 | F24: 2140 | K24: 0 | L24: 121 | O24: total reinforcement | P24: =U10 -> 5 | Q24: =Z10 -> 2 | R24: =AE10 -> 5 | S24: =AJ10 -> 9 | T24: =AO10 -> 5 | U24: =AT10 -> 9
A25: 11 | B25: 2254 | C25: 22 | D25: 2264 | E25: 14 | F25: 2279 | K25: 0 | L25: 121 | O25: % target
A26: 22 | B26: 2395 | C26: 13 | D26: 2406 | E26: 23 | F26: 2417 | K26: 0 | L26: 212 | O26: CCRF
A27: 22 | B27: 2516 | C27: 13 | D27: 2527 | E27: 23 | F27: 2537 | K27: 0 | L27: 212 | O27: % CCRf
A28: 11 | B28: 2647 | C28: 22 | D28: 2656 | E28: 14 | F28: 2668 | K28: 0 | L28: 121 | O28: average response rate | P28: =F37/P20 -> 122.9032258 | Q28: =(F67-F37)/Q20 -> 133.5666667 | R28: =(F98-F67)/R20 -> 133.6451613 | S28: =(F128-F98)/S20 -> 132.9333333 | T28: =(F159-F128)/T20 -> 131.9354839 | U28: =(F189-F159)/U20 -> -667.9333333
A29: 11 | B29: 2769 | C29: 22 | D29: 2779 | E29: 23 | F29: 2793 | K29: 0 | L29: 122
A30: 11 | B30: 2909 | C30: 22 | D30: 2917 | E30: 14 | F30: 2932 | K30: 0 | L30: 121
A31: 22 | B31: 3042 | C31: 13 | D31: 3050 | E31: 23 | F31: 3059 | K31: 0 | L31: 212
A32: 11 | B32: 3164 | C32: 11 | D32: 3181 | E32: 21 | F32: 3191 | K32: 0 | L32: 112
A33: 11 | B33: 3288 | C33: 22 | D33: 3298 | E33: 14 | F33: 3313 | K33: 0 | L33: 121
A34: 11 | B34: 3416 | C34: 22 | D34: 3423 | E34: 23 | F34: 3438 | K34: 0 | L34: 122
A35: 22 | B35: 3538 | C35: 13 | D35: 3548 | E35: 23 | F35: 3557 | K35: 0 | L35: 212
A36: 11 | B36: 3662 | C36: 22 | D36: 3671 | E36: 14 | F36: 3683 | K36: 0 | L36: 121
A37: 11 | B37: 3788 | C37: 22 | D37: 3800 | E37: 14 | F37: 3810 | K37: 0 | L37: 121
A38: 11 | B38: 3938 | C38: 22 | D38: 3949 | E38: 14 | F38: 3963 | K38: 0 | L38: 121
A39: 22 | B39: 4063 | C39: 13 | D39: 4070 | E39: 23 | F39: 4079 | K39: 0 | L39: 212
A40: 22 | B40: 4178 | C40: 13 | D40: 4186 | E40: 23 | F40: 4194 | K40: 0 | L40: 212
A41: 11 | B41: 4304 | C41: 22 | D41: 4313 | E41: 14 | F41: 4327 | K41: 0 | L41: 121
A42: 11 | B42: 4451 | C42: 22 | D42: 4460 | E42: 14 | F42: 4474 | K42: 0 | L42: 121
A43: 22 | B43: 4572 | C43: 24 | D43: 4588 | E43: 14 | F43: 4597 | K43: 0 | L43: 221
A44: 22 | B44: 4697 | C44: 13 | D44: 4709 | E44: 23 | F44: 4718 | K44: 0 | L44: 212
A45: 11 | B45: 4848 | C45: 22 | D45: 4856 | E45: 14 | F45: 4875 | K45: 0 | L45: 121
A46: 11 | B46: 4989 | C46: 22 | D46: 4998 | E46: 14 | F46: 5006 | K46: 0 | L46: 121
A47: 11 | B47: 5105 | C47: 22 | D47: 5119 | E47: 14 | F47: 5128 | K47: 0 | L47: 121
A48: 11 | B48: 5229 | C48: 22 | D48: 5238 | E48: 14 | F48: 5250 | K48: 0 | L48: 121
A49: 11 | B49: 5361 | C49: 22 | D49: 5370 | E49: 14 | F49: 5384 | K49: 0 | L49: 121
A50: 22 | B50: 5501 | C50: 13 | D50: 5509 | E50: 23 | F50: 5521 | K50: 0 | L50: 212
A51: 11 | B51: 5630 | C51: 22 | D51: 5638 | E51: 14 | F51: 5650 | K51: 0 | L51: 121
A52: 22 | B52: 5767 | C52: 24 | D52: 5782 | E52: 23 | F52: 5798 | K52: 0 | L52: 222
A53: 22 | B53: 5903 | C53: 13 | D53: 5912 | E53: 23 | F53: 5921 | K53: 0 | L53: 212
A54: 22 | B54: 6044 | C54: 13 | D54: 6056 | E54: 23 | F54: 6067 | K54: 0 | L54: 212
A55: 22 | B55: 6172 | C55: 13 | D55: 6180 | E55: 23 | F55: 6189 | K55: 0 | L55: 212
A56: 22 | B56: 6307 | C56: 24 | D56: 6322 | E56: 14 | F56: 6332 | K56: 0 | L56: 221
A57: 11 | B57: 6447 | C57: 22 | D57: 6468 | E57: 14 | F57: 6479 | K57: 0 | L57: 121
A58: 11 | B58: 6599 | C58: 22 | D58: 6611 | E58: 14 | F58: 6621 | K58: 0 | L58: 121
A59: 11 | B59: 6722 | C59: 11 | D59: 6739 | E59: 21 | F59: 6747 | K59: 0 | L59: 112
A60: 11 | B60: 6843 | C60: 22 | D60: 6853 | E60: 23 | F60: 6867 | K60: 0 | L60: 122
A61: 11 | B61: 6979 | C61: 22 | D61: 6987 | E61: 14 | F61: 7002 | K61: 0 | L61: 121
A62: 11 | B62: 7106 | C62: 22 | D62: 7115 | E62: 14 | F62: 7126 | K62: 0 | L62: 121
A63: 22 | B63: 7231 | C63: 13 | D63: 7239 | E63: 23 | F63: 7248 | K63: 0 | L63: 212
A64: 11 | B64: 7347 | C64: 22 | D64: 7355 | E64: 14 | F64: 7366 | K64: 0 | L64: 121
A65: 11 | B65: 7464 | C65: 22 | D65: 7474 | E65: 14 | F65: 7483 | K65: 0 | L65: 121
A66: 11 | B66: 7588 | C66: 22 | D66: 7609 | E66: 23 | F66: 7623 | K66: 0 | L66: 122
A67: 11 | B67: 7787 | C67: 22 | D67: 7801 | E67: 14 | F67: 7817 | K67: 0 | L67: 121
A68: 22 | B68: 7921 | C68: 13 | D68: 7930 | E68: 23 | F68: 7939 | K68: 0 | L68: 212
A69: 22 | B69: 8055 | C69: 13 | D69: 8066 | E69: 23 | F69: 8077 | K69: 0 | L69: 212
A70: 11 | B70: 8179 | C70: 22 | D70: 8188 | E70: 14 | F70: 8196 | K70: 0 | L70: 121
A71: 11 | B71: 8334 | C71: 11 | D71: 8358 | E71: 21 | F71: 8371 | K71: 0 | L71: 112
A72: 22 | B72: 8482 | C72: 13 | D72: 8496 | E72: 23 | F72: 8505 | K72: 0 | L72: 212
A73: 22 | B73: 8631 | C73: 13 | D73: 8639 | E73: 23 | F73: 8648 | K73: 0 | L73: 212
A74: 22 | B74: 8751 | C74: 13 | D74: 8758 | E74: 23 | F74: 8767 | K74: 0 | L74: 212
A75: 11 | B75: 8869 | C75: 22 | D75: 8877 | E75: 14 | F75: 8885 | K75: 0 | L75: 121
A76: 22 | B76: 8989 | C76: 24 | D76: 8999 | E76: 14 | F76: 9006 | K76: 0 | L76: 221
A77: 22 | B77: 9116 | C77: 13 | D77: 9128 | E77: 23 | F77: 9136 | K77: 0 | L77: 212
A78: 22 | B78: 9248 | C78: 13 | D78: 9256 | E78: 23 | F78: 9265 | K78: 0 | L78: 212
A79: 22 | B79: 9379 | C79: 13 | D79: 9387 | E79: 23 | F79: 9396 | K79: 0 | L79: 212
A80: 22 | B80: 9537 | C80: 13 | D80: 9547 | E80: 23 | F80: 9555 | K80: 0 | L80: 212
A81: 22 | B81: 9657 | C81: 13 | D81: 9666 | E81: 23 | F81: 9674 | K81: 0 | L81: 212
A82: 11 | B82: 9780 | C82: 22 | D82: 9789 | E82: 23 | F82: 9802 | K82: 0 | L82: 122
A83: 11 | B83: 9900 | C83: 11 | D83: 9913 | E83: 21 | F83: 9922 | K83: 0 | L83: 112
A84: 22 | B84: 10035 | C84: 24 | D84: 10048 | E84: 14 | F84: 10061 | K84: 0 | L84: 221
A85: 22 | B85: 10160 | C85: 13 | D85: 10168 | E85: 23 | F85: 10176 | K85: 0 | L85: 212
A86: 22 | B86: 10330 | C86: 13 | D86: 10342 | E86: 23 | F86: 10352 | K86: 0 | L86: 212
A87: 22 | B87: 10459 | C87: 13 | D87: 10467 | E87: 23 | F87: 10492 | K87: 0 | L87: 212
A88: 11 | B88: 10602 | C88: 22 | D88: 10613 | E88: 23 | F88: 10622 | K88: 0 | L88: 122
A89: 11 | B89: 10738 | C89: 22 | D89: 10750 | E89: 14 | F89: 10761 | K89: 0 | L89: 121
A90: 22 | B90: 10871 | C90: 24 | D90: 10878 | E90: 14 | F90: 10888 | K90: 0 | L90: 221
A91: 11 | B91: 11004 | C91: 11 | D91: 11031 | E91: 21 | F91: 11039 | K91: 0 | L91: 112
A92: 11 | B92: 11147 | C92: 22 | D92: 11155 | E92: 14 | F92: 11167 | K92: 0 | L92: 121
A93: 22 | B93: 11271 | C93: 13 | D93: 11279 | E93: 23 | F93: 11288 | K93: 0 | L93: 212
A94: 22 | B94: 11400 | C94: 13 | D94: 11408 | E94: 23 | F94: 11417 | K94: 0 | L94: 212
A95: 11 | B95: 11535 | C95: 22 | D95: 11550 | E95: 23 | F95: 11558 | K95: 0 | L95: 122
A96: 11 | B96: 11661 | C96: 22 | D96: 11671 | E96: 23 | F96: 11685 | K96: 0 | L96: 122
A97: 11 | B97: 11804 | C97: 22 | D97: 11813 | E97: 14 | F97: 11830 | K97: 0 | L97: 121
A98: 11 | B98: 11933 | C98: 22 | D98: 11945 | E98: 23 | F98: 11960 | K98: 0 | L98: 122
A99: 11 | B99: 12081 | C99: 22 | D99: 12091 | E99: 14 | F99: 12103 | K99: 0 | L99: 121
A100: 11 | B100: 12213 | C100: 22 | D100: 12222 | E100: 23 | F100: 12236 | K100: 0 | L100: 122
A101: 22 | B101: 12359 | C101: 24 | D101: 12373 | E101: 23 | F101: 12382 | K101: 0 | L101: 222
A102: 22 | B102: 12485 | C102: 24 | D102: 12503 | E102: 14 | F102: 12516 | K102: 0 | L102: 221
A103: 22 | B103: 12615 | C103: 24 | D103: 12629 | E103: 14 | F103: 12637 | K103: 0 | L103: 221
A104: 11 | B104: 12737 | C104: 22 | D104: 12747 | E104: 23 | F104: 12761 | K104: 0 | L104: 122
A105: 22 | B105: 12865 | C105: 24 | D105: 12883 | E105: 23 | F105: 12898 | K105: 0 | L105: 222
A106: 22 | B106: 13026 | C106: 13 | D106: 13035 | E106: 23 | F106: 13044 | K106: 0 | L106: 212
A107: 22 | B107: 13160 | C107: 13 | D107: 13169 | E107: 23 | F107: 13177 | K107: 0 | L107: 212
A108: 11 | B108: 13286 | C108: 22 | D108: 13295 | E108: 14 | F108: 13306 | K108: 0 | L108: 121
A109: 11 | B109: 13415 | C109: 11 | D109: 13427 | E109: 21 | F109: 13438 | K109: 0 | L109: 112
A110: 11 | B110: 13539 | C110: 22 | D110: 13551 | E110: 23 | F110: 13567 | K110: 0 | L110: 122
A111: 11 | B111: 13666 | C111: 11 | D111: 13683 | E111: 21 | F111: 13692 | K111: 0 | L111: 112
A112: 11 | B112: 13789 | C112: 22 | D112: 13797 | E112: 14 | F112: 13806 | K112: 0 | L112: 121
A113: 22 | B113: 13905 | C113: 13 | D113: 13913 | E113: 23 | F113: 13922 | K113: 0 | L113: 212
A114: 11 | B114: 14036 | C114: 22 | D114: 14044 | E114: 23 | F114: 14058 | K114: 0 | L114: 122
A115: 11 | B115: 14172 | C115: 22 | D115: 14185 | E115: 23 | F115: 14199 | K115: 0 | L115: 122
A116: 11 | B116: 14298 | C116: 11 | D116: 14313 | E116: 21 | F116: 14324 | K116: 0 | L116: 112
A117: 22 | B117: 14417 | C117: 24 | D117: 14431 | E117: 14 | F117: 14439 | K117: 0 | L117: 221
A118: 11 | B118: 14537 | C118: 22 | D118: 14546 | E118: 23 | F118: 14559 | K118: 0 | L118: 122
A119: 22 | B119: 14668 | C119: 13 | D119: 14676 | E119: 23 | F119: 14684 | K119: 0 | L119: 212
A120: 22 | B120: 14787 | C120: 13 | D120: 14795 | E120: 23 | F120: 14804 | K120: 0 | L120: 212
A121: 11 | B121: 14917 | C121: 22 | D121: 14927 | E121: 23 | F121: 14940 | K121: 0 | L121: 122
A122: 11 | B122: 15047 | C122: 22 | D122: 15056 | E122: 23 | F122: 15070 | K122: 0 | L122: 122
A123: 22 | B123: 15178 | C123: 24 | D123: 15186 | E123: 14 | F123: 15194 | K123: 0 | L123: 221
A124: 11 | B124: 15309 | C124: 22 | D124: 15322 | E124: 23 | F124: 15333 | K124: 0 | L124: 122
A125: 11 | B125: 15459 | C125: 22 | D125: 15468 | E125: 14 | F125: 15483 | K125: 0 | L125: 121
A126: 22 | B126: 15665 | C126: 24 | D126: 15680 | E126: 23 | F126: 15695 | K126: 0 | L126: 222
A127: 22 | B127: 15798 | C127: 24 | D127: 15812 | E127: 23 | F127: 15826 | K127: 0 | L127: 222
A128: 11 | B128: 15932 | C128: 22 | D128: 15940 | E128: 14 | F128: 15948 | K128: 0 | L128: 121
A129: 11 | B129: 16057 | C129: 22 | D129: 16068 | E129: 14 | F129: 16080 | K129: 0 | L129: 121
A130: 22 | B130: 16180 | C130: 13 | D130: 16189 | E130: 23 | F130: 16197 | K130: 0 | L130: 212
A131: 22 | B131: 16305 | C131: 13 | D131: 16324 | E131: 23 | F131: 16333 | K131: 0 | L131: 212
A132: 22 | B132: 16436 | C132: 13 | D132: 16445 | E132: 23 | F132: 16453 | K132: 0 | L132: 212
A133: 22 | B133: 16563 | C133: 13 | D133: 16571 | E133: 23 | F133: 16582 | K133: 0 | L133: 212
A134: 11 | B134: 16684 | C134: 22 | D134: 16693 | E134: 14 | F134: 16702 | K134: 0 | L134: 121
A135: 11 | B135: 16805 | C135: 22 | D135: 16813 | E135: 23 | F135: 16827 | K135: 0 | L135: 122
A136: 11 | B136: 16935 | C136: 22 | D136: 16944 | E136: 14 | F136: 16952 | K136: 0 | L136: 121
A137: 11 | B137: 17092 | C137: 22 | D137: 17101 | E137: 14 | F137: 17118 | K137: 0 | L137: 121
A138: 22 | B138: 17221 | C138: 24 | D138: 17234 | E138: 14 | F138: 17243 | K138: 0 | L138: 221
A139: 11 | B139: 17347 | C139: 11 | D139: 17364 | E139: 21 | F139: 17373 | K139: 0 | L139: 112
A140: 11 | B140: 17472 | C140: 22 | D140: 17484 | E140: 14 | F140: 17498 | K140: 0 | L140: 121
A141: 22 | B141: 17595 | C141: 13 | D141: 17604 | E141: 14 | F141: 17620 | K141: 0 | L141: 211
A142: 22 | B142: 17717 | C142: 13 | D142: 17734 | E142: 23 | F142: 17743 | K142: 0 | L142: 212
A143: 22 | B143: 17848 | C143: 13 | D143: 17865 | E143: 23 | F143: 17876 | K143: 0 | L143: 212
A144: 11 | B144: 17987 | C144: 22 | D144: 17999 | E144: 14 | F144: 18012 | K144: 0 | L144: 121
A145: 22 | B145: 18110 | C145: 13 | D145: 18118 | E145: 23 | F145: 18127 | K145: 0 | L145: 212
A146: 11 | B146: 18235 | C146: 22 | D146: 18247 | E146: 23 | F146: 18261 | K146: 0 | L146: 122
A147: 22 | B147: 18362 | C147: 13 | D147: 18370 | E147: 23 | F147: 18378 | K147: 0 | L147: 212
A148: 11 | B148: 18477 | C148: 22 | D148: 18495 | E148: 14 | F148: 18504 | K148: 0 | L148: 121
A149: 11 | B149: 18711 | C149: 22 | D149: 18722 | E149: 23 | F149: 18741 | K149: 0 | L149: 122
A150: 11 | B150: 18844 | C150: 22 | D150: 18855 | E150: 14 | F150: 18863 | K150: 0 | L150: 121
A151: 11 | B151: 18962 | C151: 22 | D151: 18971 | E151: 14 | F151: 18982 | K151: 0 | L151: 121
A152: 22 | B152: 19102 | C152: 13 | D152: 19115 | E152: 23 | F152: 19124 | K152: 0 | L152: 212
A153: 22 | B153: 19225 | C153: 13 | D153: 19233 | E153: 23 | F153: 19241 | K153: 0 | L153: 212
A154: 11 | B154: 19358 | C154: 22 | D154: 19376 | E154: 14 | F154: 19388 | K154: 0 | L154: 121
A155: 11 | B155: 19490 | C155: 11 | D155: 19516 | E155: 21 | F155: 19528 | K155: 0 | L155: 112
A156: 22 | B156: 19631 | C156: 13 | D156: 19639 | E156: 23 | F156: 19648 | K156: 0 | L156: 212
A157: 11 | B157: 19757 | C157: 22 | D157: 19774 | E157: 23 | F157: 19791 | K157: 0 | L157: 122
A158: 11 | B158: 19890 | C158: 11 | D158: 19906 | E158: 21 | F158: 19915 | K158: 0 | L158: 112
A159: 11 | B159: 20017 | C159: 22 | D159: 20026 | E159: 23 | F159: 20038 | K159: 0 | L159: 122
A160: 22 | B160: 20140 | C160: 24 | D160: 20163 | E160: 23 | F160: 20177 | K160: 0 | L160: 222
A161: 22 | B161: 20286 | C161: 24 | D161: 20303 | E161: 23 | F161: 20311 | K161: 0 | L161: 222
A162: 11 | B162: 20414 | C162: 22 | D162: 20424 | E162: 14 | F162: 20433 | K162: 0 | L162: 121
A163: 11 | B163: 20531 | C163: 22 | D163: 20540 | E163: 23 | F163: 20554 | K163: 0 | L163: 122
A164: 11 | B164: 20658 | C164: 22 | D164: 20669 | E164: 14 | F164: 20678 | K164: 0 | L164: 121
A165: 11 | B165: 20781 | C165: 22 | D165: 20790 | E165: 14 | F165: 20807 | K165: 0 | L165: 121
A166: 11 | B166: 20926 | C166: 22 | D166: 20935 | E166: 14 | F166: 20949 | K166: 0 | L166: 121
A167: 11 | B167: 21051 | C167: 22 | D167: 21064 | E167: 14 | F167: 21077 | K167: 0 | L167: 121
A168: 11 | B168: 21177 | C168: 11 | D168: 21193 | E168: 12 | F168: 21216 | K168: 0 | L168: 111
A169: 22 | B169: 21311 | C169: 24 | D169: 21321 | E169: 23 | F169: 21337 | K169: 0 | L169: 222
A170: 22 | B170: 21441 | C170: 24 | D170: 21464 | E170: 23 | F170: 21478 | K170: 0 | L170: 222
A171: 11 | B171: 21580 | C171: 22 | D171: 21597 | E171: 23 | F171: 21616 | K171: 0 | L171: 122
A172: 22 | B172: 21716 | C172: 24 | D172: 21737 | E172: 14 | F172: 21745 | K172: 0 | L172: 221
A173: 11 | B173: 21850 | C173: 22 | D173: 21872 | E173: 23 | F173: 21892 | K173: 0 | L173: 122
A174: 22 | B174: 22020 | C174: 24 | D174: 22037 | E174: 23 | F174: 22050 | K174: 0 | L174: 222
A175: 11 | B175: 22188 | C175: 11 | D175: 22218 | E175: 21 | F175: 22230 | K175: 0 | L175: 112
A176: 11 | B176: 22334 | C176: 22 | D176: 22343 | E176: 23 | F176: 22357 | K176: 0 | L176: 122
A177: 11 | B177: 22461 | C177: 22 | D177: 22470 | E177: 14 | F177: 22479 | K177: 0 | L177: 121
A178: 11 | B178: 22583 | C178: 22 | D178: 22600 | E178: 23 | F178: 22614 | K178: 0 | L178: 122
A179: 11 | B179: 22717 | C179: 22 | D179: 22725 | E179: 14 | F179: 22740 | K179: 0 | L179: 121
A180: 11 | B180: 22840 | C180: 22 | D180: 22851 | E180: 23 | F180: 22859 | K180: 0 | L180: 122
A181: 11 | B181: 22963 | C181: 22 | D181: 22988 | E181: 14 | F181: 23003 | K181: 0 | L181: 121
A182: 22 | B182: 23102 | C182: 13 | D182: 23110 | E182: 23 | F182: 23123 | K182: 0 | L182: 212
A183: 11 | B183: 23225 | C183: 22 | D183: 23234 | E183: 14 | F183: 23241 | K183: 0 | L183: 121
A184: 11 | B184: 23345 | C184: 22 | D184: 23356 | E184: 14 | F184: 23369 | K184: 0 | L184: 121
A185: 11 | B185: 23474 | C185: 22 | D185: 23482 | E185: 23 | F185: 23497 | K185: 0 | L185: 122
A186: 11 | B186: 23598 | C186: 22 | D186: 23606 | E186: 23 | F186: 23621 | K186: 0 | L186: 122
A187: 22 | B187: 23718 | C187: 13 | D187: 23743 | E187: 23 | F187: 23752 | K187: 0 | L187: 212
A188: 11 | B188: 23863 | C188: 22 | D188: 23880 | E188: 23 | F188: 23894 | K188: 0 | L188: 122
A189: 11 | B189: 23997 | L189: 1

Sheet !2011-05-15_08h55m.Subject 52 p
A1: Report for:!2011-05-15_08h55m.Subject 52 phase 2
A2: Date | B2: 2011-05-15 | F2: Group | G2: 0
A3: Hen | B3: 0 | F3: Correct Sequence | G3: =Start!J2 -> 122 | P3: Total Sequences in Data | Q3: =4994-COUNTBLANK(L7:L5000) -> 178 | V3: Total Sequences in Block Data | W3: =COUNTA(L7:L36) -> 30 | AA3: Total Sequences in Block Data | AB3: =COUNTA(L37:L65) -> 29 | AF3: Total Sequences in Block Data | AG3: =COUNTA(L66:L95) -> 30 | AK3: Total Sequences in Block Data | AL3: =COUNTA(L96:L125) -> 30 | AP3: Total Sequences in Block Data | AQ3: =COUNTA(L126:L154) -> 29 | AU3: Total Sequences in Block Data | AV3: =COUNTA(L155:L184) -> 30
A4: Program | B4: 0 | P4: Total Sequences in Summary | Q4: =SUM(O7:O14) -> 178 | V4: Total Sequences in Block Summary | W4: =SUM(U7:U14) -> 30 | AA4: Total Sequences in Block Summary | AB4: =SUM(Z7:Z14) -> 29 | AF4: Total Sequences in Block Summary | AG4: =SUM(AE7:AE14) -> 30 | AK4: Total Sequences in Block Summary | AL4: =SUM(AJ7:AJ14) -> 30 | AP4: Total Sequences in Block Summary | AQ4: =SUM(AO7:AO14) -> 29 | AU4: Total Sequences in Block Summary | AV4: =SUM(AT7:AT14) -> 30
T5: Block 1 | Y5: Block 2 | AD5: Block 3 | AI5: Block 4 | AN5: Block 5 | AS5: Block 6
A6: Sequence Component 1 | B6: Time 1 | C6: Sequence Component 2 | D6: Time 2 | E6: Sequence Component 3 | F6: Time 3 | G6: Sequence Component 4 | H6: Time 4 | I6: Sequence Component 5 | J6: Time 5 | K6: Correct? 0=No 1=Yes | L6: Sequence | N6: Frequency | P6: Relative Frequency | Q6: Variability | T6: Frequency | V6: Relative Frequency | W6: Variability | Y6: Frequency | AA6: Relative Frequency | AB6: Variability | AD6: Frequency | AF6: Relative Frequency | AG6: Variability | AI6: Frequency | AK6: Relative Frequency | AL6: Variability | AN6: Frequency | AP6: Relative Frequency | AQ6: Variability | AS6: Frequency | AU6: Relative Frequency | AV6: Variability
A7: 22 | B7: 11 | C7: 13 | D7: 18 | E7: 23 | F7: 26 | K7: 0 | L7: 212 | N7: 111 | O7: =COUNTIF($L$7:$L$500,N7) -> 3 | P7: =O7/$Q$4 -> 0.01685393258 | Q7: =IF(P7=0,0,(P7*((LOG(P7))/LOG(2)))) -> -0.09928265613 | T7: =N7 -> 111 | U7: =COUNTIF(L7:L36,T7) -> 0 | V7: =U7/(W4-U10) -> 0 | W7: =IF(V7=0,0,(V7*((LOG(V7))/LOG(2)))) -> 0 | Y7: =N7 -> 111 | Z7: =COUNTIF(L37:L65,Y7) -> 0 | AA7: =Z7/(AB4-Z10) -> 0 | AB7: =IF(AA7=0,0,(AA7*((LOG(AA7))/LOG(2)))) -> 0 | AD7: =N7 -> 111 | AE7: =COUNTIF(L66:L95,AD7) -> 1 | AF7: =AE7/(AG4-AE10) -> 0.04166666667 | AG7: =IF(AF7=0,0,(AF7*((LOG(AF7))/LOG(2)))) -> -0.1910401042 | AI7: =N7 -> 111 | AJ7: =COUNTIF(L96:L125,AI7) -> 1 | AK7: =AJ7/(AL4-AJ10) -> 0.03703703704 | AL7: =IF(AK7=0,0,(AK7*((LOG(AK7))/LOG(2)))) -> -0.1761069445 | AN7: =N7 -> 111 | AO7: =COUNTIF(L126:L154,AN7) -> 1 | AP7: =AO7/(AQ4-AO10) -> 0.04166666667 | AQ7: =IF(AP7=0,0,(AP7*((LOG(AP7))/LOG(2)))) -> -0.1910401042 | AS7: =N7 -> 111 | AT7: =COUNTIF(L155:L184,AS7) -> 0 | AU7: =AT7/(AV4-AT10) -> 0 | AV7: =IF(AU7=0,0,(AU7*((LOG(AU7))/LOG(2)))) -> 0
A8: 11 | B8: 138 | C8: 22 | D8: 147 | E8: 14 | F8: 162 | K8: 0 | L8: 121 | N8: 112 | O8: =COUNTIF($L$7:$L$500,N8) -> 37 | P8: =O8/$Q$4 -> 0.2078651685 | Q8: =IF(P8=0,0,(P8*((LOG(P8))/LOG(2)))) -> -0.4710806877 | T8: =N8 -> 112 | U8: =COUNTIF(L7:L36,T8) -> 4 | V8: =U8/(W4-U10) -> 0.1818181818 | W8: =IF(V8=0,0,(V8*((LOG(V8))/LOG(2)))) -> -0.4471693852 | Y8: =N8 -> 112 | Z8: =COUNTIF(L37:L65,Y8) -> 3 | AA8: =Z8/(AB4-Z10) -> 0.1578947368 | AB8: =IF(AA8=0,0,(AA8*((LOG(AA8))/LOG(2)))) -> -0.4204681599 | AD8: =N8 -> 112 | AE8: =COUNTIF(L66:L95,AD8) -> 3 | AF8: =AE8/(AG4-AE10) -> 0.125 | AG8: =IF(AF8=0,0,(AF8*((LOG(AF8))/LOG(2)))) -> -0.375 | AI8: =N8 -> 112 | AJ8: =COUNTIF(L96:L125,AI8) -> 4 | AK8: =AJ8/(AL4-AJ10) -> 0.1481481481 | AL8: =IF(AK8=0,0,(AK8*((LOG(AK8))/LOG(2)))) -> -0.4081314818 | AN8: =N8 -> 112 | AO8: =COUNTIF(L126:L154,AN8) -> 8 | AP8: =AO8/(AQ4-AO10) -> 0.3333333333 | AQ8: =IF(AP8=0,0,(AP8*((LOG(AP8))/LOG(2)))) -> -0.5283208336 | AS8: =N8 -> 112 | AT8: =COUNTIF(L155:L184,AS8) -> 15 | AU8: =AT8/(AV4-AT10) -> 0.5357142857 | AV8: =IF(AU8=0,0,(AU8*((LOG(AU8))/LOG(2)))) -> -0.4823916035
A9: 22 | B9: 259 | C9: 24 | D9: 266 | E9: 14 | F9: 276 | K9: 0 | L9: 221 | N9: 121 | O9: =COUNTIF($L$7:$L$500,N9) -> 50 | P9: =O9/$Q$4 -> 0.2808988764 | Q9: =IF(P9=0,0,(P9*((LOG(P9))/LOG(2)))) -> -0.5145722588 | T9: =N9 -> 121 | U9: =COUNTIF(L7:L36,T9) -> 8 | V9: =U9/(W4-U10) -> 0.3636363636 | W9: =IF(V9=0,0,(V9*((LOG(V9))/LOG(2)))) -> -0.5307024068 | Y9: =N9 -> 121 | Z9: =COUNTIF(L37:L65,Y9) -> 5 | AA9: =Z9/(AB4-Z10) -> 0.2631578947 | AB9: =IF(AA9=0,0,(AA9*((LOG(AA9))/LOG(2)))) -> -0.5068419523 | AD9: =N9 -> 121 | AE9: =COUNTIF(L66:L95,AD9) -> 10 | AF9: =AE9/(AG4-AE10) -> 0.4166666667 | AG9: =IF(AF9=0,0,(AF9*((LOG(AF9))/LOG(2)))) -> -0.5262643358 | AI9: =N9 -> 121 | AJ9: =COUNTIF(L96:L125,AI9) -> 10 | AK9: =AJ9/(AL4-AJ10) -> 0.3703703704 | AL9: =IF(AK9=0,0,(AK9*((LOG(AK9))/LOG(2)))) -> -0.5307257064 | AN9: =N9 -> 121 | AO9: =COUNTIF(L126:L154,AN9) -> 5 | AP9: =AO9/(AQ4-AO10) -> 0.2083333333 | AQ9: =IF(AP9=0,0,(AP9*((LOG(AP9))/LOG(2)))) -> -0.4714655012 | AS9: =N9 -> 121 | AT9: =COUNTIF(L155:L184,AS9) -> 12 | AU9: =AT9/(AV4-AT10) -> 0.4285714286 | AV9: =IF(AU9=0,0,(AU9*((LOG(AU9))/LOG(2)))) -> -0.5238824663
A10: 22 | B10: 400 | C10: 13 | D10: 414 | E10: 14 | F10: 428 | K10: 0 | L10: 211 | N10: 122 | O10: =COUNTIF($L$7:$L$500,N10) -> 34 | P10: =O10/$Q$4 -> 0.191011236 | Q10: =IF(P10=0,0,(P10*((LOG(P10))/LOG(2)))) -> -0.4561865171 | T10: =N10 -> 122 | U10: =COUNTIF(L7:L36,T10) -> 8 | Y10: =N10 -> 122 | Z10: =COUNTIF(L37:L65,Y10) -> 10 | AD10: =N10 -> 122 | AE10: =COUNTIF(L66:L95,AD10) -> 6 | AI10: =N10 -> 122 | AJ10: =COUNTIF(L96:L125,AI10) -> 3 | AN10: =N10 -> 122 | AO10: =COUNTIF(L126:L154,AN10) -> 5 | AS10: =N10 -> 122 | AT10: =COUNTIF(L155:L184,AS10) -> 2
A11: 22 | B11: 524 | C11: 13 | D11: 532 | E11: 23 | F11: 549 | K11: 0 | L11: 212 | N11: 211 | O11: =COUNTIF($L$7:$L$500,N11) -> 5 | P11: =O11/$Q$4 -> 0.02808988764 | Q11: =IF(P11=0,0,(P11*((LOG(P11))/LOG(2)))) -> -0.1447698128 | T11: =N11 -> 211 | U11: =COUNTIF(L7:L36,T11) -> 1 | V11: =U11/(W4-U10) -> 0.04545454545 | W11: =IF(V11=0,0,(V11*((LOG(V11))/LOG(2)))) -> -0.2027014372 | Y11: =N11 -> 211 | Z11: =COUNTIF(L37:L65,Y11) -> 2 | AA11: =Z11/(AB4-Z10) -> 0.1052631579 | AB11: =IF(AA11=0,0,(AA11*((LOG(AA11))/LOG(2)))) -> -0.3418871067 | AD11: =N11 -> 211 | AE11: =COUNTIF(L66:L95,AD11) -> 1 | AF11: =AE11/(AG4-AE10) -> 0.04166666667 | AG11: =IF(AF11=0,0,(AF11*((LOG(AF11))/LOG(2)))) -> -0.1910401042 | AI11: =N11 -> 211 | AJ11: =COUNTIF(L96:L125,AI11) -> 0 | AK11: =AJ11/(AL4-AJ10) -> 0 | AL11: =IF(AK11=0,0,(AK11*((LOG(AK11))/LOG(2)))) -> 0 | AN11: =N11 -> 211 | AO11: =COUNTIF(L126:L154,AN11) -> 1 | AP11: =AO11/(AQ4-AO10) -> 0.04166666667 | AQ11: =IF(AP11=0,0,(AP11*((LOG(AP11))/LOG(2)))) -> -0.1910401042 | AS11: =N11 -> 211 | AT11: =COUNTIF(L155:L184,AS11) -> 0 | AU11: =AT11/(AV4-AT10) -> 0 | AV11: =IF(AU11=0,0,(AU11*((LOG(AU11))/LOG(2)))) -> 0
A12: 11 | B12: 664 | C12: 22 | D12: 672 | E12: 14 | F12: 690 | K12: 0 | L12: 121 | N12: 212 | O12: =COUNTIF($L$7:$L$500,N12) -> 29 | P12: =O12/$Q$4 -> 0.1629213483 | Q12: =IF(P12=0,0,(P12*((LOG(P12))/LOG(2)))) -> -0.4264877564 | T12: =N12 -> 212 | U12: =COUNTIF(L7:L36,T12) -> 6 | V12: =U12/(W4-U10) -> 0.2727272727 | W12: =IF(V12=0,0,(V12*((LOG(V12))/LOG(2)))) -> -0.5112188503 | Y12: =N12 -> 212 | Z12: =COUNTIF(L37:L65,Y12) -> 6 | AA12: =Z12/(AB4-Z10) -> 0.3157894737 | AB12: =IF(AA12=0,0,(AA12*((LOG(AA12))/LOG(2)))) -> -0.5251468461 | AD12: =N12 -> 212 | AE12: =COUNTIF(L66:L95,AD12) -> 4 | AF12: =AE12/(AG4-AE10) -> 0.1666666667 | AG12: =IF(AF12=0,0,(AF12*((LOG(AF12))/LOG(2)))) -> -0.4308270835 | AI12: =N12 -> 212 | AJ12: =COUNTIF(L96:L125,AI12) -> 6 | AK12: =AJ12/(AL4-AJ10) -> 0.2222222222 | AL12: =IF(AK12=0,0,(AK12*((LOG(AK12))/LOG(2)))) -> -0.4822055559 | AN12: =N12 -> 212 | AO12: =COUNTIF(L126:L154,AN12) -> 7 | AP12: =AO12/(AQ4-AO10) -> 0.2916666667 | AQ12: =IF(AP12=0,0,(AP12*((LOG(AP12))/LOG(2)))) -> -0.5184688771 | AS12: =N12 -> 212 | AT12: =COUNTIF(L155:L184,AS12) -> 0 | AU12: =AT12/(AV4-AT10) -> 0 | AV12: =IF(AU12=0,0,(AU12*((LOG(AU12))/LOG(2)))) -> 0
A13: 11 | B13: 802 | C13: 22 | D13: 812 | E13: 23 | F13: 834 | K13: 0 | L13: 122 | N13: 221 | O13: =COUNTIF($L$7:$L$500,N13) -> 10 | P13: =O13/$Q$4 -> 0.05617977528 | Q13: =IF(P13=0,0,(P13*((LOG(P13))/LOG(2)))) -> -0.2333598503 | T13: =N13 -> 221 | U13: =COUNTIF(L7:L36,T13) -> 2 | V13: =U13/(W4-U10) -> 0.09090909091 | W13: =IF(V13=0,0,(V13*((LOG(V13))/LOG(2)))) -> -0.3144937835 | Y13: =N13 -> 221 | Z13: =COUNTIF(L37:L65,Y13) -> 0 | AA13: =Z13/(AB4-Z10) -> 0 | AB13: =IF(AA13=0,0,(AA13*((LOG(AA13))/LOG(2)))) -> 0 | AD13: =N13 -> 221 | AE13: =COUNTIF(L66:L95,AD13) -> 3 | AF13: =AE13/(AG4-AE10) -> 0.125 | AG13: =IF(AF13=0,0,(AF13*((LOG(AF13))/LOG(2)))) -> -0.375 | AI13: =N13 -> 221 | AJ13: =COUNTIF(L96:L125,AI13) -> 3 | AK13: =AJ13/(AL4-AJ10) -> 0.1111111111 | AL13: =IF(AK13=0,0,(AK13*((LOG(AK13))/LOG(2)))) -> -0.352213889 | AN13: =N13 -> 221 | AO13: =COUNTIF(L126:L154,AN13) -> 1 | AP13: =AO13/(AQ4-AO10) -> 0.04166666667 | AQ13: =IF(AP13=0,0,(AP13*((LOG(AP13))/LOG(2)))) -> -0.1910401042 | AS13: =N13 -> 221 | AT13: =COUNTIF(L155:L184,AS13) -> 1 | AU13: =AT13/(AV4-AT10) -> 0.03571428571 | AV13: =IF(AU13=0,0,(AU13*((LOG(AU13))/LOG(2)))) -> -0.1716912472
A14: 11 | B14: 934 | C14: 22 | D14: 942 | E14: 23 | F14: 957 | K14: 0 | L14: 122 | N14: 222 | O14: =COUNTIF($L$7:$L$500,N14) -> 10 | P14: =O14/$Q$4 -> 0.05617977528 | Q14: =IF(P14=0,0,(P14*((LOG(P14))/LOG(2)))) -> -0.2333598503 | T14: =N14 -> 222 | U14: =COUNTIF(L7:L36,T14) -> 1 | V14: =U14/(W4-U10) -> 0.04545454545 | W14: =IF(V14=0,0,(V14*((LOG(V14))/LOG(2)))) -> -0.2027014372 | Y14: =N14 -> 222 | Z14: =COUNTIF(L37:L65,Y14) -> 3 | AA14: =Z14/(AB4-Z10) -> 0.1578947368 | AB14: =IF(AA14=0,0,(AA14*((LOG(AA14))/LOG(2)))) -> -0.4204681599 | AD14: =N14 -> 222 | AE14: =COUNTIF(L66:L95,AD14) -> 2 | AF14: =AE14/(AG4-AE10) -> 0.08333333333 | AG14: =IF(AF14=0,0,(AF14*((LOG(AF14))/LOG(2)))) -> -0.2987468751 | AI14: =N14 -> 222 | AJ14: =COUNTIF(L96:L125,AI14) -> 3 | AK14: =AJ14/(AL4-AJ10) -> 0.1111111111 | AL14: =IF(AK14=0,0,(AK14*((LOG(AK14))/LOG(2)))) -> -0.352213889 | AN14: =N14 -> 222 | AO14: =COUNTIF(L126:L154,AN14) -> 1 | AP14: =AO14/(AQ4-AO10) -> 0.04166666667 | AQ14: =IF(AP14=0,0,(AP14*((LOG(AP14))/LOG(2)))) -> -0.1910401042 | AS14: =N14 -> 222 | AT14: =COUNTIF(L155:L184,AS14) -> 0 | AU14: =AT14/(AV4-AT10) -> 0 | AV14: =IF(AU14=0,0,(AU14*((LOG(AU14))/LOG(2)))) -> 0
A15: 22 | B15: 1075 | C15: 13 | D15: 1088 | E15: 23 | F15: 1096 | K15: 0 | L15: 212 | P15: =SUM(P7:P14) -> 1 | Q15: =-SUM(Q7:Q14) -> 2.57909939 | V15: =SUM(V7:V14) -> 1 | W15: =-SUM(W7:W14) -> 2.2089873 | AA15: =SUM(AA7:AA14) -> 1 | AB15: =-SUM(AB7:AB14) -> 2.214812225 | AF15: =SUM(AF7:AF14) -> 1 | AG15: =-SUM(AG7:AG14) -> 2.387918503 | AK15: =SUM(AK7:AK14) -> 1 | AL15: =-SUM(AL7:AL14) -> 2.301597467 | AP15: =SUM(AP7:AP14) -> 1 | AQ15: =-SUM(AQ7:AQ14) -> 2.282415629 | AU15: =SUM(AU7:AU14) -> 1 | AV15: =-SUM(AV7:AV14) -> 1.177965317
A16: 22 | B16: 1204 | C16: 13 | D16: 1212 | E16: 23 | F16: 1221 | K16: 0 | L16: 212 | P16: U= | Q16: =Q15/(LOG(Q4)/LOG(2)) -> 0.3449961684 | V16: U1= | W16: =W15/(LOG(W4)/LOG(2)) -> 0.4501806709 | AA16: U2= | AB16: =AB15/(LOG(AB4)/LOG(2)) -> 0.455912081 | AF16: U3= | AG16: =AG15/(LOG(AG4)/LOG(2)) -> 0.4866459637 | AK16: U4= | AL16: =AL15/(LOG(AL4)/LOG(2)) -> 0.4690541641 | AP16: U5= | AQ16: =AQ15/(LOG(AQ4)/LOG(2)) -> 0.4698280275 | AU16: U6= | AV16: =AV15/(LOG(AV4)/LOG(2)) -> 0.2400634972
A17: 22 | B17: 1327 | C17: 13 | D17: 1335 | E17: 23 | F17: 1343 | K17: 0 | L17: 212
A18: 11 | B18: 1451 | C18: 22 | D18: 1476 | E18: 23 | F18: 1508 | K18: 0 | L18: 122
A19: 22 | B19: 1620 | C19: 13 | D19: 1629 | E19: 23 | F19: 1651 | K19: 0 | L19: 212 | N19: Total Target Seq
A20: 11 | B20: 1760 | C20: 22 | D20: 1769 | E20: 14 | F20: 1777 | K20: 0 | L20: 121 | N20: =COUNTIF(L7:L184,G3) -> 34 | P20: 30 | Q20: 29 | R20: 30 | S20: 30 | T20: 29 | U20: 30
A21: 11 | B21: 1875 | C21: 11 | D21: 1892 | E21: 21 | F21: 1901 | K21: 0 | L21: 112 | P21: % of reinforcement given in 6 equal intervals based on number of trials
A22: 11 | B22: 2017 | C22: 22 | D22: 2025 | E22: 23 | F22: 2039 | K22: 0 | L22: 122 | P22: %_1 | Q22: %_2 | R22: %_3 | S22: %_4 | T22: %_5 | U22: %_6
A23: 11 | B23: 2144 | C23: 11 | D23: 2162 | E23: 21 | F23: 2169 | K23: 0 | L23: 112 | O23: target sequence | P23: =$G$3 -> 122 | Q23: =$G$3 -> 122 | R23: =$G$3 -> 122 | S23: =$G$3 -> 122 | T23: =$G$3 -> 122 | U23: =$G$3 -> 122
A24: 11 | B24: 2277 | C24: 22 | D24: 2286 | E24: 23 | F24: 2304 | K24: 0 | L24: 122 | O24: total reinforcement | P24: =U10 -> 8 | Q24: =Z10 -> 10 | R24: =AE10 -> 6 | S24: =AJ10 -> 3 | T24: =AO10 -> 5 | U24: =AT10 -> 2
A25: 11 | B25: 2451 | C25: 22 | D25: 2475 | E25: 23 | F25: 2485 | K25: 0 | L25: 122 | O25: % target
A26: 11 | B26: 2584 | C26: 22 | D26: 2593 | E26: 14 | F26: 2602 | K26: 0 | L26: 121 | O26: CCRF
A27: 11 | B27: 2707 | C27: 22 | D27: 2727 | E27: 14 | F27: 2736 | K27: 0 | L27: 121 | O27: % CCRf
A28: 11 | B28: 2836 | C28: 22 | D28: 2845 | E28: 14 | F28: 2858 | K28: 0 | L28: 121 | O28: average response rate | P28: =F36/P20 -> 128.7 | Q28: =(F65-F36)/Q20 -> 129.3793103 | R28: =(F95-F65)/R20 -> 140.7 | S28: =(F125-F95)/S20 -> 142.8 | T28: =(F154-F125)/T20 -> 137.6896552 | U28: =(F184-F154)/U20 -> 127.4333333
A29: 11 | B29: 2960 | C29: 22 | D29: 2969 | E29: 14 | F29: 2978 | K29: 0 | L29: 121
A30: 11 | B30: 3076 | C30: 22 | D30: 3085 | E30: 14 | F30: 3092 | K30: 0 | L30: 121
A31: 11 | B31: 3187 | C31: 22 | D31: 3196 | E31: 23 | F31: 3205 | K31: 0 | L31: 122
A32: 22 | B32: 3330 | C32: 24 | D32: 3349 | E32: 23 | F32: 3362 | K32: 0 | L32: 222
A33: 11 | B33: 3460 | C33: 22 | D33: 3469 | E33: 23 | F33: 3482 | K33: 0 | L33: 122
A34: 22 | B34: 3581 | C34: 24 | D34: 3601 | E34: 14 | F34: 3610 | K34: 0 | L34: 221
A35: 11 | B35: 3711 | C35: 11 | D35: 3726 | E35: 21 | F35: 3736 | K35: 0 | L35: 112
A36: 11 | B36: 3837 | C36: 11 | D36: 3853 | E36: 21 | F36: 3861 | K36: 0 | L36: 112
A37: 11 | B37: 3949 | C37: 11 | D37: 3965 | E37: 21 | F37: 3974 | K37: 0 | L37: 112
A38: 11 | B38: 4068 | C38: 22 | D38: 4084 | E38: 14 | F38: 4099 | K38: 0 | L38: 121
A39: 22 | B39: 4202 | C39: 13 | D39: 4213 | E39: 23 | F39: 4222 | K39: 0 | L39: 212
A40: 22 | B40: 4327 | C40: 24 | D40: 4345 | E40: 23 | F40: 4359 | K40: 0 | L40: 222
A41: 11 | B41: 4457 | C41: 22 | D41: 4479 | E41: 23 | F41: 4491 | K41: 0 | L41: 122
A42: 11 | B42: 4591 | C42: 22 | D42: 4602 | E42: 23 | F42: 4615 | K42: 0 | L42: 122
A43: 11 | B43: 4723 | C43: 22 | D43: 4731 | E43: 23 | F43: 4750 | K43: 0 | L43: 122
A44: 22 | B44: 4868 | C44: 13 | D44: 4877 | E44: 23 | F44: 4886 | K44: 0 | L44: 212
A45: 11 | B45: 4983 | C45: 22 | D45: 4992 | E45: 23 | F45: 5006 | K45: 0 | L45: 122
A46: 11 | B46: 5108 | C46: 22 | D46: 5118 | E46: 23 | F46: 5135 | K46: 0 | L46: 122
A47: 22 | B47: 5236 | C47: 13 | D47: 5244 | E47: 23 | F47: 5252 | K47: 0 | L47: 212
A48: 11 | B48: 5364 | C48: 22 | D48: 5373 | E48: 23 | F48: 5387 | K48: 0 | L48: 122
A49: 11 | B49: 5493 | C49: 11 | D49: 5519 | E49: 21 | F49: 5527 | K49: 0 | L49: 112
A50: 22 | B50: 5631 | C50: 13 | D50: 5640 | E50: 23 | F50: 5648 | K50: 0 | L50: 212
A51: 22 | B51: 5747 | C51: 13 | D51: 5754 | E51: 14 | F51: 5770 | K51: 0 | L51: 211
A52: 11 | B52: 5876 | C52: 22 | D52: 5893 | E52: 23 | F52: 5906 | K52: 0 | L52: 122
A53: 11 | B53: 6011 | C53: 22 | D53: 6019 | E53: 14 | F53: 6031 | K53: 0 | L53: 121
A54: 22 | B54: 6132 | C54: 13 | D54: 6140 | E54: 14 | F54: 6160 | K54: 0 | L54: 211
A55: 11 | B55: 6262 | C55: 22 | D55: 6284 | E55: 14 | F55: 6296 | K55: 0 | L55: 121
A56: 11 | B56: 6397 | C56: 22 | D56: 6413 | E56: 23 | F56: 6431 | K56: 0 | L56: 122
A57: 11 | B57: 6534 | C57: 22 | D57: 6546 | E57: 23 | F57: 6559 | K57: 0 | L57: 122
A58: 22 | B58: 6665 | C58: 24 | D58: 6678 | E58: 23 | F58: 6691 | K58: 0 | L58: 222
A59: 11 | B59: 6789 | C59: 11 | D59: 6805 | E59: 21 | F59: 6813 | K59: 0 | L59: 112
A60: 22 | B60: 6915 | C60: 24 | D60: 6931 | E60: 23 | F60: 6951 | K60: 0 | L60: 222
A61: 11 | B61: 7049 | C61: 22 | D61: 7060 | E61: 14 | F61: 7071 | K61: 0 | L61: 121
A62: 22 | B62: 7171 | C62: 13 | D62: 7179 | E62: 23 | F62: 7187 | K62: 0 | L62: 212
A63: 11 | B63: 7291 | C63: 22 | D63: 7312 | E63: 14 | F63: 7325 | K63: 0 | L63: 121
A64: 22 | B64: 7445 | C64: 13 | D64: 7457 | E64: 23 | F64: 7465 | K64: 0 | L64: 212
A65: 11 | B65: 7594 | C65: 22 | D65: 7603 | E65: 23 | F65: 7613 | K65: 0 | L65: 122
A66: 11 | B66: 7715 | C66: 11 | D66: 7731 | E66: 21 | F66: 7739 | K66: 0 | L66: 112
A67: 11 | B67: 7848 | C67: 22 | D67: 7856 | E67: 14 | F67: 7864 | K67: 0 | L67: 121
A68: 11 | B68: 7961 | C68: 22 | D68: 7978 | E68: 23 | F68: 7999 | K68: 0 | L68: 122
A69: 11 | B69: 8106 | C69: 22 | D69: 8122 | E69: 14 | F69: 8129 | K69: 0 | L69: 121
A70: 22 | B70: 8229 | C70: 13 | D70: 8236 | E70: 23 | F70: 8244 | K70: 0 | L70: 212
A71: 11 | B71: 8356 | C71: 11 | D71: 8371 | E71: 12 | F71: 8393 | K71: 0 | L71: 111
A72: 11 | B72: 8506 | C72: 22 | D72: 8518 | E72: 14 | F72: 8530 | K72: 0 | L72: 121
A73: 11 | B73: 8639 | C73: 11 | D73: 8646 | E73: 21 | F73: 8656 | K73: 0 | L73: 112
A74: 22 | B74: 8749 | C74: 13 | D74: 8757 | E74: 14 | F74: 8773 | K74: 0 | L74: 211
A75: 11 | B75: 8885 | C75: 22 | D75: 8896 | E75: 14 | F75: 8909 | K75: 0 | L75: 121
A76: 22 | B76: 9045 | C76: 13 | D76: 9059 | E76: 23 | F76: 9067 | K76: 0 | L76: 212
A77: 11 | B77: 9171 | C77: 22 | D77: 9180 | E77: 23 | F77: 9193 | K77: 0 | L77: 122
A78: 22 | B78: 9320 | C78: 24 | D78: 9342 | E78: 23 | F78: 9352 | K78: 0 | L78: 222
A79: 11 | B79: 9463 | C79: 22 | D79: 9471 | E79: 14 | F79: 9482 | K79: 0 | L79: 121
A80: 11 | B80: 9596 | C80: 22 | D80: 9605 | E80: 23 | F80: 9628 | K80: 0 | L80: 122
A81: 11 | B81: 9737 | C81: 22 | D81: 9757 | E81: 23 | F81: 9769 | K81: 0 | L81: 122
A82: 22 | B82: 9885 | C82: 13 | D82: 9894 | E82: 23 | F82: 9919 | K82: 0 | L82: 212
A83: 22 | B83: 10045 | C83: 24 | D83: 10073 | E83: 23 | F83: 10106 | K83: 0 | L83: 222
A84: 22 | B84: 10215 | C84: 24 | D84: 10228 | E84: 14 | F84: 10235 | K84: 0 | L84: 221
A85: 22 | B85: 10359 | C85: 24 | D85: 10372 | E85: 14 | F85: 10387 | K85: 0 | L85: 221
A86: 11 | B86: 10489 | C86: 22 | D86: 10500 | E86: 14 | F86: 10522 | K86: 0 | L86: 121
A87: 11 | B87: 10621 | C87: 22 | D87: 10636 | E87: 14 | F87: 10645 | K87: 0 | L87: 121
A88: 11 | B88: 10765 | C88: 22 | D88: 10773 | E88: 23 | F88: 10791 | K88: 0 | L88: 122
A89: 22 | B89: 10924 | C89: 13 | D89: 10932 | E89: 23 | F89: 10943 | K89: 0 | L89: 212
A90: 11 | B90: 11051 | C90: 22 | D90: 11093 | E90: 14 | F90: 11105 | K90: 0 | L90: 121
A91: 11 | B91: 11269 | C91: 11 | D91: 11282 | E91: 21 | F91: 11293 | K91: 0 | L91: 112
A92: 11 | B92: 11388 | C92: 22 | D92: 11408 | E92: 14 | F92: 11416 | K92: 0 | L92: 121
A93: 22 | B93: 11557 | C93: 24 | D93: 11570 | E93: 14 | F93: 11578 | K93: 0 | L93: 221
A94: 11 | B94: 11678 | C94: 22 | D94: 11689 | E94: 14 | F94: 11701 | K94: 0 | L94: 121
A95: 11 | B95: 11802 | C95: 22 | D95: 11812 | E95: 23 | F95: 11834 | K95: 0 | L95: 122
A96: 11 | B96: 11941 | C96: 22 | D96: 11956 | E96: 14 | F96: 11968 | K96: 0 | L96: 121
A97: 22 | B97: 12078 | C97: 13 | D97: 12085 | E97: 23 | F97: 12115 | K97: 0 | L97: 212
A98: 22 | B98: 12232 | C98: 13 | D98: 12240 | E98: 23 | F98: 12251 | K98: 0 | L98: 212
A99: 22 | B99: 12369 | C99: 24 | D99: 12383 | E99: 23 | F99: 12397 | K99: 0 | L99: 222
A100: 22 | B100: 12501 | C100: 13 | D100: 12546 | E100: 23 | F100: 12557 | K100: 0 | L100: 212
A101: 11 | B101: 12655 | C101: 22 | D101: 12679 | E101: 14 | F101: 12687 | K101: 0 | L101: 121
A102: 22 | B102: 12801 | C102: 13 | D102: 12809 | E102: 23 | F102: 12838 | K102: 0 | L102: 212
A103: 22 | B103: 12957 | C103: 24 | D103: 12978 | E103: 14 | F103: 12995 | K103: 0 | L103: 221
A104: 22 | B104: 13132 | C104: 24 | D104: 13150 | E104: 23 | F104: 13158 | K104: 0 | L104: 222
A105: 22 | B105: 13275 | C105: 13 | D105: 13287 | E105: 23 | F105: 13295 | K105: 0 | L105: 212
A106: 22 | B106: 13418 | C106: 24 | D106: 13434 | E106: 23 | F106: 13464 | K106: 0 | L106: 222
A107: 11 | B107: 13571 | C107: 22 | D107: 13599 | E107: 23 | F107: 13617 | K107: 0 | L107: 122
A108: 22 | B108: 13739 | C108: 24 | D108: 13752 | E108: 14 | F108: 13764 | K108: 0 | L108: 221
A109: 11 | B109: 13863 | C109: 22 | D109: 13889 | E109: 14 | F109: 13897 | K109: 0 | L109: 121
A110: 11 | B110: 14048 | C110: 22 | D110: 14058 | E110: 14 | F110: 14081 | K110: 0 | L110: 121
A111: 11 | B111: 14183 | C111: 22 | D111: 14192 | E111: 14 | F111: 14200 | K111: 0 | L111: 121
A112: 11 | B112: 14317 | C112: 22 | D112: 14329 | E112: 14 | F112: 14348 | K112: 0 | L112: 121
A113: 11 | B113: 14449 | C113: 22 | D113: 14458 | E113: 14 | F113: 14469 | K113: 0 | L113: 121
A114: 11 | B114: 14583 | C114: 22 | D114: 14594 | E114: 23 | F114: 14615 | K114: 0 | L114: 122
A115: 11 | B115: 14722 | C115: 11 | D115: 14751 | E115: 12 | F115: 14774 | K115: 0 | L115: 111
A116: 11 | B116: 14877 | C116: 11 | D116: 14892 | E116: 21 | F116: 14900 | K116: 0 | L116: 112
A117: 11 | B117: 14997 | C117: 11 | D117: 15012 | E117: 21 | F117: 15025 | K117: 0 | L117: 112
A118: 11 | B118: 15130 | C118: 22 | D118: 15138 | E118: 23 | F118: 15158 | K118: 0 | L118: 122
A119: 22 | B119: 15272 | C119: 24 | D119: 15301 | E119: 14 | F119: 15317 | K119: 0 | L119: 221
A120: 11 | B120: 15418 | C120: 11 | D120: 15433 | E120: 21 | F120: 15441 | K120: 0 | L120: 112
A121: 11 | B121: 15561 | C121: 22 | D121: 15570 | E121: 14 | F121: 15594 | K121: 0 | L121: 121
A122: 11 | B122: 15692 | C122: 11 | D122: 15712 | E122: 21 | F122: 15721 | K122: 0 | L122: 112
A123: 22 | B123: 15820 | C123: 13 | D123: 15828 | E123: 23 | F123: 15865 | K123: 0 | L123: 212
A124: 11 | B124: 15975 | C124: 22 | D124: 15983 | E124: 14 | F124: 15996 | K124: 0 | L124: 121
A125: 11 | B125: 16095 | C125: 22 | D125: 16104 | E125: 14 | F125: 16118 | K125: 0 | L125: 121
A126: 11 | B126: 16221 | C126: 22 | D126: 16232 | E126: 23 | F126: 16251 | K126: 0 | L126: 122
A127: 11 | B127: 16349 | C127: 22 | D127: 16373 | E127: 14 | F127: 16381 | K127: 0 | L127: 121
A128: 11 | B128: 16488 | C128: 22 | D128: 16512 | E128: 14 | F128: 16525 | K128: 0 | L128: 121
A129: 11 | B129: 16625 | C129: 11 | D129: 16639 | E129: 21 | F129: 16648 | K129: 0 | L129: 112
A130: 22 | B130: 16754 | C130: 13 | D130: 16762 | E130: 23 | F130: 16773 | K130: 0 | L130: 212
A131: 22 | B131: 16873 | C131: 24 | D131: 16897 | E131: 14 | F131: 16909 | K131: 0 | L131: 221
A132: 11 | B132: 17037 | C132: 22 | D132: 17059 | E132: 23 | F132: 17075 | K132: 0 | L132: 122
A133: 11 | B133: 17180 | C133: 22 | D133: 17201 | E133: 14 | F133: 17219 | K133: 0 | L133: 121
A134: 22 | B134: 17341 | C134: 13 | D134: 17348 | E134: 23 | F134: 17361 | K134: 0 | L134: 212
A135: 22 | B135: 17493 | C135: 13 | D135: 17506 | E135: 23 | F135: 17534 | K135: 0 | L135: 212
A136: 22 | B136: 17635 | C136: 13 | D136: 17643 | E136: 23 | F136: 17654 | K136: 0 | L136: 212
A137: 11 | B137: 17770 | C137: 22 | D137: 17779 | E137: 23 | F137: 17799 | K137: 0 | L137: 122
A138: 11 | B138: 17906 | C138: 22 | D138: 17928 | E138: 14 | F138: 17939 | K138: 0 | L138: 121
A139: 11 | B139: 18046 | C139: 11 | D139: 18072 | E139: 21 | F139: 18081 | K139: 0 | L139: 112
A140: 22 | B140: 18188 | C140: 13 | D140: 18208 | E140: 23 | F140: 18217 | K140: 0 | L140: 212
A141: 11 | B141: 18329 | C141: 22 | D141: 18338 | E141: 23 | F141: 18356 | K141: 0 | L141: 122
A142: 22 | B142: 18454 | C142: 13 | D142: 18466 | E142: 23 | F142: 18475 | K142: 0 | L142: 212
A143: 11 | B143: 18578 | C143: 11 | D143: 18604 | E143: 21 | F143: 18615 | K143: 0 | L143: 112
A144: 11 | B144: 18708 | C144: 11 | D144: 18716 | E144: 21 | F144: 18726 | K144: 0 | L144: 112
A145: 11 | B145: 18819 | C145: 11 | D145: 18827 | E145: 21 | F145: 18836 | K145: 0 | L145: 112
A146: 11 | B146: 18938 | C146: 22 | D146: 18947 | E146: 23 | F146: 18980 | K146: 0 | L146: 122
A147: 11 | B147: 19088 | C147: 22 | D147: 19100 | E147: 14 | F147: 19111 | K147: 0 | L147: 121
A148: 22 | B148: 19298 | C148: 24 | D148: 19315 | E148: 23 | F148: 19333 | K148: 0 | L148: 222
A149: 11 | B149: 19432 | C149: 11 | D149: 19468 | E149: 21 | F149: 19477 | K149: 0 | L149: 112
A150: 22 | B150: 19568 | C150: 13 | D150: 19577 | E150: 14 | F150: 19592 | K150: 0 | L150: 211
A151: 11 | B151: 19703 | C151: 11 | D151: 19729 | E151: 21 | F151: 19739 | K151: 0 | L151: 112
A152: 11 | B152: 19835 | C152: 11 | D152: 19849 | E152: 12 | F152: 19864 | K152: 0 | L152: 111
A153: 11 | B153: 19963 | C153: 11 | D153: 19972 | E153: 21 | F153: 19981 | K153: 0 | L153: 112
A154: 22 | B154: 20088 | C154: 13 | D154: 20102 | E154: 23 | F154: 20111 | K154: 0 | L154: 212
A155: 11 | B155: 20240 | C155: 22 | D155: 20249 | E155: 23 | F155: 20272 | K155: 0 | L155: 122
A156: 11 | B156: 20376 | C156: 11 | D156: 20390 | E156: 21 | F156: 20398 | K156: 0 | L156: 112
A157: 11 | B157: 20492 | C157: 11 | D157: 20506 | E157: 21 | F157: 20515 | K157: 0 | L157: 112
A158: 11 | B158: 20619 | C158: 11 | D158: 20639 | E158: 21 | F158: 20652 | K158: 0 | L158: 112
A159: 11 | B159: 20741 | C159: 11 | D159: 20749 | E159: 21 | F159: 20766 | K159: 0 | L159: 112
A160: 11 | B160: 20872 | C160: 22 | D160: 20881 | E160: 14 | F160: 20892 | K160: 0 | L160: 121
A161: 11 | B161: 20990 | C161: 11 | D161: 20998 | E161: 21 | F161: 21010 | K161: 0 | L161: 112
A162: 11 | B162: 21103 | C162: 11 | D162: 21111 | E162: 21 | F162: 21122 | K162: 0 | L162: 112
A163: 11 | B163: 21216 | C163: 22 | D163: 21231 | E163: 23 | F163: 21259 | K163: 0 | L163: 122
A164: 11 | B164: 21358 | C164: 22 | D164: 21379 | E164: 14 | F164: 21396 | K164: 0 | L164: 121
A165: 11 | B165: 21494 | C165: 11 | D165: 21507 | E165: 21 | F165: 21519 | K165: 0 | L165: 112
A166: 22 | B166: 21639 | C166: 24 | D166: 21649 | E166: 14 | F166: 21662 | K166: 0 | L166: 221
A167: 11 | B167: 21773 | C167: 22 | D167: 21785 | E167: 14 | F167: 21796 | K167: 0 | L167: 121
A168: 11 | B168: 21898 | C168: 11 | D168: 21912 | E168: 21 | F168: 21923 | K168: 0 | L168: 112
A169: 11 | B169: 22014 | C169: 11 | D169: 22021 | E169: 21 | F169: 22033 | K169: 0 | L169: 112
A170: 11 | B170: 22130 | C170: 11 | D170: 22137 | E170: 21 | F170: 22146 | K170: 0 | L170: 112
A171: 11 | B171: 22251 | C171: 22 | D171: 22262 | E171: 14 | F171: 22280 | K171: 0 | L171: 121
A172: 11 | B172: 22384 | C172: 11 | D172: 22392 | E172: 21 | F172: 22403 | K172: 0 | L172: 112
A173: 11 | B173: 22506 | C173: 11 | D173: 22534 | E173: 21 | F173: 22544 | K173: 0 | L173: 112
A174: 11 | B174: 22637 | C174: 11 | D174: 22649 | E174: 21 | F174: 22660 | K174: 0 | L174: 112
A175: 11 | B175: 22752 | C175: 11 | D175: 22767 | E175: 21 | F175: 22777 | K175: 0 | L175: 112
A176: 11 | B176: 22870 | C176: 22 | D176: 22878 | E176: 14 | F176: 22896 | K176: 0 | L176: 121
A177: 11 | B177: 22999 | C177: 22 | D177: 23009 | E177: 14 | F177: 23019 | K177: 0 | L177: 121
A178: 11 | B178: 23127 | C178: 22 | D178: 23138 | E178: 14 | F178: 23146 | K178: 0 | L178: 121
A179: 11 | B179: 23255 | C179: 22 | D179: 23266 | E179: 14 | F179: 23291 | K179: 0 | L179: 121
A180: 11 | B180: 23390 | C180: 22 | D180: 23401 | E180: 14 | F180: 23409 | K180: 0 | L180: 121
A181: 11 | B181: 23535 | C181: 22 | D181: 23547 | E181: 14 | F181: 23563 | K181: 0 | L181: 121
A182: 11 | B182: 23669 | C182: 22 | D182: 23679 | E182: 14 | F182: 23688 | K182: 0 | L182: 121
A183: 11 | B183: 23793 | C183: 22 | D183: 23802 | E183: 14 | F183: 23810 | K183: 0 | L183: 121
A184: 11 | B184: 23912 | C184: 11 | D184: 23919 | E184: 21 | F184: 23934 | K184: 1 | L184: 112

Sheet !2011-05-16_08h38m.Subject 52 p
A1: Report for:!2011-05-16_08h38m.Subject 52 phase 2
A2: Date | B2: 2011-05-16 | F2: Group | G2: 0
A3: Hen | B3: 0 | F3: Correct Sequence | G3: =Start!J2 -> 122 | P3: Total Sequences in Data | Q3: =4994-COUNTBLANK(L7:L5000) -> 119 | V3: Total Sequences in Block Data | W3: =COUNTA(L7:L26) -> 20 | AA3: Total Sequences in Block Data | AB3: =COUNTA(L27:L46) -> 20 | AF3: Total Sequences in Block Data | AG3: =COUNTA(L47:L65) -> 19 | AK3: Total Sequences in Block Data | AL3: =COUNTA(L66:L85) -> 20 | AP3: Total Sequences in Block Data | AQ3: =COUNTA(L86:L105) -> 20 | AU3: Total Sequences in Block Data | AV3: =COUNTA(L106:L125) -> 20
A4: Program | B4: 0 | P4: Total Sequences in Summary | Q4: =SUM(O7:O14) -> 119 | V4: Total Sequences in Block Summary | W4: =SUM(U7:U14) -> 20 | AA4: Total Sequences in Block Summary | AB4: =SUM(Z7:Z14) -> 20 | AF4: Total Sequences in Block Summary | AG4: =SUM(AE7:AE14) -> 19 | AK4: Total Sequences in Block Summary | AL4: =SUM(AJ7:AJ14) -> 20 | AP4: Total Sequences in Block Summary | AQ4: =SUM(AO7:AO14) -> 20 | AU4: Total Sequences in Block Summary | AV4: =SUM(AT7:AT14) -> 20
T5: Block 1 | Y5: Block 2 | AD5: Block 3 | AI5: Block 4 | AN5: Block 5 | AS5: Block 6
A6: Sequence Component 1 | B6: Time 1 | C6: Sequence Component 2 | D6: Time 2 | E6: Sequence Component 3 | F6: Time 3 | G6: Sequence Component 4 | H6: Time 4 | I6: Sequence Component 5 | J6: Time 5 | K6: Correct? 0=No 1=Yes | L6: Sequence | N6: Frequency | P6: Relative Frequency | Q6: Variability | T6: Frequency | V6: Relative Frequency | W6: Variability | Y6: Frequency | AA6: Relative Frequency | AB6: Variability | AD6: Frequency | AF6: Relative Frequency | AG6: Variability | AI6: Frequency | AK6: Relative Frequency | AL6: Variability | AN6: Frequency | AP6: Relative Frequency | AQ6: Variability | AS6: Frequency | AU6: Relative Frequency | AV6: Variability
A7: 11 | B7: 18 | C7: 22 | D7: 26 | E7: 23 | F7: 48 | K7: 0 | L7: 122 | N7: 111 | O7: =COUNTIF($L$7:$L$500,N7) -> 11 | P7: =O7/$Q$4 -> 0.09243697479 | Q7: =IF(P7=0,0,(P7*((LOG(P7))/LOG(2)))) -> -0.3175567024 | T7: =N7 -> 111 | U7: =COUNTIF(L7:L26,T7) -> 0 | V7: =U7/(W4-U10) -> 0 | W7: =IF(V7=0,0,(V7*((LOG(V7))/LOG(2)))) -> 0 | Y7: =N7 -> 111 | Z7: =COUNTIF(L27:L46,Y7) -> 0 | AA7: =Z7/(AB4-Z10) -> 0 | AB7: =IF(AA7=0,0,(AA7*((LOG(AA7))/LOG(2)))) -> 0 | AD7: =N7 -> 111 | AE7: =COUNTIF(L47:L65,AD7) -> 5 | AF7: =AE7/(AG4-AE10) -> 0.2631578947 | AG7: =IF(AF7=0,0,(AF7*((LOG(AF7))/LOG(2)))) -> -0.5068419523 | AI7: =N7 -> 111 | AJ7: =COUNTIF(L66:L85,AI7) -> 4 | AK7: =AJ7/(AL4-AJ10) -> 0.2222222222 | AL7: =IF(AK7=0,0,(AK7*((LOG(AK7))/LOG(2)))) -> -0.4822055559 | AN7: =N7 -> 111 | AO7: =COUNTIF(L86:L105,AN7) -> 0 | AP7: =AO7/(AQ4-AO10) -> 0 | AQ7: =IF(AP7=0,0,(AP7*((LOG(AP7))/LOG(2)))) -> 0 | AS7: =N7 -> 111 | AT7: =COUNTIF(L106:L125,AS7) -> 2 | AU7: =AT7/(AV4-AT10) -> 0.1052631579 | AV7: =IF(AU7=0,0,(AU7*((LOG(AU7))/LOG(2)))) -> -0.3418871067
A8: 22 | B8: 145 | C8: 24 | D8: 157 | E8: 23 | F8: 175 | K8: 0 | L8: 222 | N8: 112 | O8: =COUNTIF($L$7:$L$500,N8) -> 40 | P8: =O8/$Q$4 -> 0.3361344538 | Q8: =IF(P8=0,0,(P8*((LOG(P8))/LOG(2)))) -> -0.5287024096 | T8: =N8 -> 112 | U8: =COUNTIF(L7:L26,T8) -> 4 | V8: =U8/(W4-U10) -> 0.25 | W8: =IF(V8=0,0,(V8*((LOG(V8))/LOG(2)))) -> -0.5 | Y8: =N8 -> 112 | Z8: =COUNTIF(L27:L46,Y8) -> 6 | AA8: =Z8/(AB4-Z10) -> 0.3529411765 | AB8: =IF(AA8=0,0,(AA8*((LOG(AA8))/LOG(2)))) -> -0.5302942378 | AD8: =N8 -> 112 | AE8: =COUNTIF(L47:L65,AD8) -> 9 | AF8: =AE8/(AG4-AE10) -> 0.4736842105 | AG8: =IF(AF8=0,0,(AF8*((LOG(AF8))/LOG(2)))) -> -0.5106327688 | AI8: =N8 -> 112 | AJ8: =COUNTIF(L66:L85,AI8) -> 10 | AK8: =AJ8/(AL4-AJ10) -> 0.5555555556 | AL8: =IF(AK8=0,0,(AK8*((LOG(AK8))/LOG(2)))) -> -0.4711093925 | AN8: =N8 -> 112 | AO8: =COUNTIF(L86:L105,AN8) -> 4 | AP8: =AO8/(AQ4-AO10) -> 0.2 | AQ8: =IF(AP8=0,0,(AP8*((LOG(AP8))/LOG(2)))) -> -0.464385619 | AS8: =N8 -> 112 | AT8: =COUNTIF(L106:L125,AS8) -> 7 | AU8: =AT8/(AV4-AT10) -> 0.3684210526 | AV8: =IF(AU8=0,0,(AU8*((LOG(AU8))/LOG(2)))) -> -0.5307372705
A9: 22 | B9: 274 | C9: 24 | D9: 288 | E9: 23 | F9: 306 | K9: 0 | L9: 222 | N9: 121 | O9: =COUNTIF($L$7:$L$500,N9) -> 36 | P9: =O9/$Q$4 -> 0.3025210084 | Q9: =IF(P9=0,0,(P9*((LOG(P9))/LOG(2)))) -> -0.5218162977 | T9: =N9 -> 121 | U9: =COUNTIF(L7:L26,T9) -> 5 | V9: =U9/(W4-U10) -> 0.3125 | W9: =IF(V9=0,0,(V9*((LOG(V9))/LOG(2)))) -> -0.5243974703 | Y9: =N9 -> 121 | Z9: =COUNTIF(L27:L46,Y9) -> 6 | AA9: =Z9/(AB4-Z10) -> 0.3529411765 | AB9: =IF(AA9=0,0,(AA9*((LOG(AA9))/LOG(2)))) -> -0.5302942378 | AD9: =N9 -> 121 | AE9: =COUNTIF(L47:L65,AD9) -> 4 | AF9: =AE9/(AG4-AE10) -> 0.2105263158 | AG9: =IF(AF9=0,0,(AF9*((LOG(AF9))/LOG(2)))) -> -0.4732478976 | AI9: =N9 -> 121 | AJ9: =COUNTIF(L66:L85,AI9) -> 4 | AK9: =AJ9/(AL4-AJ10) -> 0.2222222222 | AL9: =IF(AK9=0,0,(AK9*((LOG(AK9))/LOG(2)))) -> -0.4822055559 | AN9: =N9 -> 121 | AO9: =COUNTIF(L86:L105,AN9) -> 12 | AP9: =AO9/(AQ4-AO10) -> 0.6 | AQ9: =IF(AP9=0,0,(AP9*((LOG(AP9))/LOG(2)))) -> -0.4421793565 | AS9: =N9 -> 121 | AT9: =COUNTIF(L106:L125,AS9) -> 5 | AU9: =AT9/(AV4-AT10) -> 0.2631578947 | AV9: =IF(AU9=0,0,(AU9*((LOG(AU9))/LOG(2)))) -> -0.5068419523
A10: 11 | B10: 415 | C10: 22 | D10: 448 | E10: 14 | F10: 461 | K10: 0 | L10: 121 | N10: 122 | O10: =COUNTIF($L$7:$L$500,N10) -> 10 | P10: =O10/$Q$4 -> 0.08403361345 | Q10: =IF(P10=0,0,(P10*((LOG(P10))/LOG(2)))) -> -0.3002428293 | T10: =N10 -> 122 | U10: =COUNTIF(L7:L26,T10) -> 4 | Y10: =N10 -> 122 | Z10: =COUNTIF(L27:L46,Y10) -> 3 | AD10: =N10 -> 122 | AE10: =COUNTIF(L47:L65,AD10) -> 0 | AI10: =N10 -> 122 | AJ10: =COUNTIF(L66:L85,AI10) -> 2 | AN10: =N10 -> 122 | AO10: =COUNTIF(L86:L105,AN10) -> 0 | AS10: =N10 -> 122 | AT10: =COUNTIF(L106:L125,AS10) -> 1
A11: 11 | B11: 559 | C11: 22 | D11: 568 | E11: 23 | F11: 586 | K11: 0 | L11: 122 | N11: 211 | O11: =COUNTIF($L$7:$L$500,N11) -> 1 | P11: =O11/$Q$4 -> 0.008403361345 | Q11: =IF(P11=0,0,(P11*((LOG(P11))/LOG(2)))) -> -0.05793964507 | T11: =N11 -> 211 | U11: =COUNTIF(L7:L26,T11) -> 0 | V11: =U11/(W4-U10) -> 0 | W11: =IF(V11=0,0,(V11*((LOG(V11))/LOG(2)))) -> 0 | Y11: =N11 -> 211 | Z11: =COUNTIF(L27:L46,Y11) -> 0 | AA11: =Z11/(AB4-Z10) -> 0 | AB11: =IF(AA11=0,0,(AA11*((LOG(AA11))/LOG(2)))) -> 0 | AD11: =N11 -> 211 | AE11: =COUNTIF(L47:L65,AD11) -> 0 | AF11: =AE11/(AG4-AE10) -> 0 | AG11: =IF(AF11=0,0,(AF11*((LOG(AF11))/LOG(2)))) -> 0 | AI11: =N11 -> 211 | AJ11: =COUNTIF(L66:L85,AI11) -> 0 | AK11: =AJ11/(AL4-AJ10) -> 0 | AL11: =IF(AK11=0,0,(AK11*((LOG(AK11))/LOG(2)))) -> 0 | AN11: =N11 -> 211 | AO11: =COUNTIF(L86:L105,AN11) -> 0 | AP11: =AO11/(AQ4-AO10) -> 0 | AQ11: =IF(AP11=0,0,(AP11*((LOG(AP11))/LOG(2)))) -> 0 | AS11: =N11 -> 211 | AT11: =COUNTIF(L106:L125,AS11) -> 1 | AU11: =AT11/(AV4-AT10) -> 0.05263157895 | AV11: =IF(AU11=0,0,(AU11*((LOG(AU11))/LOG(2)))) -> -0.2235751323
A12: 22 | B12: 698 | C12: 13 | D12: 712 | E12: 23 | F12: 721 | K12: 0 | L12: 212 | N12: 212 | O12: =COUNTIF($L$7:$L$500,N12) -> 16 | P12: =O12/$Q$4 -> 0.1344537815 | Q12: =IF(P12=0,0,(P12*((LOG(P12))/LOG(2)))) -> -0.3892191951 | T12: =N12 -> 212 | U12: =COUNTIF(L7:L26,T12) -> 4 | V12: =U12/(W4-U10) -> 0.25 | W12: =IF(V12=0,0,(V12*((LOG(V12))/LOG(2)))) -> -0.5 | Y12: =N12 -> 212 | Z12: =COUNTIF(L27:L46,Y12) -> 4 | AA12: =Z12/(AB4-Z10) -> 0.2352941176 | AB12: =IF(AA12=0,0,(AA12*((LOG(AA12))/LOG(2)))) -> -0.4911677274 | AD12: =N12 -> 212 | AE12: =COUNTIF(L47:L65,AD12) -> 1 | AF12: =AE12/(AG4-AE10) -> 0.05263157895 | AG12: =IF(AF12=0,0,(AF12*((LOG(AF12))/LOG(2)))) -> -0.2235751323 | AI12: =N12 -> 212 | AJ12: =COUNTIF(L66:L85,AI12) -> 0 | AK12: =AJ12/(AL4-AJ10) -> 0 | AL12: =IF(AK12=0,0,(AK12*((LOG(AK12))/LOG(2)))) -> 0 | AN12: =N12 -> 212 | AO12: =COUNTIF(L86:L105,AN12) -> 3 | AP12: =AO12/(AQ4-AO10) -> 0.15 | AQ12: =IF(AP12=0,0,(AP12*((LOG(AP12))/LOG(2)))) -> -0.4105448391 | AS12: =N12 -> 212 | AT12: =COUNTIF(L106:L125,AS12) -> 4 | AU12: =AT12/(AV4-AT10) -> 0.2105263158 | AV12: =IF(AU12=0,0,(AU12*((LOG(AU12))/LOG(2)))) -> -0.4732478976
A13: 11 | B13: 835 | C13: 22 | D13: 843 | E13: 14 | F13: 865 | K13: 0 | L13: 121 | N13: 221 | O13: =COUNTIF($L$7:$L$500,N13) -> 2 | P13: =O13/$Q$4 -> 0.01680672269 | Q13: =IF(P13=0,0,(P13*((LOG(P13))/LOG(2)))) -> -0.09907256745 | T13: =N13 -> 221 | U13: =COUNTIF(L7:L26,T13) -> 1 | V13: =U13/(W4-U10) -> 0.0625 | W13: =IF(V13=0,0,(V13*((LOG(V13))/LOG(2)))) -> -0.25 | Y13: =N13 -> 221 | Z13: =COUNTIF(L27:L46,Y13) -> 1 | AA13: =Z13/(AB4-Z10) -> 0.05882352941 | AB13: =IF(AA13=0,0,(AA13*((LOG(AA13))/LOG(2)))) -> -0.2404389907 | AD13: =N13 -> 221 | AE13: =COUNTIF(L47:L65,AD13) -> 0 | AF13: =AE13/(AG4-AE10) -> 0 | AG13: =IF(AF13=0,0,(AF13*((LOG(AF13))/LOG(2)))) -> 0 | AI13: =N13 -> 221 | AJ13: =COUNTIF(L66:L85,AI13) -> 0 | AK13: =AJ13/(AL4-AJ10) -> 0 | AL13: =IF(AK13=0,0,(AK13*((LOG(AK13))/LOG(2)))) -> 0 | AN13: =N13 -> 221 | AO13: =COUNTIF(L86:L105,AN13) -> 0 | AP13: =AO13/(AQ4-AO10) -> 0 | AQ13: =IF(AP13=0,0,(AP13*((LOG(AP13))/LOG(2)))) -> 0 | AS13: =N13 -> 221 | AT13: =COUNTIF(L106:L125,AS13) -> 0 | AU13: =AT13/(AV4-AT10) -> 0 | AV13: =IF(AU13=0,0,(AU13*((LOG(AU13))/LOG(2)))) -> 0
A14: 11 | B14: 967 | C14: 22 | D14: 975 | E14: 14 | F14: 989 | K14: 0 | L14: 121 | N14: 222 | O14: =COUNTIF($L$7:$L$500,N14) -> 3 | P14: =O14/$Q$4 -> 0.02521008403 | Q14: =IF(P14=0,0,(P14*((LOG(P14))/LOG(2)))) -> -0.1338618974 | T14: =N14 -> 222 | U14: =COUNTIF(L7:L26,T14) -> 2 | V14: =U14/(W4-U10) -> 0.125 | W14: =IF(V14=0,0,(V14*((LOG(V14))/LOG(2)))) -> -0.375 | Y14: =N14 -> 222 | Z14: =COUNTIF(L27:L46,Y14) -> 0 | AA14: =Z14/(AB4-Z10) -> 0 | AB14: =IF(AA14=0,0,(AA14*((LOG(AA14))/LOG(2)))) -> 0 | AD14: =N14 -> 222 | AE14: =COUNTIF(L47:L65,AD14) -> 0 | AF14: =AE14/(AG4-AE10) -> 0 | AG14: =IF(AF14=0,0,(AF14*((LOG(AF14))/LOG(2)))) -> 0 | AI14: =N14 -> 222 | AJ14: =COUNTIF(L66:L85,AI14) -> 0 | AK14: =AJ14/(AL4-AJ10) -> 0 | AL14: =IF(AK14=0,0,(AK14*((LOG(AK14))/LOG(2)))) -> 0 | AN14: =N14 -> 222 | AO14: =COUNTIF(L86:L105,AN14) -> 1 | AP14: =AO14/(AQ4-AO10) -> 0.05 | AQ14: =IF(AP14=0,0,(AP14*((LOG(AP14))/LOG(2)))) -> -0.2160964047 | AS14: =N14 -> 222 | AT14: =COUNTIF(L106:L125,AS14) -> 0 | AU14: =AT14/(AV4-AT10) -> 0 | AV14: =IF(AU14=0,0,(AU14*((LOG(AU14))/LOG(2)))) -> 0
A15: 22 | B15: 1091 | C15: 13 | D15: 1101 | E15: 23 | F15: 1110 | K15: 0 | L15: 212 | P15: =SUM(P7:P14) -> 1 | Q15: =-SUM(Q7:Q14) -> 2.348411544 | V15: =SUM(V7:V14) -> 1 | W15: =-SUM(W7:W14) -> 2.14939747 | AA15: =SUM(AA7:AA14) -> 1 | AB15: =-SUM(AB7:AB14) -> 1.792195194 | AF15: =SUM(AF7:AF14) -> 1 | AG15: =-SUM(AG7:AG14) -> 1.714297751 | AK15: =SUM(AK7:AK14) -> 1 | AL15: =-SUM(AL7:AL14) -> 1.435520504 | AP15: =SUM(AP7:AP14) -> 1 | AQ15: =-SUM(AQ7:AQ14) -> 1.533206219 | AU15: =SUM(AU7:AU14) -> 1 | AV15: =-SUM(AV7:AV14) -> 2.076289359
A16: 11 | B16: 1209 | C16: 11 | D16: 1229 | E16: 21 | F16: 1241 | K16: 0 | L16: 112 | P16: U= | Q16: =Q15/(LOG(Q4)/LOG(2)) -> 0.3406053103 | V16: U1= | W16: =W15/(LOG(W4)/LOG(2)) -> 0.4973237461 | AA16: U2= | AB16: =AB15/(LOG(AB4)/LOG(2)) -> 0.4146749215 | AF16: U3= | AG16: =AG15/(LOG(AG4)/LOG(2)) -> 0.4035609707 | AK16: U4= | AL16: =AL15/(LOG(AL4)/LOG(2)) -> 0.3321481692 | AP16: U5= | AQ16: =AQ15/(LOG(AQ4)/LOG(2)) -> 0.3547505154 | AU16: U6= | AV16: =AV15/(LOG(AV4)/LOG(2)) -> 0.480408122
A17: 22 | B17: 1345 | C17: 13 | D17: 1354 | E17: 23 | F17: 1363 | K17: 0 | L17: 212
A18: 11 | B18: 1462 | C18: 11 | D18: 1470 | E18: 21 | F18: 1479 | K18: 0 | L18: 112
A19: 22 | B19: 1583 | C19: 24 | D19: 1592 | E19: 14 | F19: 1600 | K19: 0 | L19: 221 | N19: Total Target Seq
A20: 11 | B20: 1692 | C20: 11 | D20: 1705 | E20: 21 | F20: 1715 | K20: 0 | L20: 112 | N20: =COUNTIF(L7:L125,G3) -> 10 | P20: 20 | Q20: 20 | R20: 19 | S20: 20 | T20: 20 | U20: 20
A21: 11 | B21: 1807 | C21: 22 | D21: 1816 | E21: 14 | F21: 1826 | K21: 0 | L21: 121 | P21: % of reinforcement given in 6 equal intervals based on number of trials
A22: 11 | B22: 1931 | C22: 11 | D22: 1938 | E22: 21 | F22: 1949 | K22: 0 | L22: 112 | P22: %_1 | Q22: %_2 | R22: %_3 | S22: %_4 | T22: %_5 | U22: %_6
A23: 11 | B23: 2042 | C23: 22 | D23: 2053 | E23: 23 | F23: 2073 | K23: 0 | L23: 122 | O23: target sequence | P23: =$G$3 -> 122 | Q23: =$G$3 -> 122 | R23: =$G$3 -> 122 | S23: =$G$3 -> 122 | T23: =$G$3 -> 122 | U23: =$G$3 -> 122
A24: 22 | B24: 2180 | C24: 13 | D24: 2191 | E24: 23 | F24: 2202 | K24: 0 | L24: 212 | O24: total reinforcement | P24: =U10 -> 4 | Q24: =Z10 -> 3 | R24: =AE10 -> 0 | S24: =AJ10 -> 2 | T24: =AO10 -> 0 | U24: =AT10 -> 1
A25: 11 | B25: 2310 | C25: 22 | D25: 2318 | E25: 23 | F25: 2326 | K25: 0 | L25: 122 | O25: % target
A26: 11 | B26: 2425 | C26: 22 | D26: 2435 | E26: 14 | F26: 2447 | K26: 0 | L26: 121 | O26: CCRF
A27: 11 | B27: 2548 | C27: 22 | D27: 2565 | E27: 14 | F27: 2578 | K27: 0 | L27: 121 | O27: % CCRf
A28: 11 | B28: 2710 | C28: 22 | D28: 2719 | E28: 14 | F28: 2733 | K28: 0 | L28: 121 | O28: average response rate | P28: =F26/P20 -> 122.35 | Q28: =(F46-F26)/Q20 -> 127.1 | R28: =(F65-F46)/R20 -> 118.4210526 | S28: =(F85-F65)/S20 -> 115.75 | T28: =(F105-F85)/T20 -> 126.25 | U28: =(F125-F105)/U20 -> 119.2
A29: 22 | B29: 2831 | C29: 13 | D29: 2836 | E29: 23 | F29: 2844 | K29: 0 | L29: 212
A30: 11 | B30: 2945 | C30: 22 | D30: 2954 | E30: 14 | F30: 2961 | K30: 0 | L30: 121
A31: 11 | B31: 3059 | C31: 22 | D31: 3073 | E31: 14 | F31: 3084 | K31: 0 | L31: 121
A32: 22 | B32: 3191 | C32: 13 | D32: 3200 | E32: 23 | F32: 3209 | K32: 0 | L32: 212
A33: 11 | B33: 3311 | C33: 22 | D33: 3320 | E33: 14 | F33: 3332 | K33: 0 | L33: 121
A34: 22 | B34: 3450 | C34: 13 | D34: 3463 | E34: 23 | F34: 3474 | K34: 0 | L34: 212
A35: 11 | B35: 3577 | C35: 11 | D35: 3592 | E35: 21 | F35: 3600 | K35: 0 | L35: 112
A36: 11 | B36: 3696 | C36: 22 | D36: 3705 | E36: 23 | F36: 3723 | K36: 0 | L36: 122
A37: 22 | B37: 3841 | C37: 13 | D37: 3867 | E37: 23 | F37: 3876 | K37: 0 | L37: 212
A38: 11 | B38: 3982 | C38: 22 | D38: 3992 | E38: 14 | F38: 4003 | K38: 0 | L38: 121
A39: 11 | B39: 4115 | C39: 22 | D39: 4123 | E39: 23 | F39: 4144 | K39: 0 | L39: 122
A40: 22 | B40: 4267 | C40: 24 | D40: 4284 | E40: 14 | F40: 4292 | K40: 0 | L40: 221
A41: 11 | B41: 4395 | C41: 11 | D41: 4410 | E41: 21 | F41: 4419 | K41: 0 | L41: 112
A42: 11 | B42: 4520 | C42: 22 | D42: 4531 | E42: 23 | F42: 4549 | K42: 0 | L42: 122
A43: 11 | B43: 4644 | C43: 11 | D43: 4651 | E43: 21 | F43: 4660 | K43: 0 | L43: 112
A44: 11 | B44: 4755 | C44: 11 | D44: 4762 | E44: 21 | F44: 4771 | K44: 0 | L44: 112
A45: 11 | B45: 4861 | C45: 11 | D45: 4868 | E45: 21 | F45: 4878 | K45: 0 | L45: 112
A46: 11 | B46: 4968 | C46: 11 | D46: 4974 | E46: 21 | F46: 4989 | K46: 0 | L46: 112
A47: 11 | B47: 5088 | C47: 11 | D47: 5099 | E47: 12 | F47: 5117 | K47: 0 | L47: 111
A48: 11 | B48: 5214 | C48: 11 | D48: 5219 | E48: 21 | F48: 5229 | K48: 0 | L48: 112
A49: 22 | B49: 5336 | C49: 13 | D49: 5343 | E49: 23 | F49: 5352 | K49: 0 | L49: 212
A50: 11 | B50: 5458 | C50: 22 | D50: 5469 | E50: 14 | F50: 5477 | K50: 0 | L50: 121
A51: 11 | B51: 5572 | C51: 11 | D51: 5576 | E51: 12 | F51: 5591 | K51: 0 | L51: 111
A52: 11 | B52: 5724 | C52: 22 | D52: 5735 | E52: 14 | F52: 5744 | K52: 0 | L52: 121
A53: 11 | B53: 5844 | C53: 11 | D53: 5851 | E53: 21 | F53: 5862 | K53: 0 | L53: 112
A54: 11 | B54: 5954 | C54: 11 | D54: 5964 | E54: 21 | F54: 5975 | K54: 0 | L54: 112
A55: 11 | B55: 6068 | C55: 11 | D55: 6076 | E55: 21 | F55: 6086 | K55: 0 | L55: 112
A56: 11 | B56: 6176 | C56: 11 | D56: 6182 | E56: 21 | F56: 6193 | K56: 0 | L56: 112
A57: 11 | B57: 6280 | C57: 11 | D57: 6284 | E57: 12 | F57: 6290 | K57: 0 | L57: 111
A58: 11 | B58: 6387 | C58: 11 | D58: 6395 | E58: 21 | F58: 6406 | K58: 0 | L58: 112
A59: 11 | B59: 6498 | C59: 11 | D59: 6504 | E59: 12 | F59: 6518 | K59: 0 | L59: 111
A60: 11 | B60: 6632 | C60: 22 | D60: 6642 | E60: 14 | F60: 6655 | K60: 0 | L60: 121
A61: 11 | B61: 6752 | C61: 11 | D61: 6757 | E61: 12 | F61: 6768 | K61: 0 | L61: 111
A62: 11 | B62: 6875 | C62: 22 | D62: 6887 | E62: 14 | F62: 6899 | K62: 0 | L62: 121
A63: 11 | B63: 6999 | C63: 11 | D63: 7006 | E63: 21 | F63: 7018 | K63: 0 | L63: 112
A64: 11 | B64: 7109 | C64: 11 | D64: 7116 | E64: 21 | F64: 7127 | K64: 0 | L64: 112
A65: 11 | B65: 7221 | C65: 11 | D65: 7228 | E65: 21 | F65: 7239 | K65: 0 | L65: 112
A66: 11 | B66: 7335 | C66: 11 | D66: 7340 | E66: 21 | F66: 7351 | K66: 0 | L66: 112
A67: 11 | B67: 7445 | C67: 11 | D67: 7451 | E67: 21 | F67: 7461 | K67: 0 | L67: 112
A68: 11 | B68: 7554 | C68: 11 | D68: 7559 | E68: 21 | F68: 7568 | K68: 0 | L68: 112
A69: 11 | B69: 7666 | C69: 11 | D69: 7672 | E69: 21 | F69: 7682 | K69: 0 | L69: 112
A70: 11 | B70: 7772 | C70: 11 | D70: 7777 | E70: 12 | F70: 7781 | K70: 0 | L70: 111
A71: 11 | B71: 7872 | C71: 11 | D71: 7878 | E71: 12 | F71: 7885 | K71: 0 | L71: 111
A72: 11 | B72: 7994 | C72: 22 | D72: 8005 | E72: 23 | F72: 8029 | K72: 0 | L72: 122
A73: 11 | B73: 8138 | C73: 22 | D73: 8146 | E73: 14 | F73: 8158 | K73: 0 | L73: 121
A74: 11 | B74: 8257 | C74: 11 | D74: 8264 | E74: 21 | F74: 8273 | K74: 0 | L74: 112
A75: 11 | B75: 8364 | C75: 11 | D75: 8370 | E75: 21 | F75: 8381 | K75: 0 | L75: 112
A76: 11 | B76: 8471 | C76: 11 | D76: 8478 | E76: 21 | F76: 8491 | K76: 0 | L76: 112
A77: 11 | B77: 8587 | C77: 22 | D77: 8598 | E77: 14 | F77: 8611 | K77: 0 | L77: 121
A78: 11 | B78: 8713 | C78: 11 | D78: 8718 | E78: 21 | F78: 8729 | K78: 0 | L78: 112
A79: 11 | B79: 8820 | C79: 11 | D79: 8828 | E79: 21 | F79: 8836 | K79: 0 | L79: 112
A80: 11 | B80: 8926 | C80: 22 | D80: 8934 | E80: 14 | F80: 8957 | K80: 0 | L80: 121
A81: 11 | B81: 9055 | C81: 11 | D81: 9059 | E81: 12 | F81: 9066 | K81: 0 | L81: 111
A82: 11 | B82: 9173 | C82: 22 | D82: 9182 | E82: 23 | F82: 9203 | K82: 0 | L82: 122
A83: 11 | B83: 9308 | C83: 11 | D83: 9316 | E83: 21 | F83: 9326 | K83: 0 | L83: 112
A84: 11 | B84: 9417 | C84: 22 | D84: 9428 | E84: 14 | F84: 9440 | K84: 0 | L84: 121
A85: 11 | B85: 9537 | C85: 11 | D85: 9542 | E85: 12 | F85: 9554 | K85: 0 | L85: 111
A86: 11 | B86: 9654 | C86: 22 | D86: 9665 | E86: 14 | F86: 9677 | K86: 0 | L86: 121
A87: 11 | B87: 9815 | C87: 22 | D87: 9827 | E87: 14 | F87: 9863 | K87: 0 | L87: 121
A88: 11 | B88: 9960 | C88: 22 | D88: 9971 | E88: 14 | F88: 9983 | K88: 0 | L88: 121
